{"text_format":"1","workbook":"xlsx","n_sheets":2,"sheets":["0.5. Importera data fr. verktyg","2. Samhällsekonomisk analys"],"not_rendered":{"charts":0,"images":3,"macros":1,"external_links":7,"defined_names":453,"comments":1,"pivot_tables":0},"unopened":[],"bounds":{"document_bytes":16777216,"sheet_cells":100000,"rows_first":2000,"rows_last":500,"rows_between":2000,"halvings":0,"cell_chars":16384,"cell_head_chars":4096},"cells_cut":0,"cells_raw":0,"read":"whole","date_system":"1900"}

{"sheet":"0.5. Importera data fr. verktyg","index":0,"n_rows":1825,"n_cols":52,"rows_kept":1825,"cut":false,"hidden":false,"merged":[[382,18,382,22],[730,18,730,22],[776,18,776,22],[13,36,16,36],[13,43,13,52],[14,48,14,52],[15,48,15,52],[16,43,17,52],[34,18,34,22],[9,0,9,1],[9,3,9,14],[9,18,29,18],[9,24,20,24],[9,30,12,30],[10,0,27,15],[6,0,6,13],[7,0,7,13],[7,18,7,40],[7,43,7,52],[8,0,8,13],[8,43,8,52],[5,0,5,2],[5,3,5,13],[0,0,0,16],[1,0,1,13],[2,0,2,13],[3,0,3,13],[4,0,4,13]]}
["Samlad effektbedömning v 1.17"]
[]
[]
[]
[]
[]
[null,null,null,null,null,null,null,null,null,null,null,null,null,null,null,null,null,null,null,null,null,null,null,null,null,null,null,null,null,null,null,null,null,null,null,null,null,null,null,null,null,"Skadade"]
["Hämta kalkylresultatet från SK46, denna mall läses sedan in i SEB-IT",null,null,null,null,null,null,null,null,null,null,null,null,null,null,null,null,null,"Beräkning av effekter 2040 och nuvärde\n",null,null,null,null,null,null,null,null,null,null,null,null,null,null,null,null,null,null,null,null,null,null,"Döda",{"$f":"V697+Y697+AB697+AE697+AH697+AK697+AN697+AQ697+V707+Y707+AB707+AE707+AH707+AK707+AN707+AQ707","v":-3.1460000000000002E-2},"Beräkning av effektivitetstal\n"]
["En Samlad effektbedömning kan riggas så att kalkylresultat kan klistras in MANUELLT i denna flik och sedan länkas vidare in till andra flikar i den Samlade effektbedömningen.  Här nedan finns möjlighet att klistra in resultat från Samkalk. Observera att en förifylld Samlad effektbedömning är en hjälp om man använt ett visst verktyg. Det som lagts och länkats in i en förifylld SEB ligger oskyddat till skillnad från länkar som ligger i grundmallen. Länkar som lagts in kan av misstag skrivas över (om mallen använts av personer som inte är uppmärksammade på hur mallen fungerar). Ansvaret för att kontrollera att detta inte skett ligger hos den som upprättar SEBen. \n",null,null,null,null,null,null,null,null,null,null,null,null,null,null,null,null,null,null,"Effektbenämning och kortfattad beskrivning","Ex på årlig effekt  för prognosår 1",null,"Nuvärde detaljerat (mnkr)",null,null,"Effektbenämning och kortfattad beskrivning","Ex på årlig effekt  för prognosår 1",null,"Nuvärde detaljerat (mnkr)",null,null,"Effektbenämning och kortfattad beskrivning","Ex på årlig effekt  för prognosår 1",null,"Nuvärde detaljerat (mnkr)",null,null,"Effektbenämning och kortfattad beskrivning","Ex på årlig effekt  för prognosår 1",null,"Nuvärde detaljerat (mnkr)","MAS",{"$f":"V698+Y698+AB698+AE698+AH698+AK698+AN698+AQ698+V708+Y708+AB708+AE708+AH708+AK708+AN708+AQ708","v":-0.23966999999999999},"Beräkna Annuitetskostnad \n"]
[null,null,null,null,null,null,null,null,null,null,null,null,null,null,null,null,null,null,"Till \"RESENÄRER\" i SEB","Restid pb, regionalt tjänste",{"$f":"V550","v":-6.5599999999999999E-3},"Mh/år",{"$f":"-V268","v":88.277259999999998},null,"Till \"GODSTRANSPORTER\" i SEB","Restid pb yrkestrafik",{"$f":"Y514","v":-2.4899999999999999E-2},"Mh/år",{"$f":"-Y256","v":274.81781000000001},null,"Till \"PERSON-TRANSPORTER\" i SEB","Biljettintäkter",{"$f":"AH455+AK455+AN455+AQ455","v":-0.24282999999999999},"mnkr/år",{"$f":"AH107+AK107+AN107+AQ107","v":-6.3642400000000006},null,"Till \"TRAFIKSÄKERHET\" i SEB","Trafiksäkerhet",null,null,{"$f":"-V367-Y367-AB367-AE367-AH367-AK367-AN367-AQ367","v":1847.0560700000001},"AS-MAS",{"$f":"V699+Y699+AB699+AE699+AH699+AK699+AN699+AQ699+V709+Y709+AB709+AE709+AH709+AK709+AN709+AQ709","v":-1.13398},"Kapitaliserad inv.kostnad exkl. skattefaktor",null,null,{"$f":"U763/1.3","v":2259.3212923076921},"mnkr",null,"Kapitaliserad inv.kostnad inkl. skattefaktor",{"$f":"U763","v":2937.1176799999998},"mnkr"]
["LÄS DETTA INNAN KALKYLRESULTAT HÄMTAS IN:\n\nNär makrot för långväga resor körts se PM (\"PM-Beräkning av KÖ för långväga bilresor vid väganalyser i Samkalk\") på Samkalks webbsida. Observera att dessa effekter ska fyllas i direkt i flik 2, alternativt i SEB-IT.\n\nÖvergripande instruktion för denna flik:\nObservera att en förifylld Samlad effektbedömning är en hjälp om man använt ett visst verktyg. Det som lagts och länkats in i en förifylld SEB ligger oskyddat till skillnad från länkar som ligger i grundmallen. Länkar som lagts in kan av misstag skrivas över (om mallen använts av personer som inte är uppmärksammade på hur mallen fungerar). Ansvaret för att kontrollera att detta inte skett ligger hos den som upprättar SEBen. \n\nFrån SK46 ska följande flikar klistras in i denna flik:\n- \"Diskonterade resultat\" (se cell S35)\n- \"Resultat prognosår\" (se cell S383)\n- \"Lönsamhetsberäkning\" (se cell S731)\n- \"Förutsättningar\" (se cell S777)\n\nFörklaringar av färger på celler:\n - I blåa celler ligger de instruktioner som ska följas.\n-  Svarta celler ska inte fyllas i i denna flik utan läggs in direkt i flik 2. \n - I celler med röda ramar ska data matas in av användaren:\n      * Excelflikarna \"Diskonterade resultat\", \"Resultat \n         prognosår\", \"Lönsamhetsberäkning\" samt \"Förutsättingar\" från Samkalk  SK-\n         fil ska klistras  in enligt instruktion.\n - I gråa celler sker beräkningar i ett mellansteg innan beräkningen länkas vidare till flikarna 2. och 4. i den Samlade effektbedömningen.\n\n",null,null,null,null,null,null,null,null,null,null,null,null,null,null,null,null,null,null,"Restid pb, långväga tjänste",null,null,null,"Manuell inmatn enligt PM om långväga resor pb läggs inte in här utan direkt i flik 2",null,"Restid lastbil (utan släp)",{"$f":"AB514","v":-2.0109999999999999E-2},"Mh/år",{"$f":"-AB256","v":221.9528},null,null,"Fordonskostnader för kollektivtrafik",{"$f":"AH464+AK464+AN464+AQ464","v":-1.3669999999999998E-2},"mnkr/år",{"$f":"-AH116-AK116-AN116-AQ116","v":0.33765000000000001},null,null,null,null,null,null,"EAS",{"$f":"V700+Y700+AB700+AE700+AH700+AK700+AN700+AQ700+V710+Y710+AB710+AE710+AH710+AK710+AN710+AQ710","v":-6.9150099999999997},"Diskonteringsränta hämtas från gälland ASEK",null,null,3.5000000000000003E-2,null,null,"Diskonteringsränta hämtas från gälland ASEK",{"$f":"U1768/100","v":3.5000000000000003E-2}]
[null,null,null,null,null,null,null,null,null,null,null,null,null,null,null,null,null,null,null,"Restid pb, regionalt arbete",{"$f":"V572","v":-4.931E-2},"Mh/år",{"$f":"-V274","v":197.77037000000001},null,null,"Restid lastbil (släp)",{"$f":"AE514","v":-1.601E-2},"Mh/år",{"$f":"-AE256","v":176.77849000000001},null,null,"Moms på biljettintäkter",{"$f":"AH465+AK465+AN465+AQ465","v":-1.374E-2},"mnkr/år",{"$f":"-AH117-AK117-AN117-AQ117","v":0.36024},null,"Till \"KLIMAT\" i SEB","CO2-ekvivalenter",{"$f":"V675+Y675+AB675+AE675+AH675+AK675+AQ675","v":-0.14607999999999999},"kton/år",{"$f":"-V340-Y340-AB340-AE340-AH340-AK340-AN340-AQ340","v":30.998269999999998},null,null,"Använd Kalkylperiod i aktuell kalkyl",null,null,{"$f":"'2. Samhällsekonomisk analys'!AJ18","v":60},"år",null,"Använd Kalkylperiod i aktuell kalkyl",{"$f":"'2. Samhällsekonomisk analys'!AJ18","v":60},"år"]
[null,null,null,null,null,null,null,null,null,null,null,null,null,null,null,null,null,null,null,"Restid pb, regionalt övr. privat",{"$f":"V561","v":-0.23599000000000001},"Mh/år",{"$f":"-V271","v":590.33543999999995},null,null,"Reskostnad pb yrkestrafik",{"$f":"Y583","v":-0.35926999999999998},"Mkr/år",{"$f":"-Y235","v":9.2981400000000001},null,null,"Banavgifter",{"$f":"AH466+AK466+AN466+AQ466","v":0},"mnkr/år",{"$f":"-AH118-AK118-AN118-AQ118","v":0},null,null,null,null,null,null,null,null,"Annuitetskostnad exklusive skattefaktor beräknas:",null,null,{"$f":"AU10/((1-(1+AU11)^-AU12)/AU11)","v":90.573075728029934},"mnkr",null,"Annuitetskostnad inklusive skattefaktor beräknas:",{"$f":"AY10/((1-(1+AY11)^-AY12)/AY11)","v":117.74499844643891},"mnkr"]
[null,null,null,null,null,null,null,null,null,null,null,null,null,null,null,null,null,null,null,"Restid pb, långväga arbete & övr.",null,null,null,"Manuell inmatn enligt PM om långväga resor pb läggs inte in här utan direkt i flik 2",null,"Reskostnad lastbil (utan släp)",{"$f":"AB583","v":-1.64025},"Mkr/år",{"$f":"-AB235","v":42.450980000000001},null,null,null,null,null,{"$f":"SUM(AI10:AI13)","v":-5.6663500000000004},null,"Till \"HÄLSA\" i SEB","Kväveoxider",{"$f":"V669+Y669+AB669+AE669+AH669+AK669+AQ669","v":-0.51390000000000002},"ton/år",{"$f":"-V334-Y334-AB334-AE334-AH334-AK334-AN334-AQ334","v":7.2609999999999994E-2},null,null,"Uppgifter om D och AS hämtas automatiskt från inklistrade värden i denna flik (kommer från \"Resultat prognosår\" från SK-fil"]
[null,null,null,null,null,null,null,null,null,null,null,null,null,null,null,null,null,null,null,"Reskostnad pb, regionalt tjänste",{"$f":"V595","v":-7.1470000000000006E-2},"mnkr",{"$f":"-V247","v":1.8496999999999999},null,null,"Reskostnad lastbil (släp)",{"$f":"AE583","v":0.13819999999999999},"Mkr/år",{"$f":"-AE235","v":-3.5766100000000001},null,null,null,null,null,null,null,null,"Avgaspartiklar",{"$f":"V672+Y672+AB672+AE672+AH672+AK672+AQ672","v":-6.3E-3},"ton/år",{"$f":"-V337-Y337-AB337-AE337-AH337-AK337-AN337-AQ337","v":5.3566099999999999},null,"Nya förutsättningar. Info hämtas direkt från SK-filens data som är inkopierad nedan","Förändrade antal D hämtas från inklistrad SK-fil i denna flik",null,null,{"$f":"AQ8","v":-3.1460000000000002E-2},"D/år"]
[null,null,null,null,null,null,null,null,null,null,null,null,null,null,null,null,null,null,null,"Reskostnad pb, långväga tjänste",null,null,null,"Manuell inmatn enligt PM om långväga resor pb läggs inte in här utan direkt i flik 2",null,"Transporttid gods pb yrkestrafik",{"$f":"Y646","v":-6.2239999999999997E-2},"Mkr/år",{"$f":"-Y298","v":1.6108100000000001},null,null,null,null,null,null,null,null,"Slitagepartiklar",{"$f":"V678+Y678+AB678+AE678+AH678+AK678+AQ678","v":9.0990000000000001E-2},"ton/år",{"$f":"-V343-Y343-AB343-AE343-AH343-AK343-AN343-AQ343","v":217.51551000000001},null,null,"Förändrade antal AS hämtas från inklistrad SK-fil i denna flik",null,null,{"$f":"AQ9+AQ10","v":-1.37365},"AS/år"]
[null,null,null,null,null,null,null,null,null,null,null,null,null,null,null,null,null,null,null,"Reskostnad pb, regionalt arbete",{"$f":"V601","v":-0.51770000000000005},"mnkr",{"$f":"-V253","v":13.39856},null,null,"Transporttid gods lastbil (u. släp)",{"$f":"AB646","v":-0.1173},"Mkr/år",{"$f":"-AB298","v":3.03573},null,null,null,null,null,null,null,null,null,null,null,null,null,null,"AS"]
[null,null,null,null,null,null,null,null,null,null,null,null,null,null,null,null,null,null,null,"Reskostnad pb, regionalt övr. privat",{"$f":"V598","v":-1.7468999999999999},"mnkr",{"$f":"-V250","v":45.211129999999997},null,null,"Transporttid gods lastbil (släp)",{"$f":"AE646","v":-0.49645},"Mkr/år",{"$f":"-AE298","v":12.848409999999999},null,null,null,null,null,"V669+Y669+AB669+AE669+AH669+AK669+AQ669",null,null,null,null,null,{"$f":"SUM(AO14:AO17)","v":222.94472999999999}]
[null,null,null,null,null,null,null,null,null,null,null,null,null,null,null,null,null,null,null,"Reskostnad pb, långväga arbete & övr.",null,null,null,"Manuell inmatn enligt PM om långväga resor pb läggs inte in här utan direkt i flik 2",null,"Vägavgifter/ vägskatt pb yrkestrafik",{"$f":"Y625","v":1.3182700000000001},"Mkr/år",{"$f":"-Y277","v":-34.11768},null,null,null,null,null,null,null,null,null,null,null,null,null,null,"Kostnadseffektivitetens benämning och kortfattad beskrivning",null,"År som kostnads-effektiviteten redovisas för",null,"Effekter som ska klistras in i SEB-IT för beräkning av kostnadseffektivitetstal"]
[null,null,null,null,null,null,null,null,null,null,null,null,null,null,null,null,null,null,null,"Vägavgifter/vägskatt pb",{"$f":"V625","v":11.73893},"mnkr",{"$f":"-V277","v":-303.81229000000002},null,null,"Vägavgifter/ vägskatt lastbil (u. släp)",{"$f":"AB625","v":1.7525999999999999},"Mkr/år",{"$f":"-AB277","v":-45.35868},null,null,null,null,null,null,null,"Till \"ÖVRIGA EXTERNA EFFEKTER\" i SEB","Mariginellt slitage ",{"$f":"V719+Y719+AB719+AE719+AH719+AK719+AQ719","v":-0.50251999999999997},"mnkr/år",{"$f":"-V371-Y371-AB371-AE371-AH371-AK371-AQ371","v":13.005560000000001}]
[null,null,null,null,null,null,null,null,null,null,null,null,null,null,null,null,null,null,null,"Restid tåg, långväga",{"$f":"AK514","v":0},"Mh/år",{"$f":"-AK256","v":0},null,null,"Vägavgifter/ vägskatt lastbil (släp)",{"$f":"AE625","v":1.5697399999999999},"Mkr/år",{"$f":"-AE277","v":-40.625950000000003},null,null,null,null,null,null,null,null,null,null,null,null,null,null,"Trafik-säkerhet","Förändrade antal liv per mdrkr",{"$f":"AU15/(AU13/1000)","v":-0.34734384083927028},"D/ mdrkr",{"$f":"AU15","v":-3.1460000000000002E-2},"Döda per år (för prognosår 1)"]
[null,null,null,null,null,null,null,null,null,null,null,null,null,null,null,null,null,null,null,"Reskostnad tåg, långväga",{"$f":"AK583","v":0},"mnkr",{"$f":"-AK235","v":0},null,null,null,null,null,{"$f":"SUM(AC10:AC21)","v":619.11424999999997},null,null,null,null,null,null,null,"Till \"BUDGETEFFEKTER\" i SEB","Drivmedelsskatt för vägtrafik, regionalt",{"$f":"V479+Y479+AB479+AE479","v":1.1986300000000001},"mnkr/år",{"$f":"V131+Y131+AB131+AE131","v":31.0215},null,null,"Trafik-säkerhet","Förändrade antal DAS (döda och allvarligt skadade) per mdrkr",{"$f":"(AU16+AU15)/(AU13/1000)","v":-15.513550673924573},"DAS/ mdrnkr",{"$f":"AU15+AU16","v":-1.4051100000000001},"DAS per år (för prognosår 1)"]
[null,null,null,null,null,null,null,null,null,null,null,null,null,null,null,null,null,null,null,"Restid kollektivtrafik, regionalt",{"$f":"AN514","v":0},"Mh/år",{"$f":"-AN256","v":0},null,null,null,null,null,null,null,null,null,null,null,null,null,null,"Drivmedelsskatt för vägtrafik, långväga",{"$f":"V469+Y469+AB469+AE469","v":0},"mnkr/år",{"$f":"V121+Y121+AB121+AE121","v":0},"Om långväga makro pb körts så gäller manuell inmatning enligt PM direkt i flik 2 (rad 222)",null,"Restid","Förändrade antal timmar (totalt) per tkr",{"$f":"1000000*(V514+Y514+AB514+AE514+AH514+AK514+AN514+AQ514)/(AU13*1000)","v":-3.8960805643789476},"tim/ tkr",{"$f":"(V514+Y514+AB514+AE514+AH514+AK514+AN514+AQ514)*1000","v":-352.88000000000005},"Restid ktim per år (för prognosår 1)"]
[null,null,null,null,null,null,null,null,null,null,null,null,null,null,null,null,null,null,null,"Reskostnad kollektivtrafik, regionalt",{"$f":"AN583","v":0},"mnkr",{"$f":"-AN235","v":0},null,null,null,null,null,null,null,null,null,null,null,null,null,null,"Vägavgifter/vägskatt",{"$f":"V489+Y489+AB489+AE489","v":17.05753},"mnkr/år",{"$f":"U743","v":441.4615},null,null,"CO2","Förändrade antal ton CO2 per mnkr",{"$f":"1000*(V675+Y675+AB675+AE675+AH675+AK675+AN675+AQ675)/AU13","v":-1.6128413308900378},"ton/ mnkr",{"$f":"(V675+Y675+AB675+AE675+AH675+AK675+AN675+AQ675)","v":-0.14607999999999999},"CO2 kton per år (för prognosår 1)"]
[null,null,null,null,null,null,null,null,null,null,null,null,null,null,null,null,null,null,null,"Restid buss, långväga",{"$f":"AH514","v":0},"Mh/år",{"$f":"-AH256","v":0},null,null,null,null,null,null,null,null,null,null,null,null,null,null,"Moms på biljettintäkter",{"$f":"AH510+AK510+AN510+AQ510","v":-1.374E-2},"mnkr/år",{"$f":"U744","v":-0.36024}]
[null,null,null,null,null,null,null,null,null,null,null,null,null,null,null,null,null,null,null,"Reskostnad buss, långväga",{"$f":"AH583","v":0},"mnkr",{"$f":"-AH235","v":0},null,null,null,null,null,null,null,null,null,null,null,null,null,null,"Banavgifter",{"$f":"AK511+AN511","v":0},"mnkr/år",{"$f":"U745","v":0}]
[null,null,null,null,null,null,null,null,null,null,null,null,null,null,null,null,null,null,null,"Restid flyg",{"$f":"AQ514","v":0},"Mh/år",{"$f":"-AQ256","v":0},null,null,null,null,null,null,null,null,null,null,null,null,null,null,"Moms fordonskostnader",{"$f":"V512","v":0},"mnkr/år",{"$f":"U746","v":0}]
[null,null,null,null,null,null,null,null,null,null,null,null,null,null,null,null,null,null,null,"Reskostnad flyg",{"$f":"AQ583","v":0},"mnkr",{"$f":"-AQ235","v":0},null,null,null,null,null,null,null,null,null,null,null,null,null,null,null,null,null,{"$f":"SUM(AO22:AO27)","v":472.12276000000003}]
["Verktyg"]
[{"$f":"\"Samkalk\"&\" \"&(RIGHT(S784,5))","v":"Samkalk 3.4.6"}]
[null,null,null,null,null,null,null,null,null,null,null,null,null,null,null,null,null,null,null,null,null,null,{"$f":"SUM(W10:W28)","v":633.03017}]
[]
[null,null,null,null,null,null,null,null,null,null,null,null,null,null,null,null,null,null,null,null,null,null,null,null,null,null,null,null,null,null,null,null,null,null,null,null,null,null,null,null,{"$f":"SUM(AO30:AO32)","v":0}]
[]
[null,null,null,null,null,null,null,null,null,null,null,null,null,null,null,null,null,null,"Markera och klipp ut alla cellerna från A1 till Y336 i fliken \"Diskonterade resultat\". Ställ markören i cellen S36 i denna flik och klistra in dessa celler med funktionen \"Klistra in special\"/\"Värden\"."]
[null,null,null,null,null,null,null,null,null,null,null,null,null,null,null,null,null,null,"Diskonterade resultat"]
[null,null,null,null,null,null,null,null,null,null,null,null,null,null,null,null,null,null,"N A T I O N E L L   O C H   R E G I O N A L   T R A F I K"]
[null,null,null,null,null,null,null,null,null,null,null,null,null,null,null,null,null,null,"Effekter och värden","Pb",null,null,"Pby",null,null,"Lbu",null,null,"Lbs",null,null,"Buss",null,null,"Tåg",null,null,"RegKoll",null,null,"Flyg"]
[null,null,null,null,null,null,null,null,null,null,null,null,null,null,null,null,null,null,"Kalkylperiod 2025-2084","Effekter","Effekter","Differens","Effekter","Effekter","Differens","Effekter","Effekter","Differens","Effekter","Effekter","Differens","Effekter","Effekter","Differens","Effekter","Effekter","Differens","Effekter","Effekter","Differens","Effekter","Effekter","Differens"]
[null,null,null,null,null,null,null,null,null,null,null,null,null,null,null,null,null,null,null,"JA","UA","UA-JA","JA","UA","UA-JA","JA","UA","UA-JA","JA","UA","UA-JA","JA","UA","UA-JA","JA","UA","UA-JA","JA","UA","UA-JA","JA","UA","UA-JA"]
[null,null,null,null,null,null,null,null,null,null,null,null,null,null,null,null,null,null,"ANTAL RESOR"]
[null,null,null,null,null,null,null,null,null,null,null,null,null,null,null,null,null,null,"Antal resor, milj"]
[null,null,null,null,null,null,null,null,null,null,null,null,null,null,null,null,null,null,"|  nationellt"]
[null,null,null,null,null,null,null,null,null,null,null,null,null,null,null,null,null,null,"|  |  tjänste"]
[null,null,null,null,null,null,null,null,null,null,null,null,null,null,null,null,null,null,"|  |  |  existerande/kvarvarande trafik"]
[null,null,null,null,null,null,null,null,null,null,null,null,null,null,null,null,null,null,"|  |  |  tillkommande/försvinnande trafik"]
[null,null,null,null,null,null,null,null,null,null,null,null,null,null,null,null,null,null,"|  |  private"]
[null,null,null,null,null,null,null,null,null,null,null,null,null,null,null,null,null,null,"|  |  |  existerande/kvarvarande trafik"]
[null,null,null,null,null,null,null,null,null,null,null,null,null,null,null,null,null,null,"|  |  |  tillkommande/försvinnande trafik"]
[null,null,null,null,null,null,null,null,null,null,null,null,null,null,null,null,null,null,"|  |  arbete"]
[null,null,null,null,null,null,null,null,null,null,null,null,null,null,null,null,null,null,"|  |  |  existerande/kvarvarande trafik"]
[null,null,null,null,null,null,null,null,null,null,null,null,null,null,null,null,null,null,"|  |  |  tillkommande/försvinnande trafik"]
[null,null,null,null,null,null,null,null,null,null,null,null,null,null,null,null,null,null,"|  regionalt"]
[null,null,null,null,null,null,null,null,null,null,null,null,null,null,null,null,null,null,"|  |  tjänste"]
[null,null,null,null,null,null,null,null,null,null,null,null,null,null,null,null,null,null,"|  |  |  existerande/kvarvarande trafik"]
[null,null,null,null,null,null,null,null,null,null,null,null,null,null,null,null,null,null,"|  |  |  tillkommande/försvinnande trafik"]
[null,null,null,null,null,null,null,null,null,null,null,null,null,null,null,null,null,null,"|  |  private"]
[null,null,null,null,null,null,null,null,null,null,null,null,null,null,null,null,null,null,"|  |  |  existerande/kvarvarande trafik"]
[null,null,null,null,null,null,null,null,null,null,null,null,null,null,null,null,null,null,"|  |  |  tillkommande/försvinnande trafik"]
[null,null,null,null,null,null,null,null,null,null,null,null,null,null,null,null,null,null,"|  |  arbete"]
[null,null,null,null,null,null,null,null,null,null,null,null,null,null,null,null,null,null,"|  |  |  existerande/kvarvarande trafik"]
[null,null,null,null,null,null,null,null,null,null,null,null,null,null,null,null,null,null,"|  |  |  tillkommande/försvinnande trafik"]
[null,null,null,null,null,null,null,null,null,null,null,null,null,null,null,null,null,null,"TRAFIK- OCH TRANSPORTARBETSUPPGIFTER"]
[null,null,null,null,null,null,null,null,null,null,null,null,null,null,null,null,null,null,"Trafikarbete, milj fkm/vkm"]
[null,null,null,null,null,null,null,null,null,null,null,null,null,null,null,null,null,null,"|  nationellt"]
[null,null,null,null,null,null,null,null,null,null,null,null,null,null,null,null,null,null,"|  |  tjänste"]
[null,null,null,null,null,null,null,null,null,null,null,null,null,null,null,null,null,null,"|  |  |  existerande/kvarvarande trafik"]
[null,null,null,null,null,null,null,null,null,null,null,null,null,null,null,null,null,null,"|  |  |  tillkommande/försvinnande trafik"]
[null,null,null,null,null,null,null,null,null,null,null,null,null,null,null,null,null,null,"|  |  private"]
[null,null,null,null,null,null,null,null,null,null,null,null,null,null,null,null,null,null,"|  |  |  existerande/kvarvarande trafik"]
[null,null,null,null,null,null,null,null,null,null,null,null,null,null,null,null,null,null,"|  |  |  tillkommande/försvinnande trafik"]
[null,null,null,null,null,null,null,null,null,null,null,null,null,null,null,null,null,null,"|  |  arbete"]
[null,null,null,null,null,null,null,null,null,null,null,null,null,null,null,null,null,null,"|  |  |  existerande/kvarvarande trafik"]
[null,null,null,null,null,null,null,null,null,null,null,null,null,null,null,null,null,null,"|  |  |  tillkommande/försvinnande trafik"]
[null,null,null,null,null,null,null,null,null,null,null,null,null,null,null,null,null,null,"|  regionalt"]
[null,null,null,null,null,null,null,null,null,null,null,null,null,null,null,null,null,null,"|  |  tjänste"]
[null,null,null,null,null,null,null,null,null,null,null,null,null,null,null,null,null,null,"|  |  |  existerande/kvarvarande trafik"]
[null,null,null,null,null,null,null,null,null,null,null,null,null,null,null,null,null,null,"|  |  |  tillkommande/försvinnande trafik"]
[null,null,null,null,null,null,null,null,null,null,null,null,null,null,null,null,null,null,"|  |  private"]
[null,null,null,null,null,null,null,null,null,null,null,null,null,null,null,null,null,null,"|  |  |  existerande/kvarvarande trafik"]
[null,null,null,null,null,null,null,null,null,null,null,null,null,null,null,null,null,null,"|  |  |  tillkommande/försvinnande trafik"]
[null,null,null,null,null,null,null,null,null,null,null,null,null,null,null,null,null,null,"|  |  arbete"]
[null,null,null,null,null,null,null,null,null,null,null,null,null,null,null,null,null,null,"|  |  |  existerande/kvarvarande trafik"]
[null,null,null,null,null,null,null,null,null,null,null,null,null,null,null,null,null,null,"|  |  |  tillkommande/försvinnande trafik"]
[null,null,null,null,null,null,null,null,null,null,null,null,null,null,null,null,null,null,"Transportarbete, milj pkm"]
[null,null,null,null,null,null,null,null,null,null,null,null,null,null,null,null,null,null,"|  nationellt"]
[null,null,null,null,null,null,null,null,null,null,null,null,null,null,null,null,null,null,"|  |  tjänste"]
[null,null,null,null,null,null,null,null,null,null,null,null,null,null,null,null,null,null,"|  |  |  existerande/kvarvarande trafik"]
[null,null,null,null,null,null,null,null,null,null,null,null,null,null,null,null,null,null,"|  |  |  tillkommande/försvinnande trafik"]
[null,null,null,null,null,null,null,null,null,null,null,null,null,null,null,null,null,null,"|  |  private"]
[null,null,null,null,null,null,null,null,null,null,null,null,null,null,null,null,null,null,"|  |  |  existerande/kvarvarande trafik"]
[null,null,null,null,null,null,null,null,null,null,null,null,null,null,null,null,null,null,"|  |  |  tillkommande/försvinnande trafik"]
[null,null,null,null,null,null,null,null,null,null,null,null,null,null,null,null,null,null,"|  |  arbete"]
[null,null,null,null,null,null,null,null,null,null,null,null,null,null,null,null,null,null,"|  |  |  existerande/kvarvarande trafik"]
[null,null,null,null,null,null,null,null,null,null,null,null,null,null,null,null,null,null,"|  |  |  tillkommande/försvinnande trafik"]
[null,null,null,null,null,null,null,null,null,null,null,null,null,null,null,null,null,null,"|  regionalt"]
[null,null,null,null,null,null,null,null,null,null,null,null,null,null,null,null,null,null,"|  |  tjänste"]
[null,null,null,null,null,null,null,null,null,null,null,null,null,null,null,null,null,null,"|  |  |  existerande/kvarvarande trafik"]
[null,null,null,null,null,null,null,null,null,null,null,null,null,null,null,null,null,null,"|  |  |  tillkommande/försvinnande trafik"]
[null,null,null,null,null,null,null,null,null,null,null,null,null,null,null,null,null,null,"|  |  private"]
[null,null,null,null,null,null,null,null,null,null,null,null,null,null,null,null,null,null,"|  |  |  existerande/kvarvarande trafik"]
[null,null,null,null,null,null,null,null,null,null,null,null,null,null,null,null,null,null,"|  |  |  tillkommande/försvinnande trafik"]
[null,null,null,null,null,null,null,null,null,null,null,null,null,null,null,null,null,null,"|  |  arbete"]
[null,null,null,null,null,null,null,null,null,null,null,null,null,null,null,null,null,null,"|  |  |  existerande/kvarvarande trafik"]
[null,null,null,null,null,null,null,null,null,null,null,null,null,null,null,null,null,null,"|  |  |  tillkommande/försvinnande trafik"]
[null,null,null,null,null,null,null,null,null,null,null,null,null,null,null,null,null,null,"PRODUCENTOVERSKOTT"]
[null,null,null,null,null,null,null,null,null,null,null,null,null,null,null,null,null,null,"Biljettintäkter, MSEK",null,null,null,null,null,null,null,null,null,null,null,null,47334.574220000002,47329.734380000002,-4.8432700000000004,6564.4247999999998,6562.9043000000001,-1.5209699999999999]
[null,null,null,null,null,null,null,null,null,null,null,null,null,null,null,null,null,null,"|  nationellt"]
[null,null,null,null,null,null,null,null,null,null,null,null,null,null,null,null,null,null,"|  |  tjänste"]
[null,null,null,null,null,null,null,null,null,null,null,null,null,null,null,null,null,null,"|  |  private"]
[null,null,null,null,null,null,null,null,null,null,null,null,null,null,null,null,null,null,"|  |  arbete"]
[null,null,null,null,null,null,null,null,null,null,null,null,null,null,null,null,null,null,"|  regionalt",null,null,null,null,null,null,null,null,null,null,null,null,47334.574220000002,47329.734380000002,-4.8432700000000004,6564.4247999999998,6562.9043000000001,-1.5209699999999999]
[null,null,null,null,null,null,null,null,null,null,null,null,null,null,null,null,null,null,"|  |  tjänste",null,null,null,null,null,null,null,null,null,null,null,null,1790.8758499999999,1790.58411,-0.29176000000000002,311.81866000000002,311.74880999999999,-6.9830000000000003E-2]
[null,null,null,null,null,null,null,null,null,null,null,null,null,null,null,null,null,null,"|  |  private",null,null,null,null,null,null,null,null,null,null,null,null,37500.140630000002,37496.597659999999,-3.5451600000000001,4489.2421899999999,4488.5087899999999,-0.73370000000000002]
[null,null,null,null,null,null,null,null,null,null,null,null,null,null,null,null,null,null,"|  |  arbete",null,null,null,null,null,null,null,null,null,null,null,null,8043.5585899999996,8042.5527300000003,-1.00634,1763.36401,1762.64661,-0.71743999999999997]
[null,null,null,null,null,null,null,null,null,null,null,null,null,null,null,null,null,null,"Fordonskostnader för kollektivtrafik, MSEK",null,null,null,null,null,null,null,null,null,null,null,null,172656.9271,172656.68302999999,-0.24407000000000001,307743.10217000003,307743.0086,-9.3579999999999997E-2]
[null,null,null,null,null,null,null,null,null,null,null,null,null,null,null,null,null,null,"Moms på biljettintäkter, MSEK",null,null,null,null,null,null,null,null,null,null,null,null,2679.31556,2679.0416100000002,-0.27415,371.57121999999998,371.48514999999998,-8.609E-2]
[null,null,null,null,null,null,null,null,null,null,null,null,null,null,null,null,null,null,"Banavgifter, MSEK",null,null,null,null,null,null,null,null,null,null,null,null,null,null,null,28455.890719999999,28455.890719999999]
[null,null,null,null,null,null,null,null,null,null,null,null,null,null,null,null,null,null,"BUDGETEFFEKTER"]
[null,null,null,null,null,null,null,null,null,null,null,null,null,null,null,null,null,null,"Drivmedelsskatt för vägtrafik, MSEK",373500.72736000002,373543.45280000003,42.720599999999997,119146.2784,119144.10592,-2.1966700000000001,60031.316400000003,60020.524080000003,-10.75243,94143.982799999998,94145.156640000001,1.25]
[null,null,null,null,null,null,null,null,null,null,null,null,null,null,null,null,null,null,"|  nationellt"]
[null,null,null,null,null,null,null,null,null,null,null,null,null,null,null,null,null,null,"|  |  tjänste"]
[null,null,null,null,null,null,null,null,null,null,null,null,null,null,null,null,null,null,"|  |  |  existerande/kvarvarande trafik"]
[null,null,null,null,null,null,null,null,null,null,null,null,null,null,null,null,null,null,"|  |  |  tillkommande/försvinnande trafik"]
[null,null,null,null,null,null,null,null,null,null,null,null,null,null,null,null,null,null,"|  |  private"]
[null,null,null,null,null,null,null,null,null,null,null,null,null,null,null,null,null,null,"|  |  |  existerande/kvarvarande trafik"]
[null,null,null,null,null,null,null,null,null,null,null,null,null,null,null,null,null,null,"|  |  |  tillkommande/försvinnande trafik"]
[null,null,null,null,null,null,null,null,null,null,null,null,null,null,null,null,null,null,"|  |  arbete"]
[null,null,null,null,null,null,null,null,null,null,null,null,null,null,null,null,null,null,"|  |  |  existerande/kvarvarande trafik"]
[null,null,null,null,null,null,null,null,null,null,null,null,null,null,null,null,null,null,"|  |  |  tillkommande/försvinnande trafik"]
[null,null,null,null,null,null,null,null,null,null,null,null,null,null,null,null,null,null,"|  regionalt",373500.72736000002,373543.45280000003,42.720599999999997,119146.2784,119144.10592,-2.1966700000000001,60031.316400000003,60020.524080000003,-10.75243,94143.982799999998,94145.156640000001,1.25]
[null,null,null,null,null,null,null,null,null,null,null,null,null,null,null,null,null,null,"|  |  tjänste",21506.77966,21508.677660000001,1.90479,119146.2784,119144.10592,-2.1966700000000001,60031.316400000003,60020.524080000003,-10.75243,94143.982799999998,94145.156640000001,1.25]
[null,null,null,null,null,null,null,null,null,null,null,null,null,null,null,null,null,null,"|  |  |  existerande/kvarvarande trafik",null,null,-0.44872000000000001,null,null,-2.1966700000000001,null,null,-10.75243,null,null,1.25]
[null,null,null,null,null,null,null,null,null,null,null,null,null,null,null,null,null,null,"|  |  |  tillkommande/försvinnande trafik",null,null,2.35351]
[null,null,null,null,null,null,null,null,null,null,null,null,null,null,null,null,null,null,"|  |  private",203880.98752,203910.00064000001,28.979310000000002]
[null,null,null,null,null,null,null,null,null,null,null,null,null,null,null,null,null,null,"|  |  |  existerande/kvarvarande trafik",null,null,-11.415229999999999]
[null,null,null,null,null,null,null,null,null,null,null,null,null,null,null,null,null,null,"|  |  |  tillkommande/försvinnande trafik",null,null,40.394539999999999]
[null,null,null,null,null,null,null,null,null,null,null,null,null,null,null,null,null,null,"|  |  arbete",148112.95872,148124.77888,11.83649]
[null,null,null,null,null,null,null,null,null,null,null,null,null,null,null,null,null,null,"|  |  |  existerande/kvarvarande trafik",null,null,-3.3231700000000002]
[null,null,null,null,null,null,null,null,null,null,null,null,null,null,null,null,null,null,"|  |  |  tillkommande/försvinnande trafik",null,null,15.159660000000001]
[null,null,null,null,null,null,null,null,null,null,null,null,null,null,null,null,null,null,"Vägavgifter/vägskatt, MSEK",null,null,321.35919000000001,null,null,34.11768,null,null,45.35868,null,null,40.625950000000003]
[null,null,null,null,null,null,null,null,null,null,null,null,null,null,null,null,null,null,"|  nationellt"]
[null,null,null,null,null,null,null,null,null,null,null,null,null,null,null,null,null,null,"|  |  tjänste"]
[null,null,null,null,null,null,null,null,null,null,null,null,null,null,null,null,null,null,"|  |  |  existerande/kvarvarande trafik"]
[null,null,null,null,null,null,null,null,null,null,null,null,null,null,null,null,null,null,"|  |  |  tillkommande/försvinnande trafik"]
[null,null,null,null,null,null,null,null,null,null,null,null,null,null,null,null,null,null,"|  |  private"]
[null,null,null,null,null,null,null,null,null,null,null,null,null,null,null,null,null,null,"|  |  |  existerande/kvarvarande trafik"]
[null,null,null,null,null,null,null,null,null,null,null,null,null,null,null,null,null,null,"|  |  |  tillkommande/försvinnande trafik"]
[null,null,null,null,null,null,null,null,null,null,null,null,null,null,null,null,null,null,"|  |  arbete"]
[null,null,null,null,null,null,null,null,null,null,null,null,null,null,null,null,null,null,"|  |  |  existerande/kvarvarande trafik"]
[null,null,null,null,null,null,null,null,null,null,null,null,null,null,null,null,null,null,"|  |  |  tillkommande/försvinnande trafik"]
[null,null,null,null,null,null,null,null,null,null,null,null,null,null,null,null,null,null,"|  regionalt",null,null,321.35919000000001,null,null,34.11768,null,null,45.35868,null,null,40.625950000000003]
[null,null,null,null,null,null,null,null,null,null,null,null,null,null,null,null,null,null,"|  |  tjänste",null,null,9.6413799999999998,null,null,34.11768,null,null,45.35868,null,null,40.625950000000003]
[null,null,null,null,null,null,null,null,null,null,null,null,null,null,null,null,null,null,"|  |  |  existerande/kvarvarande trafik",null,null,8.0937099999999997,null,null,34.11768,null,null,45.35868,null,null,40.625950000000003]
[null,null,null,null,null,null,null,null,null,null,null,null,null,null,null,null,null,null,"|  |  |  tillkommande/försvinnande trafik",null,null,1.5476700000000001]
[null,null,null,null,null,null,null,null,null,null,null,null,null,null,null,null,null,null,"|  |  private",null,null,234.17805000000001]
[null,null,null,null,null,null,null,null,null,null,null,null,null,null,null,null,null,null,"|  |  |  existerande/kvarvarande trafik",null,null,209.68995000000001]
[null,null,null,null,null,null,null,null,null,null,null,null,null,null,null,null,null,null,"|  |  |  tillkommande/försvinnande trafik",null,null,24.488099999999999]
[null,null,null,null,null,null,null,null,null,null,null,null,null,null,null,null,null,null,"|  |  arbete",null,null,77.539749999999998]
[null,null,null,null,null,null,null,null,null,null,null,null,null,null,null,null,null,null,"|  |  |  existerande/kvarvarande trafik",null,null,68.481780000000001]
[null,null,null,null,null,null,null,null,null,null,null,null,null,null,null,null,null,null,"|  |  |  tillkommande/försvinnande trafik",null,null,9.0579699999999992]
[null,null,null,null,null,null,null,null,null,null,null,null,null,null,null,null,null,null,"Moms på biljettintäkter, MSEK",null,null,null,null,null,null,null,null,null,null,null,null,2679.31556,2679.0416100000002,-0.27415,371.57121999999998,371.48514999999998,-8.609E-2]
[null,null,null,null,null,null,null,null,null,null,null,null,null,null,null,null,null,null,"Banavgifter, MSEK",null,null,null,null,null,null,null,null,null,null,null,null,null,null,null,28455.890719999999,28455.890719999999]
[]
[null,null,null,null,null,null,null,null,null,null,null,null,null,null,null,null,null,null,"KONSUMENTOVERSKOTT"]
[null,null,null,null,null,null,null,null,null,null,null,null,null,null,null,null,null,null,"Restider, Mh"]
[null,null,null,null,null,null,null,null,null,null,null,null,null,null,null,null,null,null,"|  nationellt"]
[null,null,null,null,null,null,null,null,null,null,null,null,null,null,null,null,null,null,"|  |  tjänste"]
[null,null,null,null,null,null,null,null,null,null,null,null,null,null,null,null,null,null,"|  |  |  existerande/kvarvarande trafik"]
[null,null,null,null,null,null,null,null,null,null,null,null,null,null,null,null,null,null,"|  |  |  |  åktid"]
[null,null,null,null,null,null,null,null,null,null,null,null,null,null,null,null,null,null,"|  |  |  |  anslutningstid"]
[null,null,null,null,null,null,null,null,null,null,null,null,null,null,null,null,null,null,"|  |  |  |  bytestid"]
[null,null,null,null,null,null,null,null,null,null,null,null,null,null,null,null,null,null,"|  |  |  |  väntetid"]
[null,null,null,null,null,null,null,null,null,null,null,null,null,null,null,null,null,null,"|  |  |  tillkommande/försvinnande trafik"]
[null,null,null,null,null,null,null,null,null,null,null,null,null,null,null,null,null,null,"|  |  |  |  åktid"]
[null,null,null,null,null,null,null,null,null,null,null,null,null,null,null,null,null,null,"|  |  |  |  anslutningstid"]
[null,null,null,null,null,null,null,null,null,null,null,null,null,null,null,null,null,null,"|  |  |  |  bytestid"]
[null,null,null,null,null,null,null,null,null,null,null,null,null,null,null,null,null,null,"|  |  |  |  väntetid"]
[null,null,null,null,null,null,null,null,null,null,null,null,null,null,null,null,null,null,"|  |  private"]
[null,null,null,null,null,null,null,null,null,null,null,null,null,null,null,null,null,null,"|  |  |  existerande/kvarvarande trafik"]
[null,null,null,null,null,null,null,null,null,null,null,null,null,null,null,null,null,null,"|  |  |  |  åktid"]
[null,null,null,null,null,null,null,null,null,null,null,null,null,null,null,null,null,null,"|  |  |  |  anslutningstid"]
[null,null,null,null,null,null,null,null,null,null,null,null,null,null,null,null,null,null,"|  |  |  |  bytestid"]
[null,null,null,null,null,null,null,null,null,null,null,null,null,null,null,null,null,null,"|  |  |  |  väntetid"]
[null,null,null,null,null,null,null,null,null,null,null,null,null,null,null,null,null,null,"|  |  |  tillkommande/försvinnande trafik"]
[null,null,null,null,null,null,null,null,null,null,null,null,null,null,null,null,null,null,"|  |  |  |  åktid"]
[null,null,null,null,null,null,null,null,null,null,null,null,null,null,null,null,null,null,"|  |  |  |  anslutningstid"]
[null,null,null,null,null,null,null,null,null,null,null,null,null,null,null,null,null,null,"|  |  |  |  bytestid"]
[null,null,null,null,null,null,null,null,null,null,null,null,null,null,null,null,null,null,"|  |  |  |  väntetid"]
[null,null,null,null,null,null,null,null,null,null,null,null,null,null,null,null,null,null,"|  |  arbete"]
[null,null,null,null,null,null,null,null,null,null,null,null,null,null,null,null,null,null,"|  |  |  existerande/kvarvarande trafik"]
[null,null,null,null,null,null,null,null,null,null,null,null,null,null,null,null,null,null,"|  |  |  |  åktid"]
[null,null,null,null,null,null,null,null,null,null,null,null,null,null,null,null,null,null,"|  |  |  |  anslutningstid"]
[null,null,null,null,null,null,null,null,null,null,null,null,null,null,null,null,null,null,"|  |  |  |  bytestid"]
[null,null,null,null,null,null,null,null,null,null,null,null,null,null,null,null,null,null,"|  |  |  |  väntetid"]
[null,null,null,null,null,null,null,null,null,null,null,null,null,null,null,null,null,null,"|  |  |  tillkommande/försvinnande trafik"]
[null,null,null,null,null,null,null,null,null,null,null,null,null,null,null,null,null,null,"|  |  |  |  åktid"]
[null,null,null,null,null,null,null,null,null,null,null,null,null,null,null,null,null,null,"|  |  |  |  anslutningstid"]
[null,null,null,null,null,null,null,null,null,null,null,null,null,null,null,null,null,null,"|  |  |  |  bytestid"]
[null,null,null,null,null,null,null,null,null,null,null,null,null,null,null,null,null,null,"|  |  |  |  väntetid"]
[null,null,null,null,null,null,null,null,null,null,null,null,null,null,null,null,null,null,"|  regionalt"]
[null,null,null,null,null,null,null,null,null,null,null,null,null,null,null,null,null,null,"|  |  tjänste"]
[null,null,null,null,null,null,null,null,null,null,null,null,null,null,null,null,null,null,"|  |  |  existerande/kvarvarande trafik"]
[null,null,null,null,null,null,null,null,null,null,null,null,null,null,null,null,null,null,"|  |  |  |  åktid"]
[null,null,null,null,null,null,null,null,null,null,null,null,null,null,null,null,null,null,"|  |  |  |  anslutningstid"]
[null,null,null,null,null,null,null,null,null,null,null,null,null,null,null,null,null,null,"|  |  |  |  bytestid"]
[null,null,null,null,null,null,null,null,null,null,null,null,null,null,null,null,null,null,"|  |  |  |  väntetid"]
[null,null,null,null,null,null,null,null,null,null,null,null,null,null,null,null,null,null,"|  |  |  tillkommande/försvinnande trafik"]
[null,null,null,null,null,null,null,null,null,null,null,null,null,null,null,null,null,null,"|  |  |  |  åktid"]
[null,null,null,null,null,null,null,null,null,null,null,null,null,null,null,null,null,null,"|  |  |  |  anslutningstid"]
[null,null,null,null,null,null,null,null,null,null,null,null,null,null,null,null,null,null,"|  |  |  |  bytestid"]
[null,null,null,null,null,null,null,null,null,null,null,null,null,null,null,null,null,null,"|  |  |  |  väntetid"]
[null,null,null,null,null,null,null,null,null,null,null,null,null,null,null,null,null,null,"|  |  private"]
[null,null,null,null,null,null,null,null,null,null,null,null,null,null,null,null,null,null,"|  |  |  existerande/kvarvarande trafik"]
[null,null,null,null,null,null,null,null,null,null,null,null,null,null,null,null,null,null,"|  |  |  |  åktid"]
[null,null,null,null,null,null,null,null,null,null,null,null,null,null,null,null,null,null,"|  |  |  |  anslutningstid"]
[null,null,null,null,null,null,null,null,null,null,null,null,null,null,null,null,null,null,"|  |  |  |  bytestid"]
[null,null,null,null,null,null,null,null,null,null,null,null,null,null,null,null,null,null,"|  |  |  |  väntetid"]
[null,null,null,null,null,null,null,null,null,null,null,null,null,null,null,null,null,null,"|  |  |  tillkommande/försvinnande trafik"]
[null,null,null,null,null,null,null,null,null,null,null,null,null,null,null,null,null,null,"|  |  |  |  åktid"]
[null,null,null,null,null,null,null,null,null,null,null,null,null,null,null,null,null,null,"|  |  |  |  anslutningstid"]
[null,null,null,null,null,null,null,null,null,null,null,null,null,null,null,null,null,null,"|  |  |  |  bytestid"]
[null,null,null,null,null,null,null,null,null,null,null,null,null,null,null,null,null,null,"|  |  |  |  väntetid"]
[null,null,null,null,null,null,null,null,null,null,null,null,null,null,null,null,null,null,"|  |  arbete"]
[null,null,null,null,null,null,null,null,null,null,null,null,null,null,null,null,null,null,"|  |  |  existerande/kvarvarande trafik"]
[null,null,null,null,null,null,null,null,null,null,null,null,null,null,null,null,null,null,"|  |  |  |  åktid"]
[null,null,null,null,null,null,null,null,null,null,null,null,null,null,null,null,null,null,"|  |  |  |  anslutningstid"]
[null,null,null,null,null,null,null,null,null,null,null,null,null,null,null,null,null,null,"|  |  |  |  bytestid"]
[null,null,null,null,null,null,null,null,null,null,null,null,null,null,null,null,null,null,"|  |  |  |  väntetid"]
[null,null,null,null,null,null,null,null,null,null,null,null,null,null,null,null,null,null,"|  |  |  tillkommande/försvinnande trafik"]
[null,null,null,null,null,null,null,null,null,null,null,null,null,null,null,null,null,null,"|  |  |  |  åktid"]
[null,null,null,null,null,null,null,null,null,null,null,null,null,null,null,null,null,null,"|  |  |  |  anslutningstid"]
[null,null,null,null,null,null,null,null,null,null,null,null,null,null,null,null,null,null,"|  |  |  |  bytestid"]
[null,null,null,null,null,null,null,null,null,null,null,null,null,null,null,null,null,null,"|  |  |  |  väntetid"]
[null,null,null,null,null,null,null,null,null,null,null,null,null,null,null,null,null,null,"Reskostnader, MSEK",null,null,-60.459389999999999,null,null,-9.2981400000000001,null,null,-42.450980000000001,null,null,3.5766100000000001,null,null,null,null,null,null,288678.34815999999,288678.34815999999]
[null,null,null,null,null,null,null,null,null,null,null,null,null,null,null,null,null,null,"|  nationellt"]
[null,null,null,null,null,null,null,null,null,null,null,null,null,null,null,null,null,null,"|  |  tjänste"]
[null,null,null,null,null,null,null,null,null,null,null,null,null,null,null,null,null,null,"|  |  |  existerande/kvarvarande trafik"]
[null,null,null,null,null,null,null,null,null,null,null,null,null,null,null,null,null,null,"|  |  |  tillkommande/försvinnande trafik"]
[null,null,null,null,null,null,null,null,null,null,null,null,null,null,null,null,null,null,"|  |  private"]
[null,null,null,null,null,null,null,null,null,null,null,null,null,null,null,null,null,null,"|  |  |  existerande/kvarvarande trafik"]
[null,null,null,null,null,null,null,null,null,null,null,null,null,null,null,null,null,null,"|  |  |  tillkommande/försvinnande trafik"]
[null,null,null,null,null,null,null,null,null,null,null,null,null,null,null,null,null,null,"|  |  arbete"]
[null,null,null,null,null,null,null,null,null,null,null,null,null,null,null,null,null,null,"|  |  |  existerande/kvarvarande trafik"]
[null,null,null,null,null,null,null,null,null,null,null,null,null,null,null,null,null,null,"|  |  |  tillkommande/försvinnande trafik"]
[null,null,null,null,null,null,null,null,null,null,null,null,null,null,null,null,null,null,"|  regionalt",null,null,-60.459389999999999,null,null,-9.2981400000000001,null,null,-42.450980000000001,null,null,3.5766100000000001,null,null,null,null,null,null,288678.34815999999,288678.34815999999]
[null,null,null,null,null,null,null,null,null,null,null,null,null,null,null,null,null,null,"|  |  tjänste",null,null,-1.8496999999999999,null,null,-9.2981400000000001,null,null,-42.450980000000001,null,null,3.5766100000000001,null,null,null,null,null,null,13529.3747,13529.3747]
[null,null,null,null,null,null,null,null,null,null,null,null,null,null,null,null,null,null,"|  |  |  existerande/kvarvarande trafik",null,null,-1.63649,null,null,-9.2981400000000001,null,null,-42.450980000000001,null,null,3.5766100000000001]
[null,null,null,null,null,null,null,null,null,null,null,null,null,null,null,null,null,null,"|  |  |  tillkommande/försvinnande trafik",null,null,-0.21321000000000001]
[null,null,null,null,null,null,null,null,null,null,null,null,null,null,null,null,null,null,"|  |  private",null,null,-45.211129999999997,null,null,null,null,null,null,null,null,null,null,null,null,null,null,null,202762.25375999999,202762.25375999999]
[null,null,null,null,null,null,null,null,null,null,null,null,null,null,null,null,null,null,"|  |  |  existerande/kvarvarande trafik",null,null,-41.632080000000002]
[null,null,null,null,null,null,null,null,null,null,null,null,null,null,null,null,null,null,"|  |  |  tillkommande/försvinnande trafik",null,null,-3.5790500000000001]
[null,null,null,null,null,null,null,null,null,null,null,null,null,null,null,null,null,null,"|  |  arbete",null,null,-13.39856,null,null,null,null,null,null,null,null,null,null,null,null,null,null,null,72386.735759999996,72386.735759999996]
[null,null,null,null,null,null,null,null,null,null,null,null,null,null,null,null,null,null,"|  |  |  existerande/kvarvarande trafik",null,null,-12.119770000000001]
[null,null,null,null,null,null,null,null,null,null,null,null,null,null,null,null,null,null,"|  |  |  tillkommande/försvinnande trafik",null,null,-1.2787900000000001]
[null,null,null,null,null,null,null,null,null,null,null,null,null,null,null,null,null,null,"Restider, MSEK",null,null,-876.38306999999998,null,null,-274.81781000000001,null,null,-221.9528,null,null,-176.77849000000001]
[null,null,null,null,null,null,null,null,null,null,null,null,null,null,null,null,null,null,"|  nationellt"]
[null,null,null,null,null,null,null,null,null,null,null,null,null,null,null,null,null,null,"|  |  tjänste"]
[null,null,null,null,null,null,null,null,null,null,null,null,null,null,null,null,null,null,"|  |  |  existerande/kvarvarande trafik"]
[null,null,null,null,null,null,null,null,null,null,null,null,null,null,null,null,null,null,"|  |  |  tillkommande/försvinnande trafik"]
[null,null,null,null,null,null,null,null,null,null,null,null,null,null,null,null,null,null,"|  |  private"]
[null,null,null,null,null,null,null,null,null,null,null,null,null,null,null,null,null,null,"|  |  |  existerande/kvarvarande trafik"]
[null,null,null,null,null,null,null,null,null,null,null,null,null,null,null,null,null,null,"|  |  |  tillkommande/försvinnande trafik"]
[null,null,null,null,null,null,null,null,null,null,null,null,null,null,null,null,null,null,"|  |  arbete"]
[null,null,null,null,null,null,null,null,null,null,null,null,null,null,null,null,null,null,"|  |  |  existerande/kvarvarande trafik"]
[null,null,null,null,null,null,null,null,null,null,null,null,null,null,null,null,null,null,"|  |  |  tillkommande/försvinnande trafik"]
[null,null,null,null,null,null,null,null,null,null,null,null,null,null,null,null,null,null,"|  regionalt",null,null,-876.38306999999998,null,null,-274.81781000000001,null,null,-221.9528,null,null,-176.77849000000001]
[null,null,null,null,null,null,null,null,null,null,null,null,null,null,null,null,null,null,"|  |  tjänste",null,null,-88.277259999999998,null,null,-274.81781000000001,null,null,-221.9528,null,null,-176.77849000000001]
[null,null,null,null,null,null,null,null,null,null,null,null,null,null,null,null,null,null,"|  |  |  existerande/kvarvarande trafik",null,null,-81.877139999999997,null,null,-274.81781000000001,null,null,-221.9528,null,null,-176.77849000000001]
[null,null,null,null,null,null,null,null,null,null,null,null,null,null,null,null,null,null,"|  |  |  tillkommande/försvinnande trafik",null,null,-6.4001200000000003]
[null,null,null,null,null,null,null,null,null,null,null,null,null,null,null,null,null,null,"|  |  private",null,null,-590.33543999999995]
[null,null,null,null,null,null,null,null,null,null,null,null,null,null,null,null,null,null,"|  |  |  existerande/kvarvarande trafik",null,null,-562.57773999999995]
[null,null,null,null,null,null,null,null,null,null,null,null,null,null,null,null,null,null,"|  |  |  tillkommande/försvinnande trafik",null,null,-27.757680000000001]
[null,null,null,null,null,null,null,null,null,null,null,null,null,null,null,null,null,null,"|  |  arbete",null,null,-197.77037000000001]
[null,null,null,null,null,null,null,null,null,null,null,null,null,null,null,null,null,null,"|  |  |  existerande/kvarvarande trafik",null,null,-187.94023000000001]
[null,null,null,null,null,null,null,null,null,null,null,null,null,null,null,null,null,null,"|  |  |  tillkommande/försvinnande trafik",null,null,-9.8301300000000005]
[null,null,null,null,null,null,null,null,null,null,null,null,null,null,null,null,null,null,"Vägavgifter/vägskatt, MSEK",null,null,303.81229000000002,null,null,34.11768,null,null,45.35868,null,null,40.625950000000003]
[null,null,null,null,null,null,null,null,null,null,null,null,null,null,null,null,null,null,"|  nationellt"]
[null,null,null,null,null,null,null,null,null,null,null,null,null,null,null,null,null,null,"|  |  tjänste"]
[null,null,null,null,null,null,null,null,null,null,null,null,null,null,null,null,null,null,"|  |  |  existerande/kvarvarande trafik"]
[null,null,null,null,null,null,null,null,null,null,null,null,null,null,null,null,null,null,"|  |  |  tillkommande/försvinnande trafik"]
[null,null,null,null,null,null,null,null,null,null,null,null,null,null,null,null,null,null,"|  |  private"]
[null,null,null,null,null,null,null,null,null,null,null,null,null,null,null,null,null,null,"|  |  |  existerande/kvarvarande trafik"]
[null,null,null,null,null,null,null,null,null,null,null,null,null,null,null,null,null,null,"|  |  |  tillkommande/försvinnande trafik"]
[null,null,null,null,null,null,null,null,null,null,null,null,null,null,null,null,null,null,"|  |  arbete"]
[null,null,null,null,null,null,null,null,null,null,null,null,null,null,null,null,null,null,"|  |  |  existerande/kvarvarande trafik"]
[null,null,null,null,null,null,null,null,null,null,null,null,null,null,null,null,null,null,"|  |  |  tillkommande/försvinnande trafik"]
[null,null,null,null,null,null,null,null,null,null,null,null,null,null,null,null,null,null,"|  regionalt",null,null,303.81229000000002,null,null,34.11768,null,null,45.35868,null,null,40.625950000000003]
[null,null,null,null,null,null,null,null,null,null,null,null,null,null,null,null,null,null,"|  |  tjänste",null,null,8.8675499999999996,null,null,34.11768,null,null,45.35868,null,null,40.625950000000003]
[null,null,null,null,null,null,null,null,null,null,null,null,null,null,null,null,null,null,"|  |  |  existerande/kvarvarande trafik",null,null,8.0937099999999997,null,null,34.11768,null,null,45.35868,null,null,40.625950000000003]
[null,null,null,null,null,null,null,null,null,null,null,null,null,null,null,null,null,null,"|  |  |  tillkommande/försvinnande trafik",null,null,0.77383999999999997]
[null,null,null,null,null,null,null,null,null,null,null,null,null,null,null,null,null,null,"|  |  private",null,null,221.93397999999999]
[null,null,null,null,null,null,null,null,null,null,null,null,null,null,null,null,null,null,"|  |  |  existerande/kvarvarande trafik",null,null,209.68995000000001]
[null,null,null,null,null,null,null,null,null,null,null,null,null,null,null,null,null,null,"|  |  |  tillkommande/försvinnande trafik",null,null,12.24405]
[null,null,null,null,null,null,null,null,null,null,null,null,null,null,null,null,null,null,"|  |  arbete",null,null,73.010769999999994]
[null,null,null,null,null,null,null,null,null,null,null,null,null,null,null,null,null,null,"|  |  |  existerande/kvarvarande trafik",null,null,68.481780000000001]
[null,null,null,null,null,null,null,null,null,null,null,null,null,null,null,null,null,null,"|  |  |  tillkommande/försvinnande trafik",null,null,4.5289900000000003]
[null,null,null,null,null,null,null,null,null,null,null,null,null,null,null,null,null,null,"Godskostnader, MSEK",null,null,null,null,null,-1.6108100000000001,null,null,-3.03573,null,null,-12.848409999999999]
[null,null,null,null,null,null,null,null,null,null,null,null,null,null,null,null,null,null,"|  nationellt"]
[null,null,null,null,null,null,null,null,null,null,null,null,null,null,null,null,null,null,"|  |  tjänste"]
[null,null,null,null,null,null,null,null,null,null,null,null,null,null,null,null,null,null,"|  |  |  existerande/kvarvarande trafik"]
[null,null,null,null,null,null,null,null,null,null,null,null,null,null,null,null,null,null,"|  |  |  tillkommande/försvinnande trafik"]
[null,null,null,null,null,null,null,null,null,null,null,null,null,null,null,null,null,null,"|  |  private"]
[null,null,null,null,null,null,null,null,null,null,null,null,null,null,null,null,null,null,"|  |  |  existerande/kvarvarande trafik"]
[null,null,null,null,null,null,null,null,null,null,null,null,null,null,null,null,null,null,"|  |  |  tillkommande/försvinnande trafik"]
[null,null,null,null,null,null,null,null,null,null,null,null,null,null,null,null,null,null,"|  |  arbete"]
[null,null,null,null,null,null,null,null,null,null,null,null,null,null,null,null,null,null,"|  |  |  existerande/kvarvarande trafik"]
[null,null,null,null,null,null,null,null,null,null,null,null,null,null,null,null,null,null,"|  |  |  tillkommande/försvinnande trafik"]
[null,null,null,null,null,null,null,null,null,null,null,null,null,null,null,null,null,null,"|  regionalt",null,null,null,null,null,-1.6108100000000001,null,null,-3.03573,null,null,-12.848409999999999]
[null,null,null,null,null,null,null,null,null,null,null,null,null,null,null,null,null,null,"|  |  tjänste",null,null,null,null,null,-1.6108100000000001,null,null,-3.03573,null,null,-12.848409999999999]
[null,null,null,null,null,null,null,null,null,null,null,null,null,null,null,null,null,null,"|  |  |  existerande/kvarvarande trafik",null,null,null,null,null,-1.6108100000000001,null,null,-3.03573,null,null,-12.848409999999999]
[null,null,null,null,null,null,null,null,null,null,null,null,null,null,null,null,null,null,"|  |  |  tillkommande/försvinnande trafik"]
[null,null,null,null,null,null,null,null,null,null,null,null,null,null,null,null,null,null,"|  |  private"]
[null,null,null,null,null,null,null,null,null,null,null,null,null,null,null,null,null,null,"|  |  |  existerande/kvarvarande trafik"]
[null,null,null,null,null,null,null,null,null,null,null,null,null,null,null,null,null,null,"|  |  |  tillkommande/försvinnande trafik"]
[null,null,null,null,null,null,null,null,null,null,null,null,null,null,null,null,null,null,"|  |  arbete"]
[null,null,null,null,null,null,null,null,null,null,null,null,null,null,null,null,null,null,"|  |  |  existerande/kvarvarande trafik"]
[null,null,null,null,null,null,null,null,null,null,null,null,null,null,null,null,null,null,"|  |  |  tillkommande/försvinnande trafik"]
[null,null,null,null,null,null,null,null,null,null,null,null,null,null,null,null,null,null,"EXTERNA EFFEKTER"]
[null,null,null,null,null,null,null,null,null,null,null,null,null,null,null,null,null,null,"Luftföroreningar o klimatgaser, mängder"]
[null,null,null,null,null,null,null,null,null,null,null,null,null,null,null,null,null,null,"|  NOx, ton"]
[null,null,null,null,null,null,null,null,null,null,null,null,null,null,null,null,null,null,"|  |  landsbygd"]
[null,null,null,null,null,null,null,null,null,null,null,null,null,null,null,null,null,null,"|  |  tätort"]
[null,null,null,null,null,null,null,null,null,null,null,null,null,null,null,null,null,null,"|  Avgaspartiklar, ton"]
[null,null,null,null,null,null,null,null,null,null,null,null,null,null,null,null,null,null,"|  |  landsbygd"]
[null,null,null,null,null,null,null,null,null,null,null,null,null,null,null,null,null,null,"|  |  tätort"]
[null,null,null,null,null,null,null,null,null,null,null,null,null,null,null,null,null,null,"|  CO2, kton"]
[null,null,null,null,null,null,null,null,null,null,null,null,null,null,null,null,null,null,"|  |  landsbygd"]
[null,null,null,null,null,null,null,null,null,null,null,null,null,null,null,null,null,null,"|  |  tätort"]
[null,null,null,null,null,null,null,null,null,null,null,null,null,null,null,null,null,null,"|  Slitagepartiklar, ton"]
[null,null,null,null,null,null,null,null,null,null,null,null,null,null,null,null,null,null,"|  |  landsbygd"]
[null,null,null,null,null,null,null,null,null,null,null,null,null,null,null,null,null,null,"|  |  tätort"]
[null,null,null,null,null,null,null,null,null,null,null,null,null,null,null,null,null,null,"Luftföroreningar o klimatgaser, MSEK",63958.707029999998,63782.488279999998,-176.2148,8897.3720699999994,8881.4238299999997,-15.948499999999999,14096.08496,14071.70996,-24.375019999999999,21313.894530000001,21276.492190000001,-37.404339999999998,1206.32104,1206.3208,-3.3E-4,3681.7356,3681.7356]
[null,null,null,null,null,null,null,null,null,null,null,null,null,null,null,null,null,null,"|  NOx",35.180590000000002,35.161589999999997,-1.9E-2,4.6161300000000001,4.6137899999999998,-2.3400000000000001E-3,15.6593,15.6351,-2.4199999999999999E-2,23.394079999999999,23.367010000000001,-2.707E-2,null,null,null,6.5811400000000004,6.5811400000000004]
[null,null,null,null,null,null,null,null,null,null,null,null,null,null,null,null,null,null,"|  |  landsbygd",24.177890000000001,24.219080000000002,4.1189999999999997E-2,2.97898,2.9818500000000001,2.8700000000000002E-3,10.654540000000001,10.66666,1.2120000000000001E-2,20.710380000000001,20.73546,2.5080000000000002E-2,null,null,null,6.0546499999999996,6.0546499999999996]
[null,null,null,null,null,null,null,null,null,null,null,null,null,null,null,null,null,null,"|  |  tätort",11.002700000000001,10.94251,-6.019E-2,1.6371500000000001,1.6319399999999999,-5.2100000000000002E-3,5.0047600000000001,4.9684499999999998,-3.6319999999999998E-2,2.6837,2.6315599999999999,-5.2150000000000002E-2,null,null,null,0.52649000000000001,0.52649000000000001]
[null,null,null,null,null,null,null,null,null,null,null,null,null,null,null,null,null,null,"|  Avgaspartiklar",439.05417,436.65222,-2.4019499999999998,65.329149999999998,65.121300000000005,-0.20785999999999999,126.73218,125.81256,-0.91961999999999999,94.034610000000001,92.207430000000002,-1.82718,null,null,null,10.87304,10.87304]
[null,null,null,null,null,null,null,null,null,null,null,null,null,null,null,null,null,null,"|  |  landsbygd"]
[null,null,null,null,null,null,null,null,null,null,null,null,null,null,null,null,null,null,"|  |  tätort",439.05417,436.65222,-2.4019499999999998,65.329149999999998,65.121300000000005,-0.20785999999999999,126.73218,125.81256,-0.91961999999999999,94.034610000000001,92.207430000000002,-1.82718,null,null,null,10.87304,10.87304]
[null,null,null,null,null,null,null,null,null,null,null,null,null,null,null,null,null,null,"|  CO2",32830.613279999998,32824.515630000002,-6.0947399999999998,4266.2793000000001,4265.0532199999998,-1.22617,11645.121090000001,11638.44238,-6.6791499999999999,20241.712889999999,20224.714840000001,-16.99821,null,null,null,3664.2814899999998,3664.2814899999998]
[null,null,null,null,null,null,null,null,null,null,null,null,null,null,null,null,null,null,"|  |  landsbygd",24185.154299999998,24226.355469999999,41.20234,2979.87646,2982.74341,2.8667199999999999,9271.4433599999993,9281.9892600000003,10.54524,18230.751950000002,18252.828130000002,22.076830000000001,null,null,null,3371.1389199999999,3371.1389199999999]
[null,null,null,null,null,null,null,null,null,null,null,null,null,null,null,null,null,null,"|  |  tätort",8645.4589799999994,8598.1621099999993,-47.297080000000001,1286.40283,1282.3099400000001,-4.0928899999999997,2373.67749,2356.4531299999999,-17.22439,2010.96155,1971.8864699999999,-39.075040000000001,null,null,null,293.14249000000001,293.14249000000001]
[null,null,null,null,null,null,null,null,null,null,null,null,null,null,null,null,null,null,"|  Slitagepartiklar",30653.859380000002,30486.160159999999,-167.69910999999999,4561.1474600000001,4546.6352500000003,-14.512130000000001,2308.5722700000001,2291.8203100000001,-16.75206,954.75409000000002,936.20227,-18.551880000000001,1206.32104,1206.3208,-3.3E-4]
[null,null,null,null,null,null,null,null,null,null,null,null,null,null,null,null,null,null,"|  |  landsbygd"]
[null,null,null,null,null,null,null,null,null,null,null,null,null,null,null,null,null,null,"|  |  tätort",30653.859380000002,30486.160159999999,-167.69910999999999,4561.1474600000001,4546.6352500000003,-14.512130000000001,2308.5722700000001,2291.8203100000001,-16.75206,954.75409000000002,936.20227,-18.551880000000001,1206.32104,1206.3208,-3.3E-4]
[null,null,null,null,null,null,null,null,null,null,null,null,null,null,null,null,null,null,"Trafikolyckor, antal"]
[null,null,null,null,null,null,null,null,null,null,null,null,null,null,null,null,null,null,"|  existerande/kvarvarande trafik"]
[null,null,null,null,null,null,null,null,null,null,null,null,null,null,null,null,null,null,"|  Från sjukvårdsrapporter (uppräknat för bortfall)"]
[null,null,null,null,null,null,null,null,null,null,null,null,null,null,null,null,null,null,"|  |  Dödade"]
[null,null,null,null,null,null,null,null,null,null,null,null,null,null,null,null,null,null,"|  |  Mycket allvarligt skadade (MAS)"]
[null,null,null,null,null,null,null,null,null,null,null,null,null,null,null,null,null,null,"|  |  Allvarligt skadade exkl. MAS"]
[null,null,null,null,null,null,null,null,null,null,null,null,null,null,null,null,null,null,"|  |  Ej allvarligt skadade"]
[null,null,null,null,null,null,null,null,null,null,null,null,null,null,null,null,null,null,"|  |  Egendomsskador"]
[null,null,null,null,null,null,null,null,null,null,null,null,null,null,null,null,null,null,"|  Från polisrapporter (uppräknat för bortfall)"]
[null,null,null,null,null,null,null,null,null,null,null,null,null,null,null,null,null,null,"|  |  Svårt skadade"]
[null,null,null,null,null,null,null,null,null,null,null,null,null,null,null,null,null,null,"|  |  Lindrigt skadade"]
[null,null,null,null,null,null,null,null,null,null,null,null,null,null,null,null,null,null,"|  tillkommande/försvinnande trafik"]
[null,null,null,null,null,null,null,null,null,null,null,null,null,null,null,null,null,null,"|  Från sjukvårdsrapporter (uppräknat för bortfall)"]
[null,null,null,null,null,null,null,null,null,null,null,null,null,null,null,null,null,null,"|  |  Dödade"]
[null,null,null,null,null,null,null,null,null,null,null,null,null,null,null,null,null,null,"|  |  Mycket allvarligt skadade (MAS)"]
[null,null,null,null,null,null,null,null,null,null,null,null,null,null,null,null,null,null,"|  |  Allvarligt skadade exkl. MAS"]
[null,null,null,null,null,null,null,null,null,null,null,null,null,null,null,null,null,null,"|  |  Ej allvarligt skadade"]
[null,null,null,null,null,null,null,null,null,null,null,null,null,null,null,null,null,null,"|  |  Egendomsskador"]
[null,null,null,null,null,null,null,null,null,null,null,null,null,null,null,null,null,null,"|  Från polisrapporter (uppräknat för bortfall)"]
[null,null,null,null,null,null,null,null,null,null,null,null,null,null,null,null,null,null,"|  |  Svårt skadade"]
[null,null,null,null,null,null,null,null,null,null,null,null,null,null,null,null,null,null,"|  |  Lindrigt skadade"]
[null,null,null,null,null,null,null,null,null,null,null,null,null,null,null,null,null,null,"Trafikolyckor, MSEK",null,null,-1182.9404300000001,null,null,-121.45889,null,null,-153.74385000000001,null,null,-388.91289999999998]
[null,null,null,null,null,null,null,null,null,null,null,null,null,null,null,null,null,null,"|  extern olyckskostnad",683767.75,682584.8125,-1182.9404300000001,93345.726559999996,93224.265629999994,-121.45889,68598.046879999994,68444.296879999994,-153.74385000000001,133969.57813000001,133580.67188000001,-388.91289999999998,6832.9257799999996,6832.9257799999996,null,18094.662110000001,18094.662110000001]
[null,null,null,null,null,null,null,null,null,null,null,null,null,null,null,null,null,null,"|  |  landsbygd",459408.03125,459752.125,344.07702999999998,59296.773439999997,59311.96875,15.195460000000001,50359.859380000002,50364.914060000003,5.0548799999999998,116696.58594,116735.23437999999,38.651339999999998,5466.3408200000003,5466.3408200000003,null,16647.089840000001,16647.089840000001]
[null,null,null,null,null,null,null,null,null,null,null,null,null,null,null,null,null,null,"|  |  tätort",224359.70313000001,222832.6875,-1527.01746,34048.953130000002,33912.296880000002,-136.65436,18238.183590000001,18079.384770000001,-158.79874000000001,17272.998049999998,16845.433590000001,-427.56423999999998,1366.58521,1366.58521,null,1447.5728799999999,1447.5728799999999]
[null,null,null,null,null,null,null,null,null,null,null,null,null,null,null,null,null,null,"Marginellt slitage, MSEK",13758.7364,13760.49769,1.76129,1772.5390600000001,1772.3811000000001,-0.15795999999999999,10651.364030000001,10647.71823,-3.6457999999999999,23036.37414,23025.413049999999,-10.96109,5810.4794899999997,5810.4774900000002,-2E-3,36992.656660000001,36992.656660000001]
[]
[]
[]
[]
[]
[]
[]
[]
[]
[]
[]
[null,null,null,null,null,null,null,null,null,null,null,null,null,null,null,null,null,null,"Markera och klipp ut alla cellerna från A1 till Y336 i fliken \"Resultat prognosår\".  Ställ markören i cellen S384 i denna flik och klistra in dessa celler med funktionen \"Klistra in special\"/\"Värden\"."]
[null,null,null,null,null,null,null,null,null,null,null,null,null,null,null,null,null,null,"Resultat prognosår"]
[null,null,null,null,null,null,null,null,null,null,null,null,null,null,null,null,null,null,"N A T I O N E L L   O C H   R E G I O N A L   T R A F I K"]
[null,null,null,null,null,null,null,null,null,null,null,null,null,null,null,null,null,null,"Effekter och värden","Pb",null,null,"Pby",null,null,"Lbu",null,null,"Lbs",null,null,"Buss",null,null,"Tåg",null,null,"RegKoll",null,null,"Flyg"]
[null,null,null,null,null,null,null,null,null,null,null,null,null,null,null,null,null,null,"Kalkylperiod 2025-2084","Effekter","Effekter","Differens","Effekter","Effekter","Differens","Effekter","Effekter","Differens","Effekter","Effekter","Differens","Effekter","Effekter","Differens","Effekter","Effekter","Differens","Effekter","Effekter","Differens","Effekter","Effekter","Differens"]
[null,null,null,null,null,null,null,null,null,null,null,null,null,null,null,null,null,null,null,"JA","UA","UA-JA","JA","UA","UA-JA","JA","UA","UA-JA","JA","UA","UA-JA","JA","UA","UA-JA","JA","UA","UA-JA","JA","UA","UA-JA","JA","UA","UA-JA"]
[null,null,null,null,null,null,null,null,null,null,null,null,null,null,null,null,null,null,"ANTAL RESOR"]
[null,null,null,null,null,null,null,null,null,null,null,null,null,null,null,null,null,null,"Antal resor, milj per ar",2785.3526000000002,2785.4573500000001,0.10494000000000001,473.07294000000002,473.07294000000002,null,48.66648,48.66648,null,11.366709999999999,11.366709999999999,null,null,null,null,null,null,null,406.70589999999999,406.69751000000002,-8.3800000000000003E-3]
[null,null,null,null,null,null,null,null,null,null,null,null,null,null,null,null,null,null,"|  nationellt"]
[null,null,null,null,null,null,null,null,null,null,null,null,null,null,null,null,null,null,"|  |  tjänste"]
[null,null,null,null,null,null,null,null,null,null,null,null,null,null,null,null,null,null,"|  |  |  existerande/kvarvarande trafik"]
[null,null,null,null,null,null,null,null,null,null,null,null,null,null,null,null,null,null,"|  |  |  tillkommande/försvinnande trafik"]
[null,null,null,null,null,null,null,null,null,null,null,null,null,null,null,null,null,null,"|  |  private"]
[null,null,null,null,null,null,null,null,null,null,null,null,null,null,null,null,null,null,"|  |  |  existerande/kvarvarande trafik"]
[null,null,null,null,null,null,null,null,null,null,null,null,null,null,null,null,null,null,"|  |  |  tillkommande/försvinnande trafik"]
[null,null,null,null,null,null,null,null,null,null,null,null,null,null,null,null,null,null,"|  |  arbete"]
[null,null,null,null,null,null,null,null,null,null,null,null,null,null,null,null,null,null,"|  |  |  existerande/kvarvarande trafik"]
[null,null,null,null,null,null,null,null,null,null,null,null,null,null,null,null,null,null,"|  |  |  tillkommande/försvinnande trafik"]
[null,null,null,null,null,null,null,null,null,null,null,null,null,null,null,null,null,null,"|  regionalt",2785.3526000000002,2785.4573500000001,0.10494000000000001,473.07294000000002,473.07294000000002,null,48.66648,48.66648,null,11.366709999999999,11.366709999999999,null,null,null,null,null,null,null,406.70589999999999,406.69751000000002,-8.3800000000000003E-3]
[null,null,null,null,null,null,null,null,null,null,null,null,null,null,null,null,null,null,"|  |  tjänste",152.05986999999999,152.06133,1.4599999999999999E-3,473.07294000000002,473.07294000000002,null,48.66648,48.66648,null,11.366709999999999,11.366709999999999,null,null,null,null,null,null,null,13.62481,13.62448,-3.3E-4]
[null,null,null,null,null,null,null,null,null,null,null,null,null,null,null,null,null,null,"|  |  |  existerande/kvarvarande trafik"]
[null,null,null,null,null,null,null,null,null,null,null,null,null,null,null,null,null,null,"|  |  |  tillkommande/försvinnande trafik",null,null,1.4599999999999999E-3,null,null,null,null,null,null,null,null,null,null,null,null,null,null,null,null,null,-3.3E-4]
[null,null,null,null,null,null,null,null,null,null,null,null,null,null,null,null,null,null,"|  |  private",1943.9606200000001,1944.0489500000001,8.8349999999999998E-2,null,null,null,null,null,null,null,null,null,null,null,null,null,null,null,277.72307000000001,277.71733999999998,-5.7299999999999999E-3]
[null,null,null,null,null,null,null,null,null,null,null,null,null,null,null,null,null,null,"|  |  |  existerande/kvarvarande trafik"]
[null,null,null,null,null,null,null,null,null,null,null,null,null,null,null,null,null,null,"|  |  |  tillkommande/försvinnande trafik",null,null,8.8349999999999998E-2,null,null,null,null,null,null,null,null,null,null,null,null,null,null,null,null,null,-5.7299999999999999E-3]
[null,null,null,null,null,null,null,null,null,null,null,null,null,null,null,null,null,null,"|  |  arbete",689.33196999999996,689.34708000000001,1.5129999999999999E-2,null,null,null,null,null,null,null,null,null,null,null,null,null,null,null,115.35803,115.35571,-2.32E-3]
[null,null,null,null,null,null,null,null,null,null,null,null,null,null,null,null,null,null,"|  |  |  existerande/kvarvarande trafik"]
[null,null,null,null,null,null,null,null,null,null,null,null,null,null,null,null,null,null,"|  |  |  tillkommande/försvinnande trafik",null,null,1.5129999999999999E-2,null,null,null,null,null,null,null,null,null,null,null,null,null,null,null,null,null,-2.32E-3]
[null,null,null,null,null,null,null,null,null,null,null,null,null,null,null,null,null,null,"TRAFIK- OCH TRANSPORTARBETSUPPGIFTER"]
[null,null,null,null,null,null,null,null,null,null,null,null,null,null,null,null,null,null,"Trafikarbete, milj fkm/vkm per ar",28297.124319999999,28300.359680000001,3.2366100000000002,6306.9225999999999,6306.8079900000002,-0.11627,1208.0687,1207.8529799999999,-0.21637000000000001,1327.60373,1327.6212499999999,1.762E-2]
[null,null,null,null,null,null,null,null,null,null,null,null,null,null,null,null,null,null,"|  nationellt"]
[null,null,null,null,null,null,null,null,null,null,null,null,null,null,null,null,null,null,"|  |  tjänste"]
[null,null,null,null,null,null,null,null,null,null,null,null,null,null,null,null,null,null,"|  |  |  existerande/kvarvarande trafik"]
[null,null,null,null,null,null,null,null,null,null,null,null,null,null,null,null,null,null,"|  |  |  tillkommande/försvinnande trafik"]
[null,null,null,null,null,null,null,null,null,null,null,null,null,null,null,null,null,null,"|  |  private"]
[null,null,null,null,null,null,null,null,null,null,null,null,null,null,null,null,null,null,"|  |  |  existerande/kvarvarande trafik"]
[null,null,null,null,null,null,null,null,null,null,null,null,null,null,null,null,null,null,"|  |  |  tillkommande/försvinnande trafik"]
[null,null,null,null,null,null,null,null,null,null,null,null,null,null,null,null,null,null,"|  |  arbete"]
[null,null,null,null,null,null,null,null,null,null,null,null,null,null,null,null,null,null,"|  |  |  existerande/kvarvarande trafik"]
[null,null,null,null,null,null,null,null,null,null,null,null,null,null,null,null,null,null,"|  |  |  tillkommande/försvinnande trafik"]
[null,null,null,null,null,null,null,null,null,null,null,null,null,null,null,null,null,null,"|  regionalt",28297.124319999999,28300.359680000001,3.2366100000000002,6306.9225999999999,6306.8079900000002,-0.11627,1208.0687,1207.8529799999999,-0.21637000000000001,1327.60373,1327.6212499999999,1.762E-2]
[null,null,null,null,null,null,null,null,null,null,null,null,null,null,null,null,null,null,"|  |  tjänste",1629.40672,1629.55035,0.14430999999999999,6306.9225999999999,6306.8079900000002,-0.11627,1208.0687,1207.8529799999999,-0.21637000000000001,1327.60373,1327.6212499999999,1.762E-2]
[null,null,null,null,null,null,null,null,null,null,null,null,null,null,null,null,null,null,"|  |  |  existerande/kvarvarande trafik",null,null,-3.4000000000000002E-2,null,null,-0.11627,null,null,-0.21637000000000001,null,null,1.762E-2]
[null,null,null,null,null,null,null,null,null,null,null,null,null,null,null,null,null,null,"|  |  |  tillkommande/försvinnande trafik",null,null,0.17831]
[null,null,null,null,null,null,null,null,null,null,null,null,null,null,null,null,null,null,"|  |  private",15446.4058,15448.59872,2.1955300000000002]
[null,null,null,null,null,null,null,null,null,null,null,null,null,null,null,null,null,null,"|  |  |  existerande/kvarvarande trafik",null,null,-0.86484000000000005]
[null,null,null,null,null,null,null,null,null,null,null,null,null,null,null,null,null,null,"|  |  |  tillkommande/försvinnande trafik",null,null,3.0603799999999999]
[null,null,null,null,null,null,null,null,null,null,null,null,null,null,null,null,null,null,"|  |  arbete",11221.312529999999,11222.210429999999,0.89676999999999996]
[null,null,null,null,null,null,null,null,null,null,null,null,null,null,null,null,null,null,"|  |  |  existerande/kvarvarande trafik",null,null,-0.25176999999999999]
[null,null,null,null,null,null,null,null,null,null,null,null,null,null,null,null,null,null,"|  |  |  tillkommande/försvinnande trafik",null,null,1.1485399999999999]
[null,null,null,null,null,null,null,null,null,null,null,null,null,null,null,null,null,null,"Transportarbete, milj pkm per ar",44008.166799999999,44013.519160000003,5.35189,7567.8348100000003,7567.6880799999999,-0.13952000000000001,1449.88777,1449.6314500000001,-0.25966,1327.60373,1327.6212499999999,1.762E-2,null,null,null,null,null,null,10427.997439999999,10427.80472,-0.19209000000000001]
[null,null,null,null,null,null,null,null,null,null,null,null,null,null,null,null,null,null,"|  nationellt"]
[null,null,null,null,null,null,null,null,null,null,null,null,null,null,null,null,null,null,"|  |  tjänste"]
[null,null,null,null,null,null,null,null,null,null,null,null,null,null,null,null,null,null,"|  |  |  existerande/kvarvarande trafik"]
[null,null,null,null,null,null,null,null,null,null,null,null,null,null,null,null,null,null,"|  |  |  tillkommande/försvinnande trafik"]
[null,null,null,null,null,null,null,null,null,null,null,null,null,null,null,null,null,null,"|  |  private"]
[null,null,null,null,null,null,null,null,null,null,null,null,null,null,null,null,null,null,"|  |  |  existerande/kvarvarande trafik"]
[null,null,null,null,null,null,null,null,null,null,null,null,null,null,null,null,null,null,"|  |  |  tillkommande/försvinnande trafik"]
[null,null,null,null,null,null,null,null,null,null,null,null,null,null,null,null,null,null,"|  |  arbete"]
[null,null,null,null,null,null,null,null,null,null,null,null,null,null,null,null,null,null,"|  |  |  existerande/kvarvarande trafik"]
[null,null,null,null,null,null,null,null,null,null,null,null,null,null,null,null,null,null,"|  |  |  tillkommande/försvinnande trafik"]
[null,null,null,null,null,null,null,null,null,null,null,null,null,null,null,null,null,null,"|  regionalt",44008.166799999999,44013.519160000003,5.35189,7567.8348100000003,7567.6880799999999,-0.13952000000000001,1449.88777,1449.6314500000001,-0.25966,1327.60373,1327.6212499999999,1.762E-2,null,null,null,null,null,null,10427.997439999999,10427.80472,-0.19209000000000001]
[null,null,null,null,null,null,null,null,null,null,null,null,null,null,null,null,null,null,"|  |  tjänste",2134.5059500000002,2134.6952000000001,0.18905,7567.8348100000003,7567.6880799999999,-0.13952000000000001,1449.88777,1449.6314500000001,-0.25966,1327.60373,1327.6212499999999,1.762E-2,null,null,null,null,null,null,373.50520999999998,373.49829999999997,-6.9199999999999999E-3]
[null,null,null,null,null,null,null,null,null,null,null,null,null,null,null,null,null,null,"|  |  |  existerande/kvarvarande trafik",null,null,-4.453E-2,null,null,-0.13952000000000001,null,null,-0.25966,null,null,1.762E-2]
[null,null,null,null,null,null,null,null,null,null,null,null,null,null,null,null,null,null,"|  |  |  tillkommande/försvinnande trafik",null,null,0.23358999999999999,null,null,null,null,null,null,null,null,null,null,null,null,null,null,null,null,null,-6.9199999999999999E-3]
[null,null,null,null,null,null,null,null,null,null,null,null,null,null,null,null,null,null,"|  |  private",29193.65192,29197.80416,4.1494900000000001,null,null,null,null,null,null,null,null,null,null,null,null,null,null,null,6525.9715100000003,6525.8590899999999,-0.11278000000000001]
[null,null,null,null,null,null,null,null,null,null,null,null,null,null,null,null,null,null,"|  |  |  existerande/kvarvarande trafik",null,null,-1.63456]
[null,null,null,null,null,null,null,null,null,null,null,null,null,null,null,null,null,null,"|  |  |  tillkommande/försvinnande trafik",null,null,5.7840499999999997,null,null,null,null,null,null,null,null,null,null,null,null,null,null,null,null,null,-0.11278000000000001]
[null,null,null,null,null,null,null,null,null,null,null,null,null,null,null,null,null,null,"|  |  arbete",12680.009480000001,12681.0198,1.0133399999999999,null,null,null,null,null,null,null,null,null,null,null,null,null,null,null,3528.52034,3528.4480699999999,-7.2389999999999996E-2]
[null,null,null,null,null,null,null,null,null,null,null,null,null,null,null,null,null,null,"|  |  |  existerande/kvarvarande trafik",null,null,-0.28449999999999998]
[null,null,null,null,null,null,null,null,null,null,null,null,null,null,null,null,null,null,"|  |  |  tillkommande/försvinnande trafik",null,null,1.2978499999999999,null,null,null,null,null,null,null,null,null,null,null,null,null,null,null,null,null,-7.2389999999999996E-2]
[null,null,null,null,null,null,null,null,null,null,null,null,null,null,null,null,null,null,"PRODUCENTOVERSKOTT"]
[null,null,null,null,null,null,null,null,null,null,null,null,null,null,null,null,null,null,"Biljettintäkter, MSEK per ar",null,null,null,null,null,null,null,null,null,null,null,null,1806.0936300000001,1805.9088099999999,-0.18479999999999999,250.47157000000001,250.41354000000001,-5.8029999999999998E-2]
[null,null,null,null,null,null,null,null,null,null,null,null,null,null,null,null,null,null,"|  nationellt"]
[null,null,null,null,null,null,null,null,null,null,null,null,null,null,null,null,null,null,"|  |  tjänste"]
[null,null,null,null,null,null,null,null,null,null,null,null,null,null,null,null,null,null,"|  |  private"]
[null,null,null,null,null,null,null,null,null,null,null,null,null,null,null,null,null,null,"|  |  arbete"]
[null,null,null,null,null,null,null,null,null,null,null,null,null,null,null,null,null,null,"|  regionalt",null,null,null,null,null,null,null,null,null,null,null,null,1806.0936300000001,1805.9088099999999,-0.18479999999999999,250.47157000000001,250.41354000000001,-5.8029999999999998E-2]
[null,null,null,null,null,null,null,null,null,null,null,null,null,null,null,null,null,null,"|  |  tjänste",null,null,null,null,null,null,null,null,null,null,null,null,68.332490000000007,68.321359999999999,-1.1129999999999999E-2,11.89772,11.895060000000001,-2.66E-3]
[null,null,null,null,null,null,null,null,null,null,null,null,null,null,null,null,null,null,"|  |  private",null,null,null,null,null,null,null,null,null,null,null,null,1430.8518099999999,1430.7165500000001,-0.13527,171.29111,171.26311000000001,-2.7990000000000001E-2]
[null,null,null,null,null,null,null,null,null,null,null,null,null,null,null,null,null,null,"|  |  arbete",null,null,null,null,null,null,null,null,null,null,null,null,306.90926999999999,306.87088,-3.8399999999999997E-2,67.282749999999993,67.255369999999999,-2.7369999999999998E-2]
[null,null,null,null,null,null,null,null,null,null,null,null,null,null,null,null,null,null,"Fordonskostnader för kollektivtrafik, MSEK per ar",null,null,null,null,null,null,null,null,null,null,null,null,6453.2158200000003,6453.2070299999996,-8.7899999999999992E-3,10981.902340000001,10981.89746,-4.8799999999999998E-3]
[null,null,null,null,null,null,null,null,null,null,null,null,null,null,null,null,null,null,"Moms på biljettintäkter, MSEK per ar",null,null,null,null,null,null,null,null,null,null,null,null,102.23172,102.22125,-1.0460000000000001E-2,14.17764,14.17435,-3.2799999999999999E-3]
[null,null,null,null,null,null,null,null,null,null,null,null,null,null,null,null,null,null,"Banavgifter, MSEK per ar",null,null,null,null,null,null,null,null,null,null,null,null,null,null,null,1085.76025,1085.76025]
[null,null,null,null,null,null,null,null,null,null,null,null,null,null,null,null,null,null,"BUDGETEFFEKTER"]
[null,null,null,null,null,null,null,null,null,null,null,null,null,null,null,null,null,null,"Drivmedelsskatt för vägtrafik, MSEK per ar",14431.60944,14433.26216,1.6506700000000001,4603.6661599999998,4603.5825800000002,-8.4879999999999997E-2,2319.53649,2319.1194799999998,-0.41546,3637.6082500000002,3637.6535100000001,4.8300000000000003E-2]
[null,null,null,null,null,null,null,null,null,null,null,null,null,null,null,null,null,null,"|  nationellt"]
[null,null,null,null,null,null,null,null,null,null,null,null,null,null,null,null,null,null,"|  |  tjänste"]
[null,null,null,null,null,null,null,null,null,null,null,null,null,null,null,null,null,null,"|  |  |  existerande/kvarvarande trafik"]
[null,null,null,null,null,null,null,null,null,null,null,null,null,null,null,null,null,null,"|  |  |  tillkommande/försvinnande trafik"]
[null,null,null,null,null,null,null,null,null,null,null,null,null,null,null,null,null,null,"|  |  private"]
[null,null,null,null,null,null,null,null,null,null,null,null,null,null,null,null,null,null,"|  |  |  existerande/kvarvarande trafik"]
[null,null,null,null,null,null,null,null,null,null,null,null,null,null,null,null,null,null,"|  |  |  tillkommande/försvinnande trafik"]
[null,null,null,null,null,null,null,null,null,null,null,null,null,null,null,null,null,null,"|  |  arbete"]
[null,null,null,null,null,null,null,null,null,null,null,null,null,null,null,null,null,null,"|  |  |  existerande/kvarvarande trafik"]
[null,null,null,null,null,null,null,null,null,null,null,null,null,null,null,null,null,null,"|  |  |  tillkommande/försvinnande trafik"]
[null,null,null,null,null,null,null,null,null,null,null,null,null,null,null,null,null,null,"|  regionalt",14431.60944,14433.26216,1.6506700000000001,4603.6661599999998,4603.5825800000002,-8.4879999999999997E-2,2319.53649,2319.1194799999998,-0.41546,3637.6082500000002,3637.6535100000001,4.8300000000000003E-2]
[null,null,null,null,null,null,null,null,null,null,null,null,null,null,null,null,null,null,"|  |  tjänste",830.99567999999999,831.06895999999995,7.3599999999999999E-2,4603.6661599999998,4603.5825800000002,-8.4879999999999997E-2,2319.53649,2319.1194799999998,-0.41546,3637.6082500000002,3637.6535100000001,4.8300000000000003E-2]
[null,null,null,null,null,null,null,null,null,null,null,null,null,null,null,null,null,null,"|  |  |  existerande/kvarvarande trafik",null,null,-1.7340000000000001E-2,null,null,-8.4879999999999997E-2,null,null,-0.41546,null,null,4.8300000000000003E-2]
[null,null,null,null,null,null,null,null,null,null,null,null,null,null,null,null,null,null,"|  |  |  tillkommande/försvinnande trafik",null,null,9.0939999999999993E-2]
[null,null,null,null,null,null,null,null,null,null,null,null,null,null,null,null,null,null,"|  |  private",7877.7117799999996,7878.8330599999999,1.1197299999999999]
[null,null,null,null,null,null,null,null,null,null,null,null,null,null,null,null,null,null,"|  |  |  existerande/kvarvarande trafik",null,null,-0.44107000000000002]
[null,null,null,null,null,null,null,null,null,null,null,null,null,null,null,null,null,null,"|  |  |  tillkommande/försvinnande trafik",null,null,1.5608]
[null,null,null,null,null,null,null,null,null,null,null,null,null,null,null,null,null,null,"|  |  arbete",5722.9028900000003,5723.36024,0.45734999999999998]
[null,null,null,null,null,null,null,null,null,null,null,null,null,null,null,null,null,null,"|  |  |  existerande/kvarvarande trafik",null,null,-0.12839999999999999]
[null,null,null,null,null,null,null,null,null,null,null,null,null,null,null,null,null,null,"|  |  |  tillkommande/försvinnande trafik",null,null,0.58574999999999999]
[null,null,null,null,null,null,null,null,null,null,null,null,null,null,null,null,null,null,"Vägavgifter/vägskatt, MSEK per ar",null,null,12.416919999999999,null,null,1.3182700000000001,null,null,1.7525999999999999,null,null,1.5697399999999999]
[null,null,null,null,null,null,null,null,null,null,null,null,null,null,null,null,null,null,"|  nationellt"]
[null,null,null,null,null,null,null,null,null,null,null,null,null,null,null,null,null,null,"|  |  tjänste"]
[null,null,null,null,null,null,null,null,null,null,null,null,null,null,null,null,null,null,"|  |  |  existerande/kvarvarande trafik"]
[null,null,null,null,null,null,null,null,null,null,null,null,null,null,null,null,null,null,"|  |  |  tillkommande/försvinnande trafik"]
[null,null,null,null,null,null,null,null,null,null,null,null,null,null,null,null,null,null,"|  |  private"]
[null,null,null,null,null,null,null,null,null,null,null,null,null,null,null,null,null,null,"|  |  |  existerande/kvarvarande trafik"]
[null,null,null,null,null,null,null,null,null,null,null,null,null,null,null,null,null,null,"|  |  |  tillkommande/försvinnande trafik"]
[null,null,null,null,null,null,null,null,null,null,null,null,null,null,null,null,null,null,"|  |  arbete"]
[null,null,null,null,null,null,null,null,null,null,null,null,null,null,null,null,null,null,"|  |  |  existerande/kvarvarande trafik"]
[null,null,null,null,null,null,null,null,null,null,null,null,null,null,null,null,null,null,"|  |  |  tillkommande/försvinnande trafik"]
[null,null,null,null,null,null,null,null,null,null,null,null,null,null,null,null,null,null,"|  regionalt",null,null,12.416919999999999,null,null,1.3182700000000001,null,null,1.7525999999999999,null,null,1.5697399999999999]
[null,null,null,null,null,null,null,null,null,null,null,null,null,null,null,null,null,null,"|  |  tjänste",null,null,0.37252999999999997,null,null,1.3182700000000001,null,null,1.7525999999999999,null,null,1.5697399999999999]
[null,null,null,null,null,null,null,null,null,null,null,null,null,null,null,null,null,null,"|  |  |  existerande/kvarvarande trafik",null,null,0.31273000000000001,null,null,1.3182700000000001,null,null,1.7525999999999999,null,null,1.5697399999999999]
[null,null,null,null,null,null,null,null,null,null,null,null,null,null,null,null,null,null,"|  |  |  tillkommande/försvinnande trafik",null,null,5.9799999999999999E-2]
[null,null,null,null,null,null,null,null,null,null,null,null,null,null,null,null,null,null,"|  |  private",null,null,9.0483499999999992]
[null,null,null,null,null,null,null,null,null,null,null,null,null,null,null,null,null,null,"|  |  |  existerande/kvarvarande trafik",null,null,8.1021599999999996]
[null,null,null,null,null,null,null,null,null,null,null,null,null,null,null,null,null,null,"|  |  |  tillkommande/försvinnande trafik",null,null,0.94618999999999998]
[null,null,null,null,null,null,null,null,null,null,null,null,null,null,null,null,null,null,"|  |  arbete",null,null,2.9960399999999998]
[null,null,null,null,null,null,null,null,null,null,null,null,null,null,null,null,null,null,"|  |  |  existerande/kvarvarande trafik",null,null,2.6460499999999998]
[null,null,null,null,null,null,null,null,null,null,null,null,null,null,null,null,null,null,"|  |  |  tillkommande/försvinnande trafik",null,null,0.34999000000000002]
[null,null,null,null,null,null,null,null,null,null,null,null,null,null,null,null,null,null,"Moms på biljettintäkter, MSEK per ar",null,null,null,null,null,null,null,null,null,null,null,null,102.23172,102.22125,-1.0460000000000001E-2,14.17764,14.17435,-3.2799999999999999E-3]
[null,null,null,null,null,null,null,null,null,null,null,null,null,null,null,null,null,null,"Banavgifter, MSEK per ar",null,null,null,null,null,null,null,null,null,null,null,null,null,null,null,1085.76025,1085.76025]
[]
[null,null,null,null,null,null,null,null,null,null,null,null,null,null,null,null,null,null,"KONSUMENTOVERSKOTT"]
[null,null,null,null,null,null,null,null,null,null,null,null,null,null,null,null,null,null,"Restider, Mh per ar",616.6644,616.37325999999996,-0.29186000000000001,106.15273999999999,106.12797,-2.4899999999999999E-2,21.566330000000001,21.54618,-2.0109999999999999E-2,17.90053,17.884499999999999,-1.601E-2,null,null,null,null,null,null,400.11651000000001,400.11651000000001]
[null,null,null,null,null,null,null,null,null,null,null,null,null,null,null,null,null,null,"|  nationellt"]
[null,null,null,null,null,null,null,null,null,null,null,null,null,null,null,null,null,null,"|  |  tjänste"]
[null,null,null,null,null,null,null,null,null,null,null,null,null,null,null,null,null,null,"|  |  |  existerande/kvarvarande trafik"]
[null,null,null,null,null,null,null,null,null,null,null,null,null,null,null,null,null,null,"|  |  |  |  åktid"]
[null,null,null,null,null,null,null,null,null,null,null,null,null,null,null,null,null,null,"|  |  |  |  anslutningstid"]
[null,null,null,null,null,null,null,null,null,null,null,null,null,null,null,null,null,null,"|  |  |  |  bytestid"]
[null,null,null,null,null,null,null,null,null,null,null,null,null,null,null,null,null,null,"|  |  |  |  väntetid"]
[null,null,null,null,null,null,null,null,null,null,null,null,null,null,null,null,null,null,"|  |  |  tillkommande/försvinnande trafik"]
[null,null,null,null,null,null,null,null,null,null,null,null,null,null,null,null,null,null,"|  |  |  |  åktid"]
[null,null,null,null,null,null,null,null,null,null,null,null,null,null,null,null,null,null,"|  |  |  |  anslutningstid"]
[null,null,null,null,null,null,null,null,null,null,null,null,null,null,null,null,null,null,"|  |  |  |  bytestid"]
[null,null,null,null,null,null,null,null,null,null,null,null,null,null,null,null,null,null,"|  |  |  |  väntetid"]
[null,null,null,null,null,null,null,null,null,null,null,null,null,null,null,null,null,null,"|  |  private"]
[null,null,null,null,null,null,null,null,null,null,null,null,null,null,null,null,null,null,"|  |  |  existerande/kvarvarande trafik"]
[null,null,null,null,null,null,null,null,null,null,null,null,null,null,null,null,null,null,"|  |  |  |  åktid"]
[null,null,null,null,null,null,null,null,null,null,null,null,null,null,null,null,null,null,"|  |  |  |  anslutningstid"]
[null,null,null,null,null,null,null,null,null,null,null,null,null,null,null,null,null,null,"|  |  |  |  bytestid"]
[null,null,null,null,null,null,null,null,null,null,null,null,null,null,null,null,null,null,"|  |  |  |  väntetid"]
[null,null,null,null,null,null,null,null,null,null,null,null,null,null,null,null,null,null,"|  |  |  tillkommande/försvinnande trafik"]
[null,null,null,null,null,null,null,null,null,null,null,null,null,null,null,null,null,null,"|  |  |  |  åktid"]
[null,null,null,null,null,null,null,null,null,null,null,null,null,null,null,null,null,null,"|  |  |  |  anslutningstid"]
[null,null,null,null,null,null,null,null,null,null,null,null,null,null,null,null,null,null,"|  |  |  |  bytestid"]
[null,null,null,null,null,null,null,null,null,null,null,null,null,null,null,null,null,null,"|  |  |  |  väntetid"]
[null,null,null,null,null,null,null,null,null,null,null,null,null,null,null,null,null,null,"|  |  arbete"]
[null,null,null,null,null,null,null,null,null,null,null,null,null,null,null,null,null,null,"|  |  |  existerande/kvarvarande trafik"]
[null,null,null,null,null,null,null,null,null,null,null,null,null,null,null,null,null,null,"|  |  |  |  åktid"]
[null,null,null,null,null,null,null,null,null,null,null,null,null,null,null,null,null,null,"|  |  |  |  anslutningstid"]
[null,null,null,null,null,null,null,null,null,null,null,null,null,null,null,null,null,null,"|  |  |  |  bytestid"]
[null,null,null,null,null,null,null,null,null,null,null,null,null,null,null,null,null,null,"|  |  |  |  väntetid"]
[null,null,null,null,null,null,null,null,null,null,null,null,null,null,null,null,null,null,"|  |  |  tillkommande/försvinnande trafik"]
[null,null,null,null,null,null,null,null,null,null,null,null,null,null,null,null,null,null,"|  |  |  |  åktid"]
[null,null,null,null,null,null,null,null,null,null,null,null,null,null,null,null,null,null,"|  |  |  |  anslutningstid"]
[null,null,null,null,null,null,null,null,null,null,null,null,null,null,null,null,null,null,"|  |  |  |  bytestid"]
[null,null,null,null,null,null,null,null,null,null,null,null,null,null,null,null,null,null,"|  |  |  |  väntetid"]
[null,null,null,null,null,null,null,null,null,null,null,null,null,null,null,null,null,null,"|  regionalt",616.6644,616.37325999999996,-0.29186000000000001,106.15273999999999,106.12797,-2.4899999999999999E-2,21.566330000000001,21.54618,-2.0109999999999999E-2,17.90053,17.884499999999999,-1.601E-2,null,null,null,null,null,null,400.11651000000001,400.11651000000001]
[null,null,null,null,null,null,null,null,null,null,null,null,null,null,null,null,null,null,"|  |  tjänste",28.96245,28.955909999999999,-6.5599999999999999E-3,106.15273999999999,106.12797,-2.4899999999999999E-2,21.566330000000001,21.54618,-2.0109999999999999E-2,17.90053,17.884499999999999,-1.601E-2,null,null,null,null,null,null,14.36157,14.36157]
[null,null,null,null,null,null,null,null,null,null,null,null,null,null,null,null,null,null,"|  |  |  existerande/kvarvarande trafik",null,null,-6.0800000000000003E-3,null,null,-2.4899999999999999E-2,null,null,-2.0109999999999999E-2,null,null,-1.601E-2]
[null,null,null,null,null,null,null,null,null,null,null,null,null,null,null,null,null,null,"|  |  |  |  åktid",null,null,-6.0800000000000003E-3,null,null,-2.4899999999999999E-2,null,null,-2.0109999999999999E-2,null,null,-1.601E-2]
[null,null,null,null,null,null,null,null,null,null,null,null,null,null,null,null,null,null,"|  |  |  |  anslutningstid"]
[null,null,null,null,null,null,null,null,null,null,null,null,null,null,null,null,null,null,"|  |  |  |  bytestid"]
[null,null,null,null,null,null,null,null,null,null,null,null,null,null,null,null,null,null,"|  |  |  |  väntetid"]
[null,null,null,null,null,null,null,null,null,null,null,null,null,null,null,null,null,null,"|  |  |  tillkommande/försvinnande trafik",null,null,-4.8000000000000001E-4]
[null,null,null,null,null,null,null,null,null,null,null,null,null,null,null,null,null,null,"|  |  |  |  åktid",null,null,-4.8000000000000001E-4]
[null,null,null,null,null,null,null,null,null,null,null,null,null,null,null,null,null,null,"|  |  |  |  anslutningstid"]
[null,null,null,null,null,null,null,null,null,null,null,null,null,null,null,null,null,null,"|  |  |  |  bytestid"]
[null,null,null,null,null,null,null,null,null,null,null,null,null,null,null,null,null,null,"|  |  |  |  väntetid"]
[null,null,null,null,null,null,null,null,null,null,null,null,null,null,null,null,null,null,"|  |  private",408.90424999999999,408.66883000000001,-0.23599000000000001,null,null,null,null,null,null,null,null,null,null,null,null,null,null,null,268.43090000000001,268.43090000000001]
[null,null,null,null,null,null,null,null,null,null,null,null,null,null,null,null,null,null,"|  |  |  existerande/kvarvarande trafik",null,null,-0.22489999999999999]
[null,null,null,null,null,null,null,null,null,null,null,null,null,null,null,null,null,null,"|  |  |  |  åktid",null,null,-0.22489999999999999]
[null,null,null,null,null,null,null,null,null,null,null,null,null,null,null,null,null,null,"|  |  |  |  anslutningstid"]
[null,null,null,null,null,null,null,null,null,null,null,null,null,null,null,null,null,null,"|  |  |  |  bytestid"]
[null,null,null,null,null,null,null,null,null,null,null,null,null,null,null,null,null,null,"|  |  |  |  väntetid"]
[null,null,null,null,null,null,null,null,null,null,null,null,null,null,null,null,null,null,"|  |  |  tillkommande/försvinnande trafik",null,null,-1.11E-2]
[null,null,null,null,null,null,null,null,null,null,null,null,null,null,null,null,null,null,"|  |  |  |  åktid",null,null,-1.11E-2]
[null,null,null,null,null,null,null,null,null,null,null,null,null,null,null,null,null,null,"|  |  |  |  anslutningstid"]
[null,null,null,null,null,null,null,null,null,null,null,null,null,null,null,null,null,null,"|  |  |  |  bytestid"]
[null,null,null,null,null,null,null,null,null,null,null,null,null,null,null,null,null,null,"|  |  |  |  väntetid"]
[null,null,null,null,null,null,null,null,null,null,null,null,null,null,null,null,null,null,"|  |  arbete",178.79771,178.74853999999999,-4.931E-2,null,null,null,null,null,null,null,null,null,null,null,null,null,null,null,117.32406,117.32406]
[null,null,null,null,null,null,null,null,null,null,null,null,null,null,null,null,null,null,"|  |  |  existerande/kvarvarande trafik",null,null,-4.6859999999999999E-2]
[null,null,null,null,null,null,null,null,null,null,null,null,null,null,null,null,null,null,"|  |  |  |  åktid",null,null,-4.6859999999999999E-2]
[null,null,null,null,null,null,null,null,null,null,null,null,null,null,null,null,null,null,"|  |  |  |  anslutningstid"]
[null,null,null,null,null,null,null,null,null,null,null,null,null,null,null,null,null,null,"|  |  |  |  bytestid"]
[null,null,null,null,null,null,null,null,null,null,null,null,null,null,null,null,null,null,"|  |  |  |  väntetid"]
[null,null,null,null,null,null,null,null,null,null,null,null,null,null,null,null,null,null,"|  |  |  tillkommande/försvinnande trafik",null,null,-2.4499999999999999E-3]
[null,null,null,null,null,null,null,null,null,null,null,null,null,null,null,null,null,null,"|  |  |  |  åktid",null,null,-2.4499999999999999E-3]
[null,null,null,null,null,null,null,null,null,null,null,null,null,null,null,null,null,null,"|  |  |  |  anslutningstid"]
[null,null,null,null,null,null,null,null,null,null,null,null,null,null,null,null,null,null,"|  |  |  |  bytestid"]
[null,null,null,null,null,null,null,null,null,null,null,null,null,null,null,null,null,null,"|  |  |  |  väntetid"]
[null,null,null,null,null,null,null,null,null,null,null,null,null,null,null,null,null,null,"Reskostnader, MSEK per ar",null,null,-2.3360799999999999,null,null,-0.35926999999999998,null,null,-1.64025,null,null,0.13819999999999999,null,null,null,null,null,null,11014.78312,11014.78312]
[null,null,null,null,null,null,null,null,null,null,null,null,null,null,null,null,null,null,"|  nationellt"]
[null,null,null,null,null,null,null,null,null,null,null,null,null,null,null,null,null,null,"|  |  tjänste"]
[null,null,null,null,null,null,null,null,null,null,null,null,null,null,null,null,null,null,"|  |  |  existerande/kvarvarande trafik"]
[null,null,null,null,null,null,null,null,null,null,null,null,null,null,null,null,null,null,"|  |  |  tillkommande/försvinnande trafik"]
[null,null,null,null,null,null,null,null,null,null,null,null,null,null,null,null,null,null,"|  |  private"]
[null,null,null,null,null,null,null,null,null,null,null,null,null,null,null,null,null,null,"|  |  |  existerande/kvarvarande trafik"]
[null,null,null,null,null,null,null,null,null,null,null,null,null,null,null,null,null,null,"|  |  |  tillkommande/försvinnande trafik"]
[null,null,null,null,null,null,null,null,null,null,null,null,null,null,null,null,null,null,"|  |  arbete"]
[null,null,null,null,null,null,null,null,null,null,null,null,null,null,null,null,null,null,"|  |  |  existerande/kvarvarande trafik"]
[null,null,null,null,null,null,null,null,null,null,null,null,null,null,null,null,null,null,"|  |  |  tillkommande/försvinnande trafik"]
[null,null,null,null,null,null,null,null,null,null,null,null,null,null,null,null,null,null,"|  regionalt",null,null,-2.3360799999999999,null,null,-0.35926999999999998,null,null,-1.64025,null,null,0.13819999999999999,null,null,null,null,null,null,11014.78312,11014.78312]
[null,null,null,null,null,null,null,null,null,null,null,null,null,null,null,null,null,null,"|  |  tjänste",null,null,-7.1470000000000006E-2,null,null,-0.35926999999999998,null,null,-1.64025,null,null,0.13819999999999999,null,null,null,null,null,null,516.22551999999996,516.22551999999996]
[null,null,null,null,null,null,null,null,null,null,null,null,null,null,null,null,null,null,"|  |  |  existerande/kvarvarande trafik",null,null,-6.3229999999999995E-2,null,null,-0.35926999999999998,null,null,-1.64025,null,null,0.13819999999999999]
[null,null,null,null,null,null,null,null,null,null,null,null,null,null,null,null,null,null,"|  |  |  tillkommande/försvinnande trafik",null,null,-8.2400000000000008E-3]
[null,null,null,null,null,null,null,null,null,null,null,null,null,null,null,null,null,null,"|  |  private",null,null,-1.7468999999999999,null,null,null,null,null,null,null,null,null,null,null,null,null,null,null,7736.5765000000001,7736.5765000000001]
[null,null,null,null,null,null,null,null,null,null,null,null,null,null,null,null,null,null,"|  |  |  existerande/kvarvarande trafik",null,null,-1.6086100000000001]
[null,null,null,null,null,null,null,null,null,null,null,null,null,null,null,null,null,null,"|  |  |  tillkommande/försvinnande trafik",null,null,-0.13829]
[null,null,null,null,null,null,null,null,null,null,null,null,null,null,null,null,null,null,"|  |  arbete",null,null,-0.51770000000000005,null,null,null,null,null,null,null,null,null,null,null,null,null,null,null,2761.98146,2761.98146]
[null,null,null,null,null,null,null,null,null,null,null,null,null,null,null,null,null,null,"|  |  |  existerande/kvarvarande trafik",null,null,-0.46828999999999998]
[null,null,null,null,null,null,null,null,null,null,null,null,null,null,null,null,null,null,"|  |  |  tillkommande/försvinnande trafik",null,null,-4.9410000000000003E-2]
[null,null,null,null,null,null,null,null,null,null,null,null,null,null,null,null,null,null,"Restider, MSEK per ar",null,null,-31.083159999999999,null,null,-9.7471099999999993,null,null,-7.8721199999999998,null,null,-6.2698999999999998]
[null,null,null,null,null,null,null,null,null,null,null,null,null,null,null,null,null,null,"|  nationellt"]
[null,null,null,null,null,null,null,null,null,null,null,null,null,null,null,null,null,null,"|  |  tjänste"]
[null,null,null,null,null,null,null,null,null,null,null,null,null,null,null,null,null,null,"|  |  |  existerande/kvarvarande trafik"]
[null,null,null,null,null,null,null,null,null,null,null,null,null,null,null,null,null,null,"|  |  |  tillkommande/försvinnande trafik"]
[null,null,null,null,null,null,null,null,null,null,null,null,null,null,null,null,null,null,"|  |  private"]
[null,null,null,null,null,null,null,null,null,null,null,null,null,null,null,null,null,null,"|  |  |  existerande/kvarvarande trafik"]
[null,null,null,null,null,null,null,null,null,null,null,null,null,null,null,null,null,null,"|  |  |  tillkommande/försvinnande trafik"]
[null,null,null,null,null,null,null,null,null,null,null,null,null,null,null,null,null,null,"|  |  arbete"]
[null,null,null,null,null,null,null,null,null,null,null,null,null,null,null,null,null,null,"|  |  |  existerande/kvarvarande trafik"]
[null,null,null,null,null,null,null,null,null,null,null,null,null,null,null,null,null,null,"|  |  |  tillkommande/försvinnande trafik"]
[null,null,null,null,null,null,null,null,null,null,null,null,null,null,null,null,null,null,"|  regionalt",null,null,-31.083159999999999,null,null,-9.7471099999999993,null,null,-7.8721199999999998,null,null,-6.2698999999999998]
[null,null,null,null,null,null,null,null,null,null,null,null,null,null,null,null,null,null,"|  |  tjänste",null,null,-3.1309800000000001,null,null,-9.7471099999999993,null,null,-7.8721199999999998,null,null,-6.2698999999999998]
[null,null,null,null,null,null,null,null,null,null,null,null,null,null,null,null,null,null,"|  |  |  existerande/kvarvarande trafik",null,null,-2.9039799999999998,null,null,-9.7471099999999993,null,null,-7.8721199999999998,null,null,-6.2698999999999998]
[null,null,null,null,null,null,null,null,null,null,null,null,null,null,null,null,null,null,"|  |  |  tillkommande/försvinnande trafik",null,null,-0.22700000000000001]
[null,null,null,null,null,null,null,null,null,null,null,null,null,null,null,null,null,null,"|  |  private",null,null,-20.937750000000001]
[null,null,null,null,null,null,null,null,null,null,null,null,null,null,null,null,null,null,"|  |  |  existerande/kvarvarande trafik",null,null,-19.953250000000001]
[null,null,null,null,null,null,null,null,null,null,null,null,null,null,null,null,null,null,"|  |  |  tillkommande/försvinnande trafik",null,null,-0.98450000000000004]
[null,null,null,null,null,null,null,null,null,null,null,null,null,null,null,null,null,null,"|  |  arbete",null,null,-7.0144299999999999]
[null,null,null,null,null,null,null,null,null,null,null,null,null,null,null,null,null,null,"|  |  |  existerande/kvarvarande trafik",null,null,-6.6657799999999998]
[null,null,null,null,null,null,null,null,null,null,null,null,null,null,null,null,null,null,"|  |  |  tillkommande/försvinnande trafik",null,null,-0.34865000000000002]
[null,null,null,null,null,null,null,null,null,null,null,null,null,null,null,null,null,null,"Vägavgifter/vägskatt, MSEK per ar",null,null,11.73893,null,null,1.3182700000000001,null,null,1.7525999999999999,null,null,1.5697399999999999]
[null,null,null,null,null,null,null,null,null,null,null,null,null,null,null,null,null,null,"|  nationellt"]
[null,null,null,null,null,null,null,null,null,null,null,null,null,null,null,null,null,null,"|  |  tjänste"]
[null,null,null,null,null,null,null,null,null,null,null,null,null,null,null,null,null,null,"|  |  |  existerande/kvarvarande trafik"]
[null,null,null,null,null,null,null,null,null,null,null,null,null,null,null,null,null,null,"|  |  |  tillkommande/försvinnande trafik"]
[null,null,null,null,null,null,null,null,null,null,null,null,null,null,null,null,null,null,"|  |  private"]
[null,null,null,null,null,null,null,null,null,null,null,null,null,null,null,null,null,null,"|  |  |  existerande/kvarvarande trafik"]
[null,null,null,null,null,null,null,null,null,null,null,null,null,null,null,null,null,null,"|  |  |  tillkommande/försvinnande trafik"]
[null,null,null,null,null,null,null,null,null,null,null,null,null,null,null,null,null,null,"|  |  arbete"]
[null,null,null,null,null,null,null,null,null,null,null,null,null,null,null,null,null,null,"|  |  |  existerande/kvarvarande trafik"]
[null,null,null,null,null,null,null,null,null,null,null,null,null,null,null,null,null,null,"|  |  |  tillkommande/försvinnande trafik"]
[null,null,null,null,null,null,null,null,null,null,null,null,null,null,null,null,null,null,"|  regionalt",null,null,11.73893,null,null,1.3182700000000001,null,null,1.7525999999999999,null,null,1.5697399999999999]
[null,null,null,null,null,null,null,null,null,null,null,null,null,null,null,null,null,null,"|  |  tjänste",null,null,0.34262999999999999,null,null,1.3182700000000001,null,null,1.7525999999999999,null,null,1.5697399999999999]
[null,null,null,null,null,null,null,null,null,null,null,null,null,null,null,null,null,null,"|  |  |  existerande/kvarvarande trafik",null,null,0.31273000000000001,null,null,1.3182700000000001,null,null,1.7525999999999999,null,null,1.5697399999999999]
[null,null,null,null,null,null,null,null,null,null,null,null,null,null,null,null,null,null,"|  |  |  tillkommande/försvinnande trafik",null,null,2.9899999999999999E-2]
[null,null,null,null,null,null,null,null,null,null,null,null,null,null,null,null,null,null,"|  |  private",null,null,8.5752600000000001]
[null,null,null,null,null,null,null,null,null,null,null,null,null,null,null,null,null,null,"|  |  |  existerande/kvarvarande trafik",null,null,8.1021599999999996]
[null,null,null,null,null,null,null,null,null,null,null,null,null,null,null,null,null,null,"|  |  |  tillkommande/försvinnande trafik",null,null,0.47310000000000002]
[null,null,null,null,null,null,null,null,null,null,null,null,null,null,null,null,null,null,"|  |  arbete",null,null,2.8210500000000001]
[null,null,null,null,null,null,null,null,null,null,null,null,null,null,null,null,null,null,"|  |  |  existerande/kvarvarande trafik",null,null,2.6460499999999998]
[null,null,null,null,null,null,null,null,null,null,null,null,null,null,null,null,null,null,"|  |  |  tillkommande/försvinnande trafik",null,null,0.17499000000000001]
[null,null,null,null,null,null,null,null,null,null,null,null,null,null,null,null,null,null,"Godskostnader, MSEK per ar",null,null,null,null,null,-6.2239999999999997E-2,null,null,-0.1173,null,null,-0.49645]
[null,null,null,null,null,null,null,null,null,null,null,null,null,null,null,null,null,null,"|  nationellt"]
[null,null,null,null,null,null,null,null,null,null,null,null,null,null,null,null,null,null,"|  |  tjänste"]
[null,null,null,null,null,null,null,null,null,null,null,null,null,null,null,null,null,null,"|  |  |  existerande/kvarvarande trafik"]
[null,null,null,null,null,null,null,null,null,null,null,null,null,null,null,null,null,null,"|  |  |  tillkommande/försvinnande trafik"]
[null,null,null,null,null,null,null,null,null,null,null,null,null,null,null,null,null,null,"|  |  private"]
[null,null,null,null,null,null,null,null,null,null,null,null,null,null,null,null,null,null,"|  |  |  existerande/kvarvarande trafik"]
[null,null,null,null,null,null,null,null,null,null,null,null,null,null,null,null,null,null,"|  |  |  tillkommande/försvinnande trafik"]
[null,null,null,null,null,null,null,null,null,null,null,null,null,null,null,null,null,null,"|  |  arbete"]
[null,null,null,null,null,null,null,null,null,null,null,null,null,null,null,null,null,null,"|  |  |  existerande/kvarvarande trafik"]
[null,null,null,null,null,null,null,null,null,null,null,null,null,null,null,null,null,null,"|  |  |  tillkommande/försvinnande trafik"]
[null,null,null,null,null,null,null,null,null,null,null,null,null,null,null,null,null,null,"|  regionalt",null,null,null,null,null,-6.2239999999999997E-2,null,null,-0.1173,null,null,-0.49645]
[null,null,null,null,null,null,null,null,null,null,null,null,null,null,null,null,null,null,"|  |  tjänste",null,null,null,null,null,-6.2239999999999997E-2,null,null,-0.1173,null,null,-0.49645]
[null,null,null,null,null,null,null,null,null,null,null,null,null,null,null,null,null,null,"|  |  |  existerande/kvarvarande trafik",null,null,null,null,null,-6.2239999999999997E-2,null,null,-0.1173,null,null,-0.49645]
[null,null,null,null,null,null,null,null,null,null,null,null,null,null,null,null,null,null,"|  |  |  tillkommande/försvinnande trafik"]
[null,null,null,null,null,null,null,null,null,null,null,null,null,null,null,null,null,null,"|  |  private"]
[null,null,null,null,null,null,null,null,null,null,null,null,null,null,null,null,null,null,"|  |  |  existerande/kvarvarande trafik"]
[null,null,null,null,null,null,null,null,null,null,null,null,null,null,null,null,null,null,"|  |  |  tillkommande/försvinnande trafik"]
[null,null,null,null,null,null,null,null,null,null,null,null,null,null,null,null,null,null,"|  |  arbete"]
[null,null,null,null,null,null,null,null,null,null,null,null,null,null,null,null,null,null,"|  |  |  existerande/kvarvarande trafik"]
[null,null,null,null,null,null,null,null,null,null,null,null,null,null,null,null,null,null,"|  |  |  tillkommande/försvinnande trafik"]
[null,null,null,null,null,null,null,null,null,null,null,null,null,null,null,null,null,null,"EXTERNA EFFEKTER"]
[null,null,null,null,null,null,null,null,null,null,null,null,null,null,null,null,null,null,"Luftföroreningar o klimatgaser, mängder"]
[null,null,null,null,null,null,null,null,null,null,null,null,null,null,null,null,null,null,"|  NOx, ton per ar",201.42854,201.31975,-0.10879999999999999,26.429929999999999,26.416509999999999,-1.342E-2,111.49535,111.32304999999999,-0.17230000000000001,189.60355999999999,189.38418999999999,-0.21937999999999999,null,null,null,53.326270000000001,53.326270000000001]
[null,null,null,null,null,null,null,null,null,null,null,null,null,null,null,null,null,null,"|  |  landsbygd",138.43192999999999,138.66776999999999,0.23583999999999999,17.056339999999999,17.07274,1.6410000000000001E-2,75.861080000000001,75.947360000000003,8.6279999999999996E-2,167.85276999999999,168.05602999999999,0.20326,null,null,null,49.060169999999999,49.060169999999999]
[null,null,null,null,null,null,null,null,null,null,null,null,null,null,null,null,null,null,"|  |  tätort",62.996609999999997,62.651980000000002,-0.34464,9.3735900000000001,9.3437699999999992,-2.9819999999999999E-2,35.634270000000001,35.375689999999999,-0.25857999999999998,21.750789999999999,21.328150000000001,-0.42264000000000002,null,null,null,4.2660999999999998,4.2660999999999998]
[null,null,null,null,null,null,null,null,null,null,null,null,null,null,null,null,null,null,"|  Avgaspartiklar, ton per ar",5.2335200000000004,5.2316200000000004,-1.89E-3,0.68337000000000003,0.68310000000000004,-2.7E-4,1.6521600000000001,1.6508,-1.3600000000000001E-3,3.2724299999999999,3.2696499999999999,-2.7799999999999999E-3,null,null,null,0.47882000000000002,0.47882000000000002]
[null,null,null,null,null,null,null,null,null,null,null,null,null,null,null,null,null,null,"|  |  landsbygd",3.7268599999999998,3.7332100000000001,6.3499999999999997E-3,0.45918999999999999,0.45962999999999998,4.4000000000000002E-4,1.26677,1.2682100000000001,1.4400000000000001E-3,2.9456199999999999,2.9491900000000002,3.5699999999999998E-3,null,null,null,0.44052000000000002,0.44052000000000002]
[null,null,null,null,null,null,null,null,null,null,null,null,null,null,null,null,null,null,"|  |  tätort",1.5066600000000001,1.49841,-8.2400000000000008E-3,0.22417999999999999,0.22347,-7.1000000000000002E-4,0.38538,0.38258999999999999,-2.8E-3,0.32680999999999999,0.32046000000000002,-6.3499999999999997E-3,null,null,null,3.8309999999999997E-2,3.8309999999999997E-2]
[null,null,null,null,null,null,null,null,null,null,null,null,null,null,null,null,null,null,"|  CO2, kton per ar",100.81762999999999,100.79893,-1.8710000000000001E-2,13.10107,13.09731,-3.7699999999999999E-3,48.18703,48.159390000000002,-2.7640000000000001E-2,114.26575,114.16978,-9.5960000000000004E-2,null,null,null,17.92136,17.92136]
[null,null,null,null,null,null,null,null,null,null,null,null,null,null,null,null,null,null,"|  |  landsbygd",74.268789999999996,74.395319999999998,0.12653,9.1507299999999994,9.1595300000000002,8.8000000000000005E-3,38.364849999999997,38.40849,4.3630000000000002E-2,102.91374,103.03836,0.12461999999999999,null,null,null,16.487660000000002,16.487660000000002]
[null,null,null,null,null,null,null,null,null,null,null,null,null,null,null,null,null,null,"|  |  tätort",26.548839999999998,26.403600000000001,-0.14524000000000001,3.9503400000000002,3.93777,-1.257E-2,9.8221799999999995,9.7509099999999993,-7.127E-2,11.352,11.13142,-0.22058,null,null,null,1.43371,1.43371]
[null,null,null,null,null,null,null,null,null,null,null,null,null,null,null,null,null,null,"|  Slitagepartiklar, ton per ar",2044.6953100000001,2044.9569100000001,0.2616,263.41820999999999,263.39478000000003,-2.3470000000000001E-2,191.86744999999999,191.80179000000001,-6.5670000000000006E-2,171.17256,171.09110999999999,-8.1439999999999999E-2,85.293989999999994,85.293959999999998,-3.0000000000000001E-5]
[null,null,null,null,null,null,null,null,null,null,null,null,null,null,null,null,null,null,"|  |  landsbygd",1595.6176800000001,1598.3360600000001,2.7183799999999998,196.59763000000001,196.78675999999999,0.18912999999999999,158.04696999999999,158.22672,0.17974999999999999,157.18546000000001,157.37578999999999,0.19034000000000001,68.235190000000003,68.235169999999997,-2.0000000000000002E-5]
[null,null,null,null,null,null,null,null,null,null,null,null,null,null,null,null,null,null,"|  |  tätort",449.07767000000001,446.62088,-2.4567899999999998,66.820599999999999,66.608000000000004,-0.21260000000000001,33.820480000000003,33.575069999999997,-0.24540999999999999,13.9871,13.71532,-0.27178000000000002,17.058800000000002,17.058789999999998,-1.0000000000000001E-5]
[null,null,null,null,null,null,null,null,null,null,null,null,null,null,null,null,null,null,"Luftföroreningar o klimatgaser, MSEK per ar",1808.4331099999999,1802.27368,-6.1594499999999996,255.77045000000001,255.22239999999999,-0.54805999999999999,423.40478999999999,422.58926000000002,-0.81552000000000002,837.70001000000002,836.30762000000004,-1.39232,41.299349999999997,41.299340000000001,-1.0000000000000001E-5,126.04712000000001,126.04712000000001]
[null,null,null,null,null,null,null,null,null,null,null,null,null,null,null,null,null,null,"|  NOx",0.85106000000000004,0.85060000000000002,-4.6000000000000001E-4,0.11167000000000001,0.11161,-6.0000000000000002E-5,0.47108,0.47034999999999999,-7.2999999999999996E-4,0.80110000000000003,0.80017000000000005,-9.3000000000000005E-4,null,null,null,0.22531000000000001,0.22531000000000001]
[null,null,null,null,null,null,null,null,null,null,null,null,null,null,null,null,null,null,"|  |  landsbygd",0.58489000000000002,0.58589000000000002,1E-3,7.2069999999999995E-2,7.213E-2,6.9999999999999994E-5,0.32052000000000003,0.32089000000000001,3.6000000000000002E-4,0.70920000000000005,0.71006000000000002,8.5999999999999998E-4,null,null,null,0.20729,0.20729]
[null,null,null,null,null,null,null,null,null,null,null,null,null,null,null,null,null,null,"|  |  tätort",0.26617000000000002,0.26471,-1.4599999999999999E-3,3.9600000000000003E-2,3.9480000000000001E-2,-1.2999999999999999E-4,0.15056,0.14946999999999999,-1.09E-3,9.1899999999999996E-2,9.0109999999999996E-2,-1.7899999999999999E-3,null,null,null,1.8020000000000001E-2,1.8020000000000001E-2]
[null,null,null,null,null,null,null,null,null,null,null,null,null,null,null,null,null,null,"|  Avgaspartiklar",14.64138,14.56128,-8.0100000000000005E-2,2.1785700000000001,2.17164,-6.9300000000000004E-3,3.7450899999999998,3.7179099999999998,-2.7179999999999999E-2,3.1758600000000001,3.11415,-6.1710000000000001E-2,null,null,null,0.37225000000000003,0.37225000000000003]
[null,null,null,null,null,null,null,null,null,null,null,null,null,null,null,null,null,null,"|  |  landsbygd"]
[null,null,null,null,null,null,null,null,null,null,null,null,null,null,null,null,null,null,"|  |  tätort",14.64138,14.56128,-8.0100000000000005E-2,2.1785700000000001,2.17164,-6.9300000000000004E-3,3.7450899999999998,3.7179099999999998,-2.7179999999999999E-2,3.1758600000000001,3.11415,-6.1710000000000001E-2,null,null,null,0.37225000000000003,0.37225000000000003]
[null,null,null,null,null,null,null,null,null,null,null,null,null,null,null,null,null,null,"|  CO2",705.72351000000003,705.59247000000005,-0.13100999999999999,91.707499999999996,91.681150000000002,-2.6360000000000001E-2,337.30919999999998,337.11574999999999,-0.19347,799.86023,799.18853999999999,-0.67169000000000001,null,null,null,125.44956000000001,125.44956000000001]
[null,null,null,null,null,null,null,null,null,null,null,null,null,null,null,null,null,null,"|  |  landsbygd",519.88158999999996,520.76727000000005,0.88568000000000002,64.055120000000002,64.116739999999993,6.1620000000000001E-2,268.55396000000002,268.85941000000003,0.30545,720.39617999999996,721.26855,0.87238000000000004,null,null,null,115.4136,115.4136]
[null,null,null,null,null,null,null,null,null,null,null,null,null,null,null,null,null,null,"|  |  tätort",185.84190000000001,184.82521,-1.0166900000000001,27.652380000000001,27.564399999999999,-8.7980000000000003E-2,68.755260000000007,68.256339999999994,-0.49891999999999997,79.464029999999994,77.919960000000003,-1.5440700000000001,null,null,null,10.035959999999999,10.035959999999999]
[null,null,null,null,null,null,null,null,null,null,null,null,null,null,null,null,null,null,"|  Slitagepartiklar",1087.2171599999999,1081.26929,-5.9478799999999996,161.77270999999999,161.25800000000001,-0.51471,81.879390000000001,81.285240000000002,-0.59414999999999996,33.862789999999997,33.204799999999999,-0.65798999999999996,41.299349999999997,41.299340000000001,-1.0000000000000001E-5]
[null,null,null,null,null,null,null,null,null,null,null,null,null,null,null,null,null,null,"|  |  landsbygd"]
[null,null,null,null,null,null,null,null,null,null,null,null,null,null,null,null,null,null,"|  |  tätort",1087.2171599999999,1081.26929,-5.9478799999999996,161.77270999999999,161.25800000000001,-0.51471,81.879390000000001,81.285240000000002,-0.59414999999999996,33.862789999999997,33.204799999999999,-0.65798999999999996,41.299349999999997,41.299340000000001,-1.0000000000000001E-5]
[null,null,null,null,null,null,null,null,null,null,null,null,null,null,null,null,null,null,"Trafikolyckor, antal"]
[null,null,null,null,null,null,null,null,null,null,null,null,null,null,null,null,null,null,"|  existerande/kvarvarande trafik"]
[null,null,null,null,null,null,null,null,null,null,null,null,null,null,null,null,null,null,"|  Från sjukvårdsrapporter (uppräknat för bortfall)"]
[null,null,null,null,null,null,null,null,null,null,null,null,null,null,null,null,null,null,"|  |  Dödade",20.748619999999999,20.72906,-1.9550000000000001E-2,2.8472400000000002,2.8452099999999998,-2.0400000000000001E-3,2.2375600000000002,2.2346499999999998,-2.8999999999999998E-3,4.89276,4.8857900000000001,-6.9699999999999996E-3]
[null,null,null,null,null,null,null,null,null,null,null,null,null,null,null,null,null,null,"|  |  Mycket allvarligt skadade (MAS)",86.482929999999996,86.327860000000001,-0.15508,11.87182,11.856199999999999,-1.5630000000000002E-2,8.7674000000000003,8.7475500000000004,-1.984E-2,17.26267,17.213550000000001,-4.9119999999999997E-2]
[null,null,null,null,null,null,null,null,null,null,null,null,null,null,null,null,null,null,"|  |  Allvarligt skadade exkl. MAS",414.29352,413.56389999999999,-0.72960999999999998,56.716709999999999,56.642940000000003,-7.3770000000000002E-2,41.729610000000001,41.635770000000001,-9.3840000000000007E-2,81.606960000000001,81.370189999999994,-0.23676]
[null,null,null,null,null,null,null,null,null,null,null,null,null,null,null,null,null,null,"|  |  Ej allvarligt skadade",2631.5400399999999,2627.1396500000001,-4.4003899999999998,357.93085000000002,357.47152999999997,-0.45932000000000001,264.14467999999999,263.56448,-0.58020000000000005,519.97424000000001,518.49914999999999,-1.4751000000000001]
[null,null,null,null,null,null,null,null,null,null,null,null,null,null,null,null,null,null,"|  |  Egendomsskador",37065.132810000003,37031.203130000002,-33.929690000000001,4464.7607399999997,4461.3491199999999,-3.4116200000000001,3381.0305199999998,3376.4003899999998,-4.6301300000000003,7045.4663099999998,7032.6625999999997,-12.803710000000001]
[null,null,null,null,null,null,null,null,null,null,null,null,null,null,null,null,null,null,"|  Från polisrapporter (uppräknat för bortfall)"]
[null,null,null,null,null,null,null,null,null,null,null,null,null,null,null,null,null,null,"|  |  Svårt skadade",378.80090000000001,378.13797,-0.66293000000000002,52.212600000000002,52.145659999999999,-6.694E-2,38.593890000000002,38.50985,-8.405E-2,75.833370000000002,75.632369999999995,-0.20100000000000001]
[null,null,null,null,null,null,null,null,null,null,null,null,null,null,null,null,null,null,"|  |  Lindrigt skadade",2726.4562999999998,2721.9038099999998,-4.5524899999999997,370.59546,370.1207,-0.47476000000000002,273.53426999999999,272.93432999999999,-0.59994999999999998,538.94690000000003,537.40746999999999,-1.5394300000000001]
[null,null,null,null,null,null,null,null,null,null,null,null,null,null,null,null,null,null,"|  tillkommande/försvinnande trafik"]
[null,null,null,null,null,null,null,null,null,null,null,null,null,null,null,null,null,null,"|  Från sjukvårdsrapporter (uppräknat för bortfall)"]
[null,null,null,null,null,null,null,null,null,null,null,null,null,null,null,null,null,null,"|  |  Dödade"]
[null,null,null,null,null,null,null,null,null,null,null,null,null,null,null,null,null,null,"|  |  Mycket allvarligt skadade (MAS)"]
[null,null,null,null,null,null,null,null,null,null,null,null,null,null,null,null,null,null,"|  |  Allvarligt skadade exkl. MAS"]
[null,null,null,null,null,null,null,null,null,null,null,null,null,null,null,null,null,null,"|  |  Ej allvarligt skadade"]
[null,null,null,null,null,null,null,null,null,null,null,null,null,null,null,null,null,null,"|  |  Egendomsskador"]
[null,null,null,null,null,null,null,null,null,null,null,null,null,null,null,null,null,null,"|  Från polisrapporter (uppräknat för bortfall)"]
[null,null,null,null,null,null,null,null,null,null,null,null,null,null,null,null,null,null,"|  |  Svårt skadade"]
[null,null,null,null,null,null,null,null,null,null,null,null,null,null,null,null,null,null,"|  |  Lindrigt skadade"]
[null,null,null,null,null,null,null,null,null,null,null,null,null,null,null,null,null,null,"Trafikolyckor, MSEK per ar",null,null,-46.849609999999998,null,null,-4.8102999999999998,null,null,-6.0889300000000004,null,null,-15.40265]
[null,null,null,null,null,null,null,null,null,null,null,null,null,null,null,null,null,null,"|  extern olyckskostnad",27080.1875,27033.339840000001,-46.849609999999998,3696.8984399999999,3692.0878899999998,-4.8102999999999998,2716.7819800000002,2710.6931199999999,-6.0889300000000004,5305.7802700000002,5290.3779299999997,-15.40265,233.9306,233.9306,null,619.48505,619.48505]
[null,null,null,null,null,null,null,null,null,null,null,null,null,null,null,null,null,null,"|  |  landsbygd",18194.564450000002,18208.191409999999,13.626950000000001,2348.41113,2349.0129400000001,0.60180999999999996,1994.4703400000001,1994.6705300000001,0.20019999999999999,4621.69434,4623.2250999999997,1.5307599999999999,187.14448999999999,187.14448999999999,null,569.92627000000005,569.92627000000005]
[null,null,null,null,null,null,null,null,null,null,null,null,null,null,null,null,null,null,"|  |  tätort",8885.6240199999993,8825.1474600000001,-60.476559999999999,1348.4871800000001,1343.0750700000001,-5.4121100000000002,722.31170999999995,716.02257999999995,-6.2891199999999996,684.08612000000005,667.15270999999996,-16.933409999999999,46.786119999999997,46.786119999999997,null,49.558799999999998,49.558799999999998]
[null,null,null,null,null,null,null,null,null,null,null,null,null,null,null,null,null,null,"Marginellt slitage, MSEK per ar",531.62072999999998,531.68877999999995,6.8049999999999999E-2,68.488740000000007,68.482640000000004,-6.1000000000000004E-3,411.55565999999999,411.41478999999998,-0.14087,890.09729000000004,889.67376999999999,-0.42352000000000001,221.70410000000001,221.70402999999999,-8.0000000000000007E-5,1411.48828,1411.48828]
[]
[]
[]
[]
[]
[]
[]
[]
[]
[]
[]
[null,null,null,null,null,null,null,null,null,null,null,null,null,null,null,null,null,null,"Markera och klipp ut alla cellerna från A1 till G44 i fliken \"Lönsamhetsberäkning\". Ställ markören i cellen S732 i denna flik och klistra in dessa celler med funktionen \"Klistra in special\"/\"Värden\"."]
[null,null,null,null,null,null,null,null,null,null,null,null,null,null,null,null,null,null,"Sammanställning av resultat"]
[null,null,null,null,null,null,null,null,null,null,null,null,null,null,null,null,null,null,"NATIONELL OCH REGIONAL TRAFIK"]
[null,null,null,null,null,null,null,null,null,null,null,null,null,null,null,null,null,null,"Miljoner SEK"]
[null,null,null,null,null,null,null,null,null,null,null,null,null,null,null,null,null,null,null,null,"TOTALT","PERSONBIL","LASTBIL*","BUSS OCH TÅG","FLYG"]
[null,null,null,null,null,null,null,null,null,null,null,null,null,null,null,null,null,null,"1) Producentöverskott",null,-5.6663500000000004,null,null,-5.6663500000000004]
[null,null,null,null,null,null,null,null,null,null,null,null,null,null,null,null,null,null,"  Biljettintäkter",null,-6.3642399999999997,null,null,-6.3642399999999997]
[null,null,null,null,null,null,null,null,null,null,null,null,null,null,null,null,null,null,"  Fordonskostnader kollektivtrafik",null,0.33765000000000001,null,null,0.33765000000000001]
[null,null,null,null,null,null,null,null,null,null,null,null,null,null,null,null,null,null,"  Moms på biljettintäkter",null,0.36024,null,null,0.36024]
[null,null,null,null,null,null,null,null,null,null,null,null,null,null,null,null,null,null,"  Banavgifter"]
[null,null,null,null,null,null,null,null,null,null,null,null,null,null,null,null,null,null,"2) Budgeteffekter (inkl. Skattefaktor)",null,472.12276000000003,364.07979,108.40321,-0.36024]
[null,null,null,null,null,null,null,null,null,null,null,null,null,null,null,null,null,null,"  Drivmedelsskatt för vägtrafik",null,31.0215,42.720599999999997,-11.6991]
[null,null,null,null,null,null,null,null,null,null,null,null,null,null,null,null,null,null,"  Vägavgifter/vägskatt",null,441.4615,321.35919000000001,120.10231]
[null,null,null,null,null,null,null,null,null,null,null,null,null,null,null,null,null,null,"  Moms på biljettintäkter",null,-0.36024,null,null,-0.36024]
[null,null,null,null,null,null,null,null,null,null,null,null,null,null,null,null,null,null,"  Banavgifter"]
[]
[null,null,null,null,null,null,null,null,null,null,null,null,null,null,null,null,null,null,"3) Konsumentöverskott",null,1252.1444200000001,633.03017,619.11424999999997]
[null,null,null,null,null,null,null,null,null,null,null,null,null,null,null,null,null,null,"  Reskostnader",null,108.6319,60.459389999999999,48.172510000000003]
[null,null,null,null,null,null,null,null,null,null,null,null,null,null,null,null,null,null,"  Restider",null,1549.93217,876.38306999999998,673.54909999999995]
[null,null,null,null,null,null,null,null,null,null,null,null,null,null,null,null,null,null,"  Vägavgifter/vägskatt",null,-423.91460000000001,-303.81229000000002,-120.10231]
[null,null,null,null,null,null,null,null,null,null,null,null,null,null,null,null,null,null,"  Godskostnader",null,17.494949999999999,null,17.494949999999999]
[null,null,null,null,null,null,null,null,null,null,null,null,null,null,null,null,null,null,"4) Externa effekter",null,2114.0046200000002,1357.3939399999999,756.60834999999997,2.33E-3]
[null,null,null,null,null,null,null,null,null,null,null,null,null,null,null,null,null,null,"  Luftföroreningar o klimatgaser",null,253.94299000000001,176.2148,77.727860000000007,3.3E-4]
[null,null,null,null,null,null,null,null,null,null,null,null,null,null,null,null,null,null,"  Trafikolyckor**",null,1847.0560700000001,1182.9404300000001,664.11563999999998]
[null,null,null,null,null,null,null,null,null,null,null,null,null,null,null,null,null,null,"  Marginellt slitage",null,13.005559999999999,-1.76129,14.764849999999999,2E-3]
[]
[]
[]
[]
[null,null,null,null,null,null,null,null,null,null,null,null,null,null,null,null,null,null,"SUMMA",null,3832.60545]
[]
[null,null,null,null,null,null,null,null,null,null,null,null,null,null,null,null,null,null,"6) Investeringskostnader"]
[null,null,null,null,null,null,null,null,null,null,null,null,null,null,null,null,null,null,"  Diskonterat inkl. skattefaktor",null,2937.1176799999998]
[null,null,null,null,null,null,null,null,null,null,null,null,null,null,null,null,null,null,"  Rak summering",null,2071.6001000000001]
[]
[null,null,null,null,null,null,null,null,null,null,null,null,null,null,null,null,null,null,"NNK_idu ****",null,0.30488999999999999]
[]
[]
[null,null,null,null,null,null,null,null,null,null,null,null,null,null,null,null,null,null,"NNK_idu beräknas som: (n-k)/k=(1+2+3+4+5-6)/(6-5)"]
[]
[null,null,null,null,null,null,null,null,null,null,null,null,null,null,null,null,null,null,"*","Inklusive personbilar i yrkestrafik"]
[null,null,null,null,null,null,null,null,null,null,null,null,null,null,null,null,null,null,"**","Inkluderar intern olyckskostnad. Inkluderar ej plankorsningsolyckor"]
[null,null,null,null,null,null,null,null,null,null,null,null,null,null,null,null,null,null,"***","Inkluderar skattefaktor. DoU för flyg ingår i fordonskostnaderna. Det som"]
[null,null,null,null,null,null,null,null,null,null,null,null,null,null,null,null,null,null,null,"benämns 'DoU vägtrafik' inkluderar både trafikberoende och trafikoberoende DoU"]
[null,null,null,null,null,null,null,null,null,null,null,null,null,null,null,null,null,null,"****","kvot med avseende på investerings- och drift och underhållskostnad"]
[]
[null,null,null,null,null,null,null,null,null,null,null,null,null,null,null,null,null,null,"Markera och klipp ut alla cellerna från A1 till E1048 i fliken \"Förutsättningar\".  Ställ markören i cellen S778 i denna flik och klistra in dessa celler med funktionen \"Klistra in special\"/\"Värden\"."]
[null,null,null,null,null,null,null,null,null,null,null,null,null,null,null,null,null,null,"Samkalk, indata SK46       === SAMKALK==="]
[null,null,null,null,null,null,null,null,null,null,null,null,null,null,null,null,null,null,"Projekt P42 Standardriggning 2040 (Basprognoser 2020-06-15)"]
[null,null,null,null,null,null,null,null,null,null,null,null,null,null,null,null,null,null,"Scenario S117 UA      Indata till Samkalk"]
[null,null,null,null,null,null,null,null,null,null,null,null,null,null,null,null,null,null,"Användare akejoe01"]
[null,null,null,null,null,null,null,null,null,null,null,null,null,null,null,null,null,null,"Exekv.tillfälle 2023-03-01 09:22:40"]
[null,null,null,null,null,null,null,null,null,null,null,null,null,null,null,null,null,null,"Exekv.tid 1:17:45"]
[null,null,null,null,null,null,null,null,null,null,null,null,null,null,null,null,null,null,"Version av Sampers.exe 3.4.6"]
[null,null,null,null,null,null,null,null,null,null,null,null,null,null,null,null,null,null,"Version av KAN-modeller.mdb 0"]
[null,null,null,null,null,null,null,null,null,null,null,null,null,null,null,null,null,null,"Version av EffektModellDatabas.mdb 13"]
[null,null,null,null,null,null,null,null,null,null,null,null,null,null,null,null,null,null,"Exekveringstyp Bil+Kollektivtrafik"]
[null,null,null,null,null,null,null,null,null,null,null,null,null,null,null,null,null,null,"Beskrivning "]
[null,null,null,null,null,null,null,null,null,null,null,null,null,null,null,null,null,null,"Avbryt effektberäkning",false]
[null,null,null,null,null,null,null,null,null,null,null,null,null,null,null,null,null,null,"Geografiskt KÖ Ingen beräkning"]
[]
[]
[null,null,null,null,null,null,null,null,null,null,null,null,null,null,null,null,null,null,"Databasfil","D:\\ovik2\\Person2040_200615_v5\\Riggning\\Person2040_200615_v5_dubbel.Mdb"]
[null,null,null,null,null,null,null,null,null,null,null,null,null,null,null,null,null,null,"Antal centroider",0]
[null,null,null,null,null,null,null,null,null,null,null,null,null,null,null,null,null,null,"Large Treshold",0]
[null,null,null,null,null,null,null,null,null,null,null,null,null,null,null,null,null,null,"Small Treshold",0]
[null,null,null,null,null,null,null,null,null,null,null,null,null,null,null,null,null,null,"Projekt","Standardriggning 2040 (Basprognoser 2020-06-15)"]
[null,null,null,null,null,null,null,null,null,null,null,null,null,null,null,null,null,null,"Scenario","UA      Indata till Samkalk"]
[null,null,null,null,null,null,null,null,null,null,null,null,null,null,null,null,null,null,"SAMS databas","D:\\ovik2\\Person2040_200615_v5\\Markanv\\Samp2040_200423.mdb"]
[null,null,null,null,null,null,null,null,null,null,null,null,null,null,null,null,null,null,"EMACPATH",".\\Makro\\","D:\\ovik2\\Person2040_200615_v5\\Makro\\Std\\","D:\\ovik2\\Person2040_200615_v5\\Makro\\Prj\\"]
[null,null,null,null,null,null,null,null,null,null,null,null,null,null,null,null,null,null,null,"CentralOrtKommun","2015-09-02T14:02:22"]
[null,null,null,null,null,null,null,null,null,null,null,null,null,null,null,null,null,null,null,"CentralOrtLan","2015-09-02T14:04:38"]
[null,null,null,null,null,null,null,null,null,null,null,null,null,null,null,null,null,null,null,"Disagg_Palt","2015-07-14T08:24:11"]
[null,null,null,null,null,null,null,null,null,null,null,null,null,null,null,null,null,null,null,"Disagg_Samm","2019-12-18T11:27:13"]
[null,null,null,null,null,null,null,null,null,null,null,null,null,null,null,null,null,null,null,"Disagg_Skane","2015-07-14T08:25:05"]
[null,null,null,null,null,null,null,null,null,null,null,null,null,null,null,null,null,null,null,"Disagg_Sydost","2019-12-18T11:27:11"]
[null,null,null,null,null,null,null,null,null,null,null,null,null,null,null,null,null,null,null,"Disagg_Vast","2019-04-25T13:43:06"]
[null,null,null,null,null,null,null,null,null,null,null,null,null,null,null,null,null,null,null,"Emme2Error","2006-05-15T10:33:32"]
[null,null,null,null,null,null,null,null,null,null,null,null,null,null,null,null,null,null,null,"FaktorPalt","2019-03-04T16:51:40"]
[null,null,null,null,null,null,null,null,null,null,null,null,null,null,null,null,null,null,null,"FaktorSamm","2019-03-04T16:50:30"]
[null,null,null,null,null,null,null,null,null,null,null,null,null,null,null,null,null,null,null,"FaktorSkåne","2019-03-04T16:43:35"]
[null,null,null,null,null,null,null,null,null,null,null,null,null,null,null,null,null,null,null,"FaktorSydost","2019-03-04T16:44:43"]
[null,null,null,null,null,null,null,null,null,null,null,null,null,null,null,null,null,null,null,"FaktorVäst","2019-03-04T16:49:24"]
[null,null,null,null,null,null,null,null,null,null,null,null,null,null,null,null,null,null,null,"InternationalZoneData","2006-05-15T10:33:33"]
[null,null,null,null,null,null,null,null,null,null,null,null,null,null,null,null,null,null,null,"KEY_Länsnamn/nummer","2006-05-15T10:33:33"]
[null,null,null,null,null,null,null,null,null,null,null,null,null,null,null,null,null,null,null,"Key_Nationell","2015-09-02T11:38:35"]
[null,null,null,null,null,null,null,null,null,null,null,null,null,null,null,null,null,null,null,"Key_Palt","2018-12-17T10:20:31"]
[null,null,null,null,null,null,null,null,null,null,null,null,null,null,null,null,null,null,null,"Key_Samm","2015-09-02T11:38:53"]
[null,null,null,null,null,null,null,null,null,null,null,null,null,null,null,null,null,null,null,"Key_Skane","2018-12-17T10:22:25"]
[null,null,null,null,null,null,null,null,null,null,null,null,null,null,null,null,null,null,null,"Key_Sydost","2015-09-02T11:39:13"]
[null,null,null,null,null,null,null,null,null,null,null,null,null,null,null,null,null,null,null,"Key_Utrikes","2015-09-02T11:40:04"]
[null,null,null,null,null,null,null,null,null,null,null,null,null,null,null,null,null,null,null,"Key_Vast","2015-09-02T11:40:15"]
[null,null,null,null,null,null,null,null,null,null,null,null,null,null,null,null,null,null,null,"KeyStor","2006-05-15T10:33:35"]
[null,null,null,null,null,null,null,null,null,null,null,null,null,null,null,null,null,null,null,"Kommun","2015-09-20T10:46:21"]
[null,null,null,null,null,null,null,null,null,null,null,null,null,null,null,null,null,null,null,"Lan","2015-09-02T13:33:33"]
[null,null,null,null,null,null,null,null,null,null,null,null,null,null,null,null,null,null,null,"Parkering_PA_AIR","2006-05-15T10:33:35"]
[null,null,null,null,null,null,null,null,null,null,null,null,null,null,null,null,null,null,null,"Parkering_PA_JVG","2015-07-14T08:53:22"]
[null,null,null,null,null,null,null,null,null,null,null,null,null,null,null,null,null,null,null,"Parkering_SA_AIR","2015-07-14T08:55:50"]
[null,null,null,null,null,null,null,null,null,null,null,null,null,null,null,null,null,null,null,"Parkering_SA_JVG","2015-07-14T08:56:23"]
[null,null,null,null,null,null,null,null,null,null,null,null,null,null,null,null,null,null,null,"Parkering_SK_AIR","2015-07-16T13:44:20"]
[null,null,null,null,null,null,null,null,null,null,null,null,null,null,null,null,null,null,null,"Parkering_SK_JVG","2015-07-14T08:57:33"]
[null,null,null,null,null,null,null,null,null,null,null,null,null,null,null,null,null,null,null,"Parkering_SO_AIR","2006-05-15T10:33:36"]
[null,null,null,null,null,null,null,null,null,null,null,null,null,null,null,null,null,null,null,"Parkering_SO_JVG","2015-07-14T08:58:19"]
[null,null,null,null,null,null,null,null,null,null,null,null,null,null,null,null,null,null,null,"Parkering_VT_AIR","2006-05-15T10:33:36"]
[null,null,null,null,null,null,null,null,null,null,null,null,null,null,null,null,null,null,null,"Parkering_VT_JVG","2015-07-14T08:59:10"]
[null,null,null,null,null,null,null,null,null,null,null,null,null,null,null,null,null,null,null,"PropertyLimit","2020-06-15T16:40:08"]
[null,null,null,null,null,null,null,null,null,null,null,null,null,null,null,null,null,null,null,"Region","2006-05-15T10:33:37"]
[null,null,null,null,null,null,null,null,null,null,null,null,null,null,null,null,null,null,null,"RegionalCardSharePalt","2019-03-04T15:42:53"]
[null,null,null,null,null,null,null,null,null,null,null,null,null,null,null,null,null,null,null,"RegionalCardShareSamm","2019-03-04T15:34:11"]
[null,null,null,null,null,null,null,null,null,null,null,null,null,null,null,null,null,null,null,"RegionalCardShareSkåne","2019-03-06T08:24:09"]
[null,null,null,null,null,null,null,null,null,null,null,null,null,null,null,null,null,null,null,"RegionalCardShareSydost","2018-12-17T10:35:45"]
[null,null,null,null,null,null,null,null,null,null,null,null,null,null,null,null,null,null,null,"RegionalCardShareVäst","2018-12-17T10:36:07"]
[null,null,null,null,null,null,null,null,null,null,null,null,null,null,null,null,null,null,null,"RegionalTimeShare","2006-05-15T10:33:37"]
[null,null,null,null,null,null,null,null,null,null,null,null,null,null,null,null,null,null,null,"SAMSAr","2015-09-01T10:39:45"]
[null,null,null,null,null,null,null,null,null,null,null,null,null,null,null,null,null,null,null,"SAMSBilAntal","2020-04-23T14:26:57"]
[null,null,null,null,null,null,null,null,null,null,null,null,null,null,null,null,null,null,null,"SAMSBO","2006-05-15T10:33:38"]
[null,null,null,null,null,null,null,null,null,null,null,null,null,null,null,null,null,null,null,"SAMSDag","2020-03-27T15:06:39"]
[null,null,null,null,null,null,null,null,null,null,null,null,null,null,null,null,null,null,null,"SAMSExtraAttraktion","2020-10-29T15:17:27"]
[null,null,null,null,null,null,null,null,null,null,null,null,null,null,null,null,null,null,null,"SAMSFAM","2006-05-15T10:33:39"]
[null,null,null,null,null,null,null,null,null,null,null,null,null,null,null,null,null,null,null,"SAMSInk","2020-04-16T12:43:13"]
[null,null,null,null,null,null,null,null,null,null,null,null,null,null,null,null,null,null,null,"SAMSSyss","2020-03-20T17:33:26"]
[null,null,null,null,null,null,null,null,null,null,null,null,null,null,null,null,null,null,null,"SAMSTax","2019-03-04T15:49:02"]
[null,null,null,null,null,null,null,null,null,null,null,null,null,null,null,null,null,null,null,"SAMSxy","2019-03-06T08:26:43"]
[null,null,null,null,null,null,null,null,null,null,null,null,null,null,null,null,null,null,null,"UtilityAddNational","2018-12-17T10:50:34"]
[null,null,null,null,null,null,null,null,null,null,null,null,null,null,null,null,null,null,null,"UtilityAddPalt","2018-12-17T10:53:02"]
[null,null,null,null,null,null,null,null,null,null,null,null,null,null,null,null,null,null,null,"UtilityAddSamm","2019-03-04T15:37:38"]
[null,null,null,null,null,null,null,null,null,null,null,null,null,null,null,null,null,null,null,"UtilityAddSkåne","2018-12-17T10:54:37"]
[null,null,null,null,null,null,null,null,null,null,null,null,null,null,null,null,null,null,null,"UtilityAddSydost","2018-12-17T10:55:36"]
[null,null,null,null,null,null,null,null,null,null,null,null,null,null,null,null,null,null,null,"UtilityAddVäst","2018-12-17T10:56:19"]
[null,null,null,null,null,null,null,null,null,null,null,null,null,null,null,null,null,null,null,"Version_2020_02_03","2020-04-23T14:22:43"]
[]
[null,null,null,null,null,null,null,null,null,null,null,null,null,null,null,null,null,null,"Steg","      === SAMKALK==="]
[null,null,null,null,null,null,null,null,null,null,null,null,null,null,null,null,null,null,"ID","SK46"]
[null,null,null,null,null,null,null,null,null,null,null,null,null,null,null,null,null,null,"Användare","akejoe01"]
[null,null,null,null,null,null,null,null,null,null,null,null,null,null,null,null,null,null,"Filnamn","Förutsättningar.txt"]
[]
[]
[null,null,null,null,null,null,null,null,null,null,null,null,null,null,null,null,null,null,"KONSUMENTÖVERSKOTT - Pb - nationellt - tjänste"]
[null,null,null,null,null,null,null,null,null,null,null,null,null,null,null,null,null,null," Tidsvärde åktid",null,339,"kr/tim"]
[null,null,null,null,null,null,null,null,null,null,null,null,null,null,null,null,null,null," Andel intern olyckskostnad",null,0]
[null,null,null,null,null,null,null,null,null,null,null,null,null,null,null,null,null,null," Beläggningsgrad",null,1.24,"personer/fordon"]
[null,null,null,null,null,null,null,null,null,null,null,null,null,null,null,null,null,null,"KONSUMENTÖVERSKOTT - Pb - nationellt - private"]
[null,null,null,null,null,null,null,null,null,null,null,null,null,null,null,null,null,null," Tidsvärde åktid",null,126,"kr/tim"]
[null,null,null,null,null,null,null,null,null,null,null,null,null,null,null,null,null,null," Andel intern olyckskostnad",null,0]
[null,null,null,null,null,null,null,null,null,null,null,null,null,null,null,null,null,null," Beläggningsgrad",null,2.2200000000000002,"personer/fordon"]
[null,null,null,null,null,null,null,null,null,null,null,null,null,null,null,null,null,null,"KONSUMENTÖVERSKOTT - Pb - nationellt - arbete"]
[null,null,null,null,null,null,null,null,null,null,null,null,null,null,null,null,null,null," Tidsvärde åktid",null,126,"kr/tim"]
[null,null,null,null,null,null,null,null,null,null,null,null,null,null,null,null,null,null," Andel intern olyckskostnad",null,0]
[null,null,null,null,null,null,null,null,null,null,null,null,null,null,null,null,null,null," Beläggningsgrad",null,2.2200000000000002,"personer/fordon"]
[null,null,null,null,null,null,null,null,null,null,null,null,null,null,null,null,null,null,"KONSUMENTÖVERSKOTT - Pb - regionalt - tjänste"]
[null,null,null,null,null,null,null,null,null,null,null,null,null,null,null,null,null,null," Tidsvärde åktid",null,339,"kr/tim"]
[null,null,null,null,null,null,null,null,null,null,null,null,null,null,null,null,null,null," Andel intern olyckskostnad",null,0]
[null,null,null,null,null,null,null,null,null,null,null,null,null,null,null,null,null,null," Beläggningsgrad",null,1.31,"personer/fordon"]
[null,null,null,null,null,null,null,null,null,null,null,null,null,null,null,null,null,null,"KONSUMENTÖVERSKOTT - Pb - regionalt - private"]
[null,null,null,null,null,null,null,null,null,null,null,null,null,null,null,null,null,null," Tidsvärde åktid",null,63,"kr/tim"]
[null,null,null,null,null,null,null,null,null,null,null,null,null,null,null,null,null,null," Andel intern olyckskostnad",null,0]
[null,null,null,null,null,null,null,null,null,null,null,null,null,null,null,null,null,null," Beläggningsgrad",null,1.89,"personer/fordon"]
[null,null,null,null,null,null,null,null,null,null,null,null,null,null,null,null,null,null,"KONSUMENTÖVERSKOTT - Pb - regionalt - arbete"]
[null,null,null,null,null,null,null,null,null,null,null,null,null,null,null,null,null,null," Tidsvärde åktid",null,101,"kr/tim"]
[null,null,null,null,null,null,null,null,null,null,null,null,null,null,null,null,null,null," Andel intern olyckskostnad",null,0]
[null,null,null,null,null,null,null,null,null,null,null,null,null,null,null,null,null,null," Beläggningsgrad",null,1.1299999999999999,"personer/fordon"]
[null,null,null,null,null,null,null,null,null,null,null,null,null,null,null,null,null,null,"KONSUMENTÖVERSKOTT - Pby - nationellt - tjänste"]
[null,null,null,null,null,null,null,null,null,null,null,null,null,null,null,null,null,null," Tidsvärde åktid",null,278,"kr/tim"]
[null,null,null,null,null,null,null,null,null,null,null,null,null,null,null,null,null,null," Andel intern olyckskostnad",null,0]
[null,null,null,null,null,null,null,null,null,null,null,null,null,null,null,null,null,null," Beläggningsgrad",null,1.2,"personer/fordon"]
[null,null,null,null,null,null,null,null,null,null,null,null,null,null,null,null,null,null," Godskostnader",null,3,"kr/tim"]
[null,null,null,null,null,null,null,null,null,null,null,null,null,null,null,null,null,null,"KONSUMENTÖVERSKOTT - Pby - regionalt - tjänste"]
[null,null,null,null,null,null,null,null,null,null,null,null,null,null,null,null,null,null," Tidsvärde åktid",null,278,"kr/tim"]
[null,null,null,null,null,null,null,null,null,null,null,null,null,null,null,null,null,null," Andel intern olyckskostnad",null,0]
[null,null,null,null,null,null,null,null,null,null,null,null,null,null,null,null,null,null," Beläggningsgrad",null,1.2,"personer/fordon"]
[null,null,null,null,null,null,null,null,null,null,null,null,null,null,null,null,null,null," Godskostnader",null,3,"kr/tim"]
[null,null,null,null,null,null,null,null,null,null,null,null,null,null,null,null,null,null,"KONSUMENTÖVERSKOTT - Lbu - nationellt - tjänste"]
[null,null,null,null,null,null,null,null,null,null,null,null,null,null,null,null,null,null," Tidsvärde åktid",null,278,"kr/tim"]
[null,null,null,null,null,null,null,null,null,null,null,null,null,null,null,null,null,null," Andel intern olyckskostnad",null,0]
[null,null,null,null,null,null,null,null,null,null,null,null,null,null,null,null,null,null," Beläggningsgrad",null,1.2,"personer/fordon"]
[null,null,null,null,null,null,null,null,null,null,null,null,null,null,null,null,null,null," Godskostnader",null,7,"kr/tim"]
[null,null,null,null,null,null,null,null,null,null,null,null,null,null,null,null,null,null,"KONSUMENTÖVERSKOTT - Lbu - regionalt - tjänste"]
[null,null,null,null,null,null,null,null,null,null,null,null,null,null,null,null,null,null," Tidsvärde åktid",null,278,"kr/tim"]
[null,null,null,null,null,null,null,null,null,null,null,null,null,null,null,null,null,null," Andel intern olyckskostnad",null,0]
[null,null,null,null,null,null,null,null,null,null,null,null,null,null,null,null,null,null," Beläggningsgrad",null,1.2,"personer/fordon"]
[null,null,null,null,null,null,null,null,null,null,null,null,null,null,null,null,null,null," Godskostnader",null,7,"kr/tim"]
[null,null,null,null,null,null,null,null,null,null,null,null,null,null,null,null,null,null,"KONSUMENTÖVERSKOTT - Lbs - nationellt - tjänste"]
[null,null,null,null,null,null,null,null,null,null,null,null,null,null,null,null,null,null," Tidsvärde åktid",null,278,"kr/tim"]
[null,null,null,null,null,null,null,null,null,null,null,null,null,null,null,null,null,null," Andel intern olyckskostnad",null,0]
[null,null,null,null,null,null,null,null,null,null,null,null,null,null,null,null,null,null," Beläggningsgrad",null,1,"personer/fordon"]
[null,null,null,null,null,null,null,null,null,null,null,null,null,null,null,null,null,null," Godskostnader",null,31,"kr/tim"]
[null,null,null,null,null,null,null,null,null,null,null,null,null,null,null,null,null,null,"KONSUMENTÖVERSKOTT - Lbs - regionalt - tjänste"]
[null,null,null,null,null,null,null,null,null,null,null,null,null,null,null,null,null,null," Tidsvärde åktid",null,278,"kr/tim"]
[null,null,null,null,null,null,null,null,null,null,null,null,null,null,null,null,null,null," Andel intern olyckskostnad",null,0]
[null,null,null,null,null,null,null,null,null,null,null,null,null,null,null,null,null,null," Beläggningsgrad",null,1,"personer/fordon"]
[null,null,null,null,null,null,null,null,null,null,null,null,null,null,null,null,null,null," Godskostnader",null,31,"kr/tim"]
[null,null,null,null,null,null,null,null,null,null,null,null,null,null,null,null,null,null,"KONSUMENTÖVERSKOTT - Buss - nationellt - tjänste"]
[null,null,null,null,null,null,null,null,null,null,null,null,null,null,null,null,null,null," Tidsvärde åktid",null,339,"kr/tim"]
[null,null,null,null,null,null,null,null,null,null,null,null,null,null,null,null,null,null," Tidsvärde bytestid",null,339,"kr/tim"]
[null,null,null,null,null,null,null,null,null,null,null,null,null,null,null,null,null,null," Tidsvärde anslutningsresa",null,339,"kr/tim"]
[null,null,null,null,null,null,null,null,null,null,null,null,null,null,null,null,null,null," Tidsvärde väntetid period 1",null,182,"kr/tim"]
[null,null,null,null,null,null,null,null,null,null,null,null,null,null,null,null,null,null," Tidsvärde väntetid period 2",null,182,"kr/tim"]
[null,null,null,null,null,null,null,null,null,null,null,null,null,null,null,null,null,null," Tidsvärde väntetid period 3",null,182,"kr/tim"]
[null,null,null,null,null,null,null,null,null,null,null,null,null,null,null,null,null,null," Tidsvärde väntetid period 4",null,182,"kr/tim"]
[null,null,null,null,null,null,null,null,null,null,null,null,null,null,null,null,null,null," Tidsvärde väntetid period 5",null,150,"kr/tim"]
[null,null,null,null,null,null,null,null,null,null,null,null,null,null,null,null,null,null," Tidsvärde väntetid period 6",null,150,"kr/tim"]
[null,null,null,null,null,null,null,null,null,null,null,null,null,null,null,null,null,null," Andel intern olyckskostnad",null,0]
[null,null,null,null,null,null,null,null,null,null,null,null,null,null,null,null,null,null,"KONSUMENTÖVERSKOTT - Buss - nationellt - private"]
[null,null,null,null,null,null,null,null,null,null,null,null,null,null,null,null,null,null," Tidsvärde åktid",null,45,"kr/tim"]
[null,null,null,null,null,null,null,null,null,null,null,null,null,null,null,null,null,null," Tidsvärde bytestid",null,114,"kr/tim"]
[null,null,null,null,null,null,null,null,null,null,null,null,null,null,null,null,null,null," Tidsvärde anslutningsresa",null,62,"kr/tim"]
[null,null,null,null,null,null,null,null,null,null,null,null,null,null,null,null,null,null," Tidsvärde väntetid period 1",null,23,"kr/tim"]
[null,null,null,null,null,null,null,null,null,null,null,null,null,null,null,null,null,null," Tidsvärde väntetid period 2",null,23,"kr/tim"]
[null,null,null,null,null,null,null,null,null,null,null,null,null,null,null,null,null,null," Tidsvärde väntetid period 3",null,23,"kr/tim"]
[null,null,null,null,null,null,null,null,null,null,null,null,null,null,null,null,null,null," Tidsvärde väntetid period 4",null,12,"kr/tim"]
[null,null,null,null,null,null,null,null,null,null,null,null,null,null,null,null,null,null," Tidsvärde väntetid period 5",null,12,"kr/tim"]
[null,null,null,null,null,null,null,null,null,null,null,null,null,null,null,null,null,null," Tidsvärde väntetid period 6",null,9,"kr/tim"]
[null,null,null,null,null,null,null,null,null,null,null,null,null,null,null,null,null,null," Andel intern olyckskostnad",null,0]
[null,null,null,null,null,null,null,null,null,null,null,null,null,null,null,null,null,null,"KONSUMENTÖVERSKOTT - Buss - nationellt - arbete"]
[null,null,null,null,null,null,null,null,null,null,null,null,null,null,null,null,null,null," Tidsvärde åktid",null,45,"kr/tim"]
[null,null,null,null,null,null,null,null,null,null,null,null,null,null,null,null,null,null," Tidsvärde bytestid",null,114,"kr/tim"]
[null,null,null,null,null,null,null,null,null,null,null,null,null,null,null,null,null,null," Tidsvärde anslutningsresa",null,62,"kr/tim"]
[null,null,null,null,null,null,null,null,null,null,null,null,null,null,null,null,null,null," Tidsvärde väntetid period 1",null,23,"kr/tim"]
[null,null,null,null,null,null,null,null,null,null,null,null,null,null,null,null,null,null," Tidsvärde väntetid period 2",null,23,"kr/tim"]
[null,null,null,null,null,null,null,null,null,null,null,null,null,null,null,null,null,null," Tidsvärde väntetid period 3",null,23,"kr/tim"]
[null,null,null,null,null,null,null,null,null,null,null,null,null,null,null,null,null,null," Tidsvärde väntetid period 4",null,12,"kr/tim"]
[null,null,null,null,null,null,null,null,null,null,null,null,null,null,null,null,null,null," Tidsvärde väntetid period 5",null,12,"kr/tim"]
[null,null,null,null,null,null,null,null,null,null,null,null,null,null,null,null,null,null," Tidsvärde väntetid period 6",null,9,"kr/tim"]
[null,null,null,null,null,null,null,null,null,null,null,null,null,null,null,null,null,null," Andel intern olyckskostnad",null,0]
[null,null,null,null,null,null,null,null,null,null,null,null,null,null,null,null,null,null,"KONSUMENTÖVERSKOTT - Buss - regionalt - tjänste"]
[null,null,null,null,null,null,null,null,null,null,null,null,null,null,null,null,null,null," Tidsvärde åktid",null,51,"kr/tim"]
[null,null,null,null,null,null,null,null,null,null,null,null,null,null,null,null,null,null," Tidsvärde bytestid",null,102,"kr/tim"]
[null,null,null,null,null,null,null,null,null,null,null,null,null,null,null,null,null,null," Tidsvärde anslutningsresa",null,51,"kr/tim"]
[null,null,null,null,null,null,null,null,null,null,null,null,null,null,null,null,null,null," Tidsvärde väntetid period 1",null,87,"kr/tim"]
[null,null,null,null,null,null,null,null,null,null,null,null,null,null,null,null,null,null," Tidsvärde väntetid period 2",null,28,"kr/tim"]
[null,null,null,null,null,null,null,null,null,null,null,null,null,null,null,null,null,null," Tidsvärde väntetid period 3",null,24,"kr/tim"]
[null,null,null,null,null,null,null,null,null,null,null,null,null,null,null,null,null,null," Tidsvärde väntetid period 4",null,15,"kr/tim"]
[null,null,null,null,null,null,null,null,null,null,null,null,null,null,null,null,null,null," Tidsvärde väntetid period 5",null,0,"kr/tim"]
[null,null,null,null,null,null,null,null,null,null,null,null,null,null,null,null,null,null," Tidsvärde väntetid period 6",null,0,"kr/tim"]
[null,null,null,null,null,null,null,null,null,null,null,null,null,null,null,null,null,null," Andel intern olyckskostnad",null,0]
[null,null,null,null,null,null,null,null,null,null,null,null,null,null,null,null,null,null,"KONSUMENTÖVERSKOTT - Buss - regionalt - private"]
[null,null,null,null,null,null,null,null,null,null,null,null,null,null,null,null,null,null," Tidsvärde åktid",null,0,"kr/tim"]
[null,null,null,null,null,null,null,null,null,null,null,null,null,null,null,null,null,null," Tidsvärde bytestid",null,0,"kr/tim"]
[null,null,null,null,null,null,null,null,null,null,null,null,null,null,null,null,null,null," Tidsvärde anslutningsresa",null,0,"kr/tim"]
[null,null,null,null,null,null,null,null,null,null,null,null,null,null,null,null,null,null," Tidsvärde väntetid period 1",null,0,"kr/tim"]
[null,null,null,null,null,null,null,null,null,null,null,null,null,null,null,null,null,null," Tidsvärde väntetid period 2",null,0,"kr/tim"]
[null,null,null,null,null,null,null,null,null,null,null,null,null,null,null,null,null,null," Tidsvärde väntetid period 3",null,0,"kr/tim"]
[null,null,null,null,null,null,null,null,null,null,null,null,null,null,null,null,null,null," Tidsvärde väntetid period 4",null,0,"kr/tim"]
[null,null,null,null,null,null,null,null,null,null,null,null,null,null,null,null,null,null," Tidsvärde väntetid period 5",null,0,"kr/tim"]
[null,null,null,null,null,null,null,null,null,null,null,null,null,null,null,null,null,null," Tidsvärde väntetid period 6",null,0,"kr/tim"]
[null,null,null,null,null,null,null,null,null,null,null,null,null,null,null,null,null,null," Andel intern olyckskostnad",null,0]
[null,null,null,null,null,null,null,null,null,null,null,null,null,null,null,null,null,null,"KONSUMENTÖVERSKOTT - Buss - regionalt - arbete"]
[null,null,null,null,null,null,null,null,null,null,null,null,null,null,null,null,null,null," Tidsvärde åktid",null,0,"kr/tim"]
[null,null,null,null,null,null,null,null,null,null,null,null,null,null,null,null,null,null," Tidsvärde bytestid",null,0,"kr/tim"]
[null,null,null,null,null,null,null,null,null,null,null,null,null,null,null,null,null,null," Tidsvärde anslutningsresa",null,0,"kr/tim"]
[null,null,null,null,null,null,null,null,null,null,null,null,null,null,null,null,null,null," Tidsvärde väntetid period 1",null,0,"kr/tim"]
[null,null,null,null,null,null,null,null,null,null,null,null,null,null,null,null,null,null," Tidsvärde väntetid period 2",null,0,"kr/tim"]
[null,null,null,null,null,null,null,null,null,null,null,null,null,null,null,null,null,null," Tidsvärde väntetid period 3",null,0,"kr/tim"]
[null,null,null,null,null,null,null,null,null,null,null,null,null,null,null,null,null,null," Tidsvärde väntetid period 4",null,0,"kr/tim"]
[null,null,null,null,null,null,null,null,null,null,null,null,null,null,null,null,null,null," Tidsvärde väntetid period 5",null,0,"kr/tim"]
[null,null,null,null,null,null,null,null,null,null,null,null,null,null,null,null,null,null," Tidsvärde väntetid period 6",null,0,"kr/tim"]
[null,null,null,null,null,null,null,null,null,null,null,null,null,null,null,null,null,null," Andel intern olyckskostnad",null,0]
[null,null,null,null,null,null,null,null,null,null,null,null,null,null,null,null,null,null,"KONSUMENTÖVERSKOTT - Tåg - nationellt - tjänste"]
[null,null,null,null,null,null,null,null,null,null,null,null,null,null,null,null,null,null," Tidsvärde åktid",null,288,"kr/tim"]
[null,null,null,null,null,null,null,null,null,null,null,null,null,null,null,null,null,null," Tidsvärde bytestid",null,339,"kr/tim"]
[null,null,null,null,null,null,null,null,null,null,null,null,null,null,null,null,null,null," Tidsvärde anslutningsresa",null,339,"kr/tim"]
[null,null,null,null,null,null,null,null,null,null,null,null,null,null,null,null,null,null," Tidsvärde väntetid period 1",null,237,"kr/tim"]
[null,null,null,null,null,null,null,null,null,null,null,null,null,null,null,null,null,null," Tidsvärde väntetid period 2",null,237,"kr/tim"]
[null,null,null,null,null,null,null,null,null,null,null,null,null,null,null,null,null,null," Tidsvärde väntetid period 3",null,237,"kr/tim"]
[null,null,null,null,null,null,null,null,null,null,null,null,null,null,null,null,null,null," Tidsvärde väntetid period 4",null,166,"kr/tim"]
[null,null,null,null,null,null,null,null,null,null,null,null,null,null,null,null,null,null," Tidsvärde väntetid period 5",null,142,"kr/tim"]
[null,null,null,null,null,null,null,null,null,null,null,null,null,null,null,null,null,null," Tidsvärde väntetid period 6",null,142,"kr/tim"]
[null,null,null,null,null,null,null,null,null,null,null,null,null,null,null,null,null,null," Andel intern olyckskostnad",null,0]
[null,null,null,null,null,null,null,null,null,null,null,null,null,null,null,null,null,null,"KONSUMENTÖVERSKOTT - Tåg - nationellt - private"]
[null,null,null,null,null,null,null,null,null,null,null,null,null,null,null,null,null,null," Tidsvärde åktid",null,85,"kr/tim"]
[null,null,null,null,null,null,null,null,null,null,null,null,null,null,null,null,null,null," Tidsvärde bytestid",null,213,"kr/tim"]
[null,null,null,null,null,null,null,null,null,null,null,null,null,null,null,null,null,null," Tidsvärde anslutningsresa",null,117,"kr/tim"]
[null,null,null,null,null,null,null,null,null,null,null,null,null,null,null,null,null,null," Tidsvärde väntetid period 1",null,44,"kr/tim"]
[null,null,null,null,null,null,null,null,null,null,null,null,null,null,null,null,null,null," Tidsvärde väntetid period 2",null,44,"kr/tim"]
[null,null,null,null,null,null,null,null,null,null,null,null,null,null,null,null,null,null," Tidsvärde väntetid period 3",null,44,"kr/tim"]
[null,null,null,null,null,null,null,null,null,null,null,null,null,null,null,null,null,null," Tidsvärde väntetid period 4",null,23,"kr/tim"]
[null,null,null,null,null,null,null,null,null,null,null,null,null,null,null,null,null,null," Tidsvärde väntetid period 5",null,23,"kr/tim"]
[null,null,null,null,null,null,null,null,null,null,null,null,null,null,null,null,null,null," Tidsvärde väntetid period 6",null,17,"kr/tim"]
[null,null,null,null,null,null,null,null,null,null,null,null,null,null,null,null,null,null," Andel intern olyckskostnad",null,0]
[null,null,null,null,null,null,null,null,null,null,null,null,null,null,null,null,null,null,"KONSUMENTÖVERSKOTT - Tåg - nationellt - arbete"]
[null,null,null,null,null,null,null,null,null,null,null,null,null,null,null,null,null,null," Tidsvärde åktid",null,85,"kr/tim"]
[null,null,null,null,null,null,null,null,null,null,null,null,null,null,null,null,null,null," Tidsvärde bytestid",null,213,"kr/tim"]
[null,null,null,null,null,null,null,null,null,null,null,null,null,null,null,null,null,null," Tidsvärde anslutningsresa",null,117,"kr/tim"]
[null,null,null,null,null,null,null,null,null,null,null,null,null,null,null,null,null,null," Tidsvärde väntetid period 1",null,44,"kr/tim"]
[null,null,null,null,null,null,null,null,null,null,null,null,null,null,null,null,null,null," Tidsvärde väntetid period 2",null,44,"kr/tim"]
[null,null,null,null,null,null,null,null,null,null,null,null,null,null,null,null,null,null," Tidsvärde väntetid period 3",null,44,"kr/tim"]
[null,null,null,null,null,null,null,null,null,null,null,null,null,null,null,null,null,null," Tidsvärde väntetid period 4",null,23,"kr/tim"]
[null,null,null,null,null,null,null,null,null,null,null,null,null,null,null,null,null,null," Tidsvärde väntetid period 5",null,23,"kr/tim"]
[null,null,null,null,null,null,null,null,null,null,null,null,null,null,null,null,null,null," Tidsvärde väntetid period 6",null,17,"kr/tim"]
[null,null,null,null,null,null,null,null,null,null,null,null,null,null,null,null,null,null," Andel intern olyckskostnad",null,0]
[null,null,null,null,null,null,null,null,null,null,null,null,null,null,null,null,null,null,"KONSUMENTÖVERSKOTT - Tåg - regionalt - tjänste"]
[null,null,null,null,null,null,null,null,null,null,null,null,null,null,null,null,null,null," Tidsvärde åktid",null,0,"kr/tim"]
[null,null,null,null,null,null,null,null,null,null,null,null,null,null,null,null,null,null," Tidsvärde bytestid",null,0,"kr/tim"]
[null,null,null,null,null,null,null,null,null,null,null,null,null,null,null,null,null,null," Tidsvärde anslutningsresa",null,0,"kr/tim"]
[null,null,null,null,null,null,null,null,null,null,null,null,null,null,null,null,null,null," Tidsvärde väntetid period 1",null,0,"kr/tim"]
[null,null,null,null,null,null,null,null,null,null,null,null,null,null,null,null,null,null," Tidsvärde väntetid period 2",null,0,"kr/tim"]
[null,null,null,null,null,null,null,null,null,null,null,null,null,null,null,null,null,null," Tidsvärde väntetid period 3",null,0,"kr/tim"]
[null,null,null,null,null,null,null,null,null,null,null,null,null,null,null,null,null,null," Tidsvärde väntetid period 4",null,0,"kr/tim"]
[null,null,null,null,null,null,null,null,null,null,null,null,null,null,null,null,null,null," Tidsvärde väntetid period 5",null,0,"kr/tim"]
[null,null,null,null,null,null,null,null,null,null,null,null,null,null,null,null,null,null," Tidsvärde väntetid period 6",null,0,"kr/tim"]
[null,null,null,null,null,null,null,null,null,null,null,null,null,null,null,null,null,null," Andel intern olyckskostnad",null,0]
[null,null,null,null,null,null,null,null,null,null,null,null,null,null,null,null,null,null,"KONSUMENTÖVERSKOTT - Tåg - regionalt - private"]
[null,null,null,null,null,null,null,null,null,null,null,null,null,null,null,null,null,null," Tidsvärde åktid",null,0,"kr/tim"]
[null,null,null,null,null,null,null,null,null,null,null,null,null,null,null,null,null,null," Tidsvärde bytestid",null,0,"kr/tim"]
[null,null,null,null,null,null,null,null,null,null,null,null,null,null,null,null,null,null," Tidsvärde anslutningsresa",null,0,"kr/tim"]
[null,null,null,null,null,null,null,null,null,null,null,null,null,null,null,null,null,null," Tidsvärde väntetid period 1",null,0,"kr/tim"]
[null,null,null,null,null,null,null,null,null,null,null,null,null,null,null,null,null,null," Tidsvärde väntetid period 2",null,0,"kr/tim"]
[null,null,null,null,null,null,null,null,null,null,null,null,null,null,null,null,null,null," Tidsvärde väntetid period 3",null,0,"kr/tim"]
[null,null,null,null,null,null,null,null,null,null,null,null,null,null,null,null,null,null," Tidsvärde väntetid period 4",null,0,"kr/tim"]
[null,null,null,null,null,null,null,null,null,null,null,null,null,null,null,null,null,null," Tidsvärde väntetid period 5",null,0,"kr/tim"]
[null,null,null,null,null,null,null,null,null,null,null,null,null,null,null,null,null,null," Tidsvärde väntetid period 6",null,0,"kr/tim"]
[null,null,null,null,null,null,null,null,null,null,null,null,null,null,null,null,null,null," Andel intern olyckskostnad",null,0]
[null,null,null,null,null,null,null,null,null,null,null,null,null,null,null,null,null,null,"KONSUMENTÖVERSKOTT - Tåg - regionalt - arbete"]
[null,null,null,null,null,null,null,null,null,null,null,null,null,null,null,null,null,null," Tidsvärde åktid",null,0,"kr/tim"]
[null,null,null,null,null,null,null,null,null,null,null,null,null,null,null,null,null,null," Tidsvärde bytestid",null,0,"kr/tim"]
[null,null,null,null,null,null,null,null,null,null,null,null,null,null,null,null,null,null," Tidsvärde anslutningsresa",null,0,"kr/tim"]
[null,null,null,null,null,null,null,null,null,null,null,null,null,null,null,null,null,null," Tidsvärde väntetid period 1",null,0,"kr/tim"]
[null,null,null,null,null,null,null,null,null,null,null,null,null,null,null,null,null,null," Tidsvärde väntetid period 2",null,0,"kr/tim"]
[null,null,null,null,null,null,null,null,null,null,null,null,null,null,null,null,null,null," Tidsvärde väntetid period 3",null,0,"kr/tim"]
[null,null,null,null,null,null,null,null,null,null,null,null,null,null,null,null,null,null," Tidsvärde väntetid period 4",null,0,"kr/tim"]
[null,null,null,null,null,null,null,null,null,null,null,null,null,null,null,null,null,null," Tidsvärde väntetid period 5",null,0,"kr/tim"]
[null,null,null,null,null,null,null,null,null,null,null,null,null,null,null,null,null,null," Tidsvärde väntetid period 6",null,0,"kr/tim"]
[null,null,null,null,null,null,null,null,null,null,null,null,null,null,null,null,null,null," Andel intern olyckskostnad",null,0]
[null,null,null,null,null,null,null,null,null,null,null,null,null,null,null,null,null,null,"KONSUMENTÖVERSKOTT - RegKoll - nationellt - tjänste"]
[null,null,null,null,null,null,null,null,null,null,null,null,null,null,null,null,null,null," Tidsvärde åktid",null,0,"kr/tim"]
[null,null,null,null,null,null,null,null,null,null,null,null,null,null,null,null,null,null," Tidsvärde bytestid",null,0,"kr/tim"]
[null,null,null,null,null,null,null,null,null,null,null,null,null,null,null,null,null,null," Tidsvärde anslutningsresa",null,0,"kr/tim"]
[null,null,null,null,null,null,null,null,null,null,null,null,null,null,null,null,null,null," Tidsvärde väntetid period 1",null,0,"kr/tim"]
[null,null,null,null,null,null,null,null,null,null,null,null,null,null,null,null,null,null," Tidsvärde väntetid period 2",null,0,"kr/tim"]
[null,null,null,null,null,null,null,null,null,null,null,null,null,null,null,null,null,null," Tidsvärde väntetid period 3",null,0,"kr/tim"]
[null,null,null,null,null,null,null,null,null,null,null,null,null,null,null,null,null,null," Tidsvärde väntetid period 4",null,0,"kr/tim"]
[null,null,null,null,null,null,null,null,null,null,null,null,null,null,null,null,null,null," Tidsvärde väntetid period 5",null,0,"kr/tim"]
[null,null,null,null,null,null,null,null,null,null,null,null,null,null,null,null,null,null," Tidsvärde väntetid period 6",null,0,"kr/tim"]
[null,null,null,null,null,null,null,null,null,null,null,null,null,null,null,null,null,null," Andel intern olyckskostnad",null,0]
[null,null,null,null,null,null,null,null,null,null,null,null,null,null,null,null,null,null,"KONSUMENTÖVERSKOTT - RegKoll - nationellt - private"]
[null,null,null,null,null,null,null,null,null,null,null,null,null,null,null,null,null,null," Tidsvärde åktid",null,0,"kr/tim"]
[null,null,null,null,null,null,null,null,null,null,null,null,null,null,null,null,null,null," Tidsvärde bytestid",null,0,"kr/tim"]
[null,null,null,null,null,null,null,null,null,null,null,null,null,null,null,null,null,null," Tidsvärde anslutningsresa",null,0,"kr/tim"]
[null,null,null,null,null,null,null,null,null,null,null,null,null,null,null,null,null,null," Tidsvärde väntetid period 1",null,0,"kr/tim"]
[null,null,null,null,null,null,null,null,null,null,null,null,null,null,null,null,null,null," Tidsvärde väntetid period 2",null,0,"kr/tim"]
[null,null,null,null,null,null,null,null,null,null,null,null,null,null,null,null,null,null," Tidsvärde väntetid period 3",null,0,"kr/tim"]
[null,null,null,null,null,null,null,null,null,null,null,null,null,null,null,null,null,null," Tidsvärde väntetid period 4",null,0,"kr/tim"]
[null,null,null,null,null,null,null,null,null,null,null,null,null,null,null,null,null,null," Tidsvärde väntetid period 5",null,0,"kr/tim"]
[null,null,null,null,null,null,null,null,null,null,null,null,null,null,null,null,null,null," Tidsvärde väntetid period 6",null,0,"kr/tim"]
[null,null,null,null,null,null,null,null,null,null,null,null,null,null,null,null,null,null," Andel intern olyckskostnad",null,0]
[null,null,null,null,null,null,null,null,null,null,null,null,null,null,null,null,null,null,"KONSUMENTÖVERSKOTT - RegKoll - nationellt - arbete"]
[null,null,null,null,null,null,null,null,null,null,null,null,null,null,null,null,null,null," Tidsvärde åktid",null,0,"kr/tim"]
[null,null,null,null,null,null,null,null,null,null,null,null,null,null,null,null,null,null," Tidsvärde bytestid",null,0,"kr/tim"]
[null,null,null,null,null,null,null,null,null,null,null,null,null,null,null,null,null,null," Tidsvärde anslutningsresa",null,0,"kr/tim"]
[null,null,null,null,null,null,null,null,null,null,null,null,null,null,null,null,null,null," Tidsvärde väntetid period 1",null,0,"kr/tim"]
[null,null,null,null,null,null,null,null,null,null,null,null,null,null,null,null,null,null," Tidsvärde väntetid period 2",null,0,"kr/tim"]
[null,null,null,null,null,null,null,null,null,null,null,null,null,null,null,null,null,null," Tidsvärde väntetid period 3",null,0,"kr/tim"]
[null,null,null,null,null,null,null,null,null,null,null,null,null,null,null,null,null,null," Tidsvärde väntetid period 4",null,0,"kr/tim"]
[null,null,null,null,null,null,null,null,null,null,null,null,null,null,null,null,null,null," Tidsvärde väntetid period 5",null,0,"kr/tim"]
[null,null,null,null,null,null,null,null,null,null,null,null,null,null,null,null,null,null," Tidsvärde väntetid period 6",null,0,"kr/tim"]
[null,null,null,null,null,null,null,null,null,null,null,null,null,null,null,null,null,null," Andel intern olyckskostnad",null,0]
[null,null,null,null,null,null,null,null,null,null,null,null,null,null,null,null,null,null,"KONSUMENTÖVERSKOTT - RegKoll - regionalt - tjänste"]
[null,null,null,null,null,null,null,null,null,null,null,null,null,null,null,null,null,null," Tidsvärde åktid",null,288,"kr/tim"]
[null,null,null,null,null,null,null,null,null,null,null,null,null,null,null,null,null,null," Tidsvärde bytestid",null,339,"kr/tim"]
[null,null,null,null,null,null,null,null,null,null,null,null,null,null,null,null,null,null," Tidsvärde anslutningsresa",null,339,"kr/tim"]
[null,null,null,null,null,null,null,null,null,null,null,null,null,null,null,null,null,null," Tidsvärde väntetid period 1",null,301,"kr/tim"]
[null,null,null,null,null,null,null,null,null,null,null,null,null,null,null,null,null,null," Tidsvärde väntetid period 2",null,301,"kr/tim"]
[null,null,null,null,null,null,null,null,null,null,null,null,null,null,null,null,null,null," Tidsvärde väntetid period 3",null,301,"kr/tim"]
[null,null,null,null,null,null,null,null,null,null,null,null,null,null,null,null,null,null," Tidsvärde väntetid period 4",null,211,"kr/tim"]
[null,null,null,null,null,null,null,null,null,null,null,null,null,null,null,null,null,null," Tidsvärde väntetid period 5",null,211,"kr/tim"]
[null,null,null,null,null,null,null,null,null,null,null,null,null,null,null,null,null,null," Tidsvärde väntetid period 6",null,211,"kr/tim"]
[null,null,null,null,null,null,null,null,null,null,null,null,null,null,null,null,null,null," Andel intern olyckskostnad",null,0]
[null,null,null,null,null,null,null,null,null,null,null,null,null,null,null,null,null,null,"KONSUMENTÖVERSKOTT - RegKoll - regionalt - private"]
[null,null,null,null,null,null,null,null,null,null,null,null,null,null,null,null,null,null," Tidsvärde åktid",null,62,"kr/tim"]
[null,null,null,null,null,null,null,null,null,null,null,null,null,null,null,null,null,null," Tidsvärde bytestid",null,155,"kr/tim"]
[null,null,null,null,null,null,null,null,null,null,null,null,null,null,null,null,null,null," Tidsvärde anslutningsresa",null,62,"kr/tim"]
[null,null,null,null,null,null,null,null,null,null,null,null,null,null,null,null,null,null," Tidsvärde väntetid period 1",null,70,"kr/tim"]
[null,null,null,null,null,null,null,null,null,null,null,null,null,null,null,null,null,null," Tidsvärde väntetid period 2",null,57,"kr/tim"]
[null,null,null,null,null,null,null,null,null,null,null,null,null,null,null,null,null,null," Tidsvärde väntetid period 3",null,28,"kr/tim"]
[null,null,null,null,null,null,null,null,null,null,null,null,null,null,null,null,null,null," Tidsvärde väntetid period 4",null,18,"kr/tim"]
[null,null,null,null,null,null,null,null,null,null,null,null,null,null,null,null,null,null," Tidsvärde väntetid period 5",null,8,"kr/tim"]
[null,null,null,null,null,null,null,null,null,null,null,null,null,null,null,null,null,null," Tidsvärde väntetid period 6",null,8,"kr/tim"]
[null,null,null,null,null,null,null,null,null,null,null,null,null,null,null,null,null,null," Andel intern olyckskostnad",null,0]
[null,null,null,null,null,null,null,null,null,null,null,null,null,null,null,null,null,null,"KONSUMENTÖVERSKOTT - RegKoll - regionalt - arbete"]
[null,null,null,null,null,null,null,null,null,null,null,null,null,null,null,null,null,null," Tidsvärde åktid",null,81,"kr/tim"]
[null,null,null,null,null,null,null,null,null,null,null,null,null,null,null,null,null,null," Tidsvärde bytestid",null,202,"kr/tim"]
[null,null,null,null,null,null,null,null,null,null,null,null,null,null,null,null,null,null," Tidsvärde anslutningsresa",null,81,"kr/tim"]
[null,null,null,null,null,null,null,null,null,null,null,null,null,null,null,null,null,null," Tidsvärde väntetid period 1",null,93,"kr/tim"]
[null,null,null,null,null,null,null,null,null,null,null,null,null,null,null,null,null,null," Tidsvärde väntetid period 2",null,76,"kr/tim"]
[null,null,null,null,null,null,null,null,null,null,null,null,null,null,null,null,null,null," Tidsvärde väntetid period 3",null,37,"kr/tim"]
[null,null,null,null,null,null,null,null,null,null,null,null,null,null,null,null,null,null," Tidsvärde väntetid period 4",null,22,"kr/tim"]
[null,null,null,null,null,null,null,null,null,null,null,null,null,null,null,null,null,null," Tidsvärde väntetid period 5",null,12,"kr/tim"]
[null,null,null,null,null,null,null,null,null,null,null,null,null,null,null,null,null,null," Tidsvärde väntetid period 6",null,12,"kr/tim"]
[null,null,null,null,null,null,null,null,null,null,null,null,null,null,null,null,null,null," Andel intern olyckskostnad",null,0]
[null,null,null,null,null,null,null,null,null,null,null,null,null,null,null,null,null,null,"KONSUMENTÖVERSKOTT - Flyg - nationellt - tjänste"]
[null,null,null,null,null,null,null,null,null,null,null,null,null,null,null,null,null,null," Tidsvärde åktid",null,339,"kr/tim"]
[null,null,null,null,null,null,null,null,null,null,null,null,null,null,null,null,null,null," Tidsvärde bytestid",null,339,"kr/tim"]
[null,null,null,null,null,null,null,null,null,null,null,null,null,null,null,null,null,null," Tidsvärde anslutningsresa",null,339,"kr/tim"]
[null,null,null,null,null,null,null,null,null,null,null,null,null,null,null,null,null,null," Tidsvärde väntetid period 1",null,260,"kr/tim"]
[null,null,null,null,null,null,null,null,null,null,null,null,null,null,null,null,null,null," Tidsvärde väntetid period 2",null,260,"kr/tim"]
[null,null,null,null,null,null,null,null,null,null,null,null,null,null,null,null,null,null," Tidsvärde väntetid period 3",null,260,"kr/tim"]
[null,null,null,null,null,null,null,null,null,null,null,null,null,null,null,null,null,null," Tidsvärde väntetid period 4",null,217,"kr/tim"]
[null,null,null,null,null,null,null,null,null,null,null,null,null,null,null,null,null,null," Tidsvärde väntetid period 5",null,173,"kr/tim"]
[null,null,null,null,null,null,null,null,null,null,null,null,null,null,null,null,null,null," Tidsvärde väntetid period 6",null,173,"kr/tim"]
[null,null,null,null,null,null,null,null,null,null,null,null,null,null,null,null,null,null," Andel intern olyckskostnad",null,0]
[null,null,null,null,null,null,null,null,null,null,null,null,null,null,null,null,null,null,"KONSUMENTÖVERSKOTT - Flyg - nationellt - private"]
[null,null,null,null,null,null,null,null,null,null,null,null,null,null,null,null,null,null," Tidsvärde åktid",null,126,"kr/tim"]
[null,null,null,null,null,null,null,null,null,null,null,null,null,null,null,null,null,null," Tidsvärde bytestid",null,315,"kr/tim"]
[null,null,null,null,null,null,null,null,null,null,null,null,null,null,null,null,null,null," Tidsvärde anslutningsresa",null,171,"kr/tim"]
[null,null,null,null,null,null,null,null,null,null,null,null,null,null,null,null,null,null," Tidsvärde väntetid period 1",null,65,"kr/tim"]
[null,null,null,null,null,null,null,null,null,null,null,null,null,null,null,null,null,null," Tidsvärde väntetid period 2",null,65,"kr/tim"]
[null,null,null,null,null,null,null,null,null,null,null,null,null,null,null,null,null,null," Tidsvärde väntetid period 3",null,65,"kr/tim"]
[null,null,null,null,null,null,null,null,null,null,null,null,null,null,null,null,null,null," Tidsvärde väntetid period 4",null,34,"kr/tim"]
[null,null,null,null,null,null,null,null,null,null,null,null,null,null,null,null,null,null," Tidsvärde väntetid period 5",null,34,"kr/tim"]
[null,null,null,null,null,null,null,null,null,null,null,null,null,null,null,null,null,null," Tidsvärde väntetid period 6",null,26,"kr/tim"]
[null,null,null,null,null,null,null,null,null,null,null,null,null,null,null,null,null,null," Andel intern olyckskostnad",null,0]
[null,null,null,null,null,null,null,null,null,null,null,null,null,null,null,null,null,null,"KONSUMENTÖVERSKOTT - Flyg - nationellt - arbete"]
[null,null,null,null,null,null,null,null,null,null,null,null,null,null,null,null,null,null," Tidsvärde åktid",null,126,"kr/tim"]
[null,null,null,null,null,null,null,null,null,null,null,null,null,null,null,null,null,null," Tidsvärde bytestid",null,315,"kr/tim"]
[null,null,null,null,null,null,null,null,null,null,null,null,null,null,null,null,null,null," Tidsvärde anslutningsresa",null,171,"kr/tim"]
[null,null,null,null,null,null,null,null,null,null,null,null,null,null,null,null,null,null," Tidsvärde väntetid period 1",null,65,"kr/tim"]
[null,null,null,null,null,null,null,null,null,null,null,null,null,null,null,null,null,null," Tidsvärde väntetid period 2",null,65,"kr/tim"]
[null,null,null,null,null,null,null,null,null,null,null,null,null,null,null,null,null,null," Tidsvärde väntetid period 3",null,65,"kr/tim"]
[null,null,null,null,null,null,null,null,null,null,null,null,null,null,null,null,null,null," Tidsvärde väntetid period 4",null,34,"kr/tim"]
[null,null,null,null,null,null,null,null,null,null,null,null,null,null,null,null,null,null," Tidsvärde väntetid period 5",null,34,"kr/tim"]
[null,null,null,null,null,null,null,null,null,null,null,null,null,null,null,null,null,null," Tidsvärde väntetid period 6",null,26,"kr/tim"]
[null,null,null,null,null,null,null,null,null,null,null,null,null,null,null,null,null,null," Andel intern olyckskostnad",null,0]
[null,null,null,null,null,null,null,null,null,null,null,null,null,null,null,null,null,null,"KONSUMENTÖVERSKOTT - Flyg - regionalt - tjänste"]
[null,null,null,null,null,null,null,null,null,null,null,null,null,null,null,null,null,null," Tidsvärde åktid",null,0,"kr/tim"]
[null,null,null,null,null,null,null,null,null,null,null,null,null,null,null,null,null,null," Tidsvärde bytestid",null,0,"kr/tim"]
[null,null,null,null,null,null,null,null,null,null,null,null,null,null,null,null,null,null," Tidsvärde anslutningsresa",null,0,"kr/tim"]
[null,null,null,null,null,null,null,null,null,null,null,null,null,null,null,null,null,null," Tidsvärde väntetid period 1",null,0,"kr/tim"]
[null,null,null,null,null,null,null,null,null,null,null,null,null,null,null,null,null,null," Tidsvärde väntetid period 2",null,0,"kr/tim"]
[null,null,null,null,null,null,null,null,null,null,null,null,null,null,null,null,null,null," Tidsvärde väntetid period 3",null,0,"kr/tim"]
[null,null,null,null,null,null,null,null,null,null,null,null,null,null,null,null,null,null," Tidsvärde väntetid period 4",null,0,"kr/tim"]
[null,null,null,null,null,null,null,null,null,null,null,null,null,null,null,null,null,null," Tidsvärde väntetid period 5",null,0,"kr/tim"]
[null,null,null,null,null,null,null,null,null,null,null,null,null,null,null,null,null,null," Tidsvärde väntetid period 6",null,0,"kr/tim"]
[null,null,null,null,null,null,null,null,null,null,null,null,null,null,null,null,null,null," Andel intern olyckskostnad",null,0]
[null,null,null,null,null,null,null,null,null,null,null,null,null,null,null,null,null,null,"KONSUMENTÖVERSKOTT - Flyg - regionalt - private"]
[null,null,null,null,null,null,null,null,null,null,null,null,null,null,null,null,null,null," Tidsvärde åktid",null,0,"kr/tim"]
[null,null,null,null,null,null,null,null,null,null,null,null,null,null,null,null,null,null," Tidsvärde bytestid",null,0,"kr/tim"]
[null,null,null,null,null,null,null,null,null,null,null,null,null,null,null,null,null,null," Tidsvärde anslutningsresa",null,0,"kr/tim"]
[null,null,null,null,null,null,null,null,null,null,null,null,null,null,null,null,null,null," Tidsvärde väntetid period 1",null,0,"kr/tim"]
[null,null,null,null,null,null,null,null,null,null,null,null,null,null,null,null,null,null," Tidsvärde väntetid period 2",null,0,"kr/tim"]
[null,null,null,null,null,null,null,null,null,null,null,null,null,null,null,null,null,null," Tidsvärde väntetid period 3",null,0,"kr/tim"]
[null,null,null,null,null,null,null,null,null,null,null,null,null,null,null,null,null,null," Tidsvärde väntetid period 4",null,0,"kr/tim"]
[null,null,null,null,null,null,null,null,null,null,null,null,null,null,null,null,null,null," Tidsvärde väntetid period 5",null,0,"kr/tim"]
[null,null,null,null,null,null,null,null,null,null,null,null,null,null,null,null,null,null," Tidsvärde väntetid period 6",null,0,"kr/tim"]
[null,null,null,null,null,null,null,null,null,null,null,null,null,null,null,null,null,null," Andel intern olyckskostnad",null,0]
[null,null,null,null,null,null,null,null,null,null,null,null,null,null,null,null,null,null,"KONSUMENTÖVERSKOTT - Flyg - regionalt - arbete"]
[null,null,null,null,null,null,null,null,null,null,null,null,null,null,null,null,null,null," Tidsvärde åktid",null,0,"kr/tim"]
[null,null,null,null,null,null,null,null,null,null,null,null,null,null,null,null,null,null," Tidsvärde bytestid",null,0,"kr/tim"]
[null,null,null,null,null,null,null,null,null,null,null,null,null,null,null,null,null,null," Tidsvärde anslutningsresa",null,0,"kr/tim"]
[null,null,null,null,null,null,null,null,null,null,null,null,null,null,null,null,null,null," Tidsvärde väntetid period 1",null,0,"kr/tim"]
[null,null,null,null,null,null,null,null,null,null,null,null,null,null,null,null,null,null," Tidsvärde väntetid period 2",null,0,"kr/tim"]
[null,null,null,null,null,null,null,null,null,null,null,null,null,null,null,null,null,null," Tidsvärde väntetid period 3",null,0,"kr/tim"]
[null,null,null,null,null,null,null,null,null,null,null,null,null,null,null,null,null,null," Tidsvärde väntetid period 4",null,0,"kr/tim"]
[null,null,null,null,null,null,null,null,null,null,null,null,null,null,null,null,null,null," Tidsvärde väntetid period 5",null,0,"kr/tim"]
[null,null,null,null,null,null,null,null,null,null,null,null,null,null,null,null,null,null," Tidsvärde väntetid period 6",null,0,"kr/tim"]
[null,null,null,null,null,null,null,null,null,null,null,null,null,null,null,null,null,null," Andel intern olyckskostnad",null,0]
[null,null,null,null,null,null,null,null,null,null,null,null,null,null,null,null,null,null,"EMISSIONER - Landsbygd"]
[null,null,null,null,null,null,null,null,null,null,null,null,null,null,null,null,null,null," Kväveoxider (NOx)",null,3,"kr/kg"]
[null,null,null,null,null,null,null,null,null,null,null,null,null,null,null,null,null,null," Avgaspartiklar",null,0,"kr/kg"]
[null,null,null,null,null,null,null,null,null,null,null,null,null,null,null,null,null,null," Slitagepartiklar",null,0,"kr/kg"]
[null,null,null,null,null,null,null,null,null,null,null,null,null,null,null,null,null,null," Koldioxid (CO2)",null,7,"kr/kg"]
[null,null,null,null,null,null,null,null,null,null,null,null,null,null,null,null,null,null,"EMISSIONER - Tätort"]
[null,null,null,null,null,null,null,null,null,null,null,null,null,null,null,null,null,null," Kväveoxider (NOx)",null,3,"kr/kg"]
[null,null,null,null,null,null,null,null,null,null,null,null,null,null,null,null,null,null," Avgaspartiklar",null,6900,"kr/kg"]
[null,null,null,null,null,null,null,null,null,null,null,null,null,null,null,null,null,null," Slitagepartiklar",null,1719,"kr/kg"]
[null,null,null,null,null,null,null,null,null,null,null,null,null,null,null,null,null,null," Koldioxid (CO2)",null,7,"kr/kg"]
[null,null,null,null,null,null,null,null,null,null,null,null,null,null,null,null,null,null,"FORDONSKOSTNADER - Pb"]
[null,null,null,null,null,null,null,null,null,null,null,null,null,null,null,null,null,null,"*Bränslekostnad JA exkl. skatt",0.52,null,"kr/fkm"]
[null,null,null,null,null,null,null,null,null,null,null,null,null,null,null,null,null,null,"*Bränslekostnad UA exkl. skatt",0.52,null,"kr/fkm"]
[null,null,null,null,null,null,null,null,null,null,null,null,null,null,null,null,null,null,"*Skatt och moms JA",0.51,null,"kr/fkm"]
[null,null,null,null,null,null,null,null,null,null,null,null,null,null,null,null,null,null,"*Skatt och moms UA",0.51,null,"kr/fkm"]
[null,null,null,null,null,null,null,null,null,null,null,null,null,null,null,null,null,null,"*Marginalkostnad JA exkl. moms",0.83,null,"kr/fkm"]
[null,null,null,null,null,null,null,null,null,null,null,null,null,null,null,null,null,null,"*Marginalkostnad UA exkl. moms",0.83,null,"kr/fkm"]
[null,null,null,null,null,null,null,null,null,null,null,null,null,null,null,null,null,null," Marginellt slitage",null,0.04,"kr/fkm"]
[null,null,null,null,null,null,null,null,null,null,null,null,null,null,null,null,null,null," Kväveoxider (NOx) Landsbygd",null,1.7351516000000001E-2,"g/fkm"]
[null,null,null,null,null,null,null,null,null,null,null,null,null,null,null,null,null,null," Kväveoxider (NOx) Tätort",null,2.8056000000000001E-2,"g/fkm"]
[null,null,null,null,null,null,null,null,null,null,null,null,null,null,null,null,null,null," Avgaspartiklar Landsbygd",null,4.6713700000000001E-4,"g/fkm"]
[null,null,null,null,null,null,null,null,null,null,null,null,null,null,null,null,null,null," Avgaspartiklar Tätort",null,6.7100000000000005E-4,"g/fkm"]
[null,null,null,null,null,null,null,null,null,null,null,null,null,null,null,null,null,null," Slitagepartiklar Landsbygd",null,0.2,"g/fkm"]
[null,null,null,null,null,null,null,null,null,null,null,null,null,null,null,null,null,null," Slitagepartiklar Tätort",null,0.2,"g/fkm"]
[null,null,null,null,null,null,null,null,null,null,null,null,null,null,null,null,null,null," Koldioxid (CO2) Landsbygd",null,9.309096727,"g/fkm"]
[null,null,null,null,null,null,null,null,null,null,null,null,null,null,null,null,null,null," Koldioxid (CO2) Tätort",null,11.82372,"g/fkm"]
[null,null,null,null,null,null,null,null,null,null,null,null,null,null,null,null,null,null,"FORDONSKOSTNADER - Pby"]
[null,null,null,null,null,null,null,null,null,null,null,null,null,null,null,null,null,null,"*Bränslekostnad JA exkl. skatt",0.52,null,"kr/fkm"]
[null,null,null,null,null,null,null,null,null,null,null,null,null,null,null,null,null,null,"*Bränslekostnad UA exkl. skatt",0.52,null,"kr/fkm"]
[null,null,null,null,null,null,null,null,null,null,null,null,null,null,null,null,null,null,"*Skatt och moms JA",0.73,null,"kr/fkm"]
[null,null,null,null,null,null,null,null,null,null,null,null,null,null,null,null,null,null,"*Skatt och moms UA",0.73,null,"kr/fkm"]
[null,null,null,null,null,null,null,null,null,null,null,null,null,null,null,null,null,null,"*Marginalkostnad JA exkl. moms",1.84,null,"kr/fkm"]
[null,null,null,null,null,null,null,null,null,null,null,null,null,null,null,null,null,null,"*Marginalkostnad UA exkl. moms",1.84,null,"kr/fkm"]
[null,null,null,null,null,null,null,null,null,null,null,null,null,null,null,null,null,null," Marginellt slitage",null,0.04,"kr/fkm"]
[null,null,null,null,null,null,null,null,null,null,null,null,null,null,null,null,null,null," Godskostnader",null,3,"kr/h"]
[null,null,null,null,null,null,null,null,null,null,null,null,null,null,null,null,null,null," Kväveoxider (NOx) Landsbygd",null,1.7351516000000001E-2,"g/fkm"]
[null,null,null,null,null,null,null,null,null,null,null,null,null,null,null,null,null,null," Kväveoxider (NOx) Tätort",null,2.8056000000000001E-2,"g/fkm"]
[null,null,null,null,null,null,null,null,null,null,null,null,null,null,null,null,null,null," Avgaspartiklar Landsbygd",null,4.6713700000000001E-4,"g/fkm"]
[null,null,null,null,null,null,null,null,null,null,null,null,null,null,null,null,null,null," Avgaspartiklar Tätort",null,6.7100000000000005E-4,"g/fkm"]
[null,null,null,null,null,null,null,null,null,null,null,null,null,null,null,null,null,null," Slitagepartiklar Landsbygd",null,0.2,"g/fkm"]
[null,null,null,null,null,null,null,null,null,null,null,null,null,null,null,null,null,null," Slitagepartiklar Tätort",null,0.2,"g/fkm"]
[null,null,null,null,null,null,null,null,null,null,null,null,null,null,null,null,null,null," Koldioxid (CO2) Landsbygd",null,9.309096727,"g/fkm"]
[null,null,null,null,null,null,null,null,null,null,null,null,null,null,null,null,null,null," Koldioxid (CO2) Tätort",null,11.82372,"g/fkm"]
[null,null,null,null,null,null,null,null,null,null,null,null,null,null,null,null,null,null,"FORDONSKOSTNADER - Lbu"]
[null,null,null,null,null,null,null,null,null,null,null,null,null,null,null,null,null,null,"*Bränslekostnad JA exkl. skatt",1.61,null,"kr/fkm"]
[null,null,null,null,null,null,null,null,null,null,null,null,null,null,null,null,null,null,"*Bränslekostnad UA exkl. skatt",1.61,null,"kr/fkm"]
[null,null,null,null,null,null,null,null,null,null,null,null,null,null,null,null,null,null,"*Skatt och moms JA",1.92,null,"kr/fkm"]
[null,null,null,null,null,null,null,null,null,null,null,null,null,null,null,null,null,null,"*Skatt och moms UA",1.92,null,"kr/fkm"]
[null,null,null,null,null,null,null,null,null,null,null,null,null,null,null,null,null,null,"*Marginalkostnad JA exkl. moms",4.05,null,"kr/fkm"]
[null,null,null,null,null,null,null,null,null,null,null,null,null,null,null,null,null,null,"*Marginalkostnad UA exkl. moms",4.05,null,"kr/fkm"]
[null,null,null,null,null,null,null,null,null,null,null,null,null,null,null,null,null,null,"*Marginellt slitage",0.33,null,"kr/fkm"]
[null,null,null,null,null,null,null,null,null,null,null,null,null,null,null,null,null,null," Godskostnader",null,7,"kr/h"]
[null,null,null,null,null,null,null,null,null,null,null,null,null,null,null,null,null,null," Kväveoxider (NOx) Landsbygd",null,9.5998144999999993E-2,"g/fkm"]
[null,null,null,null,null,null,null,null,null,null,null,null,null,null,null,null,null,null," Kväveoxider (NOx) Tätort",null,0.210726,"g/fkm"]
[null,null,null,null,null,null,null,null,null,null,null,null,null,null,null,null,null,null," Avgaspartiklar Landsbygd",null,1.6030339999999999E-3,"g/fkm"]
[null,null,null,null,null,null,null,null,null,null,null,null,null,null,null,null,null,null," Avgaspartiklar Tätort",null,2.2790000000000002E-3,"g/fkm"]
[null,null,null,null,null,null,null,null,null,null,null,null,null,null,null,null,null,null," Slitagepartiklar Landsbygd",null,0.2,"g/fkm"]
[null,null,null,null,null,null,null,null,null,null,null,null,null,null,null,null,null,null," Slitagepartiklar Tätort",null,0.2,"g/fkm"]
[null,null,null,null,null,null,null,null,null,null,null,null,null,null,null,null,null,null," Koldioxid (CO2) Landsbygd",null,48.548673999999998,"g/fkm"]
[null,null,null,null,null,null,null,null,null,null,null,null,null,null,null,null,null,null," Koldioxid (CO2) Tätort",null,58.084209999999999,"g/fkm"]
[null,null,null,null,null,null,null,null,null,null,null,null,null,null,null,null,null,null,"FORDONSKOSTNADER - Lbs"]
[null,null,null,null,null,null,null,null,null,null,null,null,null,null,null,null,null,null,"*Bränslekostnad JA exkl. skatt",2.5099999999999998,null,"kr/fkm"]
[null,null,null,null,null,null,null,null,null,null,null,null,null,null,null,null,null,null,"*Bränslekostnad UA exkl. skatt",2.5099999999999998,null,"kr/fkm"]
[null,null,null,null,null,null,null,null,null,null,null,null,null,null,null,null,null,null,"*Skatt och moms JA",2.74,null,"kr/fkm"]
[null,null,null,null,null,null,null,null,null,null,null,null,null,null,null,null,null,null,"*Skatt och moms UA",2.74,null,"kr/fkm"]
[null,null,null,null,null,null,null,null,null,null,null,null,null,null,null,null,null,null,"*Marginalkostnad JA exkl. moms",2.59,null,"kr/fkm"]
[null,null,null,null,null,null,null,null,null,null,null,null,null,null,null,null,null,null,"*Marginalkostnad UA exkl. moms",2.59,null,"kr/fkm"]
[null,null,null,null,null,null,null,null,null,null,null,null,null,null,null,null,null,null," Marginellt slitage",null,0.8,"kr/fkm"]
[null,null,null,null,null,null,null,null,null,null,null,null,null,null,null,null,null,null,"*Godskostnader",31,null,"kr/h"]
[null,null,null,null,null,null,null,null,null,null,null,null,null,null,null,null,null,null," Kväveoxider (NOx) Landsbygd",null,0.21357290600000001,"g/fkm"]
[null,null,null,null,null,null,null,null,null,null,null,null,null,null,null,null,null,null," Kväveoxider (NOx) Tätort",null,0.31101200000000001,"g/fkm"]
[null,null,null,null,null,null,null,null,null,null,null,null,null,null,null,null,null,null," Avgaspartiklar Landsbygd",null,3.7479610000000002E-3,"g/fkm"]
[null,null,null,null,null,null,null,null,null,null,null,null,null,null,null,null,null,null," Avgaspartiklar Tätort",null,4.6730000000000001E-3,"g/fkm"]
[null,null,null,null,null,null,null,null,null,null,null,null,null,null,null,null,null,null," Slitagepartiklar Landsbygd",null,0.2,"g/fkm"]
[null,null,null,null,null,null,null,null,null,null,null,null,null,null,null,null,null,null," Slitagepartiklar Tätort",null,0.2,"g/fkm"]
[null,null,null,null,null,null,null,null,null,null,null,null,null,null,null,null,null,null," Koldioxid (CO2) Landsbygd",null,130.94562930000001,"g/fkm"]
[null,null,null,null,null,null,null,null,null,null,null,null,null,null,null,null,null,null," Koldioxid (CO2) Tätort",null,162.321,"g/fkm"]
[null,null,null,null,null,null,null,null,null,null,null,null,null,null,null,null,null,null,"FORDONSKOSTNADER - Buss"]
[null,null,null,null,null,null,null,null,null,null,null,null,null,null,null,null,null,null," Vehicletype",null,11]
[null,null,null,null,null,null,null,null,null,null,null,null,null,null,null,null,null,null,"*Mode","a"]
[null,null,null,null,null,null,null,null,null,null,null,null,null,null,null,null,null,null," Fast sträckkostnad",null,6.17,"kr/km"]
[null,null,null,null,null,null,null,null,null,null,null,null,null,null,null,null,null,null," Fast tidskostnad",null,5.69,"kr/minut"]
[null,null,null,null,null,null,null,null,null,null,null,null,null,null,null,null,null,null," Fast slitagekostnad",null,0.4,"kr/km"]
[null,null,null,null,null,null,null,null,null,null,null,null,null,null,null,null,null,null," Marginell sträckkostnad",null,0.154,"kr/personkm"]
[null,null,null,null,null,null,null,null,null,null,null,null,null,null,null,null,null,null," Marginell tidskostnad",null,0.14199999999999999,"kr/personminut"]
[null,null,null,null,null,null,null,null,null,null,null,null,null,null,null,null,null,null," Marginell slitagekostnad",null,8.0000000000000002E-3,"kr/personkm"]
[null,null,null,null,null,null,null,null,null,null,null,null,null,null,null,null,null,null," Fast banavgift",null,0,"kr/km"]
[null,null,null,null,null,null,null,null,null,null,null,null,null,null,null,null,null,null," Marginell banavgift",null,0,"kr/km"]
[null,null,null,null,null,null,null,null,null,null,null,null,null,null,null,null,null,null," Antal platser",null,40,"styck"]
[null,null,null,null,null,null,null,null,null,null,null,null,null,null,null,null,null,null," Beläggningsgrad",null,0.6,"andel"]
[null,null,null,null,null,null,null,null,null,null,null,null,null,null,null,null,null,null," Olyckskostnad",null,0.39,"kr/fkm"]
[null,null,null,null,null,null,null,null,null,null,null,null,null,null,null,null,null,null," TätortsFaktor",null,0.2]
[null,null,null,null,null,null,null,null,null,null,null,null,null,null,null,null,null,null," Fast NOx",null,0,"g/fkm"]
[null,null,null,null,null,null,null,null,null,null,null,null,null,null,null,null,null,null," Fast Part",null,0,"g/fkm"]
[null,null,null,null,null,null,null,null,null,null,null,null,null,null,null,null,null,null," Fast SlitagePart",null,0.2,"g/fkm"]
[null,null,null,null,null,null,null,null,null,null,null,null,null,null,null,null,null,null," Fast CO2",null,0,"g/fkm"]
[null,null,null,null,null,null,null,null,null,null,null,null,null,null,null,null,null,null," Marg NOx",null,0,"g/pkm"]
[null,null,null,null,null,null,null,null,null,null,null,null,null,null,null,null,null,null," Marg Part",null,0,"g/pkm"]
[null,null,null,null,null,null,null,null,null,null,null,null,null,null,null,null,null,null," Marg SlitagePart",null,5.0000000000000001E-3,"g/pkm"]
[null,null,null,null,null,null,null,null,null,null,null,null,null,null,null,null,null,null," Marg CO2",null,0,"g/pkm"]
[null,null,null,null,null,null,null,null,null,null,null,null,null,null,null,null,null,null," Kostnadsförändring trafikstartår-prognosår 1",null,0,"procent"]
[null,null,null,null,null,null,null,null,null,null,null,null,null,null,null,null,null,null,"FORDONSKOSTNADER - Flyg"]
[null,null,null,null,null,null,null,null,null,null,null,null,null,null,null,null,null,null," Vehicletype",null,9]
[null,null,null,null,null,null,null,null,null,null,null,null,null,null,null,null,null,null,"*Mode","f"]
[null,null,null,null,null,null,null,null,null,null,null,null,null,null,null,null,null,null,"*Fast sträckkostnad",15.12,null,"kr/km"]
[null,null,null,null,null,null,null,null,null,null,null,null,null,null,null,null,null,null,"*Fast tidskostnad",105,null,"kr/minut"]
[null,null,null,null,null,null,null,null,null,null,null,null,null,null,null,null,null,null," Fast slitagekostnad",null,0,"kr/km"]
[null,null,null,null,null,null,null,null,null,null,null,null,null,null,null,null,null,null," Marginell sträckkostnad",null,0.2,"kr/personkm"]
[null,null,null,null,null,null,null,null,null,null,null,null,null,null,null,null,null,null,"*Marginell tidskostnad",2.3199999999999998,null,"kr/personminut"]
[null,null,null,null,null,null,null,null,null,null,null,null,null,null,null,null,null,null," Marginell slitagekostnad",null,0,"kr/personkm"]
[null,null,null,null,null,null,null,null,null,null,null,null,null,null,null,null,null,null," Fast banavgift",null,0,"kr/km"]
[null,null,null,null,null,null,null,null,null,null,null,null,null,null,null,null,null,null," Marginell banavgift",null,0,"kr/km"]
[null,null,null,null,null,null,null,null,null,null,null,null,null,null,null,null,null,null,"*Antal platser",19,null,"styck"]
[null,null,null,null,null,null,null,null,null,null,null,null,null,null,null,null,null,null," Beläggningsgrad",null,0.8,"andel"]
[null,null,null,null,null,null,null,null,null,null,null,null,null,null,null,null,null,null," Olyckskostnad",null,4.2700000000000002E-2,"kr/fkm"]
[null,null,null,null,null,null,null,null,null,null,null,null,null,null,null,null,null,null," TätortsFaktor",null,0.1]
[null,null,null,null,null,null,null,null,null,null,null,null,null,null,null,null,null,null," Fast NOx",null,7.3840000000000003,"g/fkm"]
[null,null,null,null,null,null,null,null,null,null,null,null,null,null,null,null,null,null," Fast Part",null,0,"g/fkm"]
[null,null,null,null,null,null,null,null,null,null,null,null,null,null,null,null,null,null," Fast SlitagePart",null,0,"g/fkm"]
[null,null,null,null,null,null,null,null,null,null,null,null,null,null,null,null,null,null," Fast CO2",null,2267.5,"g/fkm"]
[null,null,null,null,null,null,null,null,null,null,null,null,null,null,null,null,null,null," Marg NOx",null,0.57299999999999995,"g/pkm"]
[null,null,null,null,null,null,null,null,null,null,null,null,null,null,null,null,null,null," Marg Part",null,0,"g/pkm"]
[null,null,null,null,null,null,null,null,null,null,null,null,null,null,null,null,null,null," Marg SlitagePart",null,0,"g/pkm"]
[null,null,null,null,null,null,null,null,null,null,null,null,null,null,null,null,null,null," Marg CO2",null,134.86799999999999,"g/pkm"]
[null,null,null,null,null,null,null,null,null,null,null,null,null,null,null,null,null,null," Kostnadsförändring trafikstartår-prognosår 1",null,0,"procent"]
[null,null,null,null,null,null,null,null,null,null,null,null,null,null,null,null,null,null,"FORDONSKOSTNADER - Snabbtåg"]
[null,null,null,null,null,null,null,null,null,null,null,null,null,null,null,null,null,null," Vehicletype",null,2]
[null,null,null,null,null,null,null,null,null,null,null,null,null,null,null,null,null,null,"*Mode","k"]
[null,null,null,null,null,null,null,null,null,null,null,null,null,null,null,null,null,null,"*Fast sträckkostnad",31.79,null,"kr/km"]
[null,null,null,null,null,null,null,null,null,null,null,null,null,null,null,null,null,null," Fast tidskostnad",null,91.78,"kr/minut"]
[null,null,null,null,null,null,null,null,null,null,null,null,null,null,null,null,null,null," Fast slitagekostnad",null,7.17,"kr/km"]
[null,null,null,null,null,null,null,null,null,null,null,null,null,null,null,null,null,null,"*Marginell sträckkostnad",0.12,null,"kr/personkm"]
[null,null,null,null,null,null,null,null,null,null,null,null,null,null,null,null,null,null," Marginell tidskostnad",null,0.28999999999999998,"kr/personminut"]
[null,null,null,null,null,null,null,null,null,null,null,null,null,null,null,null,null,null," Marginell slitagekostnad",null,1.4E-2,"kr/personkm"]
[null,null,null,null,null,null,null,null,null,null,null,null,null,null,null,null,null,null," Fast banavgift",null,7.17,"kr/km"]
[null,null,null,null,null,null,null,null,null,null,null,null,null,null,null,null,null,null," Marginell banavgift",null,0.01,"kr/km"]
[null,null,null,null,null,null,null,null,null,null,null,null,null,null,null,null,null,null," Antal platser",null,240,"styck"]
[null,null,null,null,null,null,null,null,null,null,null,null,null,null,null,null,null,null," Beläggningsgrad",null,0.65,"andel"]
[null,null,null,null,null,null,null,null,null,null,null,null,null,null,null,null,null,null," Olyckskostnad",null,1.97,"kr/fkm"]
[null,null,null,null,null,null,null,null,null,null,null,null,null,null,null,null,null,null," TätortsFaktor",null,0.08]
[null,null,null,null,null,null,null,null,null,null,null,null,null,null,null,null,null,null," Fast NOx",null,0,"g/fkm"]
[null,null,null,null,null,null,null,null,null,null,null,null,null,null,null,null,null,null," Fast Part",null,0,"g/fkm"]
[null,null,null,null,null,null,null,null,null,null,null,null,null,null,null,null,null,null," Fast SlitagePart",null,0,"g/fkm"]
[null,null,null,null,null,null,null,null,null,null,null,null,null,null,null,null,null,null," Fast CO2",null,0,"g/fkm"]
[null,null,null,null,null,null,null,null,null,null,null,null,null,null,null,null,null,null," Marg NOx",null,0,"g/pkm"]
[null,null,null,null,null,null,null,null,null,null,null,null,null,null,null,null,null,null," Marg Part",null,0,"g/pkm"]
[null,null,null,null,null,null,null,null,null,null,null,null,null,null,null,null,null,null," Marg SlitagePart",null,0,"g/pkm"]
[null,null,null,null,null,null,null,null,null,null,null,null,null,null,null,null,null,null," Marg CO2",null,0,"g/pkm"]
[null,null,null,null,null,null,null,null,null,null,null,null,null,null,null,null,null,null," Kostnadsförändring trafikstartår-prognosår 1",null,-0.51,"procent"]
[null,null,null,null,null,null,null,null,null,null,null,null,null,null,null,null,null,null,"FORDONSKOSTNADER - Interregional"]
[null,null,null,null,null,null,null,null,null,null,null,null,null,null,null,null,null,null," Vehicletype",null,1]
[null,null,null,null,null,null,null,null,null,null,null,null,null,null,null,null,null,null,"*Mode","j"]
[null,null,null,null,null,null,null,null,null,null,null,null,null,null,null,null,null,null,"*Fast sträckkostnad",16.850000000000001,null,"kr/km"]
[null,null,null,null,null,null,null,null,null,null,null,null,null,null,null,null,null,null," Fast tidskostnad",null,48.06,"kr/minut"]
[null,null,null,null,null,null,null,null,null,null,null,null,null,null,null,null,null,null," Fast slitagekostnad",null,5.41,"kr/km"]
[null,null,null,null,null,null,null,null,null,null,null,null,null,null,null,null,null,null," Marginell sträckkostnad",null,0.08,"kr/personkm"]
[null,null,null,null,null,null,null,null,null,null,null,null,null,null,null,null,null,null," Marginell tidskostnad",null,0.13,"kr/personminut"]
[null,null,null,null,null,null,null,null,null,null,null,null,null,null,null,null,null,null," Marginell slitagekostnad",null,1.0999999999999999E-2,"kr/personkm"]
[null,null,null,null,null,null,null,null,null,null,null,null,null,null,null,null,null,null," Fast banavgift",null,5.41,"kr/km"]
[null,null,null,null,null,null,null,null,null,null,null,null,null,null,null,null,null,null," Marginell banavgift",null,0.01,"kr/km"]
[null,null,null,null,null,null,null,null,null,null,null,null,null,null,null,null,null,null," Antal platser",null,150,"styck"]
[null,null,null,null,null,null,null,null,null,null,null,null,null,null,null,null,null,null," Beläggningsgrad",null,0.5,"andel"]
[null,null,null,null,null,null,null,null,null,null,null,null,null,null,null,null,null,null," Olyckskostnad",null,2.2999999999999998,"kr/fkm"]
[null,null,null,null,null,null,null,null,null,null,null,null,null,null,null,null,null,null," TätortsFaktor",null,0.08]
[null,null,null,null,null,null,null,null,null,null,null,null,null,null,null,null,null,null," Fast NOx",null,0,"g/fkm"]
[null,null,null,null,null,null,null,null,null,null,null,null,null,null,null,null,null,null," Fast Part",null,0,"g/fkm"]
[null,null,null,null,null,null,null,null,null,null,null,null,null,null,null,null,null,null," Fast SlitagePart",null,0,"g/fkm"]
[null,null,null,null,null,null,null,null,null,null,null,null,null,null,null,null,null,null," Fast CO2",null,0,"g/fkm"]
[null,null,null,null,null,null,null,null,null,null,null,null,null,null,null,null,null,null," Marg NOx",null,0,"g/pkm"]
[null,null,null,null,null,null,null,null,null,null,null,null,null,null,null,null,null,null," Marg Part",null,0,"g/pkm"]
[null,null,null,null,null,null,null,null,null,null,null,null,null,null,null,null,null,null," Marg SlitagePart",null,0,"g/pkm"]
[null,null,null,null,null,null,null,null,null,null,null,null,null,null,null,null,null,null," Marg CO2",null,0,"g/pkm"]
[null,null,null,null,null,null,null,null,null,null,null,null,null,null,null,null,null,null," Kostnadsförändring trafikstartår-prognosår 1",null,-1.83,"procent"]
[null,null,null,null,null,null,null,null,null,null,null,null,null,null,null,null,null,null,"FORDONSKOSTNADER - Pendeltåg"]
[null,null,null,null,null,null,null,null,null,null,null,null,null,null,null,null,null,null," Vehicletype",null,15]
[null,null,null,null,null,null,null,null,null,null,null,null,null,null,null,null,null,null,"*Mode","j"]
[null,null,null,null,null,null,null,null,null,null,null,null,null,null,null,null,null,null,"*Fast sträckkostnad",20.43,null,"kr/km"]
[null,null,null,null,null,null,null,null,null,null,null,null,null,null,null,null,null,null," Fast tidskostnad",null,43.58,"kr/minut"]
[null,null,null,null,null,null,null,null,null,null,null,null,null,null,null,null,null,null," Fast slitagekostnad",null,5.97,"kr/km"]
[null,null,null,null,null,null,null,null,null,null,null,null,null,null,null,null,null,null," Marginell sträckkostnad",null,0.08,"kr/personkm"]
[null,null,null,null,null,null,null,null,null,null,null,null,null,null,null,null,null,null," Marginell tidskostnad",null,0.1,"kr/personminut"]
[null,null,null,null,null,null,null,null,null,null,null,null,null,null,null,null,null,null," Marginell slitagekostnad",null,1.2E-2,"kr/personkm"]
[null,null,null,null,null,null,null,null,null,null,null,null,null,null,null,null,null,null," Fast banavgift",null,5.97,"kr/km"]
[null,null,null,null,null,null,null,null,null,null,null,null,null,null,null,null,null,null," Marginell banavgift",null,0.01,"kr/km"]
[null,null,null,null,null,null,null,null,null,null,null,null,null,null,null,null,null,null," Antal platser",null,215,"styck"]
[null,null,null,null,null,null,null,null,null,null,null,null,null,null,null,null,null,null," Beläggningsgrad",null,0.35,"andel"]
[null,null,null,null,null,null,null,null,null,null,null,null,null,null,null,null,null,null," Olyckskostnad",null,3.26,"kr/fkm"]
[null,null,null,null,null,null,null,null,null,null,null,null,null,null,null,null,null,null," TätortsFaktor",null,0.08]
[null,null,null,null,null,null,null,null,null,null,null,null,null,null,null,null,null,null," Fast NOx",null,0,"g/fkm"]
[null,null,null,null,null,null,null,null,null,null,null,null,null,null,null,null,null,null," Fast Part",null,0,"g/fkm"]
[null,null,null,null,null,null,null,null,null,null,null,null,null,null,null,null,null,null," Fast SlitagePart",null,0,"g/fkm"]
[null,null,null,null,null,null,null,null,null,null,null,null,null,null,null,null,null,null," Fast CO2",null,0,"g/fkm"]
[null,null,null,null,null,null,null,null,null,null,null,null,null,null,null,null,null,null," Marg NOx",null,0,"g/pkm"]
[null,null,null,null,null,null,null,null,null,null,null,null,null,null,null,null,null,null," Marg Part",null,0,"g/pkm"]
[null,null,null,null,null,null,null,null,null,null,null,null,null,null,null,null,null,null," Marg SlitagePart",null,0,"g/pkm"]
[null,null,null,null,null,null,null,null,null,null,null,null,null,null,null,null,null,null," Marg CO2",null,0,"g/pkm"]
[null,null,null,null,null,null,null,null,null,null,null,null,null,null,null,null,null,null," Kostnadsförändring trafikstartår-prognosår 1",null,-0.47,"procent"]
[null,null,null,null,null,null,null,null,null,null,null,null,null,null,null,null,null,null,"FORDONSKOSTNADER - Bimodaltåg"]
[null,null,null,null,null,null,null,null,null,null,null,null,null,null,null,null,null,null," Vehicletype",null,17]
[null,null,null,null,null,null,null,null,null,null,null,null,null,null,null,null,null,null,"*Mode","j"]
[null,null,null,null,null,null,null,null,null,null,null,null,null,null,null,null,null,null,"*Fast sträckkostnad",25.74,null,"kr/km"]
[null,null,null,null,null,null,null,null,null,null,null,null,null,null,null,null,null,null," Fast tidskostnad",null,50.08,"kr/minut"]
[null,null,null,null,null,null,null,null,null,null,null,null,null,null,null,null,null,null," Fast slitagekostnad",null,5.25,"kr/km"]
[null,null,null,null,null,null,null,null,null,null,null,null,null,null,null,null,null,null,"*Marginell sträckkostnad",0.16,null,"kr/personkm"]
[null,null,null,null,null,null,null,null,null,null,null,null,null,null,null,null,null,null," Marginell tidskostnad",null,0.17,"kr/personminut"]
[null,null,null,null,null,null,null,null,null,null,null,null,null,null,null,null,null,null," Marginell slitagekostnad",null,1.2E-2,"kr/personkm"]
[null,null,null,null,null,null,null,null,null,null,null,null,null,null,null,null,null,null," Fast banavgift",null,5.25,"kr/km"]
[null,null,null,null,null,null,null,null,null,null,null,null,null,null,null,null,null,null," Marginell banavgift",null,1.2E-2,"kr/km"]
[null,null,null,null,null,null,null,null,null,null,null,null,null,null,null,null,null,null," Antal platser",null,150,"styck"]
[null,null,null,null,null,null,null,null,null,null,null,null,null,null,null,null,null,null," Beläggningsgrad",null,0.35,"andel"]
[null,null,null,null,null,null,null,null,null,null,null,null,null,null,null,null,null,null," Olyckskostnad",null,5.93,"kr/fkm"]
[null,null,null,null,null,null,null,null,null,null,null,null,null,null,null,null,null,null," TätortsFaktor",null,0.08]
[null,null,null,null,null,null,null,null,null,null,null,null,null,null,null,null,null,null," Fast NOx",null,8.1300000000000008,"g/fkm"]
[null,null,null,null,null,null,null,null,null,null,null,null,null,null,null,null,null,null," Fast Part",null,7.2999999999999995E-2,"g/fkm"]
[null,null,null,null,null,null,null,null,null,null,null,null,null,null,null,null,null,null," Fast SlitagePart",null,0,"g/fkm"]
[null,null,null,null,null,null,null,null,null,null,null,null,null,null,null,null,null,null," Fast CO2",null,2732.25,"g/fkm"]
[null,null,null,null,null,null,null,null,null,null,null,null,null,null,null,null,null,null," Marg NOx",null,5.3999999999999999E-2,"g/pkm"]
[null,null,null,null,null,null,null,null,null,null,null,null,null,null,null,null,null,null," Marg Part",null,4.8999999999999998E-4,"g/pkm"]
[null,null,null,null,null,null,null,null,null,null,null,null,null,null,null,null,null,null," Marg SlitagePart",null,0,"g/pkm"]
[null,null,null,null,null,null,null,null,null,null,null,null,null,null,null,null,null,null," Marg CO2",null,18.13,"g/pkm"]
[null,null,null,null,null,null,null,null,null,null,null,null,null,null,null,null,null,null," Kostnadsförändring trafikstartår-prognosår 1",null,-2.36,"procent"]
[null,null,null,null,null,null,null,null,null,null,null,null,null,null,null,null,null,null,"FORDONSKOSTNADER - Nattåg"]
[null,null,null,null,null,null,null,null,null,null,null,null,null,null,null,null,null,null," Vehicletype",null,16]
[null,null,null,null,null,null,null,null,null,null,null,null,null,null,null,null,null,null,"*Mode","j"]
[null,null,null,null,null,null,null,null,null,null,null,null,null,null,null,null,null,null,"*Fast sträckkostnad",48.58,null,"kr/km"]
[null,null,null,null,null,null,null,null,null,null,null,null,null,null,null,null,null,null," Fast tidskostnad",null,103.14,"kr/minut"]
[null,null,null,null,null,null,null,null,null,null,null,null,null,null,null,null,null,null," Fast slitagekostnad",null,10.69,"kr/km"]
[null,null,null,null,null,null,null,null,null,null,null,null,null,null,null,null,null,null,"*Marginell sträckkostnad",0.16,null,"kr/personkm"]
[null,null,null,null,null,null,null,null,null,null,null,null,null,null,null,null,null,null," Marginell tidskostnad",null,0.26,"kr/personminut"]
[null,null,null,null,null,null,null,null,null,null,null,null,null,null,null,null,null,null," Marginell slitagekostnad",null,2.3E-2,"kr/personkm"]
[null,null,null,null,null,null,null,null,null,null,null,null,null,null,null,null,null,null," Fast banavgift",null,10.69,"kr/km"]
[null,null,null,null,null,null,null,null,null,null,null,null,null,null,null,null,null,null," Marginell banavgift",null,2.3E-2,"kr/km"]
[null,null,null,null,null,null,null,null,null,null,null,null,null,null,null,null,null,null," Antal platser",null,250,"styck"]
[null,null,null,null,null,null,null,null,null,null,null,null,null,null,null,null,null,null," Beläggningsgrad",null,0.5,"andel"]
[null,null,null,null,null,null,null,null,null,null,null,null,null,null,null,null,null,null," Olyckskostnad",null,2.4500000000000002,"kr/fkm"]
[null,null,null,null,null,null,null,null,null,null,null,null,null,null,null,null,null,null," TätortsFaktor",null,0.08]
[null,null,null,null,null,null,null,null,null,null,null,null,null,null,null,null,null,null," Fast NOx",null,0,"g/fkm"]
[null,null,null,null,null,null,null,null,null,null,null,null,null,null,null,null,null,null," Fast Part",null,0,"g/fkm"]
[null,null,null,null,null,null,null,null,null,null,null,null,null,null,null,null,null,null," Fast SlitagePart",null,0,"g/fkm"]
[null,null,null,null,null,null,null,null,null,null,null,null,null,null,null,null,null,null," Fast CO2",null,0,"g/fkm"]
[null,null,null,null,null,null,null,null,null,null,null,null,null,null,null,null,null,null," Marg NOx",null,0,"g/pkm"]
[null,null,null,null,null,null,null,null,null,null,null,null,null,null,null,null,null,null," Marg Part",null,0,"g/pkm"]
[null,null,null,null,null,null,null,null,null,null,null,null,null,null,null,null,null,null," Marg SlitagePart",null,0,"g/pkm"]
[null,null,null,null,null,null,null,null,null,null,null,null,null,null,null,null,null,null," Marg CO2",null,0,"g/pkm"]
[null,null,null,null,null,null,null,null,null,null,null,null,null,null,null,null,null,null," Kostnadsförändring trafikstartår-prognosår 1",null,-0.23,"procent"]
[null,null,null,null,null,null,null,null,null,null,null,null,null,null,null,null,null,null,"FORDONSKOSTNADER - Tbana"]
[null,null,null,null,null,null,null,null,null,null,null,null,null,null,null,null,null,null," Vehicletype",null,26]
[null,null,null,null,null,null,null,null,null,null,null,null,null,null,null,null,null,null,"*Mode","t"]
[null,null,null,null,null,null,null,null,null,null,null,null,null,null,null,null,null,null,"*Fast sträckkostnad",20.43,null,"kr/km"]
[null,null,null,null,null,null,null,null,null,null,null,null,null,null,null,null,null,null," Fast tidskostnad",null,43.58,"kr/minut"]
[null,null,null,null,null,null,null,null,null,null,null,null,null,null,null,null,null,null," Fast slitagekostnad",null,5.97,"kr/km"]
[null,null,null,null,null,null,null,null,null,null,null,null,null,null,null,null,null,null,"*Marginell sträckkostnad",0.09,null,"kr/personkm"]
[null,null,null,null,null,null,null,null,null,null,null,null,null,null,null,null,null,null," Marginell tidskostnad",null,0.1,"kr/personminut"]
[null,null,null,null,null,null,null,null,null,null,null,null,null,null,null,null,null,null," Marginell slitagekostnad",null,1.2E-2,"kr/personkm"]
[null,null,null,null,null,null,null,null,null,null,null,null,null,null,null,null,null,null," Fast banavgift",null,5.97,"kr/km"]
[null,null,null,null,null,null,null,null,null,null,null,null,null,null,null,null,null,null," Marginell banavgift",null,0.01,"kr/km"]
[null,null,null,null,null,null,null,null,null,null,null,null,null,null,null,null,null,null," Antal platser",null,215,"styck"]
[null,null,null,null,null,null,null,null,null,null,null,null,null,null,null,null,null,null," Beläggningsgrad",null,0.35,"andel"]
[null,null,null,null,null,null,null,null,null,null,null,null,null,null,null,null,null,null," Olyckskostnad",null,0,"kr/fkm"]
[null,null,null,null,null,null,null,null,null,null,null,null,null,null,null,null,null,null," TätortsFaktor",null,0.08]
[null,null,null,null,null,null,null,null,null,null,null,null,null,null,null,null,null,null," Fast NOx",null,0,"g/fkm"]
[null,null,null,null,null,null,null,null,null,null,null,null,null,null,null,null,null,null," Fast Part",null,0,"g/fkm"]
[null,null,null,null,null,null,null,null,null,null,null,null,null,null,null,null,null,null," Fast SlitagePart",null,0,"g/fkm"]
[null,null,null,null,null,null,null,null,null,null,null,null,null,null,null,null,null,null," Fast CO2",null,0,"g/fkm"]
[null,null,null,null,null,null,null,null,null,null,null,null,null,null,null,null,null,null," Marg NOx",null,0,"g/pkm"]
[null,null,null,null,null,null,null,null,null,null,null,null,null,null,null,null,null,null," Marg Part",null,0,"g/pkm"]
[null,null,null,null,null,null,null,null,null,null,null,null,null,null,null,null,null,null," Marg SlitagePart",null,0,"g/pkm"]
[null,null,null,null,null,null,null,null,null,null,null,null,null,null,null,null,null,null," Marg CO2",null,0,"g/pkm"]
[null,null,null,null,null,null,null,null,null,null,null,null,null,null,null,null,null,null," Kostnadsförändring trafikstartår-prognosår 1",null,0,"procent"]
[null,null,null,null,null,null,null,null,null,null,null,null,null,null,null,null,null,null,"FORDONSKOSTNADER - ÖvrSpår"]
[null,null,null,null,null,null,null,null,null,null,null,null,null,null,null,null,null,null," Vehicletype",null,60]
[null,null,null,null,null,null,null,null,null,null,null,null,null,null,null,null,null,null,"*Mode","s"]
[null,null,null,null,null,null,null,null,null,null,null,null,null,null,null,null,null,null,"*Fast sträckkostnad",20.43,null,"kr/km"]
[null,null,null,null,null,null,null,null,null,null,null,null,null,null,null,null,null,null," Fast tidskostnad",null,43.58,"kr/minut"]
[null,null,null,null,null,null,null,null,null,null,null,null,null,null,null,null,null,null," Fast slitagekostnad",null,5.97,"kr/km"]
[null,null,null,null,null,null,null,null,null,null,null,null,null,null,null,null,null,null,"*Marginell sträckkostnad",0.09,null,"kr/personkm"]
[null,null,null,null,null,null,null,null,null,null,null,null,null,null,null,null,null,null," Marginell tidskostnad",null,0.1,"kr/personminut"]
[null,null,null,null,null,null,null,null,null,null,null,null,null,null,null,null,null,null," Marginell slitagekostnad",null,1.2E-2,"kr/personkm"]
[null,null,null,null,null,null,null,null,null,null,null,null,null,null,null,null,null,null," Fast banavgift",null,5.97,"kr/km"]
[null,null,null,null,null,null,null,null,null,null,null,null,null,null,null,null,null,null," Marginell banavgift",null,0.01,"kr/km"]
[null,null,null,null,null,null,null,null,null,null,null,null,null,null,null,null,null,null," Antal platser",null,215,"styck"]
[null,null,null,null,null,null,null,null,null,null,null,null,null,null,null,null,null,null," Beläggningsgrad",null,0.35,"andel"]
[null,null,null,null,null,null,null,null,null,null,null,null,null,null,null,null,null,null," Olyckskostnad",null,0,"kr/fkm"]
[null,null,null,null,null,null,null,null,null,null,null,null,null,null,null,null,null,null," TätortsFaktor",null,0.08]
[null,null,null,null,null,null,null,null,null,null,null,null,null,null,null,null,null,null," Fast NOx",null,0,"g/fkm"]
[null,null,null,null,null,null,null,null,null,null,null,null,null,null,null,null,null,null," Fast Part",null,0,"g/fkm"]
[null,null,null,null,null,null,null,null,null,null,null,null,null,null,null,null,null,null," Fast SlitagePart",null,0,"g/fkm"]
[null,null,null,null,null,null,null,null,null,null,null,null,null,null,null,null,null,null," Fast CO2",null,0,"g/fkm"]
[null,null,null,null,null,null,null,null,null,null,null,null,null,null,null,null,null,null," Marg NOx",null,0,"g/pkm"]
[null,null,null,null,null,null,null,null,null,null,null,null,null,null,null,null,null,null," Marg Part",null,0,"g/pkm"]
[null,null,null,null,null,null,null,null,null,null,null,null,null,null,null,null,null,null," Marg SlitagePart",null,0,"g/pkm"]
[null,null,null,null,null,null,null,null,null,null,null,null,null,null,null,null,null,null," Marg CO2",null,0,"g/pkm"]
[null,null,null,null,null,null,null,null,null,null,null,null,null,null,null,null,null,null," Kostnadsförändring trafikstartår-prognosår 1",null,0,"procent"]
[null,null,null,null,null,null,null,null,null,null,null,null,null,null,null,null,null,null,"FORDONSKOSTNADER - ny1"]
[null,null,null,null,null,null,null,null,null,null,null,null,null,null,null,null,null,null," Vehicletype",null,18]
[null,null,null,null,null,null,null,null,null,null,null,null,null,null,null,null,null,null,"*Mode","i"]
[null,null,null,null,null,null,null,null,null,null,null,null,null,null,null,null,null,null,"*Fast sträckkostnad",33.799999999999997,null,"kr/km"]
[null,null,null,null,null,null,null,null,null,null,null,null,null,null,null,null,null,null," Fast tidskostnad",null,37.04,"kr/minut"]
[null,null,null,null,null,null,null,null,null,null,null,null,null,null,null,null,null,null," Fast slitagekostnad",null,6.79,"kr/km"]
[null,null,null,null,null,null,null,null,null,null,null,null,null,null,null,null,null,null,"*Marginell sträckkostnad",0.08,null,"kr/personkm"]
[null,null,null,null,null,null,null,null,null,null,null,null,null,null,null,null,null,null," Marginell tidskostnad",null,0.05,"kr/personminut"]
[null,null,null,null,null,null,null,null,null,null,null,null,null,null,null,null,null,null," Marginell slitagekostnad",null,8.0000000000000002E-3,"kr/personkm"]
[null,null,null,null,null,null,null,null,null,null,null,null,null,null,null,null,null,null," Fast banavgift",null,6.79,"kr/km"]
[null,null,null,null,null,null,null,null,null,null,null,null,null,null,null,null,null,null," Marginell banavgift",null,8.0000000000000002E-3,"kr/km"]
[null,null,null,null,null,null,null,null,null,null,null,null,null,null,null,null,null,null," Antal platser",null,375,"styck"]
[null,null,null,null,null,null,null,null,null,null,null,null,null,null,null,null,null,null," Beläggningsgrad",null,0.35,"andel"]
[null,null,null,null,null,null,null,null,null,null,null,null,null,null,null,null,null,null," Olyckskostnad",null,1.53,"kr/fkm"]
[null,null,null,null,null,null,null,null,null,null,null,null,null,null,null,null,null,null," TätortsFaktor",null,0.08]
[null,null,null,null,null,null,null,null,null,null,null,null,null,null,null,null,null,null," Fast NOx",null,0,"g/fkm"]
[null,null,null,null,null,null,null,null,null,null,null,null,null,null,null,null,null,null," Fast Part",null,0,"g/fkm"]
[null,null,null,null,null,null,null,null,null,null,null,null,null,null,null,null,null,null," Fast SlitagePart",null,0,"g/fkm"]
[null,null,null,null,null,null,null,null,null,null,null,null,null,null,null,null,null,null," Fast CO2",null,0,"g/fkm"]
[null,null,null,null,null,null,null,null,null,null,null,null,null,null,null,null,null,null," Marg NOx",null,0,"g/pkm"]
[null,null,null,null,null,null,null,null,null,null,null,null,null,null,null,null,null,null," Marg Part",null,0,"g/pkm"]
[null,null,null,null,null,null,null,null,null,null,null,null,null,null,null,null,null,null," Marg SlitagePart",null,0,"g/pkm"]
[null,null,null,null,null,null,null,null,null,null,null,null,null,null,null,null,null,null," Marg CO2",null,0,"g/pkm"]
[null,null,null,null,null,null,null,null,null,null,null,null,null,null,null,null,null,null," Kostnadsförändring trafikstartår-prognosår 1",null,0,"procent"]
[null,null,null,null,null,null,null,null,null,null,null,null,null,null,null,null,null,null,"FORDONSKOSTNADER - ny2"]
[null,null,null,null,null,null,null,null,null,null,null,null,null,null,null,null,null,null," Vehicletype",null,4]
[null,null,null,null,null,null,null,null,null,null,null,null,null,null,null,null,null,null,"*Mode","j"]
[null,null,null,null,null,null,null,null,null,null,null,null,null,null,null,null,null,null,"*Fast sträckkostnad",23.85,null,"kr/km"]
[null,null,null,null,null,null,null,null,null,null,null,null,null,null,null,null,null,null," Fast tidskostnad",null,80.16,"kr/minut"]
[null,null,null,null,null,null,null,null,null,null,null,null,null,null,null,null,null,null," Fast slitagekostnad",null,6.21,"kr/km"]
[null,null,null,null,null,null,null,null,null,null,null,null,null,null,null,null,null,null," Marginell sträckkostnad",null,0.09,"kr/personkm"]
[null,null,null,null,null,null,null,null,null,null,null,null,null,null,null,null,null,null," Marginell tidskostnad",null,0.23,"kr/personminut"]
[null,null,null,null,null,null,null,null,null,null,null,null,null,null,null,null,null,null," Marginell slitagekostnad",null,1.2E-2,"kr/personkm"]
[null,null,null,null,null,null,null,null,null,null,null,null,null,null,null,null,null,null," Fast banavgift",null,6.21,"kr/km"]
[null,null,null,null,null,null,null,null,null,null,null,null,null,null,null,null,null,null," Marginell banavgift",null,1.2E-2,"kr/km"]
[null,null,null,null,null,null,null,null,null,null,null,null,null,null,null,null,null,null," Antal platser",null,220,"styck"]
[null,null,null,null,null,null,null,null,null,null,null,null,null,null,null,null,null,null," Beläggningsgrad",null,0.65,"andel"]
[null,null,null,null,null,null,null,null,null,null,null,null,null,null,null,null,null,null," Olyckskostnad",null,2.37,"kr/fkm"]
[null,null,null,null,null,null,null,null,null,null,null,null,null,null,null,null,null,null," TätortsFaktor",null,0.08]
[null,null,null,null,null,null,null,null,null,null,null,null,null,null,null,null,null,null," Fast NOx",null,0,"g/fkm"]
[null,null,null,null,null,null,null,null,null,null,null,null,null,null,null,null,null,null," Fast Part",null,0,"g/fkm"]
[null,null,null,null,null,null,null,null,null,null,null,null,null,null,null,null,null,null," Fast SlitagePart",null,0,"g/fkm"]
[null,null,null,null,null,null,null,null,null,null,null,null,null,null,null,null,null,null," Fast CO2",null,0,"g/fkm"]
[null,null,null,null,null,null,null,null,null,null,null,null,null,null,null,null,null,null," Marg NOx",null,0,"g/pkm"]
[null,null,null,null,null,null,null,null,null,null,null,null,null,null,null,null,null,null," Marg Part",null,0,"g/pkm"]
[null,null,null,null,null,null,null,null,null,null,null,null,null,null,null,null,null,null," Marg SlitagePart",null,0,"g/pkm"]
[null,null,null,null,null,null,null,null,null,null,null,null,null,null,null,null,null,null," Marg CO2",null,0,"g/pkm"]
[null,null,null,null,null,null,null,null,null,null,null,null,null,null,null,null,null,null," Kostnadsförändring trafikstartår-prognosår 1",null,-1.1100000000000001,"procent"]
[null,null,null,null,null,null,null,null,null,null,null,null,null,null,null,null,null,null,"FORDONSKOSTNADER - ny3"]
[null,null,null,null,null,null,null,null,null,null,null,null,null,null,null,null,null,null," Vehicletype",null,3]
[null,null,null,null,null,null,null,null,null,null,null,null,null,null,null,null,null,null,"*Mode","k"]
[null,null,null,null,null,null,null,null,null,null,null,null,null,null,null,null,null,null,"*Fast sträckkostnad",36.94,null,"kr/km"]
[null,null,null,null,null,null,null,null,null,null,null,null,null,null,null,null,null,null," Fast tidskostnad",null,97.33,"kr/minut"]
[null,null,null,null,null,null,null,null,null,null,null,null,null,null,null,null,null,null," Fast slitagekostnad",null,7.65,"kr/km"]
[null,null,null,null,null,null,null,null,null,null,null,null,null,null,null,null,null,null,"*Marginell sträckkostnad",0.12,null,"kr/personkm"]
[null,null,null,null,null,null,null,null,null,null,null,null,null,null,null,null,null,null," Marginell tidskostnad",null,0.28000000000000003,"kr/personminut"]
[null,null,null,null,null,null,null,null,null,null,null,null,null,null,null,null,null,null," Marginell slitagekostnad",null,1.4E-2,"kr/personkm"]
[null,null,null,null,null,null,null,null,null,null,null,null,null,null,null,null,null,null," Fast banavgift",null,7.65,"kr/km"]
[null,null,null,null,null,null,null,null,null,null,null,null,null,null,null,null,null,null," Marginell banavgift",null,1.4E-2,"kr/km"]
[null,null,null,null,null,null,null,null,null,null,null,null,null,null,null,null,null,null," Antal platser",null,250,"styck"]
[null,null,null,null,null,null,null,null,null,null,null,null,null,null,null,null,null,null," Beläggningsgrad",null,0.65,"andel"]
[null,null,null,null,null,null,null,null,null,null,null,null,null,null,null,null,null,null," Olyckskostnad",null,1.4,"kr/fkm"]
[null,null,null,null,null,null,null,null,null,null,null,null,null,null,null,null,null,null," TätortsFaktor",null,0]
[null,null,null,null,null,null,null,null,null,null,null,null,null,null,null,null,null,null," Fast NOx",null,0,"g/fkm"]
[null,null,null,null,null,null,null,null,null,null,null,null,null,null,null,null,null,null," Fast Part",null,0,"g/fkm"]
[null,null,null,null,null,null,null,null,null,null,null,null,null,null,null,null,null,null," Fast SlitagePart",null,0,"g/fkm"]
[null,null,null,null,null,null,null,null,null,null,null,null,null,null,null,null,null,null," Fast CO2",null,0,"g/fkm"]
[null,null,null,null,null,null,null,null,null,null,null,null,null,null,null,null,null,null," Marg NOx",null,0,"g/pkm"]
[null,null,null,null,null,null,null,null,null,null,null,null,null,null,null,null,null,null," Marg Part",null,0,"g/pkm"]
[null,null,null,null,null,null,null,null,null,null,null,null,null,null,null,null,null,null," Marg SlitagePart",null,0,"g/pkm"]
[null,null,null,null,null,null,null,null,null,null,null,null,null,null,null,null,null,null," Marg CO2",null,0,"g/pkm"]
[null,null,null,null,null,null,null,null,null,null,null,null,null,null,null,null,null,null," Kostnadsförändring trafikstartår-prognosår 1",null,-0.99,"procent"]
[null,null,null,null,null,null,null,null,null,null,null,null,null,null,null,null,null,null,"FORDONSKOSTNADER - ny4"]
[null,null,null,null,null,null,null,null,null,null,null,null,null,null,null,null,null,null," Vehicletype",null,0]
[null,null,null,null,null,null,null,null,null,null,null,null,null,null,null,null,null,null," Mode"]
[null,null,null,null,null,null,null,null,null,null,null,null,null,null,null,null,null,null," Fast sträckkostnad",null,0,"kr/km"]
[null,null,null,null,null,null,null,null,null,null,null,null,null,null,null,null,null,null," Fast tidskostnad",null,0,"kr/minut"]
[null,null,null,null,null,null,null,null,null,null,null,null,null,null,null,null,null,null," Fast slitagekostnad",null,0,"kr/km"]
[null,null,null,null,null,null,null,null,null,null,null,null,null,null,null,null,null,null," Marginell sträckkostnad",null,0,"kr/personkm"]
[null,null,null,null,null,null,null,null,null,null,null,null,null,null,null,null,null,null," Marginell tidskostnad",null,0,"kr/personminut"]
[null,null,null,null,null,null,null,null,null,null,null,null,null,null,null,null,null,null," Marginell slitagekostnad",null,0,"kr/personkm"]
[null,null,null,null,null,null,null,null,null,null,null,null,null,null,null,null,null,null," Fast banavgift",null,0,"kr/km"]
[null,null,null,null,null,null,null,null,null,null,null,null,null,null,null,null,null,null," Marginell banavgift",null,0,"kr/km"]
[null,null,null,null,null,null,null,null,null,null,null,null,null,null,null,null,null,null," Antal platser",null,0,"styck"]
[null,null,null,null,null,null,null,null,null,null,null,null,null,null,null,null,null,null," Beläggningsgrad",null,0,"andel"]
[null,null,null,null,null,null,null,null,null,null,null,null,null,null,null,null,null,null," Olyckskostnad",null,0,"kr/fkm"]
[null,null,null,null,null,null,null,null,null,null,null,null,null,null,null,null,null,null," TätortsFaktor",null,0]
[null,null,null,null,null,null,null,null,null,null,null,null,null,null,null,null,null,null," Fast NOx",null,0,"g/fkm"]
[null,null,null,null,null,null,null,null,null,null,null,null,null,null,null,null,null,null," Fast Part",null,0,"g/fkm"]
[null,null,null,null,null,null,null,null,null,null,null,null,null,null,null,null,null,null," Fast SlitagePart",null,0,"g/fkm"]
[null,null,null,null,null,null,null,null,null,null,null,null,null,null,null,null,null,null," Fast CO2",null,0,"g/fkm"]
[null,null,null,null,null,null,null,null,null,null,null,null,null,null,null,null,null,null," Marg NOx",null,0,"g/pkm"]
[null,null,null,null,null,null,null,null,null,null,null,null,null,null,null,null,null,null," Marg Part",null,0,"g/pkm"]
[null,null,null,null,null,null,null,null,null,null,null,null,null,null,null,null,null,null," Marg SlitagePart",null,0,"g/pkm"]
[null,null,null,null,null,null,null,null,null,null,null,null,null,null,null,null,null,null," Marg CO2",null,0,"g/pkm"]
[null,null,null,null,null,null,null,null,null,null,null,null,null,null,null,null,null,null," Kostnadsförändring trafikstartår-prognosår 1",null,0,"procent"]
[null,null,null,null,null,null,null,null,null,null,null,null,null,null,null,null,null,null,"FORDONSKOSTNADER - ny5"]
[null,null,null,null,null,null,null,null,null,null,null,null,null,null,null,null,null,null," Vehicletype",null,0]
[null,null,null,null,null,null,null,null,null,null,null,null,null,null,null,null,null,null," Mode"]
[null,null,null,null,null,null,null,null,null,null,null,null,null,null,null,null,null,null," Fast sträckkostnad",null,0,"kr/km"]
[null,null,null,null,null,null,null,null,null,null,null,null,null,null,null,null,null,null," Fast tidskostnad",null,0,"kr/minut"]
[null,null,null,null,null,null,null,null,null,null,null,null,null,null,null,null,null,null," Fast slitagekostnad",null,0,"kr/km"]
[null,null,null,null,null,null,null,null,null,null,null,null,null,null,null,null,null,null," Marginell sträckkostnad",null,0,"kr/personkm"]
[null,null,null,null,null,null,null,null,null,null,null,null,null,null,null,null,null,null," Marginell tidskostnad",null,0,"kr/personminut"]
[null,null,null,null,null,null,null,null,null,null,null,null,null,null,null,null,null,null," Marginell slitagekostnad",null,0,"kr/personkm"]
[null,null,null,null,null,null,null,null,null,null,null,null,null,null,null,null,null,null," Fast banavgift",null,0,"kr/km"]
[null,null,null,null,null,null,null,null,null,null,null,null,null,null,null,null,null,null," Marginell banavgift",null,0,"kr/km"]
[null,null,null,null,null,null,null,null,null,null,null,null,null,null,null,null,null,null," Antal platser",null,0,"styck"]
[null,null,null,null,null,null,null,null,null,null,null,null,null,null,null,null,null,null," Beläggningsgrad",null,0,"andel"]
[null,null,null,null,null,null,null,null,null,null,null,null,null,null,null,null,null,null," Olyckskostnad",null,0,"kr/fkm"]
[null,null,null,null,null,null,null,null,null,null,null,null,null,null,null,null,null,null," TätortsFaktor",null,0]
[null,null,null,null,null,null,null,null,null,null,null,null,null,null,null,null,null,null," Fast NOx",null,0,"g/fkm"]
[null,null,null,null,null,null,null,null,null,null,null,null,null,null,null,null,null,null," Fast Part",null,0,"g/fkm"]
[null,null,null,null,null,null,null,null,null,null,null,null,null,null,null,null,null,null," Fast SlitagePart",null,0,"g/fkm"]
[null,null,null,null,null,null,null,null,null,null,null,null,null,null,null,null,null,null," Fast CO2",null,0,"g/fkm"]
[null,null,null,null,null,null,null,null,null,null,null,null,null,null,null,null,null,null," Marg NOx",null,0,"g/pkm"]
[null,null,null,null,null,null,null,null,null,null,null,null,null,null,null,null,null,null," Marg Part",null,0,"g/pkm"]
[null,null,null,null,null,null,null,null,null,null,null,null,null,null,null,null,null,null," Marg SlitagePart",null,0,"g/pkm"]
[null,null,null,null,null,null,null,null,null,null,null,null,null,null,null,null,null,null," Marg CO2",null,0,"g/pkm"]
[null,null,null,null,null,null,null,null,null,null,null,null,null,null,null,null,null,null," Kostnadsförändring trafikstartår-prognosår 1",null,0,"procent"]
[null,null,null,null,null,null,null,null,null,null,null,null,null,null,null,null,null,null,"FORDONSKOSTNADER - ny6"]
[null,null,null,null,null,null,null,null,null,null,null,null,null,null,null,null,null,null," Vehicletype",null,0]
[null,null,null,null,null,null,null,null,null,null,null,null,null,null,null,null,null,null," Mode"]
[null,null,null,null,null,null,null,null,null,null,null,null,null,null,null,null,null,null," Fast sträckkostnad",null,0,"kr/km"]
[null,null,null,null,null,null,null,null,null,null,null,null,null,null,null,null,null,null," Fast tidskostnad",null,0,"kr/minut"]
[null,null,null,null,null,null,null,null,null,null,null,null,null,null,null,null,null,null," Fast slitagekostnad",null,0,"kr/km"]
[null,null,null,null,null,null,null,null,null,null,null,null,null,null,null,null,null,null," Marginell sträckkostnad",null,0,"kr/personkm"]
[null,null,null,null,null,null,null,null,null,null,null,null,null,null,null,null,null,null," Marginell tidskostnad",null,0,"kr/personminut"]
[null,null,null,null,null,null,null,null,null,null,null,null,null,null,null,null,null,null," Marginell slitagekostnad",null,0,"kr/personkm"]
[null,null,null,null,null,null,null,null,null,null,null,null,null,null,null,null,null,null," Fast banavgift",null,0,"kr/km"]
[null,null,null,null,null,null,null,null,null,null,null,null,null,null,null,null,null,null," Marginell banavgift",null,0,"kr/km"]
[null,null,null,null,null,null,null,null,null,null,null,null,null,null,null,null,null,null," Antal platser",null,0,"styck"]
[null,null,null,null,null,null,null,null,null,null,null,null,null,null,null,null,null,null," Beläggningsgrad",null,0,"andel"]
[null,null,null,null,null,null,null,null,null,null,null,null,null,null,null,null,null,null," Olyckskostnad",null,0,"kr/fkm"]
[null,null,null,null,null,null,null,null,null,null,null,null,null,null,null,null,null,null," TätortsFaktor",null,0]
[null,null,null,null,null,null,null,null,null,null,null,null,null,null,null,null,null,null," Fast NOx",null,0,"g/fkm"]
[null,null,null,null,null,null,null,null,null,null,null,null,null,null,null,null,null,null," Fast Part",null,0,"g/fkm"]
[null,null,null,null,null,null,null,null,null,null,null,null,null,null,null,null,null,null," Fast SlitagePart",null,0,"g/fkm"]
[null,null,null,null,null,null,null,null,null,null,null,null,null,null,null,null,null,null," Fast CO2",null,0,"g/fkm"]
[null,null,null,null,null,null,null,null,null,null,null,null,null,null,null,null,null,null," Marg NOx",null,0,"g/pkm"]
[null,null,null,null,null,null,null,null,null,null,null,null,null,null,null,null,null,null," Marg Part",null,0,"g/pkm"]
[null,null,null,null,null,null,null,null,null,null,null,null,null,null,null,null,null,null," Marg SlitagePart",null,0,"g/pkm"]
[null,null,null,null,null,null,null,null,null,null,null,null,null,null,null,null,null,null," Marg CO2",null,0,"g/pkm"]
[null,null,null,null,null,null,null,null,null,null,null,null,null,null,null,null,null,null," Kostnadsförändring trafikstartår-prognosår 1",null,0,"procent"]
[null,null,null,null,null,null,null,null,null,null,null,null,null,null,null,null,null,null,"FORDONSKOSTNADER - ny7"]
[null,null,null,null,null,null,null,null,null,null,null,null,null,null,null,null,null,null," Vehicletype",null,0]
[null,null,null,null,null,null,null,null,null,null,null,null,null,null,null,null,null,null," Mode"]
[null,null,null,null,null,null,null,null,null,null,null,null,null,null,null,null,null,null," Fast sträckkostnad",null,0,"kr/km"]
[null,null,null,null,null,null,null,null,null,null,null,null,null,null,null,null,null,null," Fast tidskostnad",null,0,"kr/minut"]
[null,null,null,null,null,null,null,null,null,null,null,null,null,null,null,null,null,null," Fast slitagekostnad",null,0,"kr/km"]
[null,null,null,null,null,null,null,null,null,null,null,null,null,null,null,null,null,null," Marginell sträckkostnad",null,0,"kr/personkm"]
[null,null,null,null,null,null,null,null,null,null,null,null,null,null,null,null,null,null," Marginell tidskostnad",null,0,"kr/personminut"]
[null,null,null,null,null,null,null,null,null,null,null,null,null,null,null,null,null,null," Marginell slitagekostnad",null,0,"kr/personkm"]
[null,null,null,null,null,null,null,null,null,null,null,null,null,null,null,null,null,null," Fast banavgift",null,0,"kr/km"]
[null,null,null,null,null,null,null,null,null,null,null,null,null,null,null,null,null,null," Marginell banavgift",null,0,"kr/km"]
[null,null,null,null,null,null,null,null,null,null,null,null,null,null,null,null,null,null," Antal platser",null,0,"styck"]
[null,null,null,null,null,null,null,null,null,null,null,null,null,null,null,null,null,null," Beläggningsgrad",null,0,"andel"]
[null,null,null,null,null,null,null,null,null,null,null,null,null,null,null,null,null,null," Olyckskostnad",null,0,"kr/fkm"]
[null,null,null,null,null,null,null,null,null,null,null,null,null,null,null,null,null,null," TätortsFaktor",null,0]
[null,null,null,null,null,null,null,null,null,null,null,null,null,null,null,null,null,null," Fast NOx",null,0,"g/fkm"]
[null,null,null,null,null,null,null,null,null,null,null,null,null,null,null,null,null,null," Fast Part",null,0,"g/fkm"]
[null,null,null,null,null,null,null,null,null,null,null,null,null,null,null,null,null,null," Fast SlitagePart",null,0,"g/fkm"]
[null,null,null,null,null,null,null,null,null,null,null,null,null,null,null,null,null,null," Fast CO2",null,0,"g/fkm"]
[null,null,null,null,null,null,null,null,null,null,null,null,null,null,null,null,null,null," Marg NOx",null,0,"g/pkm"]
[null,null,null,null,null,null,null,null,null,null,null,null,null,null,null,null,null,null," Marg Part",null,0,"g/pkm"]
[null,null,null,null,null,null,null,null,null,null,null,null,null,null,null,null,null,null," Marg SlitagePart",null,0,"g/pkm"]
[null,null,null,null,null,null,null,null,null,null,null,null,null,null,null,null,null,null," Marg CO2",null,0,"g/pkm"]
[null,null,null,null,null,null,null,null,null,null,null,null,null,null,null,null,null,null," Kostnadsförändring trafikstartår-prognosår 1",null,0,"procent"]
[null,null,null,null,null,null,null,null,null,null,null,null,null,null,null,null,null,null,"FORDONSKOSTNADER - ny8"]
[null,null,null,null,null,null,null,null,null,null,null,null,null,null,null,null,null,null," Vehicletype",null,0]
[null,null,null,null,null,null,null,null,null,null,null,null,null,null,null,null,null,null," Mode"]
[null,null,null,null,null,null,null,null,null,null,null,null,null,null,null,null,null,null," Fast sträckkostnad",null,0,"kr/km"]
[null,null,null,null,null,null,null,null,null,null,null,null,null,null,null,null,null,null," Fast tidskostnad",null,0,"kr/minut"]
[null,null,null,null,null,null,null,null,null,null,null,null,null,null,null,null,null,null," Fast slitagekostnad",null,0,"kr/km"]
[null,null,null,null,null,null,null,null,null,null,null,null,null,null,null,null,null,null," Marginell sträckkostnad",null,0,"kr/personkm"]
[null,null,null,null,null,null,null,null,null,null,null,null,null,null,null,null,null,null," Marginell tidskostnad",null,0,"kr/personminut"]
[null,null,null,null,null,null,null,null,null,null,null,null,null,null,null,null,null,null," Marginell slitagekostnad",null,0,"kr/personkm"]
[null,null,null,null,null,null,null,null,null,null,null,null,null,null,null,null,null,null," Fast banavgift",null,0,"kr/km"]
[null,null,null,null,null,null,null,null,null,null,null,null,null,null,null,null,null,null," Marginell banavgift",null,0,"kr/km"]
[null,null,null,null,null,null,null,null,null,null,null,null,null,null,null,null,null,null," Antal platser",null,0,"styck"]
[null,null,null,null,null,null,null,null,null,null,null,null,null,null,null,null,null,null," Beläggningsgrad",null,0,"andel"]
[null,null,null,null,null,null,null,null,null,null,null,null,null,null,null,null,null,null," Olyckskostnad",null,0,"kr/fkm"]
[null,null,null,null,null,null,null,null,null,null,null,null,null,null,null,null,null,null," TätortsFaktor",null,0]
[null,null,null,null,null,null,null,null,null,null,null,null,null,null,null,null,null,null," Fast NOx",null,0,"g/fkm"]
[null,null,null,null,null,null,null,null,null,null,null,null,null,null,null,null,null,null," Fast Part",null,0,"g/fkm"]
[null,null,null,null,null,null,null,null,null,null,null,null,null,null,null,null,null,null," Fast SlitagePart",null,0,"g/fkm"]
[null,null,null,null,null,null,null,null,null,null,null,null,null,null,null,null,null,null," Fast CO2",null,0,"g/fkm"]
[null,null,null,null,null,null,null,null,null,null,null,null,null,null,null,null,null,null," Marg NOx",null,0,"g/pkm"]
[null,null,null,null,null,null,null,null,null,null,null,null,null,null,null,null,null,null," Marg Part",null,0,"g/pkm"]
[null,null,null,null,null,null,null,null,null,null,null,null,null,null,null,null,null,null," Marg SlitagePart",null,0,"g/pkm"]
[null,null,null,null,null,null,null,null,null,null,null,null,null,null,null,null,null,null," Marg CO2",null,0,"g/pkm"]
[null,null,null,null,null,null,null,null,null,null,null,null,null,null,null,null,null,null," Kostnadsförändring trafikstartår-prognosår 1",null,0,"procent"]
[null,null,null,null,null,null,null,null,null,null,null,null,null,null,null,null,null,null,"FORDONSKOSTNADER - ny9"]
[null,null,null,null,null,null,null,null,null,null,null,null,null,null,null,null,null,null," Vehicletype",null,0]
[null,null,null,null,null,null,null,null,null,null,null,null,null,null,null,null,null,null," Mode"]
[null,null,null,null,null,null,null,null,null,null,null,null,null,null,null,null,null,null," Fast sträckkostnad",null,0,"kr/km"]
[null,null,null,null,null,null,null,null,null,null,null,null,null,null,null,null,null,null," Fast tidskostnad",null,0,"kr/minut"]
[null,null,null,null,null,null,null,null,null,null,null,null,null,null,null,null,null,null," Fast slitagekostnad",null,0,"kr/km"]
[null,null,null,null,null,null,null,null,null,null,null,null,null,null,null,null,null,null," Marginell sträckkostnad",null,0,"kr/personkm"]
[null,null,null,null,null,null,null,null,null,null,null,null,null,null,null,null,null,null," Marginell tidskostnad",null,0,"kr/personminut"]
[null,null,null,null,null,null,null,null,null,null,null,null,null,null,null,null,null,null," Marginell slitagekostnad",null,0,"kr/personkm"]
[null,null,null,null,null,null,null,null,null,null,null,null,null,null,null,null,null,null," Fast banavgift",null,0,"kr/km"]
[null,null,null,null,null,null,null,null,null,null,null,null,null,null,null,null,null,null," Marginell banavgift",null,0,"kr/km"]
[null,null,null,null,null,null,null,null,null,null,null,null,null,null,null,null,null,null," Antal platser",null,0,"styck"]
[null,null,null,null,null,null,null,null,null,null,null,null,null,null,null,null,null,null," Beläggningsgrad",null,0,"andel"]
[null,null,null,null,null,null,null,null,null,null,null,null,null,null,null,null,null,null," Olyckskostnad",null,0,"kr/fkm"]
[null,null,null,null,null,null,null,null,null,null,null,null,null,null,null,null,null,null," TätortsFaktor",null,0]
[null,null,null,null,null,null,null,null,null,null,null,null,null,null,null,null,null,null," Fast NOx",null,0,"g/fkm"]
[null,null,null,null,null,null,null,null,null,null,null,null,null,null,null,null,null,null," Fast Part",null,0,"g/fkm"]
[null,null,null,null,null,null,null,null,null,null,null,null,null,null,null,null,null,null," Fast SlitagePart",null,0,"g/fkm"]
[null,null,null,null,null,null,null,null,null,null,null,null,null,null,null,null,null,null," Fast CO2",null,0,"g/fkm"]
[null,null,null,null,null,null,null,null,null,null,null,null,null,null,null,null,null,null," Marg NOx",null,0,"g/pkm"]
[null,null,null,null,null,null,null,null,null,null,null,null,null,null,null,null,null,null," Marg Part",null,0,"g/pkm"]
[null,null,null,null,null,null,null,null,null,null,null,null,null,null,null,null,null,null," Marg SlitagePart",null,0,"g/pkm"]
[null,null,null,null,null,null,null,null,null,null,null,null,null,null,null,null,null,null," Marg CO2",null,0,"g/pkm"]
[null,null,null,null,null,null,null,null,null,null,null,null,null,null,null,null,null,null," Kostnadsförändring trafikstartår-prognosår 1",null,0,"procent"]
[null,null,null,null,null,null,null,null,null,null,null,null,null,null,null,null,null,null,"FORDONSKOSTNADER - ny10"]
[null,null,null,null,null,null,null,null,null,null,null,null,null,null,null,null,null,null," Vehicletype",null,0]
[null,null,null,null,null,null,null,null,null,null,null,null,null,null,null,null,null,null," Mode"]
[null,null,null,null,null,null,null,null,null,null,null,null,null,null,null,null,null,null," Fast sträckkostnad",null,0,"kr/km"]
[null,null,null,null,null,null,null,null,null,null,null,null,null,null,null,null,null,null," Fast tidskostnad",null,0,"kr/minut"]
[null,null,null,null,null,null,null,null,null,null,null,null,null,null,null,null,null,null," Fast slitagekostnad",null,0,"kr/km"]
[null,null,null,null,null,null,null,null,null,null,null,null,null,null,null,null,null,null," Marginell sträckkostnad",null,0,"kr/personkm"]
[null,null,null,null,null,null,null,null,null,null,null,null,null,null,null,null,null,null," Marginell tidskostnad",null,0,"kr/personminut"]
[null,null,null,null,null,null,null,null,null,null,null,null,null,null,null,null,null,null," Marginell slitagekostnad",null,0,"kr/personkm"]
[null,null,null,null,null,null,null,null,null,null,null,null,null,null,null,null,null,null," Fast banavgift",null,0,"kr/km"]
[null,null,null,null,null,null,null,null,null,null,null,null,null,null,null,null,null,null," Marginell banavgift",null,0,"kr/km"]
[null,null,null,null,null,null,null,null,null,null,null,null,null,null,null,null,null,null," Antal platser",null,0,"styck"]
[null,null,null,null,null,null,null,null,null,null,null,null,null,null,null,null,null,null," Beläggningsgrad",null,0,"andel"]
[null,null,null,null,null,null,null,null,null,null,null,null,null,null,null,null,null,null," Olyckskostnad",null,0,"kr/fkm"]
[null,null,null,null,null,null,null,null,null,null,null,null,null,null,null,null,null,null," TätortsFaktor",null,0]
[null,null,null,null,null,null,null,null,null,null,null,null,null,null,null,null,null,null," Fast NOx",null,0,"g/fkm"]
[null,null,null,null,null,null,null,null,null,null,null,null,null,null,null,null,null,null," Fast Part",null,0,"g/fkm"]
[null,null,null,null,null,null,null,null,null,null,null,null,null,null,null,null,null,null," Fast SlitagePart",null,0,"g/fkm"]
[null,null,null,null,null,null,null,null,null,null,null,null,null,null,null,null,null,null," Fast CO2",null,0,"g/fkm"]
[null,null,null,null,null,null,null,null,null,null,null,null,null,null,null,null,null,null," Marg NOx",null,0,"g/pkm"]
[null,null,null,null,null,null,null,null,null,null,null,null,null,null,null,null,null,null," Marg Part",null,0,"g/pkm"]
[null,null,null,null,null,null,null,null,null,null,null,null,null,null,null,null,null,null," Marg SlitagePart",null,0,"g/pkm"]
[null,null,null,null,null,null,null,null,null,null,null,null,null,null,null,null,null,null," Marg CO2",null,0,"g/pkm"]
[null,null,null,null,null,null,null,null,null,null,null,null,null,null,null,null,null,null," Kostnadsförändring trafikstartår-prognosår 1",null,0,"procent"]
[null,null,null,null,null,null,null,null,null,null,null,null,null,null,null,null,null,null,"FORDONSKOSTNADER - ny11"]
[null,null,null,null,null,null,null,null,null,null,null,null,null,null,null,null,null,null," Vehicletype",null,0]
[null,null,null,null,null,null,null,null,null,null,null,null,null,null,null,null,null,null," Mode"]
[null,null,null,null,null,null,null,null,null,null,null,null,null,null,null,null,null,null," Fast sträckkostnad",null,0,"kr/km"]
[null,null,null,null,null,null,null,null,null,null,null,null,null,null,null,null,null,null," Fast tidskostnad",null,0,"kr/minut"]
[null,null,null,null,null,null,null,null,null,null,null,null,null,null,null,null,null,null," Fast slitagekostnad",null,0,"kr/km"]
[null,null,null,null,null,null,null,null,null,null,null,null,null,null,null,null,null,null," Marginell sträckkostnad",null,0,"kr/personkm"]
[null,null,null,null,null,null,null,null,null,null,null,null,null,null,null,null,null,null," Marginell tidskostnad",null,0,"kr/personminut"]
[null,null,null,null,null,null,null,null,null,null,null,null,null,null,null,null,null,null," Marginell slitagekostnad",null,0,"kr/personkm"]
[null,null,null,null,null,null,null,null,null,null,null,null,null,null,null,null,null,null," Fast banavgift",null,0,"kr/km"]
[null,null,null,null,null,null,null,null,null,null,null,null,null,null,null,null,null,null," Marginell banavgift",null,0,"kr/km"]
[null,null,null,null,null,null,null,null,null,null,null,null,null,null,null,null,null,null," Antal platser",null,0,"styck"]
[null,null,null,null,null,null,null,null,null,null,null,null,null,null,null,null,null,null," Beläggningsgrad",null,0,"andel"]
[null,null,null,null,null,null,null,null,null,null,null,null,null,null,null,null,null,null," Olyckskostnad",null,0,"kr/fkm"]
[null,null,null,null,null,null,null,null,null,null,null,null,null,null,null,null,null,null," TätortsFaktor",null,0]
[null,null,null,null,null,null,null,null,null,null,null,null,null,null,null,null,null,null," Fast NOx",null,0,"g/fkm"]
[null,null,null,null,null,null,null,null,null,null,null,null,null,null,null,null,null,null," Fast Part",null,0,"g/fkm"]
[null,null,null,null,null,null,null,null,null,null,null,null,null,null,null,null,null,null," Fast SlitagePart",null,0,"g/fkm"]
[null,null,null,null,null,null,null,null,null,null,null,null,null,null,null,null,null,null," Fast CO2",null,0,"g/fkm"]
[null,null,null,null,null,null,null,null,null,null,null,null,null,null,null,null,null,null," Marg NOx",null,0,"g/pkm"]
[null,null,null,null,null,null,null,null,null,null,null,null,null,null,null,null,null,null," Marg Part",null,0,"g/pkm"]
[null,null,null,null,null,null,null,null,null,null,null,null,null,null,null,null,null,null," Marg SlitagePart",null,0,"g/pkm"]
[null,null,null,null,null,null,null,null,null,null,null,null,null,null,null,null,null,null," Marg CO2",null,0,"g/pkm"]
[null,null,null,null,null,null,null,null,null,null,null,null,null,null,null,null,null,null," Kostnadsförändring trafikstartår-prognosår 1",null,0,"procent"]
[null,null,null,null,null,null,null,null,null,null,null,null,null,null,null,null,null,null,"FORDONSKOSTNADER - ny12"]
[null,null,null,null,null,null,null,null,null,null,null,null,null,null,null,null,null,null," Vehicletype",null,0]
[null,null,null,null,null,null,null,null,null,null,null,null,null,null,null,null,null,null," Mode"]
[null,null,null,null,null,null,null,null,null,null,null,null,null,null,null,null,null,null," Fast sträckkostnad",null,0,"kr/km"]
[null,null,null,null,null,null,null,null,null,null,null,null,null,null,null,null,null,null," Fast tidskostnad",null,0,"kr/minut"]
[null,null,null,null,null,null,null,null,null,null,null,null,null,null,null,null,null,null," Fast slitagekostnad",null,0,"kr/km"]
[null,null,null,null,null,null,null,null,null,null,null,null,null,null,null,null,null,null," Marginell sträckkostnad",null,0,"kr/personkm"]
[null,null,null,null,null,null,null,null,null,null,null,null,null,null,null,null,null,null," Marginell tidskostnad",null,0,"kr/personminut"]
[null,null,null,null,null,null,null,null,null,null,null,null,null,null,null,null,null,null," Marginell slitagekostnad",null,0,"kr/personkm"]
[null,null,null,null,null,null,null,null,null,null,null,null,null,null,null,null,null,null," Fast banavgift",null,0,"kr/km"]
[null,null,null,null,null,null,null,null,null,null,null,null,null,null,null,null,null,null," Marginell banavgift",null,0,"kr/km"]
[null,null,null,null,null,null,null,null,null,null,null,null,null,null,null,null,null,null," Antal platser",null,0,"styck"]
[null,null,null,null,null,null,null,null,null,null,null,null,null,null,null,null,null,null," Beläggningsgrad",null,0,"andel"]
[null,null,null,null,null,null,null,null,null,null,null,null,null,null,null,null,null,null," Olyckskostnad",null,0,"kr/fkm"]
[null,null,null,null,null,null,null,null,null,null,null,null,null,null,null,null,null,null," TätortsFaktor",null,0]
[null,null,null,null,null,null,null,null,null,null,null,null,null,null,null,null,null,null," Fast NOx",null,0,"g/fkm"]
[null,null,null,null,null,null,null,null,null,null,null,null,null,null,null,null,null,null," Fast Part",null,0,"g/fkm"]
[null,null,null,null,null,null,null,null,null,null,null,null,null,null,null,null,null,null," Fast SlitagePart",null,0,"g/fkm"]
[null,null,null,null,null,null,null,null,null,null,null,null,null,null,null,null,null,null," Fast CO2",null,0,"g/fkm"]
[null,null,null,null,null,null,null,null,null,null,null,null,null,null,null,null,null,null," Marg NOx",null,0,"g/pkm"]
[null,null,null,null,null,null,null,null,null,null,null,null,null,null,null,null,null,null," Marg Part",null,0,"g/pkm"]
[null,null,null,null,null,null,null,null,null,null,null,null,null,null,null,null,null,null," Marg SlitagePart",null,0,"g/pkm"]
[null,null,null,null,null,null,null,null,null,null,null,null,null,null,null,null,null,null," Marg CO2",null,0,"g/pkm"]
[null,null,null,null,null,null,null,null,null,null,null,null,null,null,null,null,null,null," Kostnadsförändring trafikstartår-prognosår 1",null,0,"procent"]
[null,null,null,null,null,null,null,null,null,null,null,null,null,null,null,null,null,null,"ÖVRIGT"]
[null,null,null,null,null,null,null,null,null,null,null,null,null,null,null,null,null,null," Kalkylränta",null,3.5,"procent"]
[null,null,null,null,null,null,null,null,null,null,null,null,null,null,null,null,null,null," Byggstartår",null,2017,"åååå"]
[null,null,null,null,null,null,null,null,null,null,null,null,null,null,null,null,null,null," Prognosår",null,2040,"åååå"]
[null,null,null,null,null,null,null,null,null,null,null,null,null,null,null,null,null,null," Diskonteringsår",null,2025,"åååå"]
[null,null,null,null,null,null,null,null,null,null,null,null,null,null,null,null,null,null," Omkostnader nationellt",null,0.1,"kr/personkm"]
[null,null,null,null,null,null,null,null,null,null,null,null,null,null,null,null,null,null," Omkostnader regionalt",null,0.05,"kr/personkm"]
[null,null,null,null,null,null,null,null,null,null,null,null,null,null,null,null,null,null," Trafikstartår",null,2025,"åååå"]
[null,null,null,null,null,null,null,null,null,null,null,null,null,null,null,null,null,null," Värdeuppräkningsår",null,2017,"åååå"]
[null,null,null,null,null,null,null,null,null,null,null,null,null,null,null,null,null,null," Värdeökning",null,1.5,"procent"]
[null,null,null,null,null,null,null,null,null,null,null,null,null,null,null,null,null,null,"*Trafiktillväxt före brytår 1 bil",0.58999997377395597,null,"procent"]
[null,null,null,null,null,null,null,null,null,null,null,null,null,null,null,null,null,null,"*Trafiktillväxt före brytår 1 koll",1.87000000476837,null,"procent"]
[null,null,null,null,null,null,null,null,null,null,null,null,null,null,null,null,null,null," Brytår1",null,2040,"åååå"]
[null,null,null,null,null,null,null,null,null,null,null,null,null,null,null,null,null,null,"*Trafiktillväxt mellan brytåren bil",0.31999999284744302,null,"procent"]
[null,null,null,null,null,null,null,null,null,null,null,null,null,null,null,null,null,null,"*Trafiktillväxt mellan brytåren koll",0.980000019073486,null,"procent"]
[null,null,null,null,null,null,null,null,null,null,null,null,null,null,null,null,null,null," Brytår2",null,2065,"åååå"]
[null,null,null,null,null,null,null,null,null,null,null,null,null,null,null,null,null,null," Trafiktillväxt efter brytår 2 bil",null,0,"procent"]
[null,null,null,null,null,null,null,null,null,null,null,null,null,null,null,null,null,null," Trafiktillväxt efter brytår 2 koll",null,0,"procent"]
[null,null,null,null,null,null,null,null,null,null,null,null,null,null,null,null,null,null,"*Kalkylperiod",60,null,"år"]
[null,null,null,null,null,null,null,null,null,null,null,null,null,null,null,null,null,null," Kostnad dödad totalt",null,50249000,"kr"]
[null,null,null,null,null,null,null,null,null,null,null,null,null,null,null,null,null,null," Kostnad MAS totalt",null,17795900,"kr"]
[null,null,null,null,null,null,null,null,null,null,null,null,null,null,null,null,null,null," Kostnad AS exkl. MAS totalt",null,11886700,"kr"]
[null,null,null,null,null,null,null,null,null,null,null,null,null,null,null,null,null,null," Kostnad ej allvarligt skadad totalt",null,4604000,"kr"]
[null,null,null,null,null,null,null,null,null,null,null,null,null,null,null,null,null,null," Kostnad egendomsskada totalt",null,15000,"kr"]
[null,null,null,null,null,null,null,null,null,null,null,null,null,null,null,null,null,null," Riskvärde dödad",null,44024000,"kr"]
[null,null,null,null,null,null,null,null,null,null,null,null,null,null,null,null,null,null," Riskvärde MAS",null,13261000,"kr"]
[null,null,null,null,null,null,null,null,null,null,null,null,null,null,null,null,null,null," Riskvärde AS exkl. MAS",null,11522000,"kr"]
[null,null,null,null,null,null,null,null,null,null,null,null,null,null,null,null,null,null," Riskvärde ej allvarligt skadade",null,4565000,"kr"]
[null,null,null,null,null,null,null,null,null,null,null,null,null,null,null,null,null,null," Riskvärde egendomsskada",null,0,"kr"]
[null,null,null,null,null,null,null,null,null,null,null,null,null,null,null,null,null,null,"*Emme/2 mode för tåg","ijkst"]
[null,null,null,null,null,null,null,null,null,null,null,null,null,null,null,null,null,null,"*Emme/2 mode för buss","abx"]
[null,null,null,null,null,null,null,null,null,null,null,null,null,null,null,null,null,null,"*Emme/2 mode för flyg","f"]
[null,null,null,null,null,null,null,null,null,null,null,null,null,null,null,null,null,null," Nationell dygnsfaktor",null,1]
[null,null,null,null,null,null,null,null,null,null,null,null,null,null,null,null,null,null," Regional dygnsfaktor",null,1]
[null,null,null,null,null,null,null,null,null,null,null,null,null,null,null,null,null,null," Höghöjdsfaktor flyg CO2",null,0]
[null,null,null,null,null,null,null,null,null,null,null,null,null,null,null,null,null,null," Skattefaktor",null,1.3]
[null,null,null,null,null,null,null,null,null,null,null,null,null,null,null,null,null,null," Generellt momspåslag",null,1.21]
[null,null,null,null,null,null,null,null,null,null,null,null,null,null,null,null,null,null," Andel invest som skattejusteras",null,1]
[null,null,null,null,null,null,null,null,null,null,null,null,null,null,null,null,null,null," Moms på biljetter",null,6,"procent"]
[null,null,null,null,null,null,null,null,null,null,null,null,null,null,null,null,null,null,"INVESTERINGSKOSTNADER"]
[null,null,null,null,null,null,null,null,null,null,null,null,null,null,null,null,null,null,"*År 1 (byggstart)",517.9,null,"milj kr"]
[null,null,null,null,null,null,null,null,null,null,null,null,null,null,null,null,null,null,"*År 2",517.9,null,"milj kr"]
[null,null,null,null,null,null,null,null,null,null,null,null,null,null,null,null,null,null,"*År 3",517.9,null,"milj kr"]
[null,null,null,null,null,null,null,null,null,null,null,null,null,null,null,null,null,null,"*År 4",517.9,null,"milj kr"]
[null,null,null,null,null,null,null,null,null,null,null,null,null,null,null,null,null,null," År 5",null,0,"milj kr"]
[null,null,null,null,null,null,null,null,null,null,null,null,null,null,null,null,null,null," År 6",null,0,"milj kr"]
[null,null,null,null,null,null,null,null,null,null,null,null,null,null,null,null,null,null," År 7",null,0,"milj kr"]
[null,null,null,null,null,null,null,null,null,null,null,null,null,null,null,null,null,null," År 8",null,0,"milj kr"]
[null,null,null,null,null,null,null,null,null,null,null,null,null,null,null,null,null,null," År 9",null,0,"milj kr"]
[null,null,null,null,null,null,null,null,null,null,null,null,null,null,null,null,null,null," År 10",null,0,"milj kr"]
[null,null,null,null,null,null,null,null,null,null,null,null,null,null,null,null,null,null,"TEKNISK UTVECKLING"]
[null,null,null,null,null,null,null,null,null,null,null,null,null,null,null,null,null,null," Tekn utv personbil år 2008",null,100,"index"]
[null,null,null,null,null,null,null,null,null,null,null,null,null,null,null,null,null,null," Tekn utv personbil år 2015",null,85,"index"]
[null,null,null,null,null,null,null,null,null,null,null,null,null,null,null,null,null,null," Tekn utv personbil år 2030",null,52,"index"]
[null,null,null,null,null,null,null,null,null,null,null,null,null,null,null,null,null,null," Tekn utv personbil år 2040",null,49,"index"]
[null,null,null,null,null,null,null,null,null,null,null,null,null,null,null,null,null,null," Tekn utv personbil år 2060",null,46,"index"]
[null,null,null,null,null,null,null,null,null,null,null,null,null,null,null,null,null,null," Tekn utv lastbil år 2008",null,100,"index"]
[null,null,null,null,null,null,null,null,null,null,null,null,null,null,null,null,null,null," Tekn utv lastbil år 2040",null,88,"index"]
[null,null,null,null,null,null,null,null,null,null,null,null,null,null,null,null,null,null," Tekn utv lastbil år 2060",null,83,"index"]

{"sheet":"2. Samhällsekonomisk analys","index":1,"n_rows":275,"n_cols":74,"rows_kept":275,"cut":false,"hidden":false,"merged":[[69,37,69,45],[265,0,265,63],[28,68,31,68],[58,0,58,63],[59,0,59,63],[33,0,33,34],[34,0,34,34],[35,0,35,34],[36,0,36,34],[24,0,24,34],[31,0,31,34],[32,0,32,34],[25,0,25,34],[26,0,26,34],[27,0,27,34],[28,0,28,34],[29,0,29,34],[30,0,30,34],[56,0,56,63],[57,0,57,63],[54,59,54,63],[46,59,46,63],[55,59,55,63],[48,59,48,63],[49,44,49,52],[252,0,252,63],[250,6,250,17],[250,18,250,21],[250,26,250,30],[250,22,250,25],[251,52,251,63],[251,37,251,45],[250,37,250,63],[238,6,238,17],[239,6,239,17],[240,6,240,17],[113,37,113,45],[114,37,114,45],[232,6,232,17],[127,6,127,17],[220,26,220,30],[211,6,211,17],[212,6,212,17],[213,6,213,17],[214,6,214,17],[215,6,215,17],[218,6,218,17],[219,6,219,17],[124,6,124,17],[125,6,125,17],[126,6,126,17],[119,18,119,21],[115,37,115,45],[116,37,116,45],[117,37,117,45],[228,26,228,30],[227,26,227,30],[183,37,183,45],[184,37,184,45],[129,37,129,45],[205,26,205,30],[206,26,206,30],[207,26,207,30],[208,26,208,30],[191,37,191,45],[195,26,195,30],[196,26,196,30],[197,26,197,30],[198,26,198,30],[201,26,201,30],[202,26,202,30],[198,37,198,45],[199,37,199,45],[200,37,200,45],[201,37,201,45],[202,37,202,45],[193,37,193,45],[190,26,190,30],[195,37,195,45],[209,37,209,45],[205,37,205,45],[206,37,206,45],[207,37,207,45],[208,37,208,45],[200,26,200,30],[174,37,174,45],[175,37,175,45],[132,52,148,63],[172,52,187,63],[188,52,202,63],[203,52,219,63],[177,26,177,30],[178,26,178,30],[179,26,179,30],[161,37,161,45],[162,37,162,45],[163,37,163,45],[164,37,164,45],[165,37,165,45],[166,37,166,45],[188,26,188,30],[189,26,189,30],[182,26,182,30],[183,26,183,30],[184,26,184,30],[185,26,185,30],[188,37,188,45],[189,37,189,45],[203,37,203,45],[204,37,204,45],[179,37,179,45],[180,37,180,45],[209,26,209,30],[210,26,210,30],[192,37,192,45],[211,26,211,30],[190,37,190,45],[176,37,176,45],[69,26,69,30],[160,37,160,45],[241,22,241,25],[245,22,245,25],[218,26,218,30],[239,37,239,45],[240,37,240,45],[241,37,241,45],[242,37,242,45],[233,26,233,30],[232,26,232,30],[231,26,231,30],[230,26,230,30],[229,26,229,30],[243,37,243,45],[244,37,244,45],[202,22,202,25],[187,26,187,30],[240,22,240,25],[245,26,245,30],[223,26,223,30],[222,26,222,30],[221,26,221,30],[217,26,217,30],[199,26,199,30],[194,37,194,45],[134,37,134,45],[177,37,177,45],[178,37,178,45],[167,37,167,45],[173,37,173,45],[237,26,237,30],[238,26,238,30],[239,26,239,30],[240,26,240,30],[241,26,241,30],[242,26,242,30],[243,26,243,30],[244,26,244,30],[89,37,89,45],[67,52,89,63],[89,26,89,30],[113,6,113,17],[114,6,114,17],[115,6,115,17],[116,6,116,17],[117,6,117,17],[118,6,118,17],[119,6,119,17],[120,6,120,17],[121,6,121,17],[122,6,122,17],[123,6,123,17],[109,37,109,45],[108,6,108,17],[109,6,109,17],[110,6,110,17],[110,26,110,30],[181,37,181,45],[182,37,182,45],[185,37,185,45],[186,37,186,45],[187,37,187,45],[243,22,243,25],[243,18,243,21],[239,18,239,21],[242,18,242,21],[242,22,242,25],[237,18,237,21],[240,18,240,21],[247,18,247,21],[128,6,128,17],[220,52,233,63],[221,37,221,45],[222,37,222,45],[223,37,223,45],[235,52,249,63],[235,46,249,51],[168,37,168,45],[169,37,169,45],[170,37,170,45],[172,37,172,45],[234,52,234,63],[234,46,234,51],[235,31,249,35],[241,6,241,17],[242,6,242,17],[243,6,243,17],[244,6,244,17],[245,6,245,17],[245,37,245,45],[213,37,213,45],[214,37,214,45],[236,22,236,25],[235,22,235,25],[246,6,246,17],[247,6,247,17],[248,6,248,17],[249,6,249,17],[236,26,236,30],[191,26,191,30],[192,26,192,30],[193,26,193,30],[182,18,182,21],[197,18,197,21],[230,22,230,25],[228,18,228,21],[246,26,246,30],[247,26,247,30],[236,37,236,45],[248,26,248,30],[249,26,249,30],[235,6,235,17],[246,18,246,21],[241,18,241,21],[237,37,237,45],[238,37,238,45],[247,37,247,45],[248,37,248,45],[249,37,249,45],[246,37,246,45],[224,37,224,45],[225,37,225,45],[226,37,226,45],[227,37,227,45],[228,37,228,45],[229,37,229,45],[230,37,230,45],[231,37,231,45],[232,37,232,45],[215,37,215,45],[216,37,216,45],[217,37,217,45],[218,37,218,45],[219,37,219,45],[235,37,235,45],[220,37,220,45],[234,37,234,45],[234,26,234,30],[235,26,235,30],[210,37,210,45],[234,31,234,35],[219,26,219,30],[211,37,211,45],[212,37,212,45],[233,37,233,45],[226,26,226,30],[225,26,225,30],[224,26,224,30],[157,26,157,30],[158,26,158,30],[159,26,159,30],[160,26,160,30],[161,26,161,30],[162,26,162,30],[163,26,163,30],[164,26,164,30],[165,26,165,30],[166,26,166,30],[167,26,167,30],[168,26,168,30],[169,26,169,30],[170,26,170,30],[172,26,172,30],[173,26,173,30],[166,6,166,17],[167,6,167,17],[168,6,168,17],[169,6,169,17],[234,6,234,17],[179,6,179,17],[180,6,180,17],[181,6,181,17],[182,6,182,17],[183,6,183,17],[184,6,184,17],[185,6,185,17],[186,6,186,17],[187,6,187,17],[190,6,190,17],[191,6,191,17],[192,6,192,17],[193,6,193,17],[194,6,194,17],[195,6,195,17],[217,6,217,17],[203,6,203,17],[204,6,204,17],[202,6,202,17],[205,6,205,17],[206,6,206,17],[207,6,207,17],[208,6,208,17],[209,6,209,17],[210,6,210,17],[199,6,199,17],[200,6,200,17],[201,6,201,17],[228,6,228,17],[220,6,220,17],[233,6,233,17],[216,6,216,17],[196,6,196,17],[197,6,197,17],[198,6,198,17],[160,6,160,17],[161,6,161,17],[162,6,162,17],[163,6,163,17],[164,6,164,17],[165,6,165,17],[171,6,171,17],[150,22,150,25],[164,22,164,25],[165,18,165,21],[165,22,165,25],[158,18,158,21],[162,18,162,21],[160,18,160,21],[153,18,153,21],[161,22,161,25],[154,22,154,25],[158,22,158,25],[164,18,164,21],[168,22,168,25],[169,18,169,21],[161,18,161,21],[166,18,166,21],[157,18,157,21],[210,18,210,21],[171,18,171,21],[170,22,170,25],[199,18,199,21],[150,37,150,45],[151,37,151,45],[152,37,152,45],[153,37,153,45],[154,37,154,45],[155,37,155,45],[156,37,156,45],[157,37,157,45],[158,37,158,45],[159,37,159,45],[146,37,146,45],[154,18,154,21],[156,22,156,25],[128,22,128,25],[136,37,136,45],[137,37,137,45],[138,37,138,45],[139,37,139,45],[140,37,140,45],[141,37,141,45],[142,37,142,45],[144,37,144,45],[145,37,145,45],[137,18,137,21],[137,22,137,25],[136,18,136,21],[149,26,149,30],[144,22,144,25],[147,22,147,25],[133,26,133,30],[134,26,134,30],[142,18,142,21],[147,26,147,30],[148,26,148,30],[121,37,121,45],[122,37,122,45],[123,37,123,45],[132,26,132,30],[132,37,132,45],[113,26,113,30],[114,26,114,30],[135,37,135,45],[122,26,122,30],[123,26,123,30],[124,26,124,30],[143,37,143,45],[125,26,125,30],[126,26,126,30],[115,26,115,30],[125,37,125,45],[130,37,130,45],[124,37,124,45],[126,37,126,45],[127,37,127,45],[116,26,116,30],[117,26,117,30],[118,26,118,30],[119,26,119,30],[120,26,120,30],[121,26,121,30],[118,37,118,45],[119,37,119,45],[120,37,120,45],[128,37,128,45],[110,37,110,45],[112,26,112,30],[93,37,93,45],[94,37,94,45],[95,37,95,45],[96,37,96,45],[97,37,97,45],[98,37,98,45],[99,37,99,45],[100,37,100,45],[101,37,101,45],[102,37,102,45],[103,37,103,45],[104,37,104,45],[105,37,105,45],[106,37,106,45],[107,37,107,45],[108,37,108,45],[96,26,96,30],[95,26,95,30],[94,26,94,30],[93,26,93,30],[100,26,100,30],[107,26,107,30],[106,26,106,30],[105,26,105,30],[109,26,109,30],[122,22,122,25],[122,18,122,21],[117,18,117,21],[120,18,120,21],[115,22,115,25],[104,26,104,30],[103,26,103,30],[102,26,102,30],[108,26,108,30],[97,26,97,30],[101,26,101,30],[99,26,99,30],[98,26,98,30],[85,26,85,30],[86,26,86,30],[87,18,87,21],[90,26,90,30],[101,18,101,21],[99,18,99,21],[107,18,107,21],[106,22,106,25],[92,22,92,25],[109,22,109,25],[119,22,119,25],[111,22,111,25],[115,18,115,21],[100,18,100,21],[103,22,103,25],[105,18,105,21],[106,18,106,21],[99,22,99,25],[112,18,112,21],[93,6,93,17],[94,6,94,17],[95,6,95,17],[96,6,96,17],[97,6,97,17],[93,22,93,25],[96,22,96,25],[93,18,93,21],[98,6,98,17],[118,22,118,25],[121,18,121,21],[108,18,108,21],[120,22,120,25],[113,22,113,25],[107,6,107,17],[105,22,105,25],[110,22,110,25],[117,22,117,25],[101,6,101,17],[102,6,102,17],[103,6,103,17],[104,6,104,17],[105,6,105,17],[116,22,116,25],[103,18,103,21],[87,37,87,45],[88,37,88,45],[86,18,86,21],[86,22,86,25],[83,18,83,21],[87,26,87,30],[88,26,88,30],[82,37,82,45],[83,37,83,45],[68,26,68,30],[73,6,73,17],[74,6,74,17],[75,6,75,17],[76,6,76,17],[77,6,77,17],[78,6,78,17],[72,18,72,21],[74,22,74,25],[76,22,76,25],[77,18,77,21],[76,18,76,21],[70,22,70,25],[77,22,77,25],[80,6,80,17],[81,6,81,17],[82,6,82,17],[70,26,70,30],[71,26,71,30],[72,26,72,30],[88,6,88,17],[84,6,84,17],[85,6,85,17],[78,26,78,30],[79,26,79,30],[80,26,80,30],[70,37,70,45],[71,37,71,45],[72,37,72,45],[73,37,73,45],[74,37,74,45],[75,37,75,45],[76,37,76,45],[73,22,73,25],[73,18,73,21],[78,18,78,21],[80,18,80,21],[79,18,79,21],[79,22,79,25],[78,22,78,25],[70,18,70,21],[80,22,80,25],[71,18,71,21],[71,22,71,25],[74,18,74,21],[75,18,75,21],[75,22,75,25],[78,37,78,45],[79,37,79,45],[72,22,72,25],[112,3,131,5],[235,0,249,5],[249,22,249,25],[2,0,2,63],[62,0,62,63],[61,0,61,63],[63,0,63,63],[257,0,257,63],[259,0,259,63],[43,0,43,63],[149,6,149,17],[45,59,45,63],[47,59,47,63],[133,6,133,17],[134,6,134,17],[90,37,90,45],[91,37,91,45],[92,37,92,45],[112,37,112,45],[133,37,133,45],[68,37,68,45],[67,37,67,45],[80,37,80,45],[81,37,81,45],[73,26,73,30],[74,26,74,30],[75,26,75,30],[76,26,76,30],[79,6,79,17],[83,6,83,17],[5,0,5,34],[77,26,77,30],[263,0,263,49],[260,0,260,24],[260,25,260,49],[261,0,261,24],[261,25,261,49],[258,0,258,49],[262,0,262,49],[170,18,170,21],[159,18,159,21],[135,26,135,30],[136,26,136,30],[137,26,137,30],[138,26,138,30],[139,26,139,30],[125,18,125,21],[121,22,121,25],[84,18,84,21],[102,22,102,25],[95,22,95,25],[110,18,110,21],[86,6,86,17],[87,6,87,17],[90,18,90,21],[99,6,99,17],[90,6,90,17],[91,6,91,17],[92,6,92,17],[91,26,91,30],[92,26,92,30],[86,37,86,45],[67,3,89,5],[96,18,96,21],[1,0,1,46],[90,3,111,5],[67,0,131,2],[132,3,148,5],[101,22,101,25],[82,18,82,21],[89,22,89,25],[65,6,66,17],[65,18,65,25],[66,18,66,25],[65,26,66,30],[70,6,70,17],[71,6,71,17],[72,6,72,17],[65,0,66,5],[67,6,67,17],[112,22,112,25],[107,22,107,25],[100,22,100,25],[97,18,97,21],[65,37,66,45],[64,37,64,63],[64,0,64,17],[42,0,42,49],[44,59,44,63],[53,59,53,63],[50,59,50,63],[3,0,3,49],[4,0,4,49],[139,22,139,25],[84,37,84,45],[85,37,85,45],[6,0,6,34],[7,0,7,34],[8,0,8,34],[9,0,9,34],[10,0,10,34],[11,0,11,34],[50,53,50,58],[23,0,23,34],[44,53,44,58],[16,0,16,34],[19,0,19,34],[20,0,20,34],[21,0,21,34],[65,31,66,35],[44,44,44,52],[17,0,17,34],[52,53,52,58],[53,53,53,58],[54,53,54,58],[47,53,47,58],[31,35,31,53],[32,35,32,53],[33,35,33,53],[34,35,34,53],[35,35,35,53],[36,35,36,53],[37,35,37,53],[5,54,37,63],[21,35,21,53],[24,35,24,53],[48,0,48,43],[50,44,50,52],[81,22,81,25],[68,6,68,17],[68,18,68,21],[68,22,68,25],[112,6,112,17],[98,18,98,21],[98,22,98,25],[91,22,91,25],[92,18,92,21],[88,18,88,21],[88,22,88,25],[87,22,87,25],[85,22,85,25],[94,18,94,21],[114,18,114,21],[114,22,114,25],[109,18,109,21],[108,22,108,25],[85,18,85,21],[95,18,95,21],[89,18,89,21],[69,6,69,17],[69,18,69,21],[69,22,69,25],[82,22,82,25],[81,18,81,21],[106,6,106,17],[89,6,89,17],[94,22,94,25],[97,22,97,25],[104,18,104,21],[102,18,102,21],[67,18,67,21],[67,22,67,25],[238,18,238,21],[238,22,238,25],[234,18,234,21],[215,22,215,25],[203,18,203,21],[196,18,196,21],[185,18,185,21],[231,18,231,21],[186,22,186,25],[189,18,189,21],[189,22,189,25],[231,22,231,25],[217,22,217,25],[225,18,225,21],[234,0,234,5],[132,0,219,2],[217,18,217,21],[207,22,207,25],[216,18,216,21],[204,18,204,21],[147,18,147,21],[148,22,148,25],[145,18,145,21],[204,22,204,25],[233,22,233,25],[144,18,144,21],[146,18,146,21],[213,22,213,25],[218,22,218,25],[183,22,183,25],[236,18,236,21],[174,18,174,21],[178,18,178,21],[182,22,182,25],[194,22,194,25],[195,18,195,21],[195,22,195,25],[219,22,219,25],[206,22,206,25],[200,22,200,25],[193,18,193,21],[193,22,193,25],[185,22,185,25],[229,22,229,25],[233,18,233,21],[197,22,197,25],[218,18,218,21],[208,22,208,25],[209,18,209,21],[208,18,208,21],[175,22,175,25],[180,18,180,21],[180,22,180,25],[181,18,181,21],[181,22,181,25],[222,18,222,21],[219,18,219,21],[221,18,221,21],[184,22,184,25],[183,18,183,21],[201,18,201,21],[198,22,198,25],[210,22,210,25],[247,22,247,25],[172,18,172,21],[176,22,176,25],[177,18,177,21],[177,22,177,25],[163,22,163,25],[149,22,149,25],[162,22,162,25],[157,22,157,25],[155,18,155,21],[128,18,128,21],[141,18,141,21],[129,22,129,25],[166,22,166,25],[149,18,149,21],[150,18,150,21],[246,22,246,25],[187,18,187,21],[205,22,205,25],[200,18,200,21],[205,18,205,21],[207,18,207,21],[215,18,215,21],[245,18,245,21],[234,22,234,25],[227,22,227,25],[244,22,244,25],[143,18,143,21],[173,18,173,21],[244,18,244,21],[203,22,203,25],[125,22,125,25],[248,22,248,25],[220,0,233,5],[203,3,219,5],[149,3,171,5],[239,22,239,25],[237,22,237,25],[228,22,228,25],[226,18,226,21],[214,18,214,21],[214,22,214,25],[232,22,232,25],[194,26,194,30],[209,22,209,25],[201,22,201,25],[235,18,235,21],[104,22,104,25],[111,18,111,21],[159,22,159,25],[113,18,113,21],[170,6,170,17],[172,6,172,17],[173,6,173,17],[174,6,174,17],[175,6,175,17],[176,6,176,17],[177,6,177,17],[178,6,178,17],[188,6,188,17],[189,6,189,17],[156,18,156,21],[184,18,184,21],[147,6,147,17],[138,22,138,25],[136,22,136,25],[152,22,152,25],[132,6,132,17],[130,18,130,21],[130,22,130,25],[140,6,140,17],[135,18,135,21],[135,22,135,25],[138,18,138,21],[126,22,126,25],[141,6,141,17],[142,6,142,17],[143,6,143,17],[129,6,129,17],[130,6,130,17],[142,22,142,25],[140,18,140,21],[144,6,144,17],[145,6,145,17],[146,6,146,17],[146,22,146,25],[148,18,148,21],[135,6,135,17],[136,6,136,17],[137,6,137,17],[138,6,138,17],[139,6,139,17],[132,22,132,25],[140,22,140,25],[149,37,149,45],[196,37,196,45],[197,37,197,45],[139,18,139,21],[133,18,133,21],[143,22,143,25],[141,22,141,25],[145,22,145,25],[153,22,153,25],[186,18,186,21],[127,26,127,30],[128,26,128,30],[129,26,129,30],[130,26,130,30],[147,37,147,45],[148,37,148,45],[140,26,140,30],[141,26,141,30],[142,26,142,30],[143,26,143,30],[144,26,144,30],[145,26,145,30],[146,26,146,30],[163,18,163,21],[167,18,167,21],[169,22,169,25],[196,22,196,25],[174,22,174,25],[175,18,175,21],[187,22,187,25],[151,22,151,25],[129,18,129,21],[188,18,188,21],[188,22,188,25],[194,18,194,21],[81,26,81,30],[82,26,82,30],[83,26,83,30],[172,22,172,25],[151,18,151,21],[148,6,148,17],[150,6,150,17],[151,6,151,17],[152,6,152,17],[153,6,153,17],[154,6,154,17],[155,6,155,17],[156,6,156,17],[157,6,157,17],[158,6,158,17],[159,6,159,17],[152,18,152,21],[91,18,91,21],[90,22,90,25],[84,26,84,30],[83,22,83,25],[84,22,84,25],[127,22,127,25],[116,18,116,21],[123,22,123,25],[171,22,171,25],[131,22,131,25],[131,18,131,21],[123,18,123,21],[1,47,1,63],[251,0,251,25],[52,59,52,63],[51,59,51,63],[12,0,12,34],[13,0,13,34],[14,0,14,34],[15,0,15,34],[45,53,45,58],[111,26,111,30],[90,31,111,35],[111,37,111,45],[112,31,131,35],[131,6,131,17],[131,26,131,30],[251,46,251,51],[55,53,55,58],[39,0,39,63],[188,31,202,35],[40,0,40,63],[65,46,66,51],[232,18,232,21],[77,37,77,45],[251,31,251,35],[156,26,156,30],[221,6,221,17],[64,36,251,36],[111,6,111,17],[220,22,220,25],[151,26,151,30],[152,26,152,30],[134,22,134,25],[229,6,229,17],[181,26,181,30],[178,22,178,25],[179,18,179,21],[179,22,179,25],[202,18,202,21],[224,18,224,21],[211,22,211,25],[206,18,206,21],[211,18,211,21],[227,18,227,21],[224,22,224,25],[216,22,216,25],[223,22,223,25],[226,22,226,25],[171,26,171,30],[153,26,153,30],[154,26,154,30],[167,22,167,25],[173,22,173,25],[160,22,160,25],[198,18,198,21],[199,22,199,25],[175,26,175,30],[176,26,176,30],[212,26,212,30],[213,26,213,30]],"merged_total":1157,"flags":["merged_cut"]}
["Samlad effektbedömning v 1.17",null,null,null,null,null,null,null,null,null,null,null,null,null,null,null,null,null,null,null,null,null,null,null,null,null,null,null,null,null,null,null,null,null,null,null,null,null,null,null,null,null,null,null,null,null,null,null,null,null,null,null,null,null,null,null,null,null,null,null,null,null,null,null,null,"m","u",null,"Instruktioner",null,null,"Kommentar Upprättaren","Kommentar Regional granskare","Kommentar Nationell granskare"]
["Objektnummer: Objekt-id, Ärendenummer: Ärendenr\nKontaktperson: Ej skickad till granskning\nSkede: Ej angett\nStatus: Ej granskad av Trafikverket, Ej godkänd",null,null,null,null,null,null,null,null,null,null,null,null,null,null,null,null,null,null,null,null,null,null,null,null,null,null,null,null,null,null,null,null,null,null,null,null,null,null,null,null,null,null,null,null,null,null,"\n\nSamlad Effektbedömning"]
["2. Samhällsekonomisk analys"]
[]
["Tabell 2.1 Allmänna kalkylförutsättningar för samhällsekonomisk kalkyl"]
["Prognos persontrafik - huvudanalys",null,null,null,null,null,null,null,null,null,null,null,null,null,null,null,null,null,null,null,null,null,null,null,null,null,null,null,null,null,null,null,null,null,null,"Basprognoser 2023-04-01"]
["Avvikelse från prognos persontrafik",null,null,null,null,null,null,null,null,null,null,null,null,null,null,null,null,null,null,null,null,null,null,null,null,null,null,null,null,null,null,null,null,null,null,"Nej"]
["Prognos godstrafik - huvudanalys",null,null,null,null,null,null,null,null,null,null,null,null,null,null,null,null,null,null,null,null,null,null,null,null,null,null,null,null,null,null,null,null,null,null,"Basprognoser 2023-04-01"]
["Avvikelse från prognos godstrafik",null,null,null,null,null,null,null,null,null,null,null,null,null,null,null,null,null,null,null,null,null,null,null,null,null,null,null,null,null,null,null,null,null,null,"Nej"]
["ASEK-version",null,null,null,null,null,null,null,null,null,null,null,null,null,null,null,null,null,null,null,null,null,null,null,null,null,null,null,null,null,null,null,null,null,null,"ASEK 7.1"]
["Avvikelse från ASEK",null,null,null,null,null,null,null,null,null,null,null,null,null,null,null,null,null,null,null,null,null,null,null,null,null,null,null,null,null,null,null,null,null,null,"Nej"]
["Prisnivå för kalkylvärden",null,null,null,null,null,null,null,null,null,null,null,null,null,null,null,null,null,null,null,null,null,null,null,null,null,null,null,null,null,null,null,null,null,null,"2017-medel"]
["Kalkylränta %",null,null,null,null,null,null,null,null,null,null,null,null,null,null,null,null,null,null,null,null,null,null,null,null,null,null,null,null,null,null,null,null,null,null,{"$f":"'0.5. Importera data fr. verktyg'!AU11","v":3.5000000000000003E-2}]
["Prognosår 1",null,null,null,null,null,null,null,null,null,null,null,null,null,null,null,null,null,null,null,null,null,null,null,null,null,null,null,null,null,null,null,null,null,null,{"$f":"'0.5. Importera data fr. verktyg'!U1809","v":0}]
["Diskonteringsår",null,null,null,null,null,null,null,null,null,null,null,null,null,null,null,null,null,null,null,null,null,null,null,null,null,null,null,null,null,null,null,null,null,null,{"$f":"'0.5. Importera data fr. verktyg'!U1810","v":0}]
["Öppningsår",null,null,null,null,null,null,null,null,null,null,null,null,null,null,null,null,null,null,null,null,null,null,null,null,null,null,null,null,null,null,null,null,null,null,{"$f":"'0.5. Importera data fr. verktyg'!U1813","v":0}]
["Utförandetid/byggtid, antal år (projektspecifik)",null,null,null,null,null,null,null,null,null,null,null,null,null,null,null,null,null,null,null,null,null,null,null,null,null,null,null,null,null,null,null,null,null,null,"Ej angett"]
["Kalkylperiod från startår för effekter",null,null,null,null,null,null,null,null,null,null,null,null,null,null,null,null,null,null,null,null,null,null,null,null,null,null,null,null,null,null,null,null,null,null,{"$f":"IF('0.5. Importera data fr. verktyg'!T1785=0,'0.5. Importera data fr. verktyg'!U1785,'0.5. Importera data fr. verktyg'!T1785)","v":60}]
["Kalkylverktyg - samhällsekonomi",null,null,null,null,null,null,null,null,null,null,null,null,null,null,null,null,null,null,null,null,null,null,null,null,null,null,null,null,null,null,null,null,null,null,{"$f":"'0.5. Importera data fr. verktyg'!A30","v":"Samkalk 3.4.6"}]
["Datum för samhällsekonomisk kalkyl",null,null,null,null,null,null,null,null,null,null,null,null,null,null,null,null,null,null,null,null,null,null,null,null,null,null,null,null,null,null,null,null,null,null,{"$f":"RIGHT('0.5. Importera data fr. verktyg'!S782,19)","v":"2023-03-01 09:22:40"}]
["Trafiktillväxttal Väg (pb,pby, lbu, lbs) period 2017-2040, % per år",null,null,null,null,null,null,null,null,null,null,null,null,null,null,null,null,null,null,null,null,null,null,null,null,null,null,null,null,null,null,null,null,null,null,{"$f":"IF('0.5. Importera data fr. verktyg'!T1777>0,'0.5. Importera data fr. verktyg'!T1777,'0.5. Importera data fr. verktyg'!U1777)","v":0.58999997377395597}]
["Trafiktillväxttal Väg (pb,pby, lbu, lbs) period 2040-2065, % per år",null,null,null,null,null,null,null,null,null,null,null,null,null,null,null,null,null,null,null,null,null,null,null,null,null,null,null,null,null,null,null,null,null,null,{"$f":"IF('0.5. Importera data fr. verktyg'!T1780>0,'0.5. Importera data fr. verktyg'!T1780,'0.5. Importera data fr. verktyg'!U1780)","v":0.31999999284744302}]
["Trafiktillväxttal Kollektivtrafik period 2017-2040, % per år",null,null,null,null,null,null,null,null,null,null,null,null,null,null,null,null,null,null,null,null,null,null,null,null,null,null,null,null,null,null,null,null,null,null,{"$f":"IF('0.5. Importera data fr. verktyg'!T1778>0,'0.5. Importera data fr. verktyg'!T1778,'0.5. Importera data fr. verktyg'!U1778)","v":1.87000000476837}]
["Trafiktillväxttal Kollektivtrafik period 2040-2065, % per år",null,null,null,null,null,null,null,null,null,null,null,null,null,null,null,null,null,null,null,null,null,null,null,null,null,null,null,null,null,null,null,null,null,null,{"$f":"IF('0.5. Importera data fr. verktyg'!T1781>0,'0.5. Importera data fr. verktyg'!T1781,'0.5. Importera data fr. verktyg'!U1781)","v":0.980000019073486}]
["Trafiktillväxttal",null,null,null,null,null,null,null,null,null,null,null,null,null,null,null,null,null,null,null,null,null,null,null,null,null,null,null,null,null,null,null,null,null,null,"Ej angett"]
["Trafiktillväxttal",null,null,null,null,null,null,null,null,null,null,null,null,null,null,null,null,null,null,null,null,null,null,null,null,null,null,null,null,null,null,null,null,null,null,"Ej angett"]
["Trafiktillväxttal",null,null,null,null,null,null,null,null,null,null,null,null,null,null,null,null,null,null,null,null,null,null,null,null,null,null,null,null,null,null,null,null,null,null,"Ej angett"]
["Trafiktillväxttal",null,null,null,null,null,null,null,null,null,null,null,null,null,null,null,null,null,null,null,null,null,null,null,null,null,null,null,null,null,null,null,null,null,null,"Ej angett"]
["Trafiktillväxttal",null,null,null,null,null,null,null,null,null,null,null,null,null,null,null,null,null,null,null,null,null,null,null,null,null,null,null,null,null,null,null,null,null,null,"Ej angett",null,null,null,null,null,null,null,null,null,null,null,null,null,null,null,null,null,null,null,null,null,null,null,null,null,null,null,null,null,null,null,null,"Här finns möjlighet att själv välja fler trafikslag för vilka det finns trafiktillväxttal i analysen"]
["Trafiktillväxttal",null,null,null,null,null,null,null,null,null,null,null,null,null,null,null,null,null,null,null,null,null,null,null,null,null,null,null,null,null,null,null,null,null,null,"Ej angett"]
["Trafiktillväxttal",null,null,null,null,null,null,null,null,null,null,null,null,null,null,null,null,null,null,null,null,null,null,null,null,null,null,null,null,null,null,null,null,null,null,"Ej angett"]
["Trafiktillväxttal",null,null,null,null,null,null,null,null,null,null,null,null,null,null,null,null,null,null,null,null,null,null,null,null,null,null,null,null,null,null,null,null,null,null,"Ej angett"]
["Trafiktillväxttal",null,null,null,null,null,null,null,null,null,null,null,null,null,null,null,null,null,null,null,null,null,null,null,null,null,null,null,null,null,null,null,null,null,null,"Ej angett"]
["Trafiktillväxttal",null,null,null,null,null,null,null,null,null,null,null,null,null,null,null,null,null,null,null,null,null,null,null,null,null,null,null,null,null,null,null,null,null,null,"Ej angett"]
["Trafiktillväxttal",null,null,null,null,null,null,null,null,null,null,null,null,null,null,null,null,null,null,null,null,null,null,null,null,null,null,null,null,null,null,null,null,null,null,"Ej angett"]
["Trafiktillväxttal",null,null,null,null,null,null,null,null,null,null,null,null,null,null,null,null,null,null,null,null,null,null,null,null,null,null,null,null,null,null,null,null,null,null,"Ej angett"]
["Trafiktillväxttal",null,null,null,null,null,null,null,null,null,null,null,null,null,null,null,null,null,null,null,null,null,null,null,null,null,null,null,null,null,null,null,null,null,null,"Ej angett"]
["Trafiktillväxttal",null,null,null,null,null,null,null,null,null,null,null,null,null,null,null,null,null,null,null,null,null,null,null,null,null,null,null,null,null,null,null,null,null,null,"Ej angett"]
[]
["Kommentar"]
["Ej angett",null,null,null,null,null,null,null,null,null,null,null,null,null,null,null,null,null,null,null,null,null,null,null,null,null,null,null,null,null,null,null,null,null,null,null,null,null,null,null,null,null,null,null,null,null,null,null,null,null,null,null,null,null,null,null,null,null,null,null,null,null,null,null,null,null,null,null,"Avvikelser från gällande förutsättningar beskrivs här "]
[]
[]
["Tabell 2.2 Nyckeltal samhällsekonomi"]
[null,null,null,null,null,null,null,null,null,null,null,null,null,null,null,null,null,null,null,null,null,null,null,null,null,null,null,null,null,null,null,null,null,null,null,null,null,null,null,null,null,null,null,null,"Samhälls-ekonomisk investerings-kostnad inkl skattefaktor (mnkr)",null,null,null,null,null,null,null,null,"Netto-nuvärde* (mnkr)",null,null,null,null,null,"NNK-idu**",null,null,null,null,"Dou-kostnad (mnkr)","Summa nyttor (mnkr)",null,null,"För mer information se flik Instruktioner\nOm NNK-idu är under noll ska  < 0 skrivas ut Gäller både huvudanalys och alla känslighetsanalyser"]
["Huvudanalys",null,null,null,null,null,null,null,null,null,null,null,null,null,null,null,null,null,null,null,null,null,null,null,null,null,null,null,null,null,null,null,null,null,null,null,null,null,null,null,null,null,null,null,{"$f":"ABS(AF251)","v":2937.1176799999998},null,null,null,null,null,null,null,null,{"$f":"AF252","v":895.48778000000084},null,null,null,null,null,{"$f":"IF(AS46=0,\" -\",IF(BB46=\" -\",\" -\", IF(BB46/(-(AF236)+AS46)<0, \" < 0\",BB46/(-(AF236)+AS46))))","v":0.30488658527294721},null,null,null,null,{"$f":"AF236","v":0},{"$f":"SUM(AF68:AJ250)","v":3832.6054600000007}]
["Känslighetsanalys Högre investeringskostnad t.ex. successivkalkyl 85% eller motsvarande ",null,null,null,null,null,null,null,null,null,null,null,null,null,null,null,null,null,null,null,null,null,null,null,null,null,null,null,null,null,null,null,null,null,null,null,null,null,null,null,null,null,null,null,{"$f":"ABS(AF251)*1.3","v":3818.2529839999997},null,null,null,null,null,null,null,null,{"$f":"IF((SUM(AF68,AF91,AF113,AF133,AF150,AF173,AF189,AF204,AF221,AF235,AF236)=0),\" -\", (SUM(AF68,AF91,AF113,AF133,AF150,AF173,AF189,AF204,AF221,AF235,AF236)-AS47))","v":14.352476000000934},null,null,null,null,null,{"$f":"IF(AS47=0,\" -\",IF(BB47=\" -\",\" -\", IF(BB47/(-(AF236)+AS47)<0, \" < 0\",BB47/(-(AF236)+AS47))))","v":3.7589117484209461E-3},null,null,null,null,{"$f":"AF236","v":0},{"$f":"SUM(AF68:AJ250)","v":3832.6054600000007},null,null,"Känslighetsanalys högre invkostnad är defalut 1,3 * huvudanalysens kostnad, detta ska ersättas med uppgifter för 85% nivån om sådant underlag finns."]
[null,null,null,null,null,null,null,null,null,null,null,null,null,null,null,null,null,null,null,null,null,null,null,null,null,null,null,null,null,null,null,null,null,null,null,null,null,null,null,null,null,null,null,null,null,null,null,null,null,null,null,null,null," -",null,null,null,null,null," -",null,null,null,null,{"$f":"IF([6]SEB!D28<>\"\",[6]SEB!D28/1000,\"\")","v":""},{"$f":"IF([6]SEB!E28 <>\"\",[6]SEB!E28/1000,\"\")","v":""}]
["Känslighetsanalys Trafiktillväxt 0% från basåret",null,null,null,null,null,null,null,null,null,null,null,null,null,null,null,null,null,null,null,null,null,null,null,null,null,null,null,null,null,null,null,null,null,null,null,null,null,null,null,null,null,null,null,null,null,null,null,null,null,null,null,null," -",null,null,null,null,null," -"]
["Känslighetsanalys Trafiktillväxt 50% högre från basåret och jämfört med huvudkalkylen ",null,null,null,null,null,null,null,null,null,null,null,null,null,null,null,null,null,null,null,null,null,null,null,null,null,null,null,null,null,null,null,null,null,null,null,null,null,null,null,null,null,null,null,null,null,null,null,null,null,null,null,null," -",null,null,null,null,null," -"]
["Ej angett",null,null,null,null,null,null,null,null,null,null,null,null,null,null,null,null,null,null,null,null,null,null,null,null,null,null,null,null,null,null,null,null,null,null,null,null,null,null,null,null,null,null,null,null,null,null,null,null,null,null,null,null," -",null,null,null,null,null," -"]
["Ej angett",null,null,null,null,null,null,null,null,null,null,null,null,null,null,null,null,null,null,null,null,null,null,null,null,null,null,null,null,null,null,null,null,null,null,null,null,null,null,null,null,null,null,null,null,null,null,null,null,null,null,null,null," -",null,null,null,null,null," -"]
["Ej angett",null,null,null,null,null,null,null,null,null,null,null,null,null,null,null,null,null,null,null,null,null,null,null,null,null,null,null,null,null,null,null,null,null,null,null,null,null,null,null,null,null,null,null,null,null,null,null,null,null,null,null,null," -",null,null,null,null,null," -"]
["Ej angett",null,null,null,null,null,null,null,null,null,null,null,null,null,null,null,null,null,null,null,null,null,null,null,null,null,null,null,null,null,null,null,null,null,null,null,null,null,null,null,null,null,null,null,null,null,null,null,null,null,null,null,null," -",null,null,null,null,null," -"]
["Ej angett",null,null,null,null,null,null,null,null,null,null,null,null,null,null,null,null,null,null,null,null,null,null,null,null,null,null,null,null,null,null,null,null,null,null,null,null,null,null,null,null,null,null,null,null,null,null,null,null,null,null,null,null," -",null,null,null,null,null," -"]
["Ej angett",null,null,null,null,null,null,null,null,null,null,null,null,null,null,null,null,null,null,null,null,null,null,null,null,null,null,null,null,null,null,null,null,null,null,null,null,null,null,null,null,null,null,null,null,null,null,null,null,null,null,null,null," -",null,null,null,null,null," -"]
["* Nettonuvärdet är lika med summan av nuvärdet av alla positiva och negativa nyttoeffekter (årliga samhällsekonomiska intäkter och kostnader) minus investeringskostnaden."]
["**Nettonuvärdeskvoten NNK-idu  är lika med nettonuvärdet dividerat med summan av den samhällsekonomiska investeringskostnaden och nuvärdet av nettoförändringen av drift- och underhållskostnader för infrastrukturhållaren."]
["Kommentar"]
["Ej angett"]
[]
["Samhällsekonomisk analys"]
["I tabell 2.5a redovisas de effekter av åtgärden som är samhällsekonomiskt relevanta och som har kvantifierats och värderats monetärt (genom marknadspris eller skuggprisvärdering, direkt kostnadsberäkning eller alternativkostnadsvärdering). Samhällsekonomiskt relevanta effekter ska finnas med i den samhällsekonomiska analysen antingen som värderade effekter i tabell 2.5a eller som svårvärderade effekter i tabell 2.6a. I de fall en effekt är konstaterad och eventuellt kvantifierad men inte värderad redovisas den verbalt och bedöms i tabell 2.6a. Normalt redovisas en viss effekt antingen monetärt värderad i tabell 2.5a eller enbart beskriven i tabell 2.6a. I vissa fall omfattar emellertid den monetära värderingen av en effekt endast vissa delar av effektens samhällsekonomiska konsekvenser. I sådana fall kan man komplettera den monetära värderingen av effekten i tabell 2.5a med en beskrivning i tabell 2.6a av de delar av effekten som inte ingår i värderingen. \nBeräkningarna i avsnitt 2.1 och bedömningarna i avsnitt 2.2 är underlag för den sammanvägda bedömningen av om åtgärden är lönsam eller olönsam. Den bedömningan görs i avsnitt 2.3.",null,null,null,null,null,null,null,null,null,null,null,null,null,null,null,null,null,null,null,null,null,null,null,null,null,null,null,null,null,null,null,null,null,null,null,null,null,null,null,null,null,null,null,null,null,null,null,null,null,null,null,null,null,null,null,null,null,null,null,null,null,null,null,"Den här texten behöver slås ihop med den nedan."]
["Tabell 2.3 Samhällsekonomisk analys",null,null,null,null,null,null,null,null,null,null,null,null,null,null,null,null,null,null,null,null,null,null,null,null,null,null,null,null,null,null,null,null,null,null,null,null,null,null,null,null,null,null,null,null,null,null,null,null,null,null,null,null,null,null,null,null,null,null,null,null,null,null,null,null,null,null,null,"Vad är inte obligatoriskt vid enkel SEB."]
[null,null,null,null,null,null,null,null,null,null,null,null,null,null,null,null,null,null,"Effekter som värderats monetärt och som ingår i beräkning av nettonuvärde",null,null,null,null,null,null,null,null,null,null,null,null,null,null,null,null,null,null,"Effekter som inte ingår i beräkningen av nettonuvärde men som ingår i den sammanvägda bedömningen",null,null,null,null,null,null,null,null,null,null,null,null,null,null,null,null,null,null,null,null,null,null,null,null,null,null,null,null,null,null,"Vid SEB utan samhällsekonomisk kalyl används endast den högra sidan av tabellen."]
["Berörd/ påverkad av effekt",null,null,null,null,null,"Effektbenämning och kortfattad beskrivning",null,null,null,null,null,null,null,null,null,null,null,"Ex på årlig effekt för prognosår 1",null,null,null,null,null,null,null,"Nuvärde detaljerat (mnkr)",null,null,null,null,"Nuvärde över-\nsiktligt \n(mnkr)",null,null,null,null,null,"Bedömning",null,null,null,null,null,null,null,null,"Samman-\nvägd \nbedömning",null,null,null,null,null,"Kortfattad beskrivning"]
[null,null,null,null,null,null,null,null,null,null,null,null,null,null,null,null,null,null,{"$f":"AJ14","v":0}]
["TRAFIKANT EFFEKTER",null,null,"RESENÄRER",null,null,"Restid pb, regionalt tjänste",null,null,null,null,null,null,null,null,null,null,null,{"$f":"'0.5. Importera data fr. verktyg'!U10*1000","v":-6.56},null,null,null,"kptim/år",null,null,null,{"$f":"'0.5. Importera data fr. verktyg'!W10","v":88.277259999999998},null,null,null,null,{"$f":"IF(ISNUMBER(SUM(AA68:AE90)),SUM(AA68:AE90),0)","v":633.03017},null,null,null,null,null,"Ej bedömt",null,null,null,null,null,null,null,null,"Ej bedömt",null,null,null,null,null,"Ej angett",null,null,null,null,null,null,null,null,null,null,null,{"$f":"$AJ$19","v":"Samkalk 3.4.6"},null,null,null,"I kolumn \"Bedömning\" görs bedömning av effekten på skalan Negativt/Försumbart/Positivt/Ingen effekt och kommentar till bedömningen skrivs därefter. Om effekten fångas i de monetärt värderade effekterna anges istället \"-\". \nI kolumn \"Sammanvägd bedömning\" görs på skalan Negativt/Försumbart/Positivt (obs alltså kan inte vara \"ingen effekt\")\nI kolumn \"kortfattad beskrivning\" skrivs en kortfattad text om bedömningen obs att denna går till sammanfattningen som har begränsat utrymme."]
[null,null,null,null,null,null,"Restid pb, långväga tjänste",null,null,null,null,null,null,null,null,null,null,null,"Ej angett",null,null,null,"kptim/år",null,null,null,"Ej beräknat",null,null,null,null,null,null,null,null,null,null,"Ej bedömt",null,null,null,null,null,null,null,null,null,null,null,null,null,null,null,null,null,null,null,null,null,null,null,null,null,null,{"$f":"$AJ$19","v":"Samkalk 3.4.6"}]
[null,null,null,null,null,null,"Restid pb, regionalt arbete",null,null,null,null,null,null,null,null,null,null,null,{"$f":"'0.5. Importera data fr. verktyg'!U12*1000","v":-49.31},null,null,null,"kptim/år",null,null,null,{"$f":"'0.5. Importera data fr. verktyg'!W12","v":197.77037000000001},null,null,null,null,null,null,null,null,null,null,"Ej bedömt",null,null,null,null,null,null,null,null,null,null,null,null,null,null,null,null,null,null,null,null,null,null,null,null,null,null,"Samkalk 3.4.6"]
[null,null,null,null,null,null,"Restid pb, regionalt övr. privat",null,null,null,null,null,null,null,null,null,null,null,{"$f":"'0.5. Importera data fr. verktyg'!U13*1000","v":-235.99},null,null,null,"kptim/år",null,null,null,{"$f":"'0.5. Importera data fr. verktyg'!W13","v":590.33543999999995},null,null,null,null,null,null,null,null,null,null,"Ej bedömt",null,null,null,null,null,null,null,null,null,null,null,null,null,null,null,null,null,null,null,null,null,null,null,null,null,null,"Samkalk 3.4.6"]
[null,null,null,null,null,null,"Restid pb, långväga arbete & övr.",null,null,null,null,null,null,null,null,null,null,null,"Ej angett",null,null,null,"kptim/år",null,null,null,"Ej beräknat",null,null,null,null,null,null,null,null,null,null,"Ej bedömt",null,null,null,null,null,null,null,null,null,null,null,null,null,null,null,null,null,null,null,null,null,null,null,null,null,null,"Samkalk 3.4.6"]
[null,null,null,null,null,null,"Reskostnad pb, regionalt tjänste",null,null,null,null,null,null,null,null,null,null,null,{"$f":"'0.5. Importera data fr. verktyg'!U15","v":-7.1470000000000006E-2},null,null,null,"mnkr/år",null,null,null,{"$f":"'0.5. Importera data fr. verktyg'!W15","v":1.8496999999999999},null,null,null,null,null,null,null,null,null,null,"Ej bedömt",null,null,null,null,null,null,null,null,null,null,null,null,null,null,null,null,null,null,null,null,null,null,null,null,null,null,"Samkalk 3.4.6"]
[null,null,null,null,null,null,"Reskostnad pb, långväga tjänste",null,null,null,null,null,null,null,null,null,null,null,"Ej angett",null,null,null,"mnkr/år",null,null,null,"Ej beräknat",null,null,null,null,null,null,null,null,null,null,"Ej bedömt",null,null,null,null,null,null,null,null,null,null,null,null,null,null,null,null,null,null,null,null,null,null,null,null,null,null,"Samkalk 3.4.6"]
[null,null,null,null,null,null,"Reskostnad pb, regionalt arbete",null,null,null,null,null,null,null,null,null,null,null,{"$f":"'0.5. Importera data fr. verktyg'!U17","v":-0.51770000000000005},null,null,null,"mnkr/år",null,null,null,{"$f":"'0.5. Importera data fr. verktyg'!W17","v":13.39856},null,null,null,null,null,null,null,null,null,null,"Ej bedömt",null,null,null,null,null,null,null,null,null,null,null,null,null,null,null,null,null,null,null,null,null,null,null,null,null,null,"Samkalk 3.4.6"]
[null,null,null,null,null,null,"Reskostnad pb, regionalt övr. privat",null,null,null,null,null,null,null,null,null,null,null,{"$f":"'0.5. Importera data fr. verktyg'!U18","v":-1.7468999999999999},null,null,null,"mnkr/år",null,null,null,{"$f":"'0.5. Importera data fr. verktyg'!W18","v":45.211129999999997},null,null,null,null,null,null,null,null,null,null,"Ej bedömt",null,null,null,null,null,null,null,null,null,null,null,null,null,null,null,null,null,null,null,null,null,null,null,null,null,null,"Samkalk 3.4.6"]
[null,null,null,null,null,null,"Reskostnad pb, långväga arbete & övr.",null,null,null,null,null,null,null,null,null,null,null,"Ej angett",null,null,null,"mnkr/år",null,null,null,"Ej beräknat",null,null,null,null,null,null,null,null,null,null,"Ej bedömt",null,null,null,null,null,null,null,null,null,null,null,null,null,null,null,null,null,null,null,null,null,null,null,null,null,null,"Samkalk 3.4.6"]
[null,null,null,null,null,null,"Vägavgifter/ vägskatt pb",null,null,null,null,null,null,null,null,null,null,null,{"$f":"'0.5. Importera data fr. verktyg'!U20","v":11.73893},null,null,null,"mnkr/år",null,null,null,{"$f":"'0.5. Importera data fr. verktyg'!W20","v":-303.81229000000002},null,null,null,null,null,null,null,null,null,null,"Ej bedömt",null,null,null,null,null,null,null,null,null,null,null,null,null,null,null,null,null,null,null,null,null,null,null,null,null,null,"Samkalk 3.4.6"]
[null,null,null,null,null,null,"Restid tåg, långväga",null,null,null,null,null,null,null,null,null,null,null,{"$f":"'0.5. Importera data fr. verktyg'!U21*1000","v":0},null,null,null,"kptim/år",null,null,null,{"$f":"'0.5. Importera data fr. verktyg'!W21","v":0},null,null,null,null,null,null,null,null,null,null,"Ej bedömt",null,null,null,null,null,null,null,null,null,null,null,null,null,null,null,null,null,null,null,null,null,null,null,null,null,null,"Samkalk 3.4.6"]
[null,null,null,null,null,null,"Reskostnad tåg, långväga",null,null,null,null,null,null,null,null,null,null,null,{"$f":"'0.5. Importera data fr. verktyg'!U22","v":0},null,null,null,"mnkr/år",null,null,null,{"$f":"'0.5. Importera data fr. verktyg'!W22","v":0},null,null,null,null,null,null,null,null,null,null,"Ej bedömt",null,null,null,null,null,null,null,null,null,null,null,null,null,null,null,null,null,null,null,null,null,null,null,null,null,null,"Samkalk 3.4.6"]
[null,null,null,null,null,null,"Restid kollektivtrafik, regionalt",null,null,null,null,null,null,null,null,null,null,null,{"$f":"'0.5. Importera data fr. verktyg'!U23*1000","v":0},null,null,null,"kptim/år",null,null,null,{"$f":"'0.5. Importera data fr. verktyg'!W23","v":0},null,null,null,null,null,null,null,null,null,null,"Ej bedömt",null,null,null,null,null,null,null,null,null,null,null,null,null,null,null,null,null,null,null,null,null,null,null,null,null,null,"Samkalk 3.4.6"]
[null,null,null,null,null,null,"Reskostnad kollektivtrafik, regionalt",null,null,null,null,null,null,null,null,null,null,null,{"$f":"'0.5. Importera data fr. verktyg'!U24","v":0},null,null,null,"mnkr/år",null,null,null,{"$f":"'0.5. Importera data fr. verktyg'!W24","v":0},null,null,null,null,null,null,null,null,null,null,"Ej bedömt",null,null,null,null,null,null,null,null,null,null,null,null,null,null,null,null,null,null,null,null,null,null,null,null,null,null,"Samkalk 3.4.6"]
[null,null,null,null,null,null,"Restid buss, långväga ",null,null,null,null,null,null,null,null,null,null,null,{"$f":"'0.5. Importera data fr. verktyg'!U25*1000","v":0},null,null,null,"kptim/år",null,null,null,{"$f":"'0.5. Importera data fr. verktyg'!W25","v":0},null,null,null,null,null,null,null,null,null,null,"Ej bedömt",null,null,null,null,null,null,null,null,null,null,null,null,null,null,null,null,null,null,null,null,null,null,null,null,null,null,"Samkalk 3.4.6"]
[null,null,null,null,null,null,"Reskostnad buss, långväga",null,null,null,null,null,null,null,null,null,null,null,{"$f":"'0.5. Importera data fr. verktyg'!U26","v":0},null,null,null,"mnkr/år",null,null,null,{"$f":"'0.5. Importera data fr. verktyg'!W26","v":0},null,null,null,null,null,null,null,null,null,null,"Ej bedömt",null,null,null,null,null,null,null,null,null,null,null,null,null,null,null,null,null,null,null,null,null,null,null,null,null,null,"Samkalk 3.4.6"]
[null,null,null,null,null,null,"Restid flyg ",null,null,null,null,null,null,null,null,null,null,null,{"$f":"'0.5. Importera data fr. verktyg'!U27*1000","v":0},null,null,null,"kptim/år",null,null,null,{"$f":"'0.5. Importera data fr. verktyg'!W27","v":0},null,null,null,null,null,null,null,null,null,null,"Ej bedömt",null,null,null,null,null,null,null,null,null,null,null,null,null,null,null,null,null,null,null,null,null,null,null,null,null,null,"Samkalk 3.4.6"]
[null,null,null,null,null,null,"Reskostnad flyg",null,null,null,null,null,null,null,null,null,null,null,{"$f":"'0.5. Importera data fr. verktyg'!U28","v":0},null,null,null,"mnkr/år",null,null,null,{"$f":"'0.5. Importera data fr. verktyg'!W28","v":0},null,null,null,null,null,null,null,null,null,null,"Ej bedömt",null,null,null,null,null,null,null,null,null,null,null,null,null,null,null,null,null,null,null,null,null,null,null,null,null,null,"Samkalk 3.4.6"]
[null,null,null,null,null,null,"Ej angett",null,null,null,null,null,null,null,null,null,null,null,"Ej angett",null,null,null,"Ej angett",null,null,null,"Ej beräknat",null,null,null,null,null,null,null,null,null,null,"Ej bedömt",null,null,null,null,null,null,null,null,null,null,null,null,null,null,null,null,null,null,null,null,null,null,null,null,null,null,"Samkalk 3.4.6"]
[null,null,null,null,null,null,"Ej angett",null,null,null,null,null,null,null,null,null,null,null,"Ej angett",null,null,null,"Ej angett",null,null,null,"Ej beräknat",null,null,null,null,null,null,null,null,null,null,"Ej bedömt",null,null,null,null,null,null,null,null,null,null,null,null,null,null,null,null,null,null,null,null,null,null,null,null,null,null,"Samkalk 3.4.6"]
[null,null,null,null,null,null,"Ej angett",null,null,null,null,null,null,null,null,null,null,null,"Ej angett",null,null,null,"Ej angett",null,null,null,"Ej beräknat",null,null,null,null,null,null,null,null,null,null,"Ej bedömt",null,null,null,null,null,null,null,null,null,null,null,null,null,null,null,null,null,null,null,null,null,null,null,null,null,null,"Samkalk 3.4.6"]
[null,null,null,null,null,null,"Ej angett",null,null,null,null,null,null,null,null,null,null,null,"Ej angett",null,null,null,"Ej angett",null,null,null,"Ej beräknat",null,null,null,null,null,null,null,null,null,null,"Ej bedömt",null,null,null,null,null,null,null,null,null,null,null,null,null,null,null,null,null,null,null,null,null,null,null,null,null,null,"Samkalk 3.4.6"]
[null,null,null,"GODSTRANSPORTER",null,null,"Restid pb yrkestrafik",null,null,null,null,null,null,null,null,null,null,null,{"$f":"'0.5. Importera data fr. verktyg'!AA10*1000","v":-24.9},null,null,null,"kptim/år",null,null,null,{"$f":"'0.5. Importera data fr. verktyg'!AC10","v":274.81781000000001},null,null,null,null,{"$f":"IF(ISNUMBER(SUM(AA91:AE112)),SUM(AA91:AE112),0)","v":619.11424999999997},null,null,null,null,null,"Ej bedömt",null,null,null,null,null,null,null,null,"Ej bedömt",null,null,null,null,null,"Ej angett",null,null,null,null,null,null,null,null,null,null,null,"Samkalk 3.4.6"]
[null,null,null,null,null,null,"Restid lastbil (utan släp)",null,null,null,null,null,null,null,null,null,null,null,{"$f":"'0.5. Importera data fr. verktyg'!AA11*1000","v":-20.11},null,null,null,"kptim/år",null,null,null,{"$f":"'0.5. Importera data fr. verktyg'!AC11","v":221.9528},null,null,null,null,null,null,null,null,null,null,"Ej bedömt",null,null,null,null,null,null,null,null,null,null,null,null,null,null,null,null,null,null,null,null,null,null,null,null,null,null,"Samkalk 3.4.6"]
[null,null,null,null,null,null,"Restid lastbil (släp)",null,null,null,null,null,null,null,null,null,null,null,{"$f":"'0.5. Importera data fr. verktyg'!AA12*1000","v":-16.010000000000002},null,null,null,"kptim/år",null,null,null,{"$f":"'0.5. Importera data fr. verktyg'!AC12","v":176.77849000000001},null,null,null,null,null,null,null,null,null,null,"Ej bedömt",null,null,null,null,null,null,null,null,null,null,null,null,null,null,null,null,null,null,null,null,null,null,null,null,null,null,"Samkalk 3.4.6"]
[null,null,null,null,null,null,"Reskostnad pb yrkestrafik",null,null,null,null,null,null,null,null,null,null,null,{"$f":"'0.5. Importera data fr. verktyg'!AA13","v":-0.35926999999999998},null,null,null,"mnkr/år",null,null,null,{"$f":"'0.5. Importera data fr. verktyg'!AC13","v":9.2981400000000001},null,null,null,null,null,null,null,null,null,null,"Ej bedömt",null,null,null,null,null,null,null,null,null,null,null,null,null,null,null,null,null,null,null,null,null,null,null,null,null,null,"Samkalk 3.4.6"]
[null,null,null,null,null,null,"Reskostnad lastbil (utan släp)",null,null,null,null,null,null,null,null,null,null,null,{"$f":"'0.5. Importera data fr. verktyg'!AA14","v":-1.64025},null,null,null,"mnkr/år",null,null,null,{"$f":"'0.5. Importera data fr. verktyg'!AC14","v":42.450980000000001},null,null,null,null,null,null,null,null,null,null,"Ej bedömt",null,null,null,null,null,null,null,null,null,null,null,null,null,null,null,null,null,null,null,null,null,null,null,null,null,null,"Samkalk 3.4.6"]
[null,null,null,null,null,null,"Reskostnad lastbil (släp)",null,null,null,null,null,null,null,null,null,null,null,{"$f":"'0.5. Importera data fr. verktyg'!AA15","v":0.13819999999999999},null,null,null,"mnkr/år",null,null,null,{"$f":"'0.5. Importera data fr. verktyg'!AC15","v":-3.5766100000000001},null,null,null,null,null,null,null,null,null,null,"Ej bedömt",null,null,null,null,null,null,null,null,null,null,null,null,null,null,null,null,null,null,null,null,null,null,null,null,null,null,"Samkalk 3.4.6"]
[null,null,null,null,null,null,"Transporttid gods pb yrkestrafik",null,null,null,null,null,null,null,null,null,null,null,{"$f":"'0.5. Importera data fr. verktyg'!AA16","v":-6.2239999999999997E-2},null,null,null,"mnkr/år",null,null,null,{"$f":"'0.5. Importera data fr. verktyg'!AC16","v":1.6108100000000001},null,null,null,null,null,null,null,null,null,null,"Ej bedömt",null,null,null,null,null,null,null,null,null,null,null,null,null,null,null,null,null,null,null,null,null,null,null,null,null,null,"Samkalk 3.4.6"]
[null,null,null,null,null,null,"Transporttid gods lastbil (u. släp)",null,null,null,null,null,null,null,null,null,null,null,{"$f":"'0.5. Importera data fr. verktyg'!AA17","v":-0.1173},null,null,null,"mnkr/år",null,null,null,{"$f":"'0.5. Importera data fr. verktyg'!AC17","v":3.03573},null,null,null,null,null,null,null,null,null,null,"Ej bedömt",null,null,null,null,null,null,null,null,null,null,null,null,null,null,null,null,null,null,null,null,null,null,null,null,null,null,"Samkalk 3.4.6"]
[null,null,null,null,null,null,"Transporttid gods lastbil (släp)",null,null,null,null,null,null,null,null,null,null,null,{"$f":"'0.5. Importera data fr. verktyg'!AA18","v":-0.49645},null,null,null,"mnkr/år",null,null,null,{"$f":"'0.5. Importera data fr. verktyg'!AC18","v":12.848409999999999},null,null,null,null,null,null,null,null,null,null,"Ej bedömt",null,null,null,null,null,null,null,null,null,null,null,null,null,null,null,null,null,null,null,null,null,null,null,null,null,null,"Samkalk 3.4.6"]
[null,null,null,null,null,null,"Vägavgifter/vägskatt pb yrkestrafik",null,null,null,null,null,null,null,null,null,null,null,{"$f":"'0.5. Importera data fr. verktyg'!AA19","v":1.3182700000000001},null,null,null,"mnkr/år",null,null,null,{"$f":"'0.5. Importera data fr. verktyg'!AC19","v":-34.11768},null,null,null,null,null,null,null,null,null,null,"Ej bedömt",null,null,null,null,null,null,null,null,null,null,null,null,null,null,null,null,null,null,null,null,null,null,null,null,null,null,"Samkalk 3.4.6"]
[null,null,null,null,null,null,"Vägavgifter/vägskatt lastbil (u. släp)",null,null,null,null,null,null,null,null,null,null,null,{"$f":"'0.5. Importera data fr. verktyg'!AA20","v":1.7525999999999999},null,null,null,"mnkr/år",null,null,null,{"$f":"'0.5. Importera data fr. verktyg'!AC20","v":-45.35868},null,null,null,null,null,null,null,null,null,null,"Ej bedömt",null,null,null,null,null,null,null,null,null,null,null,null,null,null,null,null,null,null,null,null,null,null,null,null,null,null,"Samkalk 3.4.6"]
[null,null,null,null,null,null,"Vägavgifter/vägskatt lastbil (släp)",null,null,null,null,null,null,null,null,null,null,null,{"$f":"'0.5. Importera data fr. verktyg'!AA21","v":1.5697399999999999},null,null,null,"mnkr/år",null,null,null,{"$f":"'0.5. Importera data fr. verktyg'!AC21","v":-40.625950000000003},null,null,null,null,null,null,null,null,null,null,"Ej bedömt",null,null,null,null,null,null,null,null,null,null,null,null,null,null,null,null,null,null,null,null,null,null,null,null,null,null,"Samkalk 3.4.6"]
[null,null,null,null,null,null,"Ej angett",null,null,null,null,null,null,null,null,null,null,null,"Ej angett",null,null,null,"Ej angett",null,null,null,"Ej beräknat",null,null,null,null,null,null,null,null,null,null,"Ej bedömt",null,null,null,null,null,null,null,null,null,null,null,null,null,null,null,null,null,null,null,null,null,null,null,null,null,null,"Samkalk 3.4.6"]
[null,null,null,null,null,null,"Ej angett",null,null,null,null,null,null,null,null,null,null,null,"Ej angett",null,null,null,"Ej angett",null,null,null,"Ej beräknat",null,null,null,null,null,null,null,null,null,null,"Ej bedömt",null,null,null,null,null,null,null,null,null,null,null,null,null,null,null,null,null,null,null,null,null,null,null,null,null,null,"Samkalk 3.4.6"]
[null,null,null,null,null,null,"Ej angett",null,null,null,null,null,null,null,null,null,null,null,"Ej angett",null,null,null,"Ej angett",null,null,null,"Ej beräknat",null,null,null,null,null,null,null,null,null,null,"Ej bedömt",null,null,null,null,null,null,null,null,null,null,null,null,null,null,null,null,null,null,null,null,null,null,null,null,null,null,"Samkalk 3.4.6"]
[null,null,null,null,null,null,"Ej angett",null,null,null,null,null,null,null,null,null,null,null,"Ej angett",null,null,null,"Ej angett",null,null,null,"Ej beräknat",null,null,null,null,null,null,null,null,null,null,"Ej bedömt",null,null,null,null,null,null,null,null,null,null,null,null,null,null,null,null,null,null,null,null,null,null,null,null,null,null,"Samkalk 3.4.6"]
[null,null,null,null,null,null,"Ej angett",null,null,null,null,null,null,null,null,null,null,null,"Ej angett",null,null,null,"Ej angett",null,null,null,"Ej beräknat",null,null,null,null,null,null,null,null,null,null,"Ej bedömt",null,null,null,null,null,null,null,null,null,null,null,null,null,null,null,null,null,null,null,null,null,null,null,null,null,null,"Samkalk 3.4.6"]
[null,null,null,null,null,null,"Ej angett",null,null,null,null,null,null,null,null,null,null,null,"Ej angett",null,null,null,"Ej angett",null,null,null,"Ej beräknat",null,null,null,null,null,null,null,null,null,null,"Ej bedömt",null,null,null,null,null,null,null,null,null,null,null,null,null,null,null,null,null,null,null,null,null,null,null,null,null,null,"Samkalk 3.4.6"]
[null,null,null,null,null,null,"Ej angett",null,null,null,null,null,null,null,null,null,null,null,"Ej angett",null,null,null,"Ej angett",null,null,null,"Ej beräknat",null,null,null,null,null,null,null,null,null,null,"Ej bedömt",null,null,null,null,null,null,null,null,null,null,null,null,null,null,null,null,null,null,null,null,null,null,null,null,null,null,"Samkalk 3.4.6"]
[null,null,null,null,null,null,"Ej angett",null,null,null,null,null,null,null,null,null,null,null,"Ej angett",null,null,null,"Ej angett",null,null,null,"Ej beräknat",null,null,null,null,null,null,null,null,null,null,"Ej bedömt",null,null,null,null,null,null,null,null,null,null,null,null,null,null,null,null,null,null,null,null,null,null,null,null,null,null,"Samkalk 3.4.6"]
[null,null,null,null,null,null,"Ej angett",null,null,null,null,null,null,null,null,null,null,null,"Ej angett",null,null,null,"Ej angett",null,null,null,"Ej beräknat",null,null,null,null,null,null,null,null,null,null,"Ej bedömt",null,null,null,null,null,null,null,null,null,null,null,null,null,null,null,null,null,null,null,null,null,null,null,null,null,null,"Samkalk 3.4.6"]
[null,null,null,null,null,null,"Ej angett",null,null,null,null,null,null,null,null,null,null,null,"Ej angett",null,null,null,"Ej angett",null,null,null,"Ej beräknat",null,null,null,null,null,null,null,null,null,null,"Ej bedömt",null,null,null,null,null,null,null,null,null,null,null,null,null,null,null,null,null,null,null,null,null,null,null,null,null,null,"Samkalk 3.4.6"]
[null,null,null,"PERSONTRANSPORTFÖRETAG",null,null,"Biljettintäkter",null,null,null,null,null,null,null,null,null,null,null,{"$f":"'0.5. Importera data fr. verktyg'!AG10","v":-0.24282999999999999},null,null,null,"mnkr/år",null,null,null,{"$f":"'0.5. Importera data fr. verktyg'!AI10","v":-6.3642400000000006},null,null,null,null,{"$f":"IF(ISNUMBER(SUM(AA113:AE132)),SUM(AA113:AE132),0)","v":-5.6663500000000004},null,null,null,null,null,"Ej bedömt",null,null,null,null,null,null,null,null,"Ej bedömt",null,null,null,null,null,"Ej angett",null,null,null,null,null,null,null,null,null,null,null,"Samkalk 3.4.6"]
[null,null,null,null,null,null,"Fordonskostnader för kollektivtrafik",null,null,null,null,null,null,null,null,null,null,null,{"$f":"'0.5. Importera data fr. verktyg'!AG11","v":-1.3669999999999998E-2},null,null,null,"mnkr/år",null,null,null,{"$f":"'0.5. Importera data fr. verktyg'!AI11","v":0.33765000000000001},null,null,null,null,null,null,null,null,null,null,"Ej bedömt",null,null,null,null,null,null,null,null,null,null,null,null,null,null,null,null,null,null,null,null,null,null,null,null,null,null,"Samkalk 3.4.6"]
[null,null,null,null,null,null,"Moms på biljettintäkter",null,null,null,null,null,null,null,null,null,null,null,{"$f":"'0.5. Importera data fr. verktyg'!AG12","v":-1.374E-2},null,null,null,"mnkr/år",null,null,null,{"$f":"'0.5. Importera data fr. verktyg'!AI12","v":0.36024},null,null,null,null,null,null,null,null,null,null,"Ej bedömt",null,null,null,null,null,null,null,null,null,null,null,null,null,null,null,null,null,null,null,null,null,null,null,null,null,null,"Samkalk 3.4.6"]
[null,null,null,null,null,null,"Banavgifter",null,null,null,null,null,null,null,null,null,null,null,{"$f":"'0.5. Importera data fr. verktyg'!AG13","v":0},null,null,null,"mnkr/år",null,null,null,{"$f":"'0.5. Importera data fr. verktyg'!AI13","v":0},null,null,null,null,null,null,null,null,null,null,"Ej bedömt",null,null,null,null,null,null,null,null,null,null,null,null,null,null,null,null,null,null,null,null,null,null,null,null,null,null,"Samkalk 3.4.6"]
[null,null,null,null,null,null,"Ej angett",null,null,null,null,null,null,null,null,null,null,null,"Ej angett",null,null,null,"Ej angett",null,null,null,"Ej beräknat",null,null,null,null,null,null,null,null,null,null,"Ej bedömt",null,null,null,null,null,null,null,null,null,null,null,null,null,null,null,null,null,null,null,null,null,null,null,null,null,null,"Samkalk 3.4.6"]
[null,null,null,null,null,null,"Ej angett",null,null,null,null,null,null,null,null,null,null,null,"Ej angett",null,null,null,"Ej angett",null,null,null,"Ej beräknat",null,null,null,null,null,null,null,null,null,null,"Ej bedömt",null,null,null,null,null,null,null,null,null,null,null,null,null,null,null,null,null,null,null,null,null,null,null,null,null,null,"Samkalk 3.4.6"]
[null,null,null,null,null,null,"Ej angett",null,null,null,null,null,null,null,null,null,null,null,"Ej angett",null,null,null,"Ej angett",null,null,null,"Ej beräknat",null,null,null,null,null,null,null,null,null,null,"Ej bedömt",null,null,null,null,null,null,null,null,null,null,null,null,null,null,null,null,null,null,null,null,null,null,null,null,null,null,"Samkalk 3.4.6"]
[null,null,null,null,null,null,"Ej angett",null,null,null,null,null,null,null,null,null,null,null,"Ej angett",null,null,null,"Ej angett",null,null,null,"Ej beräknat",null,null,null,null,null,null,null,null,null,null,"Ej bedömt",null,null,null,null,null,null,null,null,null,null,null,null,null,null,null,null,null,null,null,null,null,null,null,null,null,null,"Samkalk 3.4.6"]
[null,null,null,null,null,null,"Ej angett",null,null,null,null,null,null,null,null,null,null,null,"Ej angett",null,null,null,"Ej angett",null,null,null,"Ej beräknat",null,null,null,null,null,null,null,null,null,null,"Ej bedömt",null,null,null,null,null,null,null,null,null,null,null,null,null,null,null,null,null,null,null,null,null,null,null,null,null,null,"Samkalk 3.4.6"]
[null,null,null,null,null,null,"Ej angett",null,null,null,null,null,null,null,null,null,null,null,"Ej angett",null,null,null,"Ej angett",null,null,null,"Ej beräknat",null,null,null,null,null,null,null,null,null,null,"Ej bedömt",null,null,null,null,null,null,null,null,null,null,null,null,null,null,null,null,null,null,null,null,null,null,null,null,null,null,"Samkalk 3.4.6"]
[null,null,null,null,null,null,"Ej angett",null,null,null,null,null,null,null,null,null,null,null,"Ej angett",null,null,null,"Ej angett",null,null,null,"Ej beräknat",null,null,null,null,null,null,null,null,null,null,"Ej bedömt",null,null,null,null,null,null,null,null,null,null,null,null,null,null,null,null,null,null,null,null,null,null,null,null,null,null,"Samkalk 3.4.6"]
[null,null,null,null,null,null,"Ej angett",null,null,null,null,null,null,null,null,null,null,null,"Ej angett",null,null,null,"Ej angett",null,null,null,"Ej beräknat",null,null,null,null,null,null,null,null,null,null,"Ej bedömt",null,null,null,null,null,null,null,null,null,null,null,null,null,null,null,null,null,null,null,null,null,null,null,null,null,null,"Samkalk 3.4.6"]
[null,null,null,null,null,null,"Ej angett",null,null,null,null,null,null,null,null,null,null,null,"Ej angett",null,null,null,"Ej angett",null,null,null,"Ej beräknat",null,null,null,null,null,null,null,null,null,null,"Ej bedömt",null,null,null,null,null,null,null,null,null,null,null,null,null,null,null,null,null,null,null,null,null,null,null,null,null,null,"Samkalk 3.4.6"]
[null,null,null,null,null,null,"Ej angett",null,null,null,null,null,null,null,null,null,null,null,"Ej angett",null,null,null,"Ej angett",null,null,null,"Ej beräknat",null,null,null,null,null,null,null,null,null,null,"Ej bedömt",null,null,null,null,null,null,null,null,null,null,null,null,null,null,null,null,null,null,null,null,null,null,null,null,null,null,"Samkalk 3.4.6"]
[null,null,null,null,null,null,"Ej angett",null,null,null,null,null,null,null,null,null,null,null,"Ej angett",null,null,null,"Ej angett",null,null,null,"Ej beräknat",null,null,null,null,null,null,null,null,null,null,"Ej bedömt",null,null,null,null,null,null,null,null,null,null,null,null,null,null,null,null,null,null,null,null,null,null,null,null,null,null,"Samkalk 3.4.6"]
[null,null,null,null,null,null,"Ej angett",null,null,null,null,null,null,null,null,null,null,null,"Ej angett",null,null,null,"Ej angett",null,null,null,"Ej beräknat",null,null,null,null,null,null,null,null,null,null,"Ej bedömt",null,null,null,null,null,null,null,null,null,null,null,null,null,null,null,null,null,null,null,null,null,null,null,null,null,null,"Samkalk 3.4.6"]
[null,null,null,null,null,null,"Ej angett",null,null,null,null,null,null,null,null,null,null,null,"Ej angett",null,null,null,"Ej angett",null,null,null,"Ej beräknat",null,null,null,null,null,null,null,null,null,null,"Ej bedömt",null,null,null,null,null,null,null,null,null,null,null,null,null,null,null,null,null,null,null,null,null,null,null,null,null,null,"Samkalk 3.4.6"]
[null,null,null,null,null,null,"Ej angett",null,null,null,null,null,null,null,null,null,null,null,"Ej angett",null,null,null,"Ej angett",null,null,null,"Ej beräknat",null,null,null,null,null,null,null,null,null,null,"Ej bedömt",null,null,null,null,null,null,null,null,null,null,null,null,null,null,null,null,null,null,null,null,null,null,null,null,null,null,"Samkalk 3.4.6"]
[null,null,null,null,null,null,"Ej angett",null,null,null,null,null,null,null,null,null,null,null,"Ej angett",null,null,null,"Ej angett",null,null,null,"Ej beräknat",null,null,null,null,null,null,null,null,null,null,"Ej bedömt",null,null,null,null,null,null,null,null,null,null,null,null,null,null,null,null,null,null,null,null,null,null,null,null,null,null,"Samkalk 3.4.6"]
[null,null,null,null,null,null,"Ej angett",null,null,null,null,null,null,null,null,null,null,null,"Ej angett",null,null,null,"Ej angett",null,null,null,"Ej beräknat",null,null,null,null,null,null,null,null,null,null,"Ej bedömt",null,null,null,null,null,null,null,null,null,null,null,null,null,null,null,null,null,null,null,null,null,null,null,null,null,null,"Samkalk 3.4.6"]
["EXTERNA EFFEKTER",null,null,"TRAFIKSÄKERHET (TS)",null,null,"Trafiksäkerhet totalt",null,null,null,null,null,null,null,null,null,null,null,"Ej angett",null,null,null,"Ej angett",null,null,null,{"$f":"'0.5. Importera data fr. verktyg'!AO10","v":1847.0560700000001},null,null,null,null,{"$f":"IF(ISNUMBER(SUM(AA133:AE149)),SUM(AA133:AE149),0)","v":1847.0560700000001},null,null,null,null,null,"Ej bedömt",null,null,null,null,null,null,null,null,"Ej bedömt",null,null,null,null,null,"Ej angett",null,null,null,null,null,null,null,null,null,null,null,{"$f":"$AJ$19","v":"Samkalk 3.4.6"}]
[null,null,null,null,null,null,"Döda",null,null,null,null,null,null,null,null,null,null,null,{"$f":"'0.5. Importera data fr. verktyg'!AQ8","v":-3.1460000000000002E-2},null,null,null,{"$f":"'[7]0.5. Importera data fr. verktyg'!W20","v":"D/år"},null,null,null,"Ej beräknat",null,null,null,null,null,null,null,null,null,null,"Ej bedömt",null,null,null,null,null,null,null,null,null,null,null,null,null,null,null,null,null,null,null,null,null,null,null,null,null,null,"Samkalk 3.4.6"]
[null,null,null,null,null,null,"Mycket allvarligt skadade",null,null,null,null,null,null,null,null,null,null,null,{"$f":"'0.5. Importera data fr. verktyg'!AQ9","v":-0.23966999999999999},null,null,null,{"$f":"'[7]0.5. Importera data fr. verktyg'!W21","v":"MAS/år"},null,null,null,"Ej beräknat",null,null,null,null,null,null,null,null,null,null,"Ej bedömt",null,null,null,null,null,null,null,null,null,null,null,null,null,null,null,null,null,null,null,null,null,null,null,null,null,null,"Samkalk 3.4.6"]
[null,null,null,null,null,null,"Allvarligt skadade exkl MAS",null,null,null,null,null,null,null,null,null,null,null,{"$f":"'0.5. Importera data fr. verktyg'!AQ10","v":-1.13398},null,null,null,{"$f":"'[7]0.5. Importera data fr. verktyg'!W22","v":"AS/år"},null,null,null,"Ej beräknat",null,null,null,null,null,null,null,null,null,null,"Ej bedömt",null,null,null,null,null,null,null,null,null,null,null,null,null,null,null,null,null,null,null,null,null,null,null,null,null,null,"Samkalk 3.4.6"]
[null,null,null,null,null,null,"Ej allvarligt skadade",null,null,null,null,null,null,null,null,null,null,null,{"$f":"'0.5. Importera data fr. verktyg'!AQ11","v":-6.9150099999999997},null,null,null,{"$f":"'[7]0.5. Importera data fr. verktyg'!W23","v":"ES/år"},null,null,null,"Ej beräknat",null,null,null,null,null,null,null,null,null,null,"Ej bedömt",null,null,null,null,null,null,null,null,null,null,null,null,null,null,null,null,null,null,null,null,null,null,null,null,null,null,"Samkalk 3.4.6"]
[null,null,null,null,null,null,"Ej angett",null,null,null,null,null,null,null,null,null,null,null,"Ej angett",null,null,null,"Ej angett",null,null,null,"Ej beräknat",null,null,null,null,null,null,null,null,null,null,"Ej bedömt",null,null,null,null,null,null,null,null,null,null,null,null,null,null,null,null,null,null,null,null,null,null,null,null,null,null,"Samkalk 3.4.6"]
[null,null,null,null,null,null,"Ej angett",null,null,null,null,null,null,null,null,null,null,null,"Ej angett",null,null,null,"Ej angett",null,null,null,"Ej beräknat",null,null,null,null,null,null,null,null,null,null,"Ej bedömt",null,null,null,null,null,null,null,null,null,null,null,null,null,null,null,null,null,null,null,null,null,null,null,null,null,null,"Samkalk 3.4.6"]
[null,null,null,null,null,null,"Ej angett",null,null,null,null,null,null,null,null,null,null,null,"Ej angett",null,null,null,"Ej angett",null,null,null,"Ej beräknat",null,null,null,null,null,null,null,null,null,null,"Ej bedömt",null,null,null,null,null,null,null,null,null,null,null,null,null,null,null,null,null,null,null,null,null,null,null,null,null,null,"Samkalk 3.4.6"]
[null,null,null,null,null,null,"Ej angett",null,null,null,null,null,null,null,null,null,null,null,"Ej angett",null,null,null,"Ej angett",null,null,null,"Ej beräknat",null,null,null,null,null,null,null,null,null,null,"Ej bedömt",null,null,null,null,null,null,null,null,null,null,null,null,null,null,null,null,null,null,null,null,null,null,null,null,null,null,"Samkalk 3.4.6"]
[null,null,null,null,null,null,"Ej angett",null,null,null,null,null,null,null,null,null,null,null,"Ej angett",null,null,null,"Ej angett",null,null,null,"Ej beräknat",null,null,null,null,null,null,null,null,null,null,"Ej bedömt",null,null,null,null,null,null,null,null,null,null,null,null,null,null,null,null,null,null,null,null,null,null,null,null,null,null,"Samkalk 3.4.6"]
[null,null,null,null,null,null,"Ej angett",null,null,null,null,null,null,null,null,null,null,null,"Ej angett",null,null,null,"Ej angett",null,null,null,"Ej beräknat",null,null,null,null,null,null,null,null,null,null,"Ej bedömt",null,null,null,null,null,null,null,null,null,null,null,null,null,null,null,null,null,null,null,null,null,null,null,null,null,null,"Samkalk 3.4.6"]
[null,null,null,null,null,null,"Ej angett",null,null,null,null,null,null,null,null,null,null,null,"Ej angett",null,null,null,"Ej angett",null,null,null,"Ej beräknat",null,null,null,null,null,null,null,null,null,null,"Ej bedömt",null,null,null,null,null,null,null,null,null,null,null,null,null,null,null,null,null,null,null,null,null,null,null,null,null,null,"Samkalk 3.4.6"]
[null,null,null,null,null,null,"Ej angett",null,null,null,null,null,null,null,null,null,null,null,"Ej angett",null,null,null,"Ej angett",null,null,null,"Ej beräknat",null,null,null,null,null,null,null,null,null,null,"Ej bedömt",null,null,null,null,null,null,null,null,null,null,null,null,null,null,null,null,null,null,null,null,null,null,null,null,null,null,"Samkalk 3.4.6"]
[null,null,null,null,null,null,"Ej angett",null,null,null,null,null,null,null,null,null,null,null,"Ej angett",null,null,null,"Ej angett",null,null,null,"Ej beräknat",null,null,null,null,null,null,null,null,null,null,"Ej bedömt",null,null,null,null,null,null,null,null,null,null,null,null,null,null,null,null,null,null,null,null,null,null,null,null,null,null,"Samkalk 3.4.6"]
[null,null,null,null,null,null,"Ej angett",null,null,null,null,null,null,null,null,null,null,null,"Ej angett",null,null,null,"Ej angett",null,null,null,"Ej beräknat",null,null,null,null,null,null,null,null,null,null,"Ej bedömt",null,null,null,null,null,null,null,null,null,null,null,null,null,null,null,null,null,null,null,null,null,null,null,null,null,null,"Samkalk 3.4.6"]
[null,null,null,null,null,null,"Ej angett",null,null,null,null,null,null,null,null,null,null,null,"Ej angett",null,null,null,"Ej angett",null,null,null,"Ej beräknat",null,null,null,null,null,null,null,null,null,null,"Ej bedömt",null,null,null,null,null,null,null,null,null,null,null,null,null,null,null,null,null,null,null,null,null,null,null,null,null,null,"Samkalk 3.4.6"]
[null,null,null,null,null,null,"Ej angett",null,null,null,null,null,null,null,null,null,null,null,"Ej angett",null,null,null,"Ej angett",null,null,null,"Ej beräknat",null,null,null,null,null,null,null,null,null,null,"Ej bedömt",null,null,null,null,null,null,null,null,null,null,null,null,null,null,null,null,null,null,null,null,null,null,null,null,null,null,"Samkalk 3.4.6"]
[null,null,null,"KLIMAT",null,null,"CO2-ekvivalenter, Avser koldioxid",null,null,null,null,null,null,null,null,null,null,null,{"$f":"'0.5. Importera data fr. verktyg'!AM12","v":-0.14607999999999999},null,null,null,"kton/år",null,null,null,{"$f":"'0.5. Importera data fr. verktyg'!AO12","v":30.998269999999998},null,null,null,null,{"$f":"IF(ISNUMBER(SUM(AA150:AE172)),SUM(AA150:AE172),0)","v":30.998269999999998},null,null,null,null,null,"Ej bedömt",null,null,null,null,null,null,null,null,"Ej bedömt",null,null,null,null,null,"Ej angett",null,null,null,null,null,null,null,null,null,null,null,"Samkalk 3.4.6"]
[null,null,null,null,null,null,"Ej angett",null,null,null,null,null,null,null,null,null,null,null,"Ej angett",null,null,null,"Ej angett",null,null,null,"Ej beräknat",null,null,null,null,null,null,null,null,null,null,"Ej bedömt",null,null,null,null,null,null,null,null,null,null,null,null,null,null,null,null,null,null,null,null,null,null,null,null,null,null,"Samkalk 3.4.6"]
[null,null,null,null,null,null,"Ej angett",null,null,null,null,null,null,null,null,null,null,null,"Ej angett",null,null,null,"Ej angett",null,null,null,"Ej beräknat",null,null,null,null,null,null,null,null,null,null,"Ej bedömt",null,null,null,null,null,null,null,null,null,null,null,null,null,null,null,null,null,null,null,null,null,null,null,null,null,null,"Samkalk 3.4.6"]
[null,null,null,null,null,null,"Ej angett",null,null,null,null,null,null,null,null,null,null,null,"Ej angett",null,null,null,"Ej angett",null,null,null,"Ej beräknat",null,null,null,null,null,null,null,null,null,null,"Ej bedömt",null,null,null,null,null,null,null,null,null,null,null,null,null,null,null,null,null,null,null,null,null,null,null,null,null,null,"Samkalk 3.4.6"]
[null,null,null,null,null,null,"Ej angett",null,null,null,null,null,null,null,null,null,null,null,"Ej angett",null,null,null,"Ej angett",null,null,null,"Ej beräknat",null,null,null,null,null,null,null,null,null,null,"Ej bedömt",null,null,null,null,null,null,null,null,null,null,null,null,null,null,null,null,null,null,null,null,null,null,null,null,null,null,"Samkalk 3.4.6"]
[null,null,null,null,null,null,"Ej angett",null,null,null,null,null,null,null,null,null,null,null,"Ej angett",null,null,null,"Ej angett",null,null,null,"Ej beräknat",null,null,null,null,null,null,null,null,null,null,"Ej bedömt",null,null,null,null,null,null,null,null,null,null,null,null,null,null,null,null,null,null,null,null,null,null,null,null,null,null,"Samkalk 3.4.6"]
[null,null,null,null,null,null,"Ej angett",null,null,null,null,null,null,null,null,null,null,null,"Ej angett",null,null,null,"Ej angett",null,null,null,"Ej beräknat",null,null,null,null,null,null,null,null,null,null,"Ej bedömt",null,null,null,null,null,null,null,null,null,null,null,null,null,null,null,null,null,null,null,null,null,null,null,null,null,null,"Samkalk 3.4.6"]
[null,null,null,null,null,null,"Ej angett",null,null,null,null,null,null,null,null,null,null,null,"Ej angett",null,null,null,"Ej angett",null,null,null,"Ej beräknat",null,null,null,null,null,null,null,null,null,null,"Ej bedömt",null,null,null,null,null,null,null,null,null,null,null,null,null,null,null,null,null,null,null,null,null,null,null,null,null,null,"Samkalk 3.4.6"]
[null,null,null,null,null,null,"Ej angett",null,null,null,null,null,null,null,null,null,null,null,"Ej angett",null,null,null,"Ej angett",null,null,null,"Ej beräknat",null,null,null,null,null,null,null,null,null,null,"Ej bedömt",null,null,null,null,null,null,null,null,null,null,null,null,null,null,null,null,null,null,null,null,null,null,null,null,null,null,"Samkalk 3.4.6"]
[null,null,null,null,null,null,"Ej angett",null,null,null,null,null,null,null,null,null,null,null,"Ej angett",null,null,null,"Ej angett",null,null,null,"Ej beräknat",null,null,null,null,null,null,null,null,null,null,"Ej bedömt",null,null,null,null,null,null,null,null,null,null,null,null,null,null,null,null,null,null,null,null,null,null,null,null,null,null,"Samkalk 3.4.6"]
[null,null,null,null,null,null,"Ej angett",null,null,null,null,null,null,null,null,null,null,null,"Ej angett",null,null,null,"Ej angett",null,null,null,"Ej beräknat",null,null,null,null,null,null,null,null,null,null,"Ej bedömt",null,null,null,null,null,null,null,null,null,null,null,null,null,null,null,null,null,null,null,null,null,null,null,null,null,null,"Samkalk 3.4.6"]
[null,null,null,null,null,null,"Ej angett",null,null,null,null,null,null,null,null,null,null,null,"Ej angett",null,null,null,"Ej angett",null,null,null,"Ej beräknat",null,null,null,null,null,null,null,null,null,null,"Ej bedömt",null,null,null,null,null,null,null,null,null,null,null,null,null,null,null,null,null,null,null,null,null,null,null,null,null,null,"Samkalk 3.4.6"]
[null,null,null,null,null,null,"Ej angett",null,null,null,null,null,null,null,null,null,null,null,"Ej angett",null,null,null,"Ej angett",null,null,null,"Ej beräknat",null,null,null,null,null,null,null,null,null,null,"Ej bedömt",null,null,null,null,null,null,null,null,null,null,null,null,null,null,null,null,null,null,null,null,null,null,null,null,null,null,"Samkalk 3.4.6"]
[null,null,null,null,null,null,"Ej angett",null,null,null,null,null,null,null,null,null,null,null,"Ej angett",null,null,null,"Ej angett",null,null,null,"Ej beräknat",null,null,null,null,null,null,null,null,null,null,"Ej bedömt",null,null,null,null,null,null,null,null,null,null,null,null,null,null,null,null,null,null,null,null,null,null,null,null,null,null,"Samkalk 3.4.6"]
[null,null,null,null,null,null,"Ej angett",null,null,null,null,null,null,null,null,null,null,null,"Ej angett",null,null,null,"Ej angett",null,null,null,"Ej beräknat",null,null,null,null,null,null,null,null,null,null,"Ej bedömt",null,null,null,null,null,null,null,null,null,null,null,null,null,null,null,null,null,null,null,null,null,null,null,null,null,null,"Samkalk 3.4.6"]
[null,null,null,null,null,null,"Ej angett",null,null,null,null,null,null,null,null,null,null,null,"Ej angett",null,null,null,"Ej angett",null,null,null,"Ej beräknat",null,null,null,null,null,null,null,null,null,null,"Ej bedömt",null,null,null,null,null,null,null,null,null,null,null,null,null,null,null,null,null,null,null,null,null,null,null,null,null,null,"Samkalk 3.4.6"]
[null,null,null,null,null,null,"Ej angett",null,null,null,null,null,null,null,null,null,null,null,"Ej angett",null,null,null,"Ej angett",null,null,null,"Ej beräknat",null,null,null,null,null,null,null,null,null,null,"Ej bedömt",null,null,null,null,null,null,null,null,null,null,null,null,null,null,null,null,null,null,null,null,null,null,null,null,null,null,"Samkalk 3.4.6"]
[null,null,null,null,null,null,"Ej angett",null,null,null,null,null,null,null,null,null,null,null,"Ej angett",null,null,null,"Ej angett",null,null,null,"Ej beräknat",null,null,null,null,null,null,null,null,null,null,"Ej bedömt",null,null,null,null,null,null,null,null,null,null,null,null,null,null,null,null,null,null,null,null,null,null,null,null,null,null,"Samkalk 3.4.6"]
[null,null,null,null,null,null,"Ej angett",null,null,null,null,null,null,null,null,null,null,null,"Ej angett",null,null,null,"Ej angett",null,null,null,"Ej beräknat",null,null,null,null,null,null,null,null,null,null,"Ej bedömt",null,null,null,null,null,null,null,null,null,null,null,null,null,null,null,null,null,null,null,null,null,null,null,null,null,null,"Samkalk 3.4.6"]
[null,null,null,null,null,null,"Ej angett",null,null,null,null,null,null,null,null,null,null,null,"Ej angett",null,null,null,"Ej angett",null,null,null,"Ej beräknat",null,null,null,null,null,null,null,null,null,null,"Ej bedömt",null,null,null,null,null,null,null,null,null,null,null,null,null,null,null,null,null,null,null,null,null,null,null,null,null,null,"Samkalk 3.4.6"]
[null,null,null,null,null,null,"Ej angett",null,null,null,null,null,null,null,null,null,null,null,"Ej angett",null,null,null,"Ej angett",null,null,null,"Ej beräknat",null,null,null,null,null,null,null,null,null,null,"Ej bedömt",null,null,null,null,null,null,null,null,null,null,null,null,null,null,null,null,null,null,null,null,null,null,null,null,null,null,"Samkalk 3.4.6"]
[null,null,null,null,null,null,"Ej angett",null,null,null,null,null,null,null,null,null,null,null,"Ej angett",null,null,null,"Ej angett",null,null,null,"Ej beräknat",null,null,null,null,null,null,null,null,null,null,"Ej bedömt",null,null,null,null,null,null,null,null,null,null,null,null,null,null,null,null,null,null,null,null,null,null,null,null,null,null,"Samkalk 3.4.6"]
[null,null,null,null,null,null,"Ej angett",null,null,null,null,null,null,null,null,null,null,null,"Ej angett",null,null,null,"Ej angett",null,null,null,"Ej beräknat",null,null,null,null,null,null,null,null,null,null,"Ej bedömt",null,null,null,null,null,null,null,null,null,null,null,null,null,null,null,null,null,null,null,null,null,null,null,null,null,null,"Samkalk 3.4.6"]
[null,null,null,"HÄLSA (exkl trafiksäkerhet)",null,null,"Luft Avser NOX, avgaspartiklar och slitagepartiklar",null,null,null,null,null,null,null,null,null,null,null,"Ej angett",null,null,null,"Ej angett",null,null,null,{"$f":"'0.5. Importera data fr. verktyg'!AO14+'0.5. Importera data fr. verktyg'!AO15+'0.5. Importera data fr. verktyg'!AO16","v":222.94472999999999},null,null,null,null,{"$f":"IF(ISNUMBER(SUM(AA173:AE188)),SUM(AA173:AE188),0)","v":222.94472999999999},null,null,null,null,null,"Ej bedömt",null,null,null,null,null,null,null,null,"Ej bedömt",null,null,null,null,null,"Ej angett",null,null,null,null,null,null,null,null,null,null,null,"Samkalk 3.4.6"]
[null,null,null,null,null,null,"Luft - NOX Kväveoxider",null,null,null,null,null,null,null,null,null,null,null,{"$f":"'0.5. Importera data fr. verktyg'!AM14","v":-0.51390000000000002},null,null,null,"ton/år",null,null,null,"Ej beräknat",null,null,null,null,null,null,null,null,null,null,"Ej bedömt",null,null,null,null,null,null,null,null,null,null,null,null,null,null,null,null,null,null,null,null,null,null,null,null,null,null,"Samkalk 3.4.6"]
[null,null,null,null,null,null,"Luft -Avgaspartiklar",null,null,null,null,null,null,null,null,null,null,null,{"$f":"'0.5. Importera data fr. verktyg'!AM15","v":-6.3E-3},null,null,null,"ton/år",null,null,null,"Ej beräknat",null,null,null,null,null,null,null,null,null,null,"Ej bedömt",null,null,null,null,null,null,null,null,null,null,null,null,null,null,null,null,null,null,null,null,null,null,null,null,null,null,"Samkalk 3.4.6"]
[null,null,null,null,null,null,"Luft - Slitagepartiklar",null,null,null,null,null,null,null,null,null,null,null,{"$f":"'0.5. Importera data fr. verktyg'!AM16","v":9.0990000000000001E-2},null,null,null,"ton/år",null,null,null,"Ej beräknat",null,null,null,null,null,null,null,null,null,null,"Ej bedömt",null,null,null,null,null,null,null,null,null,null,null,null,null,null,null,null,null,null,null,null,null,null,null,null,null,null,"Samkalk 3.4.6"]
[null,null,null,null,null,null,"Ej angett",null,null,null,null,null,null,null,null,null,null,null,"Ej angett",null,null,null,"Ej angett",null,null,null,"Ej beräknat",null,null,null,null,null,null,null,null,null,null,"Ej bedömt",null,null,null,null,null,null,null,null,null,null,null,null,null,null,null,null,null,null,null,null,null,null,null,null,null,null,"Samkalk 3.4.6"]
[null,null,null,null,null,null,"Ej angett",null,null,null,null,null,null,null,null,null,null,null,"Ej angett",null,null,null,"Ej angett",null,null,null,"Ej beräknat",null,null,null,null,null,null,null,null,null,null,"Ej bedömt",null,null,null,null,null,null,null,null,null,null,null,null,null,null,null,null,null,null,null,null,null,null,null,null,null,null,"Samkalk 3.4.6"]
[null,null,null,null,null,null,"Ej angett",null,null,null,null,null,null,null,null,null,null,null,"Ej angett",null,null,null,"Ej angett",null,null,null,"Ej beräknat",null,null,null,null,null,null,null,null,null,null,"Ej bedömt",null,null,null,null,null,null,null,null,null,null,null,null,null,null,null,null,null,null,null,null,null,null,null,null,null,null,"Samkalk 3.4.6"]
[null,null,null,null,null,null,"Ej angett",null,null,null,null,null,null,null,null,null,null,null,"Ej angett",null,null,null,"Ej angett",null,null,null,"Ej beräknat",null,null,null,null,null,null,null,null,null,null,"Ej bedömt",null,null,null,null,null,null,null,null,null,null,null,null,null,null,null,null,null,null,null,null,null,null,null,null,null,null,"Samkalk 3.4.6"]
[null,null,null,null,null,null,"Ej angett",null,null,null,null,null,null,null,null,null,null,null,"Ej angett",null,null,null,"Ej angett",null,null,null,"Ej beräknat",null,null,null,null,null,null,null,null,null,null,"Ej bedömt",null,null,null,null,null,null,null,null,null,null,null,null,null,null,null,null,null,null,null,null,null,null,null,null,null,null,"Samkalk 3.4.6"]
[null,null,null,null,null,null,"Ej angett",null,null,null,null,null,null,null,null,null,null,null,"Ej angett",null,null,null,"Ej angett",null,null,null,"Ej beräknat",null,null,null,null,null,null,null,null,null,null,"Ej bedömt",null,null,null,null,null,null,null,null,null,null,null,null,null,null,null,null,null,null,null,null,null,null,null,null,null,null,"Samkalk 3.4.6"]
[null,null,null,null,null,null,"Ej angett",null,null,null,null,null,null,null,null,null,null,null,"Ej angett",null,null,null,"Ej angett",null,null,null,"Ej beräknat",null,null,null,null,null,null,null,null,null,null,"Ej bedömt",null,null,null,null,null,null,null,null,null,null,null,null,null,null,null,null,null,null,null,null,null,null,null,null,null,null,"Samkalk 3.4.6"]
[null,null,null,null,null,null,"Ej angett",null,null,null,null,null,null,null,null,null,null,null,"Ej angett",null,null,null,"Ej angett",null,null,null,"Ej beräknat",null,null,null,null,null,null,null,null,null,null,"Ej bedömt",null,null,null,null,null,null,null,null,null,null,null,null,null,null,null,null,null,null,null,null,null,null,null,null,null,null,"Samkalk 3.4.6"]
[null,null,null,null,null,null,"Ej angett",null,null,null,null,null,null,null,null,null,null,null,"Ej angett",null,null,null,"Ej angett",null,null,null,"Ej beräknat",null,null,null,null,null,null,null,null,null,null,"Ej bedömt",null,null,null,null,null,null,null,null,null,null,null,null,null,null,null,null,null,null,null,null,null,null,null,null,null,null,"Samkalk 3.4.6"]
[null,null,null,null,null,null,"Ej angett",null,null,null,null,null,null,null,null,null,null,null,"Ej angett",null,null,null,"Ej angett",null,null,null,"Ej beräknat",null,null,null,null,null,null,null,null,null,null,"Ej bedömt",null,null,null,null,null,null,null,null,null,null,null,null,null,null,null,null,null,null,null,null,null,null,null,null,null,null,"Samkalk 3.4.6"]
[null,null,null,null,null,null,"Ej angett",null,null,null,null,null,null,null,null,null,null,null,"Ej angett",null,null,null,"Ej angett",null,null,null,"Ej beräknat",null,null,null,null,null,null,null,null,null,null,"Ej bedömt",null,null,null,null,null,null,null,null,null,null,null,null,null,null,null,null,null,null,null,null,null,null,null,null,null,null,"Samkalk 3.4.6"]
[null,null,null,null,null,null,"Ej angett",null,null,null,null,null,null,null,null,null,null,null,"Ej angett",null,null,null,"Ej angett",null,null,null,"Ej beräknat",null,null,null,null,null,null,null,null,null,null,"Ej bedömt",null,null,null,null,null,null,null,null,null,null,null,null,null,null,null,null,null,null,null,null,null,null,null,null,null,null,"Samkalk 3.4.6"]
[null,null,null,"LANDSKAP",null,null,"Ej angett",null,null,null,null,null,null,null,null,null,null,null,"Ej angett",null,null,null,"Ej angett",null,null,null,"Ej beräknat",null,null,null,null,{"$f":"IF(ISNUMBER(SUM(AA189:AE203)),SUM(AA189:AE203),0)","v":0},null,null,null,null,null,"Ej bedömt",null,null,null,null,null,null,null,null,"Ej bedömt",null,null,null,null,null,"Ej angett"]
[null,null,null,null,null,null,"Ej angett",null,null,null,null,null,null,null,null,null,null,null,"Ej angett",null,null,null,"Ej angett",null,null,null,"Ej beräknat",null,null,null,null,null,null,null,null,null,null,"Ej bedömt"]
[null,null,null,null,null,null,"Ej angett",null,null,null,null,null,null,null,null,null,null,null,"Ej angett",null,null,null,"Ej angett",null,null,null,"Ej beräknat",null,null,null,null,null,null,null,null,null,null,"Ej bedömt"]
[null,null,null,null,null,null,"Ej angett",null,null,null,null,null,null,null,null,null,null,null,"Ej angett",null,null,null,"Ej angett",null,null,null,"Ej beräknat",null,null,null,null,null,null,null,null,null,null,"Ej bedömt"]
[null,null,null,null,null,null,"Ej angett",null,null,null,null,null,null,null,null,null,null,null,"Ej angett",null,null,null,"Ej angett",null,null,null,"Ej beräknat",null,null,null,null,null,null,null,null,null,null,"Ej bedömt"]
[null,null,null,null,null,null,"Ej angett",null,null,null,null,null,null,null,null,null,null,null,"Ej angett",null,null,null,"Ej angett",null,null,null,"Ej beräknat",null,null,null,null,null,null,null,null,null,null,"Ej bedömt"]
[null,null,null,null,null,null,"Ej angett",null,null,null,null,null,null,null,null,null,null,null,"Ej angett",null,null,null,"Ej angett",null,null,null,"Ej beräknat",null,null,null,null,null,null,null,null,null,null,"Ej bedömt"]
[null,null,null,null,null,null,"Ej angett",null,null,null,null,null,null,null,null,null,null,null,"Ej angett",null,null,null,"Ej angett",null,null,null,"Ej beräknat",null,null,null,null,null,null,null,null,null,null,"Ej bedömt"]
[null,null,null,null,null,null,"Ej angett",null,null,null,null,null,null,null,null,null,null,null,"Ej angett",null,null,null,"Ej angett",null,null,null,"Ej beräknat",null,null,null,null,null,null,null,null,null,null,"Ej bedömt"]
[null,null,null,null,null,null,"Ej angett",null,null,null,null,null,null,null,null,null,null,null,"Ej angett",null,null,null,"Ej angett",null,null,null,"Ej beräknat",null,null,null,null,null,null,null,null,null,null,"Ej bedömt"]
[null,null,null,null,null,null,"Ej angett",null,null,null,null,null,null,null,null,null,null,null,"Ej angett",null,null,null,"Ej angett",null,null,null,"Ej beräknat",null,null,null,null,null,null,null,null,null,null,"Ej bedömt"]
[null,null,null,null,null,null,"Ej angett",null,null,null,null,null,null,null,null,null,null,null,"Ej angett",null,null,null,"Ej angett",null,null,null,"Ej beräknat",null,null,null,null,null,null,null,null,null,null,"Ej bedömt"]
[null,null,null,null,null,null,"Ej angett",null,null,null,null,null,null,null,null,null,null,null,"Ej angett",null,null,null,"Ej angett",null,null,null,"Ej beräknat",null,null,null,null,null,null,null,null,null,null,"Ej bedömt"]
[null,null,null,null,null,null,"Ej angett",null,null,null,null,null,null,null,null,null,null,null,"Ej angett",null,null,null,"Ej angett",null,null,null,"Ej beräknat",null,null,null,null,null,null,null,null,null,null,"Ej bedömt"]
[null,null,null,null,null,null,"Ej angett",null,null,null,null,null,null,null,null,null,null,null,"Ej angett",null,null,null,"Ej angett",null,null,null,"Ej beräknat",null,null,null,null,null,null,null,null,null,null,"Ej bedömt"]
[null,null,null,"ÖVRIGA EXTERNA EFFEKTER",null,null,"Marginellt slitage",null,null,null,null,null,null,null,null,null,null,null,{"$f":"'0.5. Importera data fr. verktyg'!AM20","v":-0.50251999999999997},null,null,null,"mnkr/år",null,null,null,{"$f":"'0.5. Importera data fr. verktyg'!AO20","v":13.005560000000001},null,null,null,null,{"$f":"IF(ISNUMBER(SUM(AA204:AE220)),SUM(AA204:AE220),0)","v":13.005560000000001},null,null,null,null,null,"Ej bedömt",null,null,null,null,null,null,null,null,"Ej bedömt",null,null,null,null,null,"Ej angett",null,null,null,null,null,null,null,null,null,null,null,{"$f":"$AJ$19","v":"Samkalk 3.4.6"}]
[null,null,null,null,null,null,"Ej angett",null,null,null,null,null,null,null,null,null,null,null,"Ej angett",null,null,null,"Ej angett",null,null,null,"Ej beräknat",null,null,null,null,null,null,null,null,null,null,"Ej bedömt",null,null,null,null,null,null,null,null,null,null,null,null,null,null,null,null,null,null,null,null,null,null,null,null,null,null,"Samkalk 3.4.6"]
[null,null,null,null,null,null,"Ej angett",null,null,null,null,null,null,null,null,null,null,null,"Ej angett",null,null,null,"Ej angett",null,null,null,"Ej beräknat",null,null,null,null,null,null,null,null,null,null,"Ej bedömt",null,null,null,null,null,null,null,null,null,null,null,null,null,null,null,null,null,null,null,null,null,null,null,null,null,null,"Samkalk 3.4.6"]
[null,null,null,null,null,null,"Ej angett",null,null,null,null,null,null,null,null,null,null,null,"Ej angett",null,null,null,"Ej angett",null,null,null,"Ej beräknat",null,null,null,null,null,null,null,null,null,null,"Ej bedömt",null,null,null,null,null,null,null,null,null,null,null,null,null,null,null,null,null,null,null,null,null,null,null,null,null,null,"Samkalk 3.4.6"]
[null,null,null,null,null,null,"Ej angett",null,null,null,null,null,null,null,null,null,null,null,"Ej angett",null,null,null,"Ej angett",null,null,null,"Ej beräknat",null,null,null,null,null,null,null,null,null,null,"Ej bedömt",null,null,null,null,null,null,null,null,null,null,null,null,null,null,null,null,null,null,null,null,null,null,null,null,null,null,"Samkalk 3.4.6"]
[null,null,null,null,null,null,"Ej angett",null,null,null,null,null,null,null,null,null,null,null,"Ej angett",null,null,null,"Ej angett",null,null,null,"Ej beräknat",null,null,null,null,null,null,null,null,null,null,"Ej bedömt",null,null,null,null,null,null,null,null,null,null,null,null,null,null,null,null,null,null,null,null,null,null,null,null,null,null,"Samkalk 3.4.6"]
[null,null,null,null,null,null,"Ej angett",null,null,null,null,null,null,null,null,null,null,null,"Ej angett",null,null,null,"Ej angett",null,null,null,"Ej beräknat",null,null,null,null,null,null,null,null,null,null,"Ej bedömt",null,null,null,null,null,null,null,null,null,null,null,null,null,null,null,null,null,null,null,null,null,null,null,null,null,null,"Samkalk 3.4.6"]
[null,null,null,null,null,null,"Ej angett",null,null,null,null,null,null,null,null,null,null,null,"Ej angett",null,null,null,"Ej angett",null,null,null,"Ej beräknat",null,null,null,null,null,null,null,null,null,null,"Ej bedömt",null,null,null,null,null,null,null,null,null,null,null,null,null,null,null,null,null,null,null,null,null,null,null,null,null,null,"Samkalk 3.4.6"]
[null,null,null,null,null,null,"Ej angett",null,null,null,null,null,null,null,null,null,null,null,"Ej angett",null,null,null,"Ej angett",null,null,null,"Ej beräknat",null,null,null,null,null,null,null,null,null,null,"Ej bedömt",null,null,null,null,null,null,null,null,null,null,null,null,null,null,null,null,null,null,null,null,null,null,null,null,null,null,"Samkalk 3.4.6"]
[null,null,null,null,null,null,"Ej angett",null,null,null,null,null,null,null,null,null,null,null,"Ej angett",null,null,null,"Ej angett",null,null,null,"Ej beräknat",null,null,null,null,null,null,null,null,null,null,"Ej bedömt",null,null,null,null,null,null,null,null,null,null,null,null,null,null,null,null,null,null,null,null,null,null,null,null,null,null,"Samkalk 3.4.6"]
[null,null,null,null,null,null,"Ej angett",null,null,null,null,null,null,null,null,null,null,null,"Ej angett",null,null,null,"Ej angett",null,null,null,"Ej beräknat",null,null,null,null,null,null,null,null,null,null,"Ej bedömt",null,null,null,null,null,null,null,null,null,null,null,null,null,null,null,null,null,null,null,null,null,null,null,null,null,null,"Samkalk 3.4.6"]
[null,null,null,null,null,null,"Ej angett",null,null,null,null,null,null,null,null,null,null,null,"Ej angett",null,null,null,"Ej angett",null,null,null,"Ej beräknat",null,null,null,null,null,null,null,null,null,null,"Ej bedömt",null,null,null,null,null,null,null,null,null,null,null,null,null,null,null,null,null,null,null,null,null,null,null,null,null,null,"Samkalk 3.4.6"]
[null,null,null,null,null,null,"Ej angett",null,null,null,null,null,null,null,null,null,null,null,"Ej angett",null,null,null,"Ej angett",null,null,null,"Ej beräknat",null,null,null,null,null,null,null,null,null,null,"Ej bedömt",null,null,null,null,null,null,null,null,null,null,null,null,null,null,null,null,null,null,null,null,null,null,null,null,null,null,"Samkalk 3.4.6"]
[null,null,null,null,null,null,"Ej angett",null,null,null,null,null,null,null,null,null,null,null,"Ej angett",null,null,null,"Ej angett",null,null,null,"Ej beräknat",null,null,null,null,null,null,null,null,null,null,"Ej bedömt",null,null,null,null,null,null,null,null,null,null,null,null,null,null,null,null,null,null,null,null,null,null,null,null,null,null,"Samkalk 3.4.6"]
[null,null,null,null,null,null,"Ej angett",null,null,null,null,null,null,null,null,null,null,null,"Ej angett",null,null,null,"Ej angett",null,null,null,"Ej beräknat",null,null,null,null,null,null,null,null,null,null,"Ej bedömt",null,null,null,null,null,null,null,null,null,null,null,null,null,null,null,null,null,null,null,null,null,null,null,null,null,null,"Samkalk 3.4.6"]
[null,null,null,null,null,null,"Ej angett",null,null,null,null,null,null,null,null,null,null,null,"Ej angett",null,null,null,"Ej angett",null,null,null,"Ej beräknat",null,null,null,null,null,null,null,null,null,null,"Ej bedömt",null,null,null,null,null,null,null,null,null,null,null,null,null,null,null,null,null,null,null,null,null,null,null,null,null,null,"Samkalk 3.4.6"]
[null,null,null,null,null,null,"Ej angett",null,null,null,null,null,null,null,null,null,null,null,"Ej angett",null,null,null,"Ej angett",null,null,null,"Ej beräknat",null,null,null,null,null,null,null,null,null,null,"Ej bedömt",null,null,null,null,null,null,null,null,null,null,null,null,null,null,null,null,null,null,null,null,null,null,null,null,null,null,"Samkalk 3.4.6"]
["BUDGETEFFEKTER",null,null,null,null,null,"Drivmedelsskatt för vägtrafik, regionalt",null,null,null,null,null,null,null,null,null,null,null,{"$f":"'0.5. Importera data fr. verktyg'!AM22","v":1.1986300000000001},null,null,null,"mnkr/år",null,null,null,{"$f":"'0.5. Importera data fr. verktyg'!AO22","v":31.0215},null,null,null,null,{"$f":"IF(ISNUMBER(SUM(AA221:AE234)),SUM(AA221:AE234),0)","v":472.12276000000003},null,null,null,null,null,"Ej bedömt",null,null,null,null,null,null,null,null,"Ej bedömt",null,null,null,null,null,"Ej angett",null,null,null,null,null,null,null,null,null,null,null,"Samkalk 3.4.6"]
[null,null,null,null,null,null,"Drivmedelsskatt för vägtrafik, långväga",null,null,null,null,null,null,null,null,null,null,null,{"$f":"'0.5. Importera data fr. verktyg'!AM23","v":0},null,null,null,"mnkr/år",null,null,null,{"$f":"'0.5. Importera data fr. verktyg'!AO23","v":0},null,null,null,null,null,null,null,null,null,null,"Ej bedömt",null,null,null,null,null,null,null,null,null,null,null,null,null,null,null,null,null,null,null,null,null,null,null,null,null,null,"Samkalk 3.4.6"]
[null,null,null,null,null,null,"Vägavgifter/ vägskatt",null,null,null,null,null,null,null,null,null,null,null,{"$f":"'0.5. Importera data fr. verktyg'!AM24","v":17.05753},null,null,null,"mnkr/år",null,null,null,{"$f":"'0.5. Importera data fr. verktyg'!AO24","v":441.4615},null,null,null,null,null,null,null,null,null,null,"Ej bedömt",null,null,null,null,null,null,null,null,null,null,null,null,null,null,null,null,null,null,null,null,null,null,null,null,null,null,"Samkalk 3.4.6"]
[null,null,null,null,null,null,"Moms på biljettintäkter",null,null,null,null,null,null,null,null,null,null,null,{"$f":"'0.5. Importera data fr. verktyg'!AM25","v":-1.374E-2},null,null,null,"mnkr/år",null,null,null,{"$f":"'0.5. Importera data fr. verktyg'!AO25","v":-0.36024},null,null,null,null,null,null,null,null,null,null,"Ej bedömt",null,null,null,null,null,null,null,null,null,null,null,null,null,null,null,null,null,null,null,null,null,null,null,null,null,null,"Samkalk 3.4.6"]
[null,null,null,null,null,null,"Banavgifter",null,null,null,null,null,null,null,null,null,null,null,{"$f":"'0.5. Importera data fr. verktyg'!AM26","v":0},null,null,null,"mnkr/år",null,null,null,{"$f":"'0.5. Importera data fr. verktyg'!AO26","v":0},null,null,null,null,null,null,null,null,null,null,"Ej bedömt",null,null,null,null,null,null,null,null,null,null,null,null,null,null,null,null,null,null,null,null,null,null,null,null,null,null,"Samkalk 3.4.6"]
[null,null,null,null,null,null,"Ej angett",null,null,null,null,null,null,null,null,null,null,null,"Ej angett",null,null,null,"Ej angett",null,null,null,"Ej beräknat",null,null,null,null,null,null,null,null,null,null,"Ej bedömt",null,null,null,null,null,null,null,null,null,null,null,null,null,null,null,null,null,null,null,null,null,null,null,null,null,null,"Samkalk 3.4.6"]
[null,null,null,null,null,null,"Ej angett",null,null,null,null,null,null,null,null,null,null,null,"Ej angett",null,null,null,"Ej angett",null,null,null,"Ej beräknat",null,null,null,null,null,null,null,null,null,null,"Ej bedömt",null,null,null,null,null,null,null,null,null,null,null,null,null,null,null,null,null,null,null,null,null,null,null,null,null,null,"Samkalk 3.4.6"]
[null,null,null,null,null,null,"Ej angett",null,null,null,null,null,null,null,null,null,null,null,"Ej angett",null,null,null,"Ej angett",null,null,null,"Ej beräknat",null,null,null,null,null,null,null,null,null,null,"Ej bedömt",null,null,null,null,null,null,null,null,null,null,null,null,null,null,null,null,null,null,null,null,null,null,null,null,null,null,"Samkalk 3.4.6"]
[null,null,null,null,null,null,"Ej angett",null,null,null,null,null,null,null,null,null,null,null,"Ej angett",null,null,null,"Ej angett",null,null,null,"Ej beräknat",null,null,null,null,null,null,null,null,null,null,"Ej bedömt",null,null,null,null,null,null,null,null,null,null,null,null,null,null,null,null,null,null,null,null,null,null,null,null,null,null,"Samkalk 3.4.6"]
[null,null,null,null,null,null,"Ej angett",null,null,null,null,null,null,null,null,null,null,null,"Ej angett",null,null,null,"Ej angett",null,null,null,"Ej beräknat",null,null,null,null,null,null,null,null,null,null,"Ej bedömt",null,null,null,null,null,null,null,null,null,null,null,null,null,null,null,null,null,null,null,null,null,null,null,null,null,null,"Samkalk 3.4.6"]
[null,null,null,null,null,null,"Ej angett",null,null,null,null,null,null,null,null,null,null,null,"Ej angett",null,null,null,"Ej angett",null,null,null,"Ej beräknat",null,null,null,null,null,null,null,null,null,null,"Ej bedömt",null,null,null,null,null,null,null,null,null,null,null,null,null,null,null,null,null,null,null,null,null,null,null,null,null,null,"Samkalk 3.4.6"]
[null,null,null,null,null,null,"Ej angett",null,null,null,null,null,null,null,null,null,null,null,"Ej angett",null,null,null,"Ej angett",null,null,null,"Ej beräknat",null,null,null,null,null,null,null,null,null,null,"Ej bedömt",null,null,null,null,null,null,null,null,null,null,null,null,null,null,null,null,null,null,null,null,null,null,null,null,null,null,"Samkalk 3.4.6"]
[null,null,null,null,null,null,"Ej angett",null,null,null,null,null,null,null,null,null,null,null,"Ej angett",null,null,null,"Ej angett",null,null,null,"Ej beräknat",null,null,null,null,null,null,null,null,null,null,"Ej bedömt",null,null,null,null,null,null,null,null,null,null,null,null,null,null,null,null,null,null,null,null,null,null,null,null,null,null,"Samkalk 3.4.6"]
[null,null,null,null,null,null,"Ej angett",null,null,null,null,null,null,null,null,null,null,null,"Ej angett",null,null,null,"Ej angett",null,null,null,"Ej beräknat",null,null,null,null,null,null,null,null,null,null,"Ej bedömt",null,null,null,null,null,null,null,null,null,null,null,null,null,null,null,null,null,null,null,null,null,null,null,null,null,null,"Samkalk 3.4.6"]
["INBESPARADE JA-KOSTNADER",null,null,null,null,null,"Inbesparade JA-kostnader",null,null,null,null,null,null,null,null,null,null,null,"Ej angett",null,null,null,"Ej angett",null,null,null,"Ej beräknat",null,null,null,null,{"$f":"IF(ISNUMBER(SUM(AA235:AE235)),SUM(AA235:AE235),0)","v":0},null,null,null,null,null,"Ej bedömt",null,null,null,null,null,null,null,null,"Ej bedömt",null,null,null,null,null,"Ej angett"]
["DRIFT-, UNDERHÅLLS- OCH REINVESTERINGS-KOSTNADER UNDER LIVSLÄNGD",null,null,null,null,null,"Ej angett",null,null,null,null,null,null,null,null,null,null,null,"Ej angett",null,null,null,"Ej angett",null,null,null,"Ej beräknat",null,null,null,null,{"$f":"IF(ISNUMBER(SUM(AA236:AE250)),SUM(AA236:AE250),0)","v":0},null,null,null,null,null,"Ej bedömt",null,null,null,null,null,null,null,null,"Ej bedömt",null,null,null,null,null,"Ej angett",null,null,null,null,null,null,null,null,null,null,null,"Samkalk 3.4.6"]
[null,null,null,null,null,null,"Ej angett",null,null,null,null,null,null,null,null,null,null,null,"Ej angett",null,null,null,"Ej angett",null,null,null,"Ej beräknat",null,null,null,null,null,null,null,null,null,null,"Ej bedömt"]
[null,null,null,null,null,null,"Ej angett",null,null,null,null,null,null,null,null,null,null,null,"Ej angett",null,null,null,"Ej angett",null,null,null,"Ej beräknat",null,null,null,null,null,null,null,null,null,null,"Ej bedömt"]
[null,null,null,null,null,null,"Ej angett",null,null,null,null,null,null,null,null,null,null,null,"Ej angett",null,null,null,"Ej angett",null,null,null,"Ej beräknat",null,null,null,null,null,null,null,null,null,null,"Ej bedömt"]
[null,null,null,null,null,null,"Ej angett",null,null,null,null,null,null,null,null,null,null,null,"Ej angett",null,null,null,"Ej angett",null,null,null,"Ej beräknat",null,null,null,null,null,null,null,null,null,null,"Ej bedömt"]
[null,null,null,null,null,null,"Ej angett",null,null,null,null,null,null,null,null,null,null,null,"Ej angett",null,null,null,"Ej angett",null,null,null,"Ej beräknat",null,null,null,null,null,null,null,null,null,null,"Ej bedömt"]
[null,null,null,null,null,null,"Ej angett",null,null,null,null,null,null,null,null,null,null,null,"Ej angett",null,null,null,"Ej angett",null,null,null,"Ej beräknat",null,null,null,null,null,null,null,null,null,null,"Ej bedömt"]
[null,null,null,null,null,null,"Ej angett",null,null,null,null,null,null,null,null,null,null,null,"Ej angett",null,null,null,"Ej angett",null,null,null,"Ej beräknat",null,null,null,null,null,null,null,null,null,null,"Ej bedömt"]
[null,null,null,null,null,null,"Ej angett",null,null,null,null,null,null,null,null,null,null,null,"Ej angett",null,null,null,"Ej angett",null,null,null,"Ej beräknat",null,null,null,null,null,null,null,null,null,null,"Ej bedömt"]
[null,null,null,null,null,null,"Ej angett",null,null,null,null,null,null,null,null,null,null,null,"Ej angett",null,null,null,"Ej angett",null,null,null,"Ej beräknat",null,null,null,null,null,null,null,null,null,null,"Ej bedömt"]
[null,null,null,null,null,null,"Ej angett",null,null,null,null,null,null,null,null,null,null,null,"Ej angett",null,null,null,"Ej angett",null,null,null,"Ej beräknat",null,null,null,null,null,null,null,null,null,null,"Ej bedömt"]
[null,null,null,null,null,null,"Ej angett",null,null,null,null,null,null,null,null,null,null,null,"Ej angett",null,null,null,"Ej angett",null,null,null,"Ej beräknat",null,null,null,null,null,null,null,null,null,null,"Ej bedömt"]
[null,null,null,null,null,null,"Ej angett",null,null,null,null,null,null,null,null,null,null,null,"Ej angett",null,null,null,"Ej angett",null,null,null,"Ej beräknat",null,null,null,null,null,null,null,null,null,null,"Ej bedömt"]
[null,null,null,null,null,null,"Ej angett",null,null,null,null,null,null,null,null,null,null,null,"Ej angett",null,null,null,"Ej angett",null,null,null,"Ej beräknat",null,null,null,null,null,null,null,null,null,null,"Ej bedömt"]
[null,null,null,null,null,null,"Ej angett",null,null,null,null,null,null,null,null,null,null,null,"Ej angett",null,null,null,"Ej angett",null,null,null,"Ej beräknat",null,null,null,null,null,null,null,null,null,null,"Ej bedömt"]
["SAMHÄLLS EKONOMISK INVESTERINGS-KOSTNAD",null,null,null,null,null,"Effekten prognosår 1 avser annuitetsberäknad samhällsekonomisk investeringskostnad",null,null,null,null,null,null,null,null,null,null,null,{"$f":"-'0.5. Importera data fr. verktyg'!AY13","v":-117.74499844643891},null,null,null,"mnkr/ år",null,null,null,{"$f":"-'0.5. Importera data fr. verktyg'!AY10","v":-2937.1176799999998},null,null,null,null,{"$f":"-SUM(AA251:AE251)","v":2937.1176799999998},null,null,null,null,null,null,null,null,null,null,null,null,null,null,null,null,null,null,null,null,null,null,null,null,null,null,null,null,null,null,null,null,null,null,null,null,"Kostnaden fylls i här"]
["                   NETTONUVÄRDE       ",null,null,null,null,null,null,null,null,null,null,null,null,null,null,null,null,null,null,null,null,null,null,null,null,null,null,null,null,null,null,{"$f":"IF((SUM(AF68,AF91,AF113,AF133,AF150,AF173,AF189,AF204,AF221,AF235,AF236)=0),\" -\", (SUM(AF68,AF91,AF113,AF133,AF150,AF173,AF189,AF204,AF221,AF235,AF236,-AF251)))","v":895.48778000000084},null,null,null,null,null,"SAMMANVÄGNING AV EJ VÄRDERBARA EFFEKTER",null,null,null,null,null,null,null,null,"Ej bedömt"]
[]
["Kvalitetsbedömning av samhällsekonomisk kalkyl",null,null,null,null,null,null,null,null,null,null,null,null,null,null,null,null,null,null,null,null,null,null,null,null,null,null,null,null,null,null,null,null,null,null,null,"Motivering sammanvägning av ej värderbara effekter"]
["Kvalitetsbedömning  ",null,null,null,null,null,null,null,null,null,null,null,null,null,null,null,null,null,null,null,null,null,null,null,null,null,null,null,null,null,null,null,null,null,null,null,"Motivering  "]
[]
[]
["Slutligt bedömd sammanvägd lönsamhet"]
[]
["Tabell 2.4"]
["Slutligt bedömd sammanvägd lönsamhet",null,null,null,null,null,null,null,null,null,null,null,null,null,null,null,null,null,null,null,null,null,null,null,null,"Ej bedömt"]
["Slutlig sammanvägning bedömd av:",null,null,null,null,null,null,null,null,null,null,null,null,null,null,null,null,null,null,null,null,null,null,null,null,"Ej angett"]
[]
["Motivering:"]
["Kortfattad text som förs över till sammanfattningen (Motivering samhällsekonomi)",null,null,null,null,null,null,null,null,null,null,null,null,null,null,null,null,null,null,null,null,null,null,null,null,null,null,null,null,null,null,null,null,null,null,null,null,null,null,null,null,null,null,null,null,null,null,null,null,null,null,null,null,null,null,null,null,null,null,null,null,null,null,null,null,null,null,null,"Text som går till sammanfattningen"]
["Möjlighet att skriva mer text",null,null,null,null,null,null,null,null,null,null,null,null,null,null,null,null,null,null,null,null,null,null,null,null,null,null,null,null,null,null,null,null,null,null,null,null,null,null,null,null,null,null,null,null,null,null,null,null,null,null,null,null,null,null,null,null,null,null,null,null,null,null,null,null,null,null,null,"Kompletterande text. \n"]
[]
[]
[]
["Underlag till kostnadseffektivitetstal"]
[null,null,null,null,null,null,null,null,"Effekt prognosår 1",null,null,null,null,null,"Enhet"]
["Trafiksäkerhet D",null,null,null,null,null,null,null,{"$f":"'0.5. Importera data fr. verktyg'!AV21","v":-3.1460000000000002E-2},null,null,null,null,null,"personer/år"]
["Trafiksäkerhet DAS",null,null,null,null,null,null,null,{"$f":"'0.5. Importera data fr. verktyg'!AV22","v":-1.4051100000000001},null,null,null,null,null,"personer/år"]
["Restid",null,null,null,null,null,null,null,{"$f":"'0.5. Importera data fr. verktyg'!AV23","v":-352.88000000000005},null,null,null,null,null,"ktim/år"]
["CO2",null,null,null,null,null,null,null,{"$f":"'0.5. Importera data fr. verktyg'!AV24","v":-0.14607999999999999},null,null,null,null,null,"kton/år"]